Workbook

Sheet Title
A1: The column titles for this worksheet are in row 2. They span cells C2. The data spans cells A3 through C29. There is information in every cell for column A through C inclusive. If you are not using a screen reader, you can press Alt + R, T for the Review Ribbon, Edit Comment to move to and open a Comment once you are on a cell with a Comment. When you are finished reading the Comment, press Escape to close the comment and return to the worksheet. If you are using the JAWS screen reader, press Ctrl + Shift + Apostrophe to get a list of Comments and their cell coordinates in the worksheet. Press Enter on the Comment you want to go to or Escape once you’ve read the Comment for a cell. You are returned to the workbook. Note that there is no keyboard command with JAWS to reread Comments or read Comments once you are on them in a cell. You must use the ability to list Comments in order to read them if you are using the JAWS screen reader.
C2: California Life-Cycle Benefit/Cost Analysis Model (Cal-B/C Corridor) Version 8.1
B22: Office of Transportation Economics
B23: Division of Transportation Planning
B24: March 2022
B27: For questions and comments, please contact:
B29: Transportation Economics Branch | C29: eab@dot.ca.gov

Sheet Instructions

Sheet 1) Project Information
C2: District: | E2: 10 | W2: Enter all project costs (in today's dollars) in columns 1 to 7. Costs during construction should be entered in the first eight rows.
P3: EA: | Q3: 1M290 & 1M300 | W3: Project costs (including maintenance and operating costs) should be net of costs without project.
C4: PROJECT: | E4: SJCOG SR99/120 Connector Interchange Phase 1A & 1B | P4: PPNO: | Q4: 3162A & 3162B
C7: 1A | D7: PROJECT DATA | L7: 1B | M7: MODEL STRUCTURE | V7: 1C | W7: PROJECT COSTS (enter costs in thousands of dollars)
C9: Type of Project | V9: Col. no. | W9: (1) | X9: (2) | Y9: (3) | Z9: (4) | AA9: (5) | AB9: (6) | AC9: (7)
P10: Values In This Model | W10: DIRECT PROJECT COSTS | AC10: Transit
M11: Number of Model Groups | N11: 1 | P11: =MAX('2) Model Inputs'!$D:$D) -> 1 | W11: INITIAL COSTS | Z11: SUBSEQUENT COSTS | AC11: Agency | AD11: TOTAL COSTS (in dollars)
C12: Project Location (enter 1 for So. Cal., 2 for No. Cal., or 3 for rural) | H12: 2 | M12: Number of Safety Groups | N12: 1 | P12: =MAX('2) Model Inputs'!$AJ:$AJ) -> 1 | V12: Year | W12: Project | Z12: Maint./ | AC12: Cost | AD12: Constant | AE12: Present
M13: Number of Reliability Groups | N13: 1 | P13: =MAX('2) Model Inputs'!$BN:$BN) -> 1 | W13: Support | X13: R / W | Y13: Construction | Z13: Op. | AA13: Rehab. | AB13: Mitigation | AC13: Savings | AD13: Dollars | AE13: Value
C14: Project Timing | M14: Years | N14: 20 | O14: 2-50 | P14: =COUNT('1) Project Information'!$V24:$V43) -> 20 | V14: Construction Period
V15: =YearStart -> 2026 | W15: 7055 | X15: 7141 | Y15: 38338.83 | Z15: =IF(V15<YearOpen,IF(SUM(W15:Y15)>0,"","Enter Construction Cost"),IF(SUM(W15:Y15)>0,"After Construction Period","")) ->  | AD15: =SUM(W15:AC15)*1000 -> 52534830 | AE15: =$AD15/(1+DiscRate)^($V15-YearCurrent) -> 46703272.57
D16: Current Year | F16: 2023 | V16: =V15+1 -> 2027 | Y16: 38338.83 | AD16: =SUM(W16:AC16)*1000 -> 38338830 | AE16: 32772192.56
V17: =V16+1 -> 2028 | Y17: 38338.83 | Z17: After Construction Period | AD17: =SUM(W17:AC17)*1000 -> 38338830 | AE17: 31511723.62
D18: Year Construction Begins | F18: 2026 | V18: 2029 | AD18: 0 | AE18: 0
V19: 2030 | AD19: 0 | AE19: 0
D20: Year Project Opens | F20: 2028 | M20: of segments and years to include. | V20: 2031 | AD20: 0 | AE20: 0
V21: 2032 | AD21: 0 | AE21: 0
V22: 2033 | AD22: 0 | AE22: 0
V23: Project Open
V24: =YearOpen -> 2028 | Z24: 3 | AD24: =SUM(W24:AC24)*1000 -> 3000 | AE24: =$AD24/(1+DiscRate)^($V24-YearCurrent) -> 2465.78132
V25: =V24+1 -> 2029 | Z25: 3 | AD25: 3000 | AE25: 2370.943577
V26: =V25+1 -> 2030 | Z26: 3 | AD26: 3000 | AE26: 2279.75344
V27: 2031 | Z27: 3 | AD27: 3000 | AE27: 2192.070615
V28: 2032 | Z28: 3 | AD28: 3000 | AE28: 2107.760207
V29: 2033 | Z29: 3 | AD29: 3000 | AE29: 2026.692506
V30: 2034 | Z30: 3 | AD30: 3000 | AE30: 1948.742795
V31: 2035 | Z31: 3 | AD31: 3000 | AE31: 1873.791149
V32: 2036 | Z32: 3 | AD32: 3000 | AE32: 1801.722258
V33: 2037 | Z33: 3 | AD33: 3000 | AE33: 1732.425248
V34: 2038 | Z34: 3 | AD34: 3000 | AE34: 1665.793508
V35: 2039 | Z35: 3 | AD35: 3000 | AE35: 1601.724527
V36: 2040 | Z36: 3 | AD36: 3000 | AE36: 1540.119738
V37: 2041 | Z37: 3 | AD37: 3000 | AE37: 1480.884363
V38: 2042 | Z38: 3 | AD38: 3000 | AE38: 1423.927272
V39: 2043 | Z39: 3 | AD39: 3000 | AE39: 1369.160839
V40: 2044 | Z40: 3 | AD40: 3000 | AE40: 1316.500806
V41: 2045 | Z41: 3 | AD41: =SUM(W41:AC41)*1000 -> 3000 | AE41: 1265.86616
V42: 2046 | Z42: 3 | AD42: 3000 | AE42: 1217.179
V43: 2047 | Z43: 3 | AD43: 3000 | AE43: 1170.364423
V44: Total | W44: =SUM(W15:W43) -> 7055 | X44: 7141 | Y44: 115016.49 | Z44: 60 | AA44: 0 | AB44: 0 | AC44: 0 | AD44: 129272490 | AE44: 111022040
AB48: Present Value = Future Value (in Constant Dollars)
AC49: ( 1 + Real Discount Rate) ^ Year

Sheet 2) Model Inputs
D5: 2A | E5: DEFINITIONS OF MODEL GROUPS AND YEARS | T5: 2B | Y5: AVERAGE PROFILE FOR DIVERTED TRIPS/INDUCED TRIPS | AJ5: 2E | AK5: DEFINITIONS OF SAFETY GROUPS AND YEARS | BN5: 2H | BO5: DEFINITIONS OF RELIABILITY GROUPS AND YEARS | CT5: 2K | CU5: TRAVEL TIME RELIABILITY
Y6: Typical 'No Build' conditions for persons 'on the margin' who will divert from highway to transit in Build Scenario, or for induced trips. | CU6: (for adjustments to Reliability Calculations, standard deviation of travel time in seconds/vehicle)
Y7: This profile should reflect a lower cost alternative than the average traffic profile entered in Table 2C and 2D.
V9: For Trips Diverting from Highway to Transit | AA9: Least Cost Alternative (for Induced Trips) | BQ9: Reliability Group Definition | CD9: No-Build | CK9: Build | CW9: Calculated by Model | CX9: Changed by User | CY9: Used for Proj. Eval. | CZ9: Reason for Change | DG9: Calculated by Model | DH9: Changed by User | DI9: Used for Proj. Eval. | DJ9: Reason for Change
F10: Select Mode | G10: Name | I10: Description | M10: Avg. Vehicle Occupancy (AVO) | N10: Percent Trucks | S10: No Build | V10: ="Average Speed in Year "&YearFirst&" (mph)" -> Average Speed in Year 2033 (mph) | W10: ="Average Trip Length in Year "&YearFirst&" (miles)" -> Average Trip Length in Year 2033 (miles) | X10: ="Average Speed in Year "&YearLast&" (mph)" -> Average Speed in Year 2043 (mph) | Y10: ="Average Trip Length in Year "&YearLast&" (miles)" -> Average Trip Length in Year 2043 (miles) | AA10: ="Average Speed in Year "&YearFirst&" (mph)" -> Average Speed in Year 2033 (mph) | AB10: ="Average Trip Length in Year "&YearFirst&" (miles)" -> Average Trip Length in Year 2033 (miles) | AC10: ="Average Speed in Year "&YearLast&" (mph)" -> Average Speed in Year 2043 (mph) | AD10: ="Average Trip Length in Year "&YearLast&" (miles)" -> Average Trip Length in Year 2043 (miles) | AL10: Select Mode | AM10: Name | AN10: Description | AQ10: Fatal Reduction Factor | AR10: Injury Reduction Factor | AS10: PDO Reduction Factor | BQ10: Name | BS10: Description (time period & geography) | CB10: Duration (hours per day) | CD10: Roadway Length (miles) | CE10: # of Lanes | CF10: Lane Miles | CG10: Free Flow Speed (mph) | CH10: Average Passenger Vehicle Occupancy | CK10: Roadway Length (miles) | CL10: Number of Lanes | CM10: Lane Miles | CN10: Free Flow Speed (mph) | CO10: Average Passenger Vehicle Occupancy | CS10: Adjustment Factor
D11: Model Group 1 | F11: Highway | G11: SJCOG SR99/120 | I11: Connector Interchange Improvements Phase 1A & 1B | M11: 1.67 | N11: 0.15 | T11: =D11 -> Model Group 1 | AJ11: Safety Group 1 | AL11: Highway | AM11: SR9/120 | AN11: Connector Interchange Phase 1A & 1B | AQ11: 0.392 | AR11: 0.392 | AS11: 0.392 | BN11: Reliability Group 1 | BP11: Highway | BQ11: SJCOG SR99/12 1A & 1B | BS11: 4 Hr | CB11: 4 | CD11: 5 | CE11: 1 | CF11: =CD11*CE11 -> 5 | CG11: 11 | CH11: 1.67 | CK11: 5 | CL11: 2 | CM11: =CK11*CL11 -> 10 | CN11: 20 | CO11: 1.67 | CU11: =BN11 -> Reliability Group 1 | CV11: Automobile | CW11: =1 -> 1 | CY11: =IF(ISNUMBER(CX11),CX11,CW11) -> 1 | DF11: Truck | DG11: =1 -> 1 | DI11: =IF(ISNUMBER(DH11),DH11,DG11) -> 1
D13: Base Year | F13: 2033 | AJ13: Safety Base Year | AL13: 2033 | BN13: Reliability Base Year | BP13: =YearFirst -> 2033
D14: Forecast Year | F14: 2043 | AJ14: Safety Forecast Year | AL14: 2043 | BN14: Reliability Forecast Year | BP14: =YearLast -> 2043
D20: 2C | E20: ="MODEL DATA - YEAR " & YearFirst -> MODEL DATA - YEAR 2033 | T20: 2D | U20: ="MODEL DATA - YEAR " & YearLast -> MODEL DATA - YEAR 2043 | AJ20: 2F | AK20: ="SAFETY DATA - YEAR " & SafetyYearFirst -> SAFETY DATA - YEAR 2033 | AY20: 2G | AZ20: ="SAFETY DATA - YEAR " & SafetyYearLast -> SAFETY DATA - YEAR 2043 | BN20: 2I | BO20: ="RELIABILITY DATA - YEAR " & $BP$13 -> RELIABILITY DATA - YEAR 2033 | BZ20: 2J | CA20: ="RELIABILITY DATA - YEAR " & $BP$14 -> RELIABILITY DATA - YEAR 2043
F21: REQUIRED FOR | V21: REQUIRED FOR
F22: TRANSIT | V22: TRANSIT
G23: Vehicle | H23: Vehicle | I23: Passenger | J23: Passenger | K23: Out-of- | M23: Average | W23: Vehicle | X23: Vehicle | Y23: Passenger | Z23: Passenger | AA23: Out-of- | AC23: Average | AM23: Vehicle | AN23: Fatal | AO23: Injury | AP23: PDO | AQ23: Number | AR23: Number | AS23: Number | BA23: Vehicle | BB23: Fatal | BC23: Injury | BD23: PDO | BE23: Number | BF23: Number | BG23: Number
F24: Number of | G24: Miles | H24: Hours | I24: Miles | J24: Hours | K24: Pocket | M24: Vehicle | V24: Number of | W24: Miles | X24: Hours | Y24: Miles | Z24: Hours | AA24: Pocket | AC24: Vehicle | AM24: Miles | AN24: Crash | AO24: Crash | AP24: Crash | AQ24: of | AR24: of | AS24: of | BA24: Miles | BB24: Crash | BC24: Crash | BD24: Crash | BE24: of | BF24: of | BG24: of
F25: Trips | G25: Traveled | H25: Traveled | I25: Traveled | J25: Traveled | K25: Cost | M25: Occupancy | N25: Percent | V25: Trips | W25: Traveled | X25: Traveled | Y25: Traveled | Z25: Traveled | AA25: Cost | AC25: Occupancy | AD25: Percent | AM25: Traveled | AN25: Rate | AO25: Rate | AP25: Rate | AQ25: Fatal | AR25: Injury | AS25: PDO | BA25: Traveled | BB25: Rate | BC25: Rate | BD25: Rate | BE25: Fatal | BF25: Injury | BG25: PDO
F26: (Trips) * ** | G26: (VMT) * | H26: (VHT) | I26: (PMT) | J26: (PHT) | K26: ($ per trip) | L26: Speed | M26: (AVO) | N26: Trucks | V26: (Trips) * ** | W26: (VMT) * | X26: (VHT) | Y26: (PMT) | Z26: (PHT) | AA26: ($ per trip) | AB26: Speed | AC26: (AVO) | AD26: Trucks | AM26: (VMT) | AN26: Per MVM | AO26: Per MVM | AP26: Per MVM | AQ26: Crashes | AR26: Crashes | AS26: Crashes | BA26: (VMT) | BB26: Per MVM | BC26: Per MVM | BD26: Per MVM | BE26: Crashes | BF26: Crashes | BG26: Crashes
C27: No Build | S27: No Build | AI27: No Build | AX27: No Build | BM27: No Build | BY27: No Build
BP28: VMT | BQ28: VHT | BR28: % Truck | BS28: Avg. Speed | BT28: Volume | CD28: VMT | CE28: VHT | CF28: % Truck | CG28: Avg. Speed | CH28: Volume
D29: 1 | E29: =IF(ISBLANK(INDEX(HwyTransitModelGroup,D29,2)),"Not Used",INDEX(HwyTransitModelGroup,D29,2)) -> SJCOG SR99/120 | F29: 44100 | G29: 198450 | H29: 18350 | L29: 50 | M29: =INDEX(HwyTransitModelGroup,D29,8) -> 1.67 | N29: =INDEX(HwyTransitModelGroup,D29,9) -> 0.15 | T29: 1 | U29: =IF(ISBLANK(INDEX(HwyTransitModelGroup,T29,2)),"Not Used",INDEX(HwyTransitModelGroup,T29,2)) -> SJCOG SR99/120 | V29: 65133 | W29: 293100 | X29: 48000 | AB29: 47 | AC29: =INDEX(HwyTransitModelGroup,T29,8) -> 1.67 | AD29: =INDEX(HwyTransitModelGroup,T29,9) -> 0.15 | AJ29: 1 | AK29: =IF(ISBLANK(INDEX(SafetyGroup,AJ29,2)),"Not Used",INDEX(SafetyGroup,AJ29,2)) -> SR9/120 | AM29: 198450 | AN29: 0.01598 | AO29: 0.35678 | AP29: 0 | AQ29: =AM29*AN29/10^6 -> 0.003171231 | AR29: =AM29*AO29/10^6 -> 0.070802991 | AS29: =AM29*AP29/10^6 -> 0 | AY29: 1 | AZ29: =IF(ISBLANK(INDEX(SafetyGroup,AY29,2)),"Not Used",INDEX(SafetyGroup,AY29,2)) -> SR9/120 | BA29: 293100 | BB29: =AN29 -> 0.01598 | BC29: =AO29 -> 0.35678 | BD29: =AP29 -> 0 | BE29: =BA29*BB29/10^6 -> 0.004683738 | BF29: =BA29*BC29/10^6 -> 0.104572218 | BG29: =BA29*BD29/10^6 -> 0 | BN29: 1 | BO29: =IF(ISBLANK(INDEX(ReliabilityGroup,BN29,2)),"Not Used",INDEX(ReliabilityGroup,BN29,2)) -> SJCOG SR99/12 1A & 1B | BP29: 19854 | BQ29: 1835 | BR29: 0.15 | BS29: =IFERROR(BP29/BQ29,0) -> 10.81961853 | BT29: =IFERROR(BP29/$CF11/$CB11,"") -> 992.7 | BZ29: 1 | CA29: =IF(ISBLANK(INDEX(ReliabilityGroup,BZ29,2)),"Not Used",INDEX(ReliabilityGroup,BZ29,2)) -> SJCOG SR99/12 1A & 1B | CD29: 29310 | CE29: 4800 | CF29: 0.15 | CG29: =IFERROR(CD29/CE29,0) -> 6.10625 | CH29: =IFERROR(CD29/$CF11/$CB11,"") -> 1465.5
E30: TOTAL | F30: =SUM(F29:F29) -> 44100 | G30: =SUM(G29:G29) -> 198450 | H30: =SUM(H29:H29) -> 18350 | I30: =SUM(I29:I29) -> 0 | J30: =SUM(J29:J29) -> 0 | U30: TOTAL | V30: =SUM(V29:V29) -> 65133 | W30: =SUM(W29:W29) -> 293100 | X30: =SUM(X29:X29) -> 48000 | Y30: =SUM(Y29:Y29) -> 0 | Z30: =SUM(Z29:Z29) -> 0 | AK30: TOTAL | AM30: =SUM(AM29:AM29) -> 198450 | AQ30: =SUM(AQ29:AQ29) -> 0.003171231 | AR30: =SUM(AR29:AR29) -> 0.070802991 | AS30: =SUM(AS29:AS29) -> 0 | AZ30: TOTAL | BA30: =SUM(BA29:BA29) -> 293100 | BE30: =SUM(BE29:BE29) -> 0.004683738 | BF30: =SUM(BF29:BF29) -> 0.104572218 | BG30: =SUM(BG29:BG29) -> 0 | BO30: TOTAL | BP30: =SUM(BP29:BP29) -> 19854 | BQ30: =SUM(BQ29:BQ29) -> 1835 | BT30: =SUM(BT29:BT29) -> 992.7 | CA30: TOTAL | CD30: =SUM(CD29:CD29) -> 29310 | CE30: =SUM(CE29:CE29) -> 4800 | CH30: =SUM(CH29:CH29) -> 1465.5
AK31: =IF(AND(SafetyYearFirst=YearFirst,SafetyYearLast=YearLast),IF(G30=AM30,"Total VMT in model groups equals total VMT in safety groups", "Warning: Total VMT in model groups DOES NOT equal total VMT in safety groups"),"") -> Total VMT in model groups equals total VMT in safety groups | AZ31: =IF(AND(SafetyYearFirst=YearFirst,SafetyYearLast=YearLast),IF(W30=BA30,"Total VMT in traffic inputs equals total VMT in safety inputs", "Warning: Total VMT in traffic inputs DOES NOT equal total VMT in safety inputs"),"") -> Total VMT in traffic inputs equals total VMT in safety inputs | BO31: =IF(AND(RelYearFirst=YearFirst,RelYearLast=YearLast),IF(G30=BP30,"Total VMT in traffic inputs equals total VMT in reliability inputs", "Warning: Total VMT in traffic inputs DOES NOT equal total VMT in reliability inputs"),"") -> Warning: Total VMT in traffic inputs DOES NOT equal total VMT in reliability inputs | CA31: =IF(AND(RelYearFirst=YearFirst,RelYearLast=YearLast),IF(W30=CD30,"Total VMT in traffic inputs equals total VMT in reliability inputs", "Warning: Total VMT in traffic inputs DOES NOT equal total VMT in reliability inputs"),"") -> Warning: Total VMT in traffic inputs DOES NOT equal total VMT in reliability inputs
C33: Build | S33: Build | AI33: Build | AX33: Build | BM33: Build | BY33: Build
BP34: VMT | BQ34: VHT | BR34: % Truck | BS34: Avg. Speed | BT34: Volume | CD34: VMT | CE34: VHT | CF34: % Truck | CG34: Avg. Speed | CH34: Volume
D35: 1 | E35: =IF(ISBLANK(INDEX(HwyTransitModelGroup,D35,2)),"Not Used",INDEX(HwyTransitModelGroup,D35,2)) -> SJCOG SR99/120 | F35: 46842 | G35: 210790 | H35: 10310 | L35: 51 | M35: =INDEX(HwyTransitModelGroup,D35,8) -> 1.67 | N35: =INDEX(HwyTransitModelGroup,D35,9) -> 0.15 | T35: 1 | U35: =IF(ISBLANK(INDEX(HwyTransitModelGroup,T35,2)),"Not Used",INDEX(HwyTransitModelGroup,T35,2)) -> SJCOG SR99/120 | V35: 69183 | W35: 311326 | X35: 26969 | AB35: 48 | AC35: =INDEX(HwyTransitModelGroup,T35,8) -> 1.67 | AD35: =INDEX(HwyTransitModelGroup,T35,9) -> 0.15 | AJ35: 1 | AK35: =IF(ISBLANK(INDEX(SafetyGroup,AJ35,2)),"Not Used",INDEX(SafetyGroup,AJ35,2)) -> SR9/120 | AM35: 210790 | AN35: =IFERROR(INDEX(SafetyData1NB,AJ35,2)*(1-INDEX(SafetyGroup,AJ35,6)),0) -> 0.00971584 | AO35: =IFERROR(INDEX(SafetyData1NB,AJ35,3)*(1-INDEX(SafetyGroup,AJ35,7)),0) -> 0.21692224 | AP35: =IFERROR(INDEX(SafetyData1NB,AJ35,4)*(1-INDEX(SafetyGroup,AJ35,8)),0) -> 0 | AQ35: =AM35*AN35/10^6 -> 0.002048001914 | AR35: =AM35*AO35/10^6 -> 0.04572503897 | AS35: =AM35*AP35/10^6 -> 0 | AY35: 1 | AZ35: =IF(ISBLANK(INDEX(SafetyGroup,AY35,2)),"Not Used",INDEX(SafetyGroup,AY35,2)) -> SR9/120 | BA35: 311326 | BB35: =IFERROR(INDEX(SafetyData20NB,AY35,2)*(1-INDEX(SafetyGroup,AY35,6)),0) -> 0.00971584 | BC35: =IFERROR(INDEX(SafetyData20NB,AY35,3)*(1-INDEX(SafetyGroup,AY35,7)),0) -> 0.21692224 | BD35: =IFERROR(INDEX(SafetyData20NB,AY35,4)*(1-INDEX(SafetyGroup,AY35,8)),0) -> 0 | BE35: =BA35*BB35/10^6 -> 0.003024793604 | BF35: =BA35*BC35/10^6 -> 0.06753353329 | BG35: =BA35*BD35/10^6 -> 0 | BN35: 1 | BO35: =IF(ISBLANK(INDEX(ReliabilityGroup,BN35,2)),"Not Used",INDEX(ReliabilityGroup,BN35,2)) -> SJCOG SR99/12 1A & 1B | BP35: 21079 | BQ35: 1031 | BR35: 0.15 | BS35: =IFERROR(BP35/BQ35,0) -> 20.44519884 | BT35: =IFERROR(BP35/$CM11/$CB11,"") -> 526.975 | BZ35: 1 | CA35: =IF(ISBLANK(INDEX(ReliabilityGroup,BZ35,2)),"Not Used",INDEX(ReliabilityGroup,BZ35,2)) -> SJCOG SR99/12 1A & 1B | CD35: 31118 | CE35: 2697 | CF35: 0.15 | CG35: =IFERROR(CD35/CE35,0) -> 11.53800519 | CH35: =IFERROR(CD35/$CM11/$CB11,"") -> 777.95
E36: TOTAL | F36: =SUM(F35:F35) -> 46842 | G36: =SUM(G35:G35) -> 210790 | H36: =SUM(H35:H35) -> 10310 | I36: =SUM(I35:I35) -> 0 | J36: =SUM(J35:J35) -> 0 | U36: TOTAL | V36: =SUM(V35:V35) -> 69183 | W36: =SUM(W35:W35) -> 311326 | X36: =SUM(X35:X35) -> 26969 | Y36: =SUM(Y35:Y35) -> 0 | Z36: =SUM(Z35:Z35) -> 0 | AK36: TOTAL | AM36: =SUM(AM35:AM35) -> 210790 | AQ36: =SUM(AQ35:AQ35) -> 0.002048001914 | AR36: =SUM(AR35:AR35) -> 0.04572503897 | AS36: =SUM(AS35:AS35) -> 0 | AZ36: TOTAL | BA36: =SUM(BA35:BA35) -> 311326 | BE36: =SUM(BE35:BE35) -> 0.003024793604 | BF36: =SUM(BF35:BF35) -> 0.06753353329 | BG36: =SUM(BG35:BG35) -> 0 | BO36: TOTAL | BP36: =SUM(BP35:BP35) -> 21079 | BQ36: =SUM(BQ35:BQ35) -> 1031 | BT36: =SUM(BT35:BT35) -> 526.975 | CA36: TOTAL | CD36: =SUM(CD35:CD35) -> 31118 | CE36: =SUM(CE35:CE35) -> 2697 | CH36: =SUM(CH35:CH35) -> 777.95
AK37: =IF(AND(SafetyYearFirst=YearFirst,SafetyYearLast=YearLast),IF(G36=AM36,"Total VMT in model groups equals total VMT in safety groups", "Warning: Total VMT in model groups DOES NOT equal total VMT in safety groups"),"") -> Total VMT in model groups equals total VMT in safety groups | AZ37: =IF(AND(SafetyYearFirst=YearFirst,SafetyYearLast=YearLast),IF(W36=BA36,"Total VMT in traffic inputs equals total VMT in safety inputs", "Warning: Total VMT in traffic inputs DOES NOT equal total VMT in safety inputs"),"") -> Total VMT in traffic inputs equals total VMT in safety inputs | BO37: =IF(AND(RelYearFirst=YearFirst,RelYearLast=YearLast),IF(G36=BP36,"Total VMT in traffic inputs equals total VMT in reliability inputs", "Warning: Total VMT in traffic inputs DOES NOT equal total VMT in reliability inputs"),"") -> Warning: Total VMT in traffic inputs DOES NOT equal total VMT in reliability inputs | CA37: =IF(AND(RelYearFirst=YearFirst,RelYearLast=YearLast),IF(W36=CD36,"Total VMT in traffic inputs equals total VMT in reliability inputs", "Warning: Total VMT in traffic inputs DOES NOT equal total VMT in reliability inputs"),"") -> Warning: Total VMT in traffic inputs DOES NOT equal total VMT in reliability inputs
E40: * For Highway Model Groups, Trips and VMT refer to vehicle trips and vehicle-miles traveled. For Transit Model Groups, Trips and VMT refer to person (transit) trips and transit vehicle-miles traveled. | U40: * For Highway Model Groups, Trips and VMT refer to vehicle trips and vehicle-miles traveled. For Transit Model Groups, Trips and VMT refer to person (transit) trips and transit vehicle-miles traveled. | AK40: *For Highway Model Groups, VMT refers to vehicle miles traveled. For Transit Model Groups, VMT refers to transit vehicle miles traveled | AZ40: *For Highway Model Groups, VMT refers to vehicle-miles traveled. For Transit Model Groups, VMT refers to transit vehicle-miles traveled
E41: **Number of Trips is an optional field for Highway Model Groups, unless Transit Model Groups are included. This is a required input if induced demand exists. | U41: **Number of Trips is an optional field for Highway Model Groups, unless Transit Model Groups are included. This is a required input if induced demand exists.

Sheet 3) Results
B2: District: | E2: =IF('1) Project Information'!E2<>"",'1) Project Information'!E2,"") -> 10
Q3: EA: | R3: ='1) Project Information'!Q3 -> 1M290 & 1M300
B4: PROJECT: | E4: =IF(ProjName<>"",ProjName,"") -> SJCOG SR99/120 Connector Interchange Phase 1A & 1B | Q4: PPNO: | R4: ='1) Project Information'!Q4 -> 3162A & 3162B
D9: 3 | E9: INVESTMENT ANALYSIS
E10: SUMMARY RESULTS
Q12: Total Over | R12: Average
E13: Life-Cycle Costs (mil. $) | H13: =LifeCycleCost/1000000 -> 111.02204 | L13: ITEMIZED BENEFITS (mil. $) | Q13: =DVYearsModel& " Years" -> 20 Years | R13: Annual
E14: Life-Cycle Benefits (mil. $) | H14: =LifeCycleBene/1000000 -> 1969.211364 | L14: Travel Time Savings | Q14: =('Final Calculations'!C55+'Final Calculations'!H55+'Final Calculations'!M55+'Final Calculations'!R55)/1000000 -> 1879.77317 | R14: =Q14/DVYearsModel -> 93.9886585
E15: Net Present Value (mil. $) | H15: =NetPresentValue/1000000 -> 1858.189324 | L15: Travel Time Reliability Benefits | Q15: =('Final Calculations'!D55+'Final Calculations'!I55+'Final Calculations'!N55+'Final Calculations'!S55)/1000000 -> -1.343531345 | R15: =Q15/DVYearsModel -> -0.06717656726
L16: Veh. Op. Cost Savings | Q16: =('Final Calculations'!E55+'Final Calculations'!J55+'Final Calculations'!O55+'Final Calculations'!T55)/1000000 -> -4.306634135 | R16: =Q16/DVYearsModel -> -0.2153317067
L17: Accident Cost Savings | Q17: =('Final Calculations'!F55+'Final Calculations'!K55+'Final Calculations'!P55+'Final Calculations'!U55)/1000000 -> 92.38269203 | R17: =Q17/DVYearsModel -> 4.619134602
E18: Benefit / Cost Ratio: | H18: =IF(LifeCycleCost=0,"N/A",LifeCycleBene/LifeCycleCost) -> 17.73712106 | L18: Emission Cost Savings | Q18: =('Final Calculations'!G55+'Final Calculations'!L55+'Final Calculations'!Q55+'Final Calculations'!V55)/1000000 -> 2.705667051 | R18: =Q18/DVYearsModel -> 0.1352833525
L19: TOTAL BENEFITS | Q19: =SUM(Q14:Q18) -> 1969.211364 | R19: =Q19/DVYearsModel -> 98.46056818
E20: Rate of Return on Investment: | H20: =IFERROR(ReturnOnInvest,"N/A") -> 0.5035784991
L21: Person-Hours of Time Saved | Q21: ='Final Calculations'!C57+'Final Calculations'!G57+'Final Calculations'!K57+'Final Calculations'!O57 -> 181991324.5 | R21: =Q21/DVYearsModel -> 9099566.225
E22: Payback Period: | H22: =Payback -> 4 years | L22: Fatalities Avoided | Q22: ='Final Calculations'!C68+'Final Calculations'!G68+'Final Calculations'!K68+'Final Calculations'!O68 -> 10.85574286 | R22: =Q22/DVYearsModel -> 0.5427871432
L23: Injuries Avoided | Q23: ='Final Calculations'!C69+'Final Calculations'!G69+'Final Calculations'!K69+'Final Calculations'!O69 -> 328.2655933 | R23: =Q23/DVYearsModel -> 16.41327966
L24: PDO Avoided | Q24: ='Final Calculations'!C70+'Final Calculations'!G70+'Final Calculations'!K70+'Final Calculations'!O70 -> 419.7339928 | R24: =Q24/DVYearsModel -> 20.98669964
D27: Should benefit-cost results include: | O27: Tons | Q27: Value (mil. $)
O28: Total Over | P28: Average | Q28: Total Over | R28: Average
E29: 1) Induced Travel? (y/n) | H29: Y | L29: EMISSIONS REDUCTION | O29: =DVYearsModel& " Years" -> 20 Years | P29: Annual | Q29: =DVYearsModel& " Years" -> 20 Years | R29: Annual
H30: Default = Y | L30: CO Emissions Saved | O30: ='Final Calculations'!C60+'Final Calculations'!G60+'Final Calculations'!K60+'Final Calculations'!O60 -> 26.60872587 | P30: =O30/DVYearsModel -> 1.330436294 | Q30: =('Final Calculations'!D60+'Final Calculations'!H60+'Final Calculations'!L60+'Final Calculations'!P60)/1000000 -> 0.002746562282 | R30: =Q30/DVYearsModel -> 0.0001373281141
E31: 2) Travel Time Reliability? (y/n) | H31: Y | L31: CO2 Emissions Saved | O31: ='Final Calculations'!C61+'Final Calculations'!G61+'Final Calculations'!K61+'Final Calculations'!O61 -> 74728.30654 | P31: 3736.415327 | Q31: =('Final Calculations'!D61+'Final Calculations'!H61+'Final Calculations'!L61+'Final Calculations'!P61)/1000000 -> 2.788788831 | R31: =Q31/DVYearsModel -> 0.1394394416
H32: Default = Y | L32: NOX Emissions Saved | O32: ='Final Calculations'!C62+'Final Calculations'!G62+'Final Calculations'!K62+'Final Calculations'!O62 -> -53.35245992 | P32: -2.667622996 | Q32: =('Final Calculations'!D62+'Final Calculations'!H62+'Final Calculations'!L62+'Final Calculations'!P62)/1000000 -> -0.3612210133 | R32: =Q32/DVYearsModel -> -0.01806105066
E33: 3) Vehicle Operating Costs? (y/n) | H33: Y | L33: PM10 Emissions Saved | O33: ='Final Calculations'!C63+'Final Calculations'!G63+'Final Calculations'!K63+'Final Calculations'!O63 -> 2.221320336 | P33: =O33/DVYearsModel -> 0.1110660168 | Q33: =('Final Calculations'!D63+'Final Calculations'!H63+'Final Calculations'!L63+'Final Calculations'!P63)/1000000 -> 0.2211573751 | R33: =Q33/DVYearsModel -> 0.01105786876
H34: Default = Y | L34: PM2.5 Emissions Saved | O34: ='Final Calculations'!C64+'Final Calculations'!G64+'Final Calculations'!K64+'Final Calculations'!O64 -> 2.060756172 | P34: =O34/DVYearsModel -> 0.1030378086
E35: 3) Accident Costs? (y/n) | H35: Y | L35: SOX Emissions Saved | O35: ='Final Calculations'!C65+'Final Calculations'!G65+'Final Calculations'!K65+'Final Calculations'!O65 -> 0.7588176912 | P35: =O35/DVYearsModel -> 0.03794088456 | Q35: =('Final Calculations'!D65+'Final Calculations'!H65+'Final Calculations'!L65+'Final Calculations'!P65)/1000000 -> 0.0368083524 | R35: =Q35/DVYearsModel -> 0.00184041762
H36: Default = Y | L36: VOC Emissions Saved | O36: ='Final Calculations'!C66+'Final Calculations'!G66+'Final Calculations'!K66+'Final Calculations'!O66 -> 20.01450251 | P36: =O36/DVYearsModel -> 1.000725125 | Q36: =('Final Calculations'!D66+'Final Calculations'!H66+'Final Calculations'!L66+'Final Calculations'!P66)/1000000 -> 0.01738694283 | R36: =Q36/DVYearsModel -> 0.0008693471415
E37: 4) Vehicle Emissions? (y/n) | H37: Y
E38: includes value for CO2e | H38: Default = Y

Sheet Travel Time
B1: Travel Time Benefits
B3: This sheet calculates total travel time benefits on highway and transit.
B5: Formulas: | S5: Present Value = Future Value (in Constant Dollars)
H6: Avg. Travel Time = Total PHT / Total Person Trips | L6: for transit | R6: ( 1 + Real Discount Rate) ^ Year
B7: Total Vehicle-Hours Traveled = Daily VHT x Annualization Factor | H7: hrs / person passenger-hrs / yr | J7: trips / yr
B8: vehicle-hrs / yr | D8: vehicle hrs / day | E8: days / yr | H8: Avg. Value of Time (varies by vehicle type)
B10: Avg. Travel Time = Total VHT x AVO / Total Person Trips | G10: for hwy | H10: TT Savings = Travel Time Reduction x Avg. Value of Time | O10: =MATCH(W$20,$A:$A) -> 18
B11: hrs / person vehicle-hrs / yr | D11: people / veh | E11: trips / yr | H11: dollars / year | I11: hours | J11: dollars / hr
B15: A | C15: HIGHWAY AND TRANSIT BENEFITS | V15: B | W15: SUMMARY OF TRAVEL TIME BENEFITS
A18: =MAX($A$1:A17)+1 -> 1 | B18: =IF(ISBLANK(INDEX(ModelGroup,A18,1)),"Not Used",INDEX(ModelGroup,A18,1)) -> SJCOG SR99/120
C20: TOTAL VHT | E20: AVERAGE VEH OCC | G20: =IF(INDEX(HwyTransitModelGroup,A18,1)=Hwy,"TOTAL VEHICLE TRIPS","TOTAL PERSON TRIPS") -> TOTAL VEHICLE TRIPS | I20: PERCENT TRUCKS | K20: TOTAL PHT | M20: AVERAGE TRAVEL TIME | O20: =IF(INDEX(HwyTransitModelGroup,A18,1)=Hwy,"TOTAL VEHICLE TRIPS","TOTAL PERSON TRIPS") -> TOTAL VEHICLE TRIPS | P20: TIME BENEFIT | T20: Total Per-Hrs of Time Saved | W20: 1 | Y20: Present | AC20: Total
C21: (veh-hours/yr) | E21: (persons/vehicle) | G21: (trips/yr) | I21: (%) | K21: (per-hours/yr) | M21: (hours/trip) | O21: (trips/yr) | P21: ($/yr) | T21: (per-hours/yr) | W21: =IF(ISBLANK(INDEX(ModelGroup,W20,1)),"Not Used",INDEX(ModelGroup,W20,1)) -> SJCOG SR99/120 | Y21: Value of | AC21: Per-Hrs
B22: Year | O22: Adjusted (no induced) | P22: Existing | Q22: Constant | R22: Present | T22: Existing | V22: Year | Y22: Travel Time | AA22: Constant | AC22: of Time
C23: No Build | D23: Build | E23: No Build | F23: Build | G23: No Build | H23: Build | I23: No Build | J23: Build | K23: No Build | L23: Build | M23: No Build | N23: Build | O23: Build | P23: Users | Q23: Dollars | R23: Value | T23: Users | Y23: =IF(Induced="Y","Benefits","Benefits*") -> Benefits | AA23: Dollars | AC23: Saved
B24: =YearFirst -> 2033 | C24: =IF(INDEX(HwyTransitModelGroup,A18,1)=Hwy,INDEX(ModelData1NB,A18,3),0)*AnnualFactor -> 6697750 | D24: =IF(INDEX(HwyTransitModelGroup,A18,1)=Hwy,INDEX(ModelData1B,A18,3),0)*AnnualFactor -> 3763150 | E24: =IF(INDEX(HwyTransitModelGroup,A18,1)=Hwy,INDEX(ModelData1NB,A18,8),0) -> 1.67 | F24: =IF(INDEX(HwyTransitModelGroup,A18,1)=Hwy,INDEX(ModelData1B,A18,8),0) -> 1.67 | G24: =IF(AND(INDEX(HwyTransitModelGroup,A18,1)=Hwy,INDEX(ModelData1NB,A18,1)=0),1,INDEX(ModelData1NB,A18,1)*AnnualFactor) -> 16096500 | H24: =IF(AND(INDEX(HwyTransitModelGroup,A18,1)=Hwy,INDEX(ModelData1B,A18,1)=0),1,INDEX(ModelData1B,A18,1)*AnnualFactor) -> 17097330 | I24: =IF(INDEX(HwyTransitModelGroup,A18,1)=Hwy,INDEX(ModelData1NB,A18,9),0) -> 0.15 | J24: =IF(INDEX(HwyTransitModelGroup,A18,1)=Hwy,INDEX(ModelData1B,A18,9),0) -> 0.15 | K24: =IF(INDEX(HwyTransitModelGroup,A18,1)=Hwy,0,INDEX(ModelData1NB,A18,5))*AnnualFactor -> 0 | L24: =IF(INDEX(HwyTransitModelGroup,A18,1)=Hwy,0,INDEX(ModelData1B,A18,5))*AnnualFactor -> 0 | M24: =IFERROR(IF(INDEX(HwyTransitModelGroup,A18,1)=Hwy,C24*E24/G24,K24/G24),0) -> 0.6948866213 | N24: =IFERROR(IF(INDEX(HwyTransitModelGroup,A18,1)=Hwy,D24*F24/H24,L24/H24),0) -> 0.3675697024 | O24: =$H24-INDEX(ModeShare1,A18)*SUMIF('Consumer Surplus'!$C$277:$C$280,INDEX(HwyTransitModelGroup,A18,1),'Consumer Surplus'!$G$277:$G$280) -> 16096500 | P24: =IF(INDEX(HwyTransitModelGroup,A18,1)=Hwy,G24*M24*(I24*ValTimeTruck+(1-I24)*ValTimeAuto)-O24*N24*(J24*ValTimeTruck+(1-J24)*ValTimeAuto),G24*IF(INDEX(NoTransit1,A18)=TRUE,INDEX(DivIndTrips,A18,2)/IF(INDEX(DivIndTrips,A18,1)=0,1,INDEX(DivIndTrips,A18,1)),M24)*ValTimeAuto-O24*N24*ValTimeAuto)*(1+TTUprater)^($B24-YearCurrent) -> 103344702.8 | Q24: =SUM(P24) -> 103344702.8 | R24: =Q24/(1+DiscRate)^(B24-YearCurrent) -> 69815978.28 | T24: =IF(INDEX(HwyTransitModelGroup,A18,1)=Hwy,G24*M24-O24*N24,G24*IF(INDEX(NoTransit1,A18)=TRUE,INDEX(DivIndTrips,A18,2)/IF(INDEX(DivIndTrips,A18,1)=0,1,INDEX(DivIndTrips,A18,1)),M24)-O24*N24) -> 5268656.785 | V24: =YearOpen -> 2028 | W24: =OFFSET($R9,MATCH(W$20,$A:$A),0) -> 16317390.03 | Y24: =SUM($W24:X24) -> 16317390.03 | AA24: =$Y24*(1+DiscRate)^($V24-YearCurrent) -> 19852599.94 | AC24: =SUM($W58:X58) -> 1012090.742
B25: =YearLast -> 2043 | C25: =IF(INDEX(HwyTransitModelGroup,A18,1)=Hwy,INDEX(ModelData20NB,A18,3),0)*AnnualFactor -> 17520000 | D25: =IF(INDEX(HwyTransitModelGroup,A18,1)=Hwy,INDEX(ModelData20B,A18,3),0)*AnnualFactor -> 9843685 | E25: =IF(INDEX(HwyTransitModelGroup,A18,1)=Hwy,INDEX(ModelData20NB,A18,8),0) -> 1.67 | F25: =IF(INDEX(HwyTransitModelGroup,A18,1)=Hwy,INDEX(ModelData20B,A18,8),0) -> 1.67 | G25: =IF(AND(INDEX(HwyTransitModelGroup,A18,1)=Hwy,INDEX(ModelData20NB,A18,1)=0),1,INDEX(ModelData20NB,A18,1)*AnnualFactor) -> 23773545 | H25: =IF(AND(INDEX(HwyTransitModelGroup,A18,1)=Hwy,INDEX(ModelData20B,A18,1)=0),1,INDEX(ModelData20B,A18,1)*AnnualFactor) -> 25251795 | I25: =IF(INDEX(HwyTransitModelGroup,A18,1)=Hwy,INDEX(ModelData20NB,A18,9),0) -> 0.15 | J25: =IF(INDEX(HwyTransitModelGroup,A18,1)=Hwy,INDEX(ModelData20B,A18,9),0) -> 0.15 | K25: =IF(INDEX(HwyTransitModelGroup,A18,1)=Hwy,0,INDEX(ModelData20NB,A18,5))*AnnualFactor -> 0 | L25: =IF(INDEX(HwyTransitModelGroup,A18,1)=Hwy,0,INDEX(ModelData20B,A18,5))*AnnualFactor -> 0 | M25: =IFERROR(IF(INDEX(HwyTransitModelGroup,A18,1)=Hwy,C25*E25/G25,K25/G25),0) -> 1.230712542 | N25: =IFERROR(IF(INDEX(HwyTransitModelGroup,A18,1)=Hwy,D25*F25/H25,L25/H25),0) -> 0.6510014021 | O25: =$H25-INDEX(ModeShare20,A18)*SUMIF('Consumer Surplus'!$C$277:$C$280,INDEX(HwyTransitModelGroup,A18,1),'Consumer Surplus'!$K$277:$K$280) -> 23773545 | P25: =IF(INDEX(HwyTransitModelGroup,A18,1)=Hwy,G25*M25*(I25*ValTimeTruck+(1-I25)*ValTimeAuto)-O25*N25*(J25*ValTimeTruck+(1-J25)*ValTimeAuto),G25*IF(INDEX(NoTransit20,A18)=TRUE,INDEX(DivIndTrips,A18,4)/IF(INDEX(DivIndTrips,A18,3)=0,1,INDEX(DivIndTrips,A18,3)),M25)*ValTimeAuto-O25*N25*ValTimeAuto)*(1+TTUprater)^($B25-YearCurrent) -> 270329788.7 | Q25: =SUM(P25) -> 270329788.7 | R25: =Q25/(1+DiscRate)^(B25-YearCurrent) -> 123374986.7 | T25: =IF(INDEX(HwyTransitModelGroup,A18,1)=Hwy,G25*M25-O25*N25,G25*IF(INDEX(NoTransit1,A18)=TRUE,INDEX(DivIndTrips,A18,2)/IF(INDEX(DivIndTrips,A18,1)=0,1,INDEX(DivIndTrips,A18,1)),M25)-O25*N25) -> 13781788.87 | V25: =V24+1 -> 2029 | W25: 28886768.6 | Y25: =SUM($W25:X25) -> 28886768.6 | AA25: 36550977.69 | AC25: =SUM($W59:X59) -> 1863403.95
V26: =V25+1 -> 2030 | W26: 40465152.73 | Y26: =SUM($W26:X26) -> 40465152.73 | AA26: 53249380.43 | AC26: =SUM($W60:X60) -> 2714717.159
B27: =YearOpen -> 2028 | C27: =MAX(TREND(C24:C25,B24:B25,B27),0) -> 1286625 | D27: =MAX(TREND(D24:D25,B24:B25,B27),0) -> 722882.5 | E27: =MAX(TREND(E24:E25,B24:B25,B27),0) -> 1.67 | F27: =MAX(TREND(F24:F25,B24:B25,B27),0) -> 1.67 | G27: =MAX(TREND(G24:G25,$B24:$B25,$B27),0) -> 12257977.5 | H27: =MAX(TREND(H24:H25,$B24:$B25,$B27),0) -> 13020097.5 | I27: =MIN(MAX(TREND(I24:I25,B24:B25,B27),0),1) -> 0.15 | J27: =MIN(MAX(TREND(J24:J25,B24:B25,B27),0),1) -> 0.15 | K27: =MAX(TREND(K24:K25,B24:B25,B27),0) -> 0 | L27: =MAX(TREND(L24:L25,B24:B25,B27),0) -> 0 | M27: =IFERROR(IF(INDEX(HwyTransitModelGroup,A18,1)=Hwy,C27*E27/G27,K27/G27),0) -> 0.1752869713 | N27: =IFERROR(IF(INDEX(HwyTransitModelGroup,A18,1)=Hwy,D27*F27/H27,L27/H27),0) -> 0.09271925767 | O27: =TREND(O24:O25,$B24:$B25,$B27) -> 12257977.5 | P27: =IF(INDEX(HwyTransitModelGroup,A18,1)=Hwy,G27*M27*(I27*ValTimeTruck+(1-I27)*ValTimeAuto)-O27*N27*(J27*ValTimeTruck+(1-J27)*ValTimeAuto),G27*IF(INDEX(NoTransit20,A18)=TRUE,INDEX(DivIndTrips,A18,4)/IF(INDEX(DivIndTrips,A18,3)=0,1,INDEX(DivIndTrips,A18,3)),M27)*ValTimeAuto-O27*N27*ValTimeAuto)*(1+TTUprater)^($B27-YearCurrent) -> 19852599.94 | Q27: =SUM(P27) -> 19852599.94 | R27: =Q27/(1+DiscRate)^(B27-YearCurrent) -> 16317390.03 | T27: =TREND(T24:T25,$B24:$B25,$B27) -> 1012090.742 | V27: 2031 | W27: 51110175.39 | Y27: =SUM($W27:X27) -> 51110175.39 | AA27: 69947804.21 | AC27: =SUM($W61:X61) -> 3566030.368
B28: =B27+1 -> 2029 | C28: =MAX(TREND(C24:C25,B24:B25,B28),0) -> 2368850 | D28: =MAX(TREND(D24:D25,B24:B25,B28),0) -> 1330936 | E28: =MAX(TREND(E24:E25,B24:B25,B28),0) -> 1.67 | F28: =MAX(TREND(F24:F25,B24:B25,B28),0) -> 1.67 | G28: =MAX(TREND(G24:G25,$B24:$B25,$B28),0) -> 13025682 | H28: =MAX(TREND(H24:H25,$B24:$B25,$B28),0) -> 13835544 | I28: =MIN(MAX(TREND(I24:I25,B24:B25,B28),0),1) -> 0.15 | J28: =MIN(MAX(TREND(J24:J25,B24:B25,B28),0),1) -> 0.15 | K28: =MAX(TREND(K24:K25,B24:B25,B28),0) -> 0 | L28: =MAX(TREND(L24:L25,B24:B25,B28),0) -> 0 | M28: =IFERROR(IF(INDEX(HwyTransitModelGroup,A18,1)=Hwy,C28*E28/G28,K28/G28),0) -> 0.3037061322 | N28: =IFERROR(IF(INDEX(HwyTransitModelGroup,A18,1)=Hwy,D28*F28/H28,L28/H28),0) -> 0.1606487696 | O28: =TREND(O24:O25,$B24:$B25,$B28) -> 13025682 | P28: =IF(INDEX(HwyTransitModelGroup,A18,1)=Hwy,G28*M28*(I28*ValTimeTruck+(1-I28)*ValTimeAuto)-O28*N28*(J28*ValTimeTruck+(1-J28)*ValTimeAuto),G28*IF(INDEX(NoTransit20,A18)=TRUE,INDEX(DivIndTrips,A18,4)/IF(INDEX(DivIndTrips,A18,3)=0,1,INDEX(DivIndTrips,A18,3)),M28)*ValTimeAuto-O28*N28*ValTimeAuto)*(1+TTUprater)^($B28-YearCurrent) -> 36550977.69 | Q28: 36550977.69 | R28: 28886768.6 | T28: =TREND(T24:T25,$B24:$B25,$B28) -> 1863403.95 | V28: 2032 | W28: 60876503.03 | Y28: =SUM($W28:X28) -> 60876503.03 | AA28: 86646245.86 | AC28: =SUM($W62:X62) -> 4417343.577
B29: =B28+1 -> 2030 | C29: =MAX(TREND(C24:C25,B24:B25,B29),0) -> 3451075 | D29: =MAX(TREND(D24:D25,B24:B25,B29),0) -> 1938989.5 | E29: =MAX(TREND(E24:E25,B24:B25,B29),0) -> 1.67 | F29: =MAX(TREND(F24:F25,B24:B25,B29),0) -> 1.67 | G29: =MAX(TREND(G24:G25,$B24:$B25,$B29),0) -> 13793386.5 | H29: =MAX(TREND(H24:H25,$B24:$B25,$B29),0) -> 14650990.5 | I29: =MIN(MAX(TREND(I24:I25,B24:B25,B29),0),1) -> 0.15 | J29: =MIN(MAX(TREND(J24:J25,B24:B25,B29),0),1) -> 0.15 | K29: =MAX(TREND(K24:K25,B24:B25,B29),0) -> 0 | L29: =MAX(TREND(L24:L25,B24:B25,B29),0) -> 0 | M29: =IFERROR(IF(INDEX(HwyTransitModelGroup,A18,1)=Hwy,C29*E29/G29,K29/G29),0) -> 0.4178303312 | N29: =IFERROR(IF(INDEX(HwyTransitModelGroup,A18,1)=Hwy,D29*F29/H29,L29/H29),0) -> 0.2210166244 | O29: =TREND(O24:O25,$B24:$B25,$B29) -> 13793386.5 | P29: =IF(INDEX(HwyTransitModelGroup,A18,1)=Hwy,G29*M29*(I29*ValTimeTruck+(1-I29)*ValTimeAuto)-O29*N29*(J29*ValTimeTruck+(1-J29)*ValTimeAuto),G29*IF(INDEX(NoTransit20,A18)=TRUE,INDEX(DivIndTrips,A18,4)/IF(INDEX(DivIndTrips,A18,3)=0,1,INDEX(DivIndTrips,A18,3)),M29)*ValTimeAuto-O29*N29*ValTimeAuto)*(1+TTUprater)^($B29-YearCurrent) -> 53249380.43 | Q29: 53249380.43 | R29: 40465152.73 | T29: =TREND(T24:T25,$B24:$B25,$B29) -> 2714717.159 | V29: 2033 | W29: 69815978.28 | Y29: =SUM($W29:X29) -> 69815978.28 | AA29: 103344702.8 | AC29: =SUM($W63:X63) -> 5268656.785
B30: 2031 | C30: =MAX(TREND(C24:C25,B24:B25,B30),0) -> 4533300 | D30: =MAX(TREND(D24:D25,B24:B25,B30),0) -> 2547043 | E30: =MAX(TREND(E24:E25,B24:B25,B30),0) -> 1.67 | F30: =MAX(TREND(F24:F25,B24:B25,B30),0) -> 1.67 | G30: =MAX(TREND(G24:G25,$B24:$B25,$B30),0) -> 14561091 | H30: =MAX(TREND(H24:H25,$B24:$B25,$B30),0) -> 15466437 | I30: =MIN(MAX(TREND(I24:I25,B24:B25,B30),0),1) -> 0.15 | J30: =MIN(MAX(TREND(J24:J25,B24:B25,B30),0),1) -> 0.15 | K30: =MAX(TREND(K24:K25,B24:B25,B30),0) -> 0 | L30: =MAX(TREND(L24:L25,B24:B25,B30),0) -> 0 | M30: =IFERROR(IF(INDEX(HwyTransitModelGroup,A18,1)=Hwy,C30*E30/G30,K30/G30),0) -> 0.5199205884 | N30: =IFERROR(IF(INDEX(HwyTransitModelGroup,A18,1)=Hwy,D30*F30/H30,L30/H30),0) -> 0.275018856 | O30: =TREND(O24:O25,$B24:$B25,$B30) -> 14561091 | P30: =IF(INDEX(HwyTransitModelGroup,A18,1)=Hwy,G30*M30*(I30*ValTimeTruck+(1-I30)*ValTimeAuto)-O30*N30*(J30*ValTimeTruck+(1-J30)*ValTimeAuto),G30*IF(INDEX(NoTransit20,A18)=TRUE,INDEX(DivIndTrips,A18,4)/IF(INDEX(DivIndTrips,A18,3)=0,1,INDEX(DivIndTrips,A18,3)),M30)*ValTimeAuto-O30*N30*ValTimeAuto)*(1+TTUprater)^($B30-YearCurrent) -> 69947804.21 | Q30: 69947804.21 | R30: 51110175.39 | T30: =TREND(T24:T25,$B24:$B25,$B30) -> 3566030.368 | V30: 2034 | W30: 77977756.18 | Y30: =SUM($W30:X30) -> 77977756.18 | AA30: 120043173.1 | AC30: =SUM($W64:X64) -> 6119969.994
B31: 2032 | C31: =MAX(TREND(C24:C25,B24:B25,B31),0) -> 5615525 | D31: =MAX(TREND(D24:D25,B24:B25,B31),0) -> 3155096.5 | E31: =MAX(TREND(E24:E25,B24:B25,B31),0) -> 1.67 | F31: =MAX(TREND(F24:F25,B24:B25,B31),0) -> 1.67 | G31: =MAX(TREND(G24:G25,$B24:$B25,$B31),0) -> 15328795.5 | H31: =MAX(TREND(H24:H25,$B24:$B25,$B31),0) -> 16281883.5 | I31: =MIN(MAX(TREND(I24:I25,B24:B25,B31),0),1) -> 0.15 | J31: =MIN(MAX(TREND(J24:J25,B24:B25,B31),0),1) -> 0.15 | K31: =MAX(TREND(K24:K25,B24:B25,B31),0) -> 0 | L31: =MAX(TREND(L24:L25,B24:B25,B31),0) -> 0 | M31: =IFERROR(IF(INDEX(HwyTransitModelGroup,A18,1)=Hwy,C31*E31/G31,K31/G31),0) -> 0.6117849736 | N31: =IFERROR(IF(INDEX(HwyTransitModelGroup,A18,1)=Hwy,D31*F31/H31,L31/H31),0) -> 0.3236118939 | O31: =TREND(O24:O25,$B24:$B25,$B31) -> 15328795.5 | P31: =IF(INDEX(HwyTransitModelGroup,A18,1)=Hwy,G31*M31*(I31*ValTimeTruck+(1-I31)*ValTimeAuto)-O31*N31*(J31*ValTimeTruck+(1-J31)*ValTimeAuto),G31*IF(INDEX(NoTransit20,A18)=TRUE,INDEX(DivIndTrips,A18,4)/IF(INDEX(DivIndTrips,A18,3)=0,1,INDEX(DivIndTrips,A18,3)),M31)*ValTimeAuto-O31*N31*ValTimeAuto)*(1+TTUprater)^($B31-YearCurrent) -> 86646245.86 | Q31: 86646245.86 | R31: 60876503.03 | T31: =TREND(T24:T25,$B24:$B25,$B31) -> 4417343.577 | V31: 2035 | W31: 85408434.12 | Y31: =SUM($W31:X31) -> 85408434.12 | AA31: 136741654.8 | AC31: =SUM($W65:X65) -> 6971283.203
B32: 2033 | C32: =MAX(TREND(C24:C25,B24:B25,B32),0) -> 6697750 | D32: =MAX(TREND(D24:D25,B24:B25,B32),0) -> 3763150 | E32: =MAX(TREND(E24:E25,B24:B25,B32),0) -> 1.67 | F32: =MAX(TREND(F24:F25,B24:B25,B32),0) -> 1.67 | G32: =MAX(TREND(G24:G25,$B24:$B25,$B32),0) -> 16096500 | H32: =MAX(TREND(H24:H25,$B24:$B25,$B32),0) -> 17097330 | I32: =MIN(MAX(TREND(I24:I25,B24:B25,B32),0),1) -> 0.15 | J32: =MIN(MAX(TREND(J24:J25,B24:B25,B32),0),1) -> 0.15 | K32: =MAX(TREND(K24:K25,B24:B25,B32),0) -> 0 | L32: =MAX(TREND(L24:L25,B24:B25,B32),0) -> 0 | M32: =IFERROR(IF(INDEX(HwyTransitModelGroup,A18,1)=Hwy,C32*E32/G32,K32/G32),0) -> 0.6948866213 | N32: =IFERROR(IF(INDEX(HwyTransitModelGroup,A18,1)=Hwy,D32*F32/H32,L32/H32),0) -> 0.3675697024 | O32: =TREND(O24:O25,$B24:$B25,$B32) -> 16096500 | P32: =IF(INDEX(HwyTransitModelGroup,A18,1)=Hwy,G32*M32*(I32*ValTimeTruck+(1-I32)*ValTimeAuto)-O32*N32*(J32*ValTimeTruck+(1-J32)*ValTimeAuto),G32*IF(INDEX(NoTransit20,A18)=TRUE,INDEX(DivIndTrips,A18,4)/IF(INDEX(DivIndTrips,A18,3)=0,1,INDEX(DivIndTrips,A18,3)),M32)*ValTimeAuto-O32*N32*ValTimeAuto)*(1+TTUprater)^($B32-YearCurrent) -> 103344702.8 | Q32: 103344702.8 | R32: 69815978.28 | T32: =TREND(T24:T25,$B24:$B25,$B32) -> 5268656.785 | V32: 2036 | W32: 92152175.78 | Y32: =SUM($W32:X32) -> 92152175.78 | AA32: 153440146.5 | AC32: =SUM($W66:X66) -> 7822596.411
B33: 2034 | C33: =MAX(TREND(C24:C25,B24:B25,B33),0) -> 7779975 | D33: =MAX(TREND(D24:D25,B24:B25,B33),0) -> 4371203.5 | E33: =MAX(TREND(E24:E25,B24:B25,B33),0) -> 1.67 | F33: =MAX(TREND(F24:F25,B24:B25,B33),0) -> 1.67 | G33: =MAX(TREND(G24:G25,$B24:$B25,$B33),0) -> 16864204.5 | H33: =MAX(TREND(H24:H25,$B24:$B25,$B33),0) -> 17912776.5 | I33: =MIN(MAX(TREND(I24:I25,B24:B25,B33),0),1) -> 0.15 | J33: =MIN(MAX(TREND(J24:J25,B24:B25,B33),0),1) -> 0.15 | K33: =MAX(TREND(K24:K25,B24:B25,B33),0) -> 0 | L33: =MAX(TREND(L24:L25,B24:B25,B33),0) -> 0 | M33: =IFERROR(IF(INDEX(HwyTransitModelGroup,A18,1)=Hwy,C33*E33/G33,K33/G33),0) -> 0.7704222426 | N33: =IFERROR(IF(INDEX(HwyTransitModelGroup,A18,1)=Hwy,D33*F33/H33,L33/H33),0) -> 0.4075253127 | O33: =TREND(O24:O25,$B24:$B25,$B33) -> 16864204.5 | P33: =IF(INDEX(HwyTransitModelGroup,A18,1)=Hwy,G33*M33*(I33*ValTimeTruck+(1-I33)*ValTimeAuto)-O33*N33*(J33*ValTimeTruck+(1-J33)*ValTimeAuto),G33*IF(INDEX(NoTransit20,A18)=TRUE,INDEX(DivIndTrips,A18,4)/IF(INDEX(DivIndTrips,A18,3)=0,1,INDEX(DivIndTrips,A18,3)),M33)*ValTimeAuto-O33*N33*ValTimeAuto)*(1+TTUprater)^($B33-YearCurrent) -> 120043173.1 | Q33: 120043173.1 | R33: 77977756.18 | T33: =TREND(T24:T25,$B24:$B25,$B33) -> 6119969.994 | V33: 2037 | W33: 98250829.35 | Y33: =SUM($W33:X33) -> 98250829.35 | AA33: 170138647.1 | AC33: =SUM($W67:X67) -> 8673909.62
B34: 2035 | C34: =MAX(TREND(C24:C25,B24:B25,B34),0) -> 8862200 | D34: =MAX(TREND(D24:D25,B24:B25,B34),0) -> 4979257 | E34: =MAX(TREND(E24:E25,B24:B25,B34),0) -> 1.67 | F34: =MAX(TREND(F24:F25,B24:B25,B34),0) -> 1.67 | G34: =MAX(TREND(G24:G25,$B24:$B25,$B34),0) -> 17631909 | H34: =MAX(TREND(H24:H25,$B24:$B25,$B34),0) -> 18728223 | I34: =MIN(MAX(TREND(I24:I25,B24:B25,B34),0),1) -> 0.15 | J34: =MIN(MAX(TREND(J24:J25,B24:B25,B34),0),1) -> 0.15 | K34: =MAX(TREND(K24:K25,B24:B25,B34),0) -> 0 | L34: =MAX(TREND(L24:L25,B24:B25,B34),0) -> 0 | M34: =IFERROR(IF(INDEX(HwyTransitModelGroup,A18,1)=Hwy,C34*E34/G34,K34/G34),0) -> 0.8393801261 | N34: =IFERROR(IF(INDEX(HwyTransitModelGroup,A18,1)=Hwy,D34*F34/H34,L34/H34),0) -> 0.4440015046 | O34: =TREND(O24:O25,$B24:$B25,$B34) -> 17631909 | P34: =IF(INDEX(HwyTransitModelGroup,A18,1)=Hwy,G34*M34*(I34*ValTimeTruck+(1-I34)*ValTimeAuto)-O34*N34*(J34*ValTimeTruck+(1-J34)*ValTimeAuto),G34*IF(INDEX(NoTransit20,A18)=TRUE,INDEX(DivIndTrips,A18,4)/IF(INDEX(DivIndTrips,A18,3)=0,1,INDEX(DivIndTrips,A18,3)),M34)*ValTimeAuto-O34*N34*ValTimeAuto)*(1+TTUprater)^($B34-YearCurrent) -> 136741654.8 | Q34: 136741654.8 | R34: 85408434.12 | T34: =TREND(T24:T25,$B24:$B25,$B34) -> 6971283.203 | V34: 2038 | W34: 103744040.3 | Y34: =SUM($W34:X34) -> 103744040.3 | AA34: 186837155.6 | AC34: =SUM($W68:X68) -> 9525222.829
B35: 2036 | C35: =MAX(TREND(C24:C25,B24:B25,B35),0) -> 9944425 | D35: =MAX(TREND(D24:D25,B24:B25,B35),0) -> 5587310.5 | E35: =MAX(TREND(E24:E25,B24:B25,B35),0) -> 1.67 | F35: =MAX(TREND(F24:F25,B24:B25,B35),0) -> 1.67 | G35: =MAX(TREND(G24:G25,$B24:$B25,$B35),0) -> 18399613.5 | H35: =MAX(TREND(H24:H25,$B24:$B25,$B35),0) -> 19543669.5 | I35: =MIN(MAX(TREND(I24:I25,B24:B25,B35),0),1) -> 0.15 | J35: =MIN(MAX(TREND(J24:J25,B24:B25,B35),0),1) -> 0.15 | K35: =MAX(TREND(K24:K25,B24:B25,B35),0) -> 0 | L35: =MAX(TREND(L24:L25,B24:B25,B35),0) -> 0 | M35: =IFERROR(IF(INDEX(HwyTransitModelGroup,A18,1)=Hwy,C35*E35/G35,K35/G35),0) -> 0.9025836195 | N35: =IFERROR(IF(INDEX(HwyTransitModelGroup,A18,1)=Hwy,D35*F35/H35,L35/H35),0) -> 0.4774338071 | O35: =TREND(O24:O25,$B24:$B25,$B35) -> 18399613.5 | P35: =IF(INDEX(HwyTransitModelGroup,A18,1)=Hwy,G35*M35*(I35*ValTimeTruck+(1-I35)*ValTimeAuto)-O35*N35*(J35*ValTimeTruck+(1-J35)*ValTimeAuto),G35*IF(INDEX(NoTransit20,A18)=TRUE,INDEX(DivIndTrips,A18,4)/IF(INDEX(DivIndTrips,A18,3)=0,1,INDEX(DivIndTrips,A18,3)),M35)*ValTimeAuto-O35*N35*ValTimeAuto)*(1+TTUprater)^($B35-YearCurrent) -> 153440146.5 | Q35: 153440146.5 | R35: 92152175.78 | T35: =TREND(T24:T25,$B24:$B25,$B35) -> 7822596.411 | V35: 2039 | W35: 108669358.8 | Y35: =SUM($W35:X35) -> 108669358.8 | AA35: 203535671 | AC35: =SUM($W69:X69) -> 10376536.04
B36: 2037 | C36: =MAX(TREND(C24:C25,B24:B25,B36),0) -> 11026650 | D36: =MAX(TREND(D24:D25,B24:B25,B36),0) -> 6195364 | E36: =MAX(TREND(E24:E25,B24:B25,B36),0) -> 1.67 | F36: =MAX(TREND(F24:F25,B24:B25,B36),0) -> 1.67 | G36: =MAX(TREND(G24:G25,$B24:$B25,$B36),0) -> 19167318 | H36: =MAX(TREND(H24:H25,$B24:$B25,$B36),0) -> 20359116 | I36: =MIN(MAX(TREND(I24:I25,B24:B25,B36),0),1) -> 0.15 | J36: =MIN(MAX(TREND(J24:J25,B24:B25,B36),0),1) -> 0.15 | K36: =MAX(TREND(K24:K25,B24:B25,B36),0) -> 0 | L36: =MAX(TREND(L24:L25,B24:B25,B36),0) -> 0 | M36: =IFERROR(IF(INDEX(HwyTransitModelGroup,A18,1)=Hwy,C36*E36/G36,K36/G36),0) -> 0.9607241608 | N36: =IFERROR(IF(INDEX(HwyTransitModelGroup,A18,1)=Hwy,D36*F36/H36,L36/H36),0) -> 0.5081879724 | O36: =TREND(O24:O25,$B24:$B25,$B36) -> 19167318 | P36: =IF(INDEX(HwyTransitModelGroup,A18,1)=Hwy,G36*M36*(I36*ValTimeTruck+(1-I36)*ValTimeAuto)-O36*N36*(J36*ValTimeTruck+(1-J36)*ValTimeAuto),G36*IF(INDEX(NoTransit20,A18)=TRUE,INDEX(DivIndTrips,A18,4)/IF(INDEX(DivIndTrips,A18,3)=0,1,INDEX(DivIndTrips,A18,3)),M36)*ValTimeAuto-O36*N36*ValTimeAuto)*(1+TTUprater)^($B36-YearCurrent) -> 170138647.1 | Q36: 170138647.1 | R36: 98250829.35 | T36: =TREND(T24:T25,$B24:$B25,$B36) -> 8673909.62 | V36: 2040 | W36: 113062342.3 | Y36: =SUM($W36:X36) -> 113062342.3 | AA36: 220234192.6 | AC36: =SUM($W70:X70) -> 11227849.25
B37: 2038 | C37: =MAX(TREND(C24:C25,B24:B25,B37),0) -> 12108875 | D37: =MAX(TREND(D24:D25,B24:B25,B37),0) -> 6803417.5 | E37: =MAX(TREND(E24:E25,B24:B25,B37),0) -> 1.67 | F37: =MAX(TREND(F24:F25,B24:B25,B37),0) -> 1.67 | G37: =MAX(TREND(G24:G25,$B24:$B25,$B37),0) -> 19935022.5 | H37: =MAX(TREND(H24:H25,$B24:$B25,$B37),0) -> 21174562.5 | I37: =MIN(MAX(TREND(I24:I25,B24:B25,B37),0),1) -> 0.15 | J37: =MIN(MAX(TREND(J24:J25,B24:B25,B37),0),1) -> 0.15 | K37: =MAX(TREND(K24:K25,B24:B25,B37),0) -> 0 | L37: =MAX(TREND(L24:L25,B24:B25,B37),0) -> 0 | M37: =IFERROR(IF(INDEX(HwyTransitModelGroup,A18,1)=Hwy,C37*E37/G37,K37/G37),0) -> 1.014386678 | N37: =IFERROR(IF(INDEX(HwyTransitModelGroup,A18,1)=Hwy,D37*F37/H37,L37/H37),0) -> 0.5365734109 | O37: =TREND(O24:O25,$B24:$B25,$B37) -> 19935022.5 | P37: =IF(INDEX(HwyTransitModelGroup,A18,1)=Hwy,G37*M37*(I37*ValTimeTruck+(1-I37)*ValTimeAuto)-O37*N37*(J37*ValTimeTruck+(1-J37)*ValTimeAuto),G37*IF(INDEX(NoTransit20,A18)=TRUE,INDEX(DivIndTrips,A18,4)/IF(INDEX(DivIndTrips,A18,3)=0,1,INDEX(DivIndTrips,A18,3)),M37)*ValTimeAuto-O37*N37*ValTimeAuto)*(1+TTUprater)^($B37-YearCurrent) -> 186837155.6 | Q37: 186837155.6 | R37: 103744040.3 | T37: =TREND(T24:T25,$B24:$B25,$B37) -> 9525222.829 | V37: 2041 | W37: 116956653.3 | Y37: =SUM($W37:X37) -> 116956653.3 | AA37: 236932719.8 | AC37: =SUM($W71:X71) -> 12079162.46
B38: 2039 | C38: =MAX(TREND(C24:C25,B24:B25,B38),0) -> 13191100 | D38: =MAX(TREND(D24:D25,B24:B25,B38),0) -> 7411471 | E38: =MAX(TREND(E24:E25,B24:B25,B38),0) -> 1.67 | F38: =MAX(TREND(F24:F25,B24:B25,B38),0) -> 1.67 | G38: =MAX(TREND(G24:G25,$B24:$B25,$B38),0) -> 20702727 | H38: =MAX(TREND(H24:H25,$B24:$B25,$B38),0) -> 21990009 | I38: =MIN(MAX(TREND(I24:I25,B24:B25,B38),0),1) -> 0.15 | J38: =MIN(MAX(TREND(J24:J25,B24:B25,B38),0),1) -> 0.15 | K38: =MAX(TREND(K24:K25,B24:B25,B38),0) -> 0 | L38: =MAX(TREND(L24:L25,B24:B25,B38),0) -> 0 | M38: =IFERROR(IF(INDEX(HwyTransitModelGroup,A18,1)=Hwy,C38*E38/G38,K38/G38),0) -> 1.064069337 | N38: =IFERROR(IF(INDEX(HwyTransitModelGroup,A18,1)=Hwy,D38*F38/H38,L38/H38),0) -> 0.5628536382 | O38: =TREND(O24:O25,$B24:$B25,$B38) -> 20702727 | P38: =IF(INDEX(HwyTransitModelGroup,A18,1)=Hwy,G38*M38*(I38*ValTimeTruck+(1-I38)*ValTimeAuto)-O38*N38*(J38*ValTimeTruck+(1-J38)*ValTimeAuto),G38*IF(INDEX(NoTransit20,A18)=TRUE,INDEX(DivIndTrips,A18,4)/IF(INDEX(DivIndTrips,A18,3)=0,1,INDEX(DivIndTrips,A18,3)),M38)*ValTimeAuto-O38*N38*ValTimeAuto)*(1+TTUprater)^($B38-YearCurrent) -> 203535671 | Q38: 203535671 | R38: 108669358.8 | T38: =TREND(T24:T25,$B24:$B25,$B38) -> 10376536.04 | V38: 2042 | W38: 120384152.3 | Y38: =SUM($W38:X38) -> 120384152.3 | AA38: 253631252 | AC38: =SUM($W72:X72) -> 12930475.66
B39: 2040 | C39: =MAX(TREND(C24:C25,B24:B25,B39),0) -> 14273325 | D39: =MAX(TREND(D24:D25,B24:B25,B39),0) -> 8019524.5 | E39: =MAX(TREND(E24:E25,B24:B25,B39),0) -> 1.67 | F39: =MAX(TREND(F24:F25,B24:B25,B39),0) -> 1.67 | G39: =MAX(TREND(G24:G25,$B24:$B25,$B39),0) -> 21470431.5 | H39: =MAX(TREND(H24:H25,$B24:$B25,$B39),0) -> 22805455.5 | I39: =MIN(MAX(TREND(I24:I25,B24:B25,B39),0),1) -> 0.15 | J39: =MIN(MAX(TREND(J24:J25,B24:B25,B39),0),1) -> 0.15 | K39: =MAX(TREND(K24:K25,B24:B25,B39),0) -> 0 | L39: =MAX(TREND(L24:L25,B24:B25,B39),0) -> 0 | M39: =IFERROR(IF(INDEX(HwyTransitModelGroup,A18,1)=Hwy,C39*E39/G39,K39/G39),0) -> 1.110199054 | N39: =IFERROR(IF(INDEX(HwyTransitModelGroup,A18,1)=Hwy,D39*F39/H39,L39/H39),0) -> 0.5872544802 | O39: =TREND(O24:O25,$B24:$B25,$B39) -> 21470431.5 | P39: =IF(INDEX(HwyTransitModelGroup,A18,1)=Hwy,G39*M39*(I39*ValTimeTruck+(1-I39)*ValTimeAuto)-O39*N39*(J39*ValTimeTruck+(1-J39)*ValTimeAuto),G39*IF(INDEX(NoTransit20,A18)=TRUE,INDEX(DivIndTrips,A18,4)/IF(INDEX(DivIndTrips,A18,3)=0,1,INDEX(DivIndTrips,A18,3)),M39)*ValTimeAuto-O39*N39*ValTimeAuto)*(1+TTUprater)^($B39-YearCurrent) -> 220234192.6 | Q39: 220234192.6 | R39: 113062342.3 | T39: =TREND(T24:T25,$B24:$B25,$B39) -> 11227849.25 | V39: 2043 | W39: 123374986.7 | Y39: =SUM($W39:X39) -> 123374986.7 | AA39: 270329788.7 | AC39: =SUM($W73:X73) -> 13781788.87
B40: 2041 | C40: =MAX(TREND(C24:C25,B24:B25,B40),0) -> 15355550 | D40: =MAX(TREND(D24:D25,B24:B25,B40),0) -> 8627578 | E40: =MAX(TREND(E24:E25,B24:B25,B40),0) -> 1.67 | F40: =MAX(TREND(F24:F25,B24:B25,B40),0) -> 1.67 | G40: =MAX(TREND(G24:G25,$B24:$B25,$B40),0) -> 22238136 | H40: =MAX(TREND(H24:H25,$B24:$B25,$B40),0) -> 23620902 | I40: =MIN(MAX(TREND(I24:I25,B24:B25,B40),0),1) -> 0.15 | J40: =MIN(MAX(TREND(J24:J25,B24:B25,B40),0),1) -> 0.15 | K40: =MAX(TREND(K24:K25,B24:B25,B40),0) -> 0 | L40: =MAX(TREND(L24:L25,B24:B25,B40),0) -> 0 | M40: =IFERROR(IF(INDEX(HwyTransitModelGroup,A18,1)=Hwy,C40*E40/G40,K40/G40),0) -> 1.153143793 | N40: =IFERROR(IF(INDEX(HwyTransitModelGroup,A18,1)=Hwy,D40*F40/H40,L40/H40),0) -> 0.6099705786 | O40: =TREND(O24:O25,$B24:$B25,$B40) -> 22238136 | P40: =IF(INDEX(HwyTransitModelGroup,A18,1)=Hwy,G40*M40*(I40*ValTimeTruck+(1-I40)*ValTimeAuto)-O40*N40*(J40*ValTimeTruck+(1-J40)*ValTimeAuto),G40*IF(INDEX(NoTransit20,A18)=TRUE,INDEX(DivIndTrips,A18,4)/IF(INDEX(DivIndTrips,A18,3)=0,1,INDEX(DivIndTrips,A18,3)),M40)*ValTimeAuto-O40*N40*ValTimeAuto)*(1+TTUprater)^($B40-YearCurrent) -> 236932719.8 | Q40: 236932719.8 | R40: 116956653.3 | T40: =TREND(T24:T25,$B24:$B25,$B40) -> 12079162.46 | V40: 2044 | W40: 125957675.8 | Y40: =SUM($W40:X40) -> 125957675.8 | AA40: 287028329.6 | AC40: =SUM($W74:X74) -> 14633102.08
B41: 2042 | C41: =MAX(TREND(C24:C25,B24:B25,B41),0) -> 16437775 | D41: =MAX(TREND(D24:D25,B24:B25,B41),0) -> 9235631.5 | E41: =MAX(TREND(E24:E25,B24:B25,B41),0) -> 1.67 | F41: =MAX(TREND(F24:F25,B24:B25,B41),0) -> 1.67 | G41: =MAX(TREND(G24:G25,$B24:$B25,$B41),0) -> 23005840.5 | H41: =MAX(TREND(H24:H25,$B24:$B25,$B41),0) -> 24436348.5 | I41: =MIN(MAX(TREND(I24:I25,B24:B25,B41),0),1) -> 0.15 | J41: =MIN(MAX(TREND(J24:J25,B24:B25,B41),0),1) -> 0.15 | K41: =MAX(TREND(K24:K25,B24:B25,B41),0) -> 0 | L41: =MAX(TREND(L24:L25,B24:B25,B41),0) -> 0 | M41: =IFERROR(IF(INDEX(HwyTransitModelGroup,A18,1)=Hwy,C41*E41/G41,K41/G41),0) -> 1.193222402 | N41: =IFERROR(IF(INDEX(HwyTransitModelGroup,A18,1)=Hwy,D41*F41/H41,L41/H41),0) -> 0.6311705943 | O41: =TREND(O24:O25,$B24:$B25,$B41) -> 23005840.5 | P41: =IF(INDEX(HwyTransitModelGroup,A18,1)=Hwy,G41*M41*(I41*ValTimeTruck+(1-I41)*ValTimeAuto)-O41*N41*(J41*ValTimeTruck+(1-J41)*ValTimeAuto),G41*IF(INDEX(NoTransit20,A18)=TRUE,INDEX(DivIndTrips,A18,4)/IF(INDEX(DivIndTrips,A18,3)=0,1,INDEX(DivIndTrips,A18,3)),M41)*ValTimeAuto-O41*N41*ValTimeAuto)*(1+TTUprater)^($B41-YearCurrent) -> 253631252 | Q41: 253631252 | R41: 120384152.3 | T41: =TREND(T24:T25,$B24:$B25,$B41) -> 12930475.66 | V41: 2045 | W41: 128159190.6 | Y41: =SUM($W41:X41) -> 128159190.6 | AA41: 303726874.1 | AC41: =SUM($W75:X75) -> 15484415.29
B42: 2043 | C42: =MAX(TREND(C24:C25,B24:B25,B42),0) -> 17520000 | D42: =MAX(TREND(D24:D25,B24:B25,B42),0) -> 9843685 | E42: =MAX(TREND(E24:E25,B24:B25,B42),0) -> 1.67 | F42: =MAX(TREND(F24:F25,B24:B25,B42),0) -> 1.67 | G42: =MAX(TREND(G24:G25,$B24:$B25,$B42),0) -> 23773545 | H42: =MAX(TREND(H24:H25,$B24:$B25,$B42),0) -> 25251795 | I42: =MIN(MAX(TREND(I24:I25,B24:B25,B42),0),1) -> 0.15 | J42: =MIN(MAX(TREND(J24:J25,B24:B25,B42),0),1) -> 0.15 | K42: =MAX(TREND(K24:K25,B24:B25,B42),0) -> 0 | L42: =MAX(TREND(L24:L25,B24:B25,B42),0) -> 0 | M42: =IFERROR(IF(INDEX(HwyTransitModelGroup,A18,1)=Hwy,C42*E42/G42,K42/G42),0) -> 1.230712542 | N42: =IFERROR(IF(INDEX(HwyTransitModelGroup,A18,1)=Hwy,D42*F42/H42,L42/H42),0) -> 0.6510014021 | O42: =TREND(O24:O25,$B24:$B25,$B42) -> 23773545 | P42: =IF(INDEX(HwyTransitModelGroup,A18,1)=Hwy,G42*M42*(I42*ValTimeTruck+(1-I42)*ValTimeAuto)-O42*N42*(J42*ValTimeTruck+(1-J42)*ValTimeAuto),G42*IF(INDEX(NoTransit20,A18)=TRUE,INDEX(DivIndTrips,A18,4)/IF(INDEX(DivIndTrips,A18,3)=0,1,INDEX(DivIndTrips,A18,3)),M42)*ValTimeAuto-O42*N42*ValTimeAuto)*(1+TTUprater)^($B42-YearCurrent) -> 270329788.7 | Q42: 270329788.7 | R42: 123374986.7 | T42: =TREND(T24:T25,$B24:$B25,$B42) -> 13781788.87 | V42: 2046 | W42: 130005031.6 | Y42: =SUM($W42:X42) -> 130005031.6 | AA42: 320425422.1 | AC42: =SUM($W76:X76) -> 16335728.5
B43: 2044 | C43: =MAX(TREND(C24:C25,B24:B25,B43),0) -> 18602225 | D43: =MAX(TREND(D24:D25,B24:B25,B43),0) -> 10451738.5 | E43: =MAX(TREND(E24:E25,B24:B25,B43),0) -> 1.67 | F43: =MAX(TREND(F24:F25,B24:B25,B43),0) -> 1.67 | G43: =MAX(TREND(G24:G25,$B24:$B25,$B43),0) -> 24541249.5 | H43: =MAX(TREND(H24:H25,$B24:$B25,$B43),0) -> 26067241.5 | I43: =MIN(MAX(TREND(I24:I25,B24:B25,B43),0),1) -> 0.15 | J43: =MIN(MAX(TREND(J24:J25,B24:B25,B43),0),1) -> 0.15 | K43: =MAX(TREND(K24:K25,B24:B25,B43),0) -> 0 | L43: =MAX(TREND(L24:L25,B24:B25,B43),0) -> 0 | M43: =IFERROR(IF(INDEX(HwyTransitModelGroup,A18,1)=Hwy,C43*E43/G43,K43/G43),0) -> 1.265857134 | N43: =IFERROR(IF(INDEX(HwyTransitModelGroup,A18,1)=Hwy,D43*F43/H43,L43/H43),0) -> 0.6695914984 | O43: =TREND(O24:O25,$B24:$B25,$B43) -> 24541249.5 | P43: =IF(INDEX(HwyTransitModelGroup,A18,1)=Hwy,G43*M43*(I43*ValTimeTruck+(1-I43)*ValTimeAuto)-O43*N43*(J43*ValTimeTruck+(1-J43)*ValTimeAuto),G43*IF(INDEX(NoTransit20,A18)=TRUE,INDEX(DivIndTrips,A18,4)/IF(INDEX(DivIndTrips,A18,3)=0,1,INDEX(DivIndTrips,A18,3)),M43)*ValTimeAuto-O43*N43*ValTimeAuto)*(1+TTUprater)^($B43-YearCurrent) -> 287028329.6 | Q43: 287028329.6 | R43: 125957675.8 | T43: =TREND(T24:T25,$B24:$B25,$B43) -> 14633102.08 | V43: 2047 | W43: 131519301.4 | Y43: =SUM($W43:X43) -> 131519301.4 | AA43: 337123973.1 | AC43: =SUM($W77:X77) -> 17187041.71
B44: 2045 | C44: =MAX(TREND(C24:C25,B24:B25,B44),0) -> 19684450 | D44: =MAX(TREND(D24:D25,B24:B25,B44),0) -> 11059792 | E44: =MAX(TREND(E24:E25,B24:B25,B44),0) -> 1.67 | F44: =MAX(TREND(F24:F25,B24:B25,B44),0) -> 1.67 | G44: =MAX(TREND(G24:G25,$B24:$B25,$B44),0) -> 25308954 | H44: =MAX(TREND(H24:H25,$B24:$B25,$B44),0) -> 26882688 | I44: =MIN(MAX(TREND(I24:I25,B24:B25,B44),0),1) -> 0.15 | J44: =MIN(MAX(TREND(J24:J25,B24:B25,B44),0),1) -> 0.15 | K44: =MAX(TREND(K24:K25,B24:B25,B44),0) -> 0 | L44: =MAX(TREND(L24:L25,B24:B25,B44),0) -> 0 | M44: =IFERROR(IF(INDEX(HwyTransitModelGroup,A18,1)=Hwy,C44*E44/G44,K44/G44),0) -> 1.298869621 | N44: =IFERROR(IF(INDEX(HwyTransitModelGroup,A18,1)=Hwy,D44*F44/H44,L44/H44),0) -> 0.6870537887 | O44: =TREND(O24:O25,$B24:$B25,$B44) -> 25308954 | P44: =IF(INDEX(HwyTransitModelGroup,A18,1)=Hwy,G44*M44*(I44*ValTimeTruck+(1-I44)*ValTimeAuto)-O44*N44*(J44*ValTimeTruck+(1-J44)*ValTimeAuto),G44*IF(INDEX(NoTransit20,A18)=TRUE,INDEX(DivIndTrips,A18,4)/IF(INDEX(DivIndTrips,A18,3)=0,1,INDEX(DivIndTrips,A18,3)),M44)*ValTimeAuto-O44*N44*ValTimeAuto)*(1+TTUprater)^($B44-YearCurrent) -> 303726874.1 | Q44: 303726874.1 | R44: 128159190.6 | T44: =TREND(T24:T25,$B24:$B25,$B44) -> 15484415.29
B45: 2046 | C45: =MAX(TREND(C24:C25,B24:B25,B45),0) -> 20766675 | D45: =MAX(TREND(D24:D25,B24:B25,B45),0) -> 11667845.5 | E45: =MAX(TREND(E24:E25,B24:B25,B45),0) -> 1.67 | F45: =MAX(TREND(F24:F25,B24:B25,B45),0) -> 1.67 | G45: =MAX(TREND(G24:G25,$B24:$B25,$B45),0) -> 26076658.5 | H45: =MAX(TREND(H24:H25,$B24:$B25,$B45),0) -> 27698134.5 | I45: =MIN(MAX(TREND(I24:I25,B24:B25,B45),0),1) -> 0.15 | J45: =MIN(MAX(TREND(J24:J25,B24:B25,B45),0),1) -> 0.15 | K45: =MAX(TREND(K24:K25,B24:B25,B45),0) -> 0 | L45: =MAX(TREND(L24:L25,B24:B25,B45),0) -> 0 | M45: =IFERROR(IF(INDEX(HwyTransitModelGroup,A18,1)=Hwy,C45*E45/G45,K45/G45),0) -> 1.329938314 | N45: =IFERROR(IF(INDEX(HwyTransitModelGroup,A18,1)=Hwy,D45*F45/H45,L45/H45),0) -> 0.7034878824 | O45: =TREND(O24:O25,$B24:$B25,$B45) -> 26076658.5 | P45: =IF(INDEX(HwyTransitModelGroup,A18,1)=Hwy,G45*M45*(I45*ValTimeTruck+(1-I45)*ValTimeAuto)-O45*N45*(J45*ValTimeTruck+(1-J45)*ValTimeAuto),G45*IF(INDEX(NoTransit20,A18)=TRUE,INDEX(DivIndTrips,A18,4)/IF(INDEX(DivIndTrips,A18,3)=0,1,INDEX(DivIndTrips,A18,3)),M45)*ValTimeAuto-O45*N45*ValTimeAuto)*(1+TTUprater)^($B45-YearCurrent) -> 320425422.1 | Q45: 320425422.1 | R45: 130005031.6 | T45: =TREND(T24:T25,$B24:$B25,$B45) -> 16335728.5 | V45: Total | W45: =SUM(W24:W43) -> 1823093897 | Y45: =SUM(Y24:Y43) -> 1823093897 | AA45: =SUM(AA24:AA43) -> 3569760711 | AC45: =SUM(W79:X79) -> 181991324.5
B46: 2047 | C46: =MAX(TREND(C24:C25,B24:B25,B46),0) -> 21848900 | D46: =MAX(TREND(D24:D25,B24:B25,B46),0) -> 12275899 | E46: =MAX(TREND(E24:E25,B24:B25,B46),0) -> 1.67 | F46: =MAX(TREND(F24:F25,B24:B25,B46),0) -> 1.67 | G46: =MAX(TREND(G24:G25,$B24:$B25,$B46),0) -> 26844363 | H46: =MAX(TREND(H24:H25,$B24:$B25,$B46),0) -> 28513581 | I46: =MIN(MAX(TREND(I24:I25,B24:B25,B46),0),1) -> 0.15 | J46: =MIN(MAX(TREND(J24:J25,B24:B25,B46),0),1) -> 0.15 | K46: =MAX(TREND(K24:K25,B24:B25,B46),0) -> 0 | L46: =MAX(TREND(L24:L25,B24:B25,B46),0) -> 0 | M46: =IFERROR(IF(INDEX(HwyTransitModelGroup,A18,1)=Hwy,C46*E46/G46,K46/G46),0) -> 1.359229981 | N46: =IFERROR(IF(INDEX(HwyTransitModelGroup,A18,1)=Hwy,D46*F46/H46,L46/H46),0) -> 0.7189819942 | O46: =TREND(O24:O25,$B24:$B25,$B46) -> 26844363 | P46: =IF(INDEX(HwyTransitModelGroup,A18,1)=Hwy,G46*M46*(I46*ValTimeTruck+(1-I46)*ValTimeAuto)-O46*N46*(J46*ValTimeTruck+(1-J46)*ValTimeAuto),G46*IF(INDEX(NoTransit20,A18)=TRUE,INDEX(DivIndTrips,A18,4)/IF(INDEX(DivIndTrips,A18,3)=0,1,INDEX(DivIndTrips,A18,3)),M46)*ValTimeAuto-O46*N46*ValTimeAuto)*(1+TTUprater)^($B46-YearCurrent) -> 337123973.1 | Q46: 337123973.1 | R46: 131519301.4 | T46: =TREND(T24:T25,$B24:$B25,$B46) -> 17187041.71
V47: =IF(Induced="Y","","* Induced Travel Not Counted") -> 
B48: Total | R48: =SUM(R27:R46) -> 1823093897 | T48: =SUM(T27:T46) -> 181991324.5
V49: SUMMARY OF PERSON-HOURS SAVED
W54: 1
W55: =IF(ISBLANK(INDEX(ModelGroup,W54,1)),"Not Used",INDEX(ModelGroup,W54,1)) -> SJCOG SR99/120
V56: Year
V58: =YearOpen -> 2028 | W58: =OFFSET($T9,MATCH(W$54,$A:$A),0) -> 1012090.742
V59: =V58+1 -> 2029 | W59: 1863403.95
V60: =V59+1 -> 2030 | W60: 2714717.159
V61: 2031 | W61: 3566030.368
V62: 2032 | W62: 4417343.577
V63: 2033 | W63: 5268656.785
V64: 2034 | W64: 6119969.994
V65: 2035 | W65: 6971283.203
V66: 2036 | W66: 7822596.411
V67: 2037 | W67: 8673909.62
V68: 2038 | W68: 9525222.829
V69: 2039 | W69: 10376536.04
V70: 2040 | W70: 11227849.25
V71: 2041 | W71: 12079162.46
V72: 2042 | W72: 12930475.66
V73: 2043 | W73: 13781788.87
V74: 2044 | W74: 14633102.08
V75: 2045 | W75: 15484415.29
V76: 2046 | W76: 16335728.5
V77: 2047 | W77: 17187041.71
V79: Total | W79: =SUM(W58:W77) -> 181991324.5
V81: =IF(Induced="Y","","* Induced Travel Not Counted") -> 

Sheet Consumer Surplus
B1: Consumer Surplus Benefits
B3: This sheet calculates consumer benefits associated with induced demand.
B5: Formulas: | S5: Present Value = Future Value (in Constant Dollars)
T6: ( 1 + Real Discount Rate) ^ Year
B7: Avg. Travel Time = Total VHT x AVO / Total Person Trips | F7: for hwy | H7: Adj. Person Trips = Total Person Trips - Induced Demand
B8: hrs / person vehicle-hrs / yr | D8: people / veh | E8: trips / yr | H8: trips / yr | I8: trips / yr | J8: trips / yr
B10: Avg. Travel Time = Total PHT / Total Person Trips | F10: for transit | H10: CS Benefit = Diff. in Travel Time x Avg. Value of Time x Diff. in Adj. Person Trips x 0.5
B11: hrs / person passenger-hrs / yr | D11: trips / yr | H11: dollars / year | I11: hrs / trip | J11: dollars / hr | K11: trips / yr
B15: A | C15: CONSUMER SURPLUS BENEFIT (AGGREGATE) | AE15: B | AF15: SUMMARY OF INDUCED DEMAND BENEFITS
C16: Each block of calculations is one mode. Data inputs are aggregated by sum or weighted average. Average vehicle occupancy and percent trucks data averages are weighted by hours, out-of-pocket cost averages are weighted by trips.
A18: 1 | B18: =PARAMETERS!$J$9 -> Bus
C20: TOTAL VHT | E20: AVERAGE VEH OCC | G20: =IF(B18=Hwy,"TOTAL VEHICLE TRIPS","TOTAL PERSON TRIPS") -> TOTAL PERSON TRIPS | I20: PERCENT TRUCKS | K20: TOTAL PHT | M20: AVERAGE TRAVEL TIME | O20: OUT OF POCKET COST | Q20: =IF(B18=Hwy,"TOTAL VEHICLE TRIPS","TOTAL PERSON TRIPS") -> TOTAL PERSON TRIPS | R20: CONSUMER SURPLUS BENEFIT | AF20: 1 | AG20: 2 | AH20: 3 | AI20: 4 | AK20: Present
C21: (veh-hours/yr) | E21: (persons/vehicle) | G21: (trips/yr) | I21: (%) | K21: (per-hours/yr) | M21: (hours/trip) | O21: ($/trip) | Q21: (trips/yr) | R21: ($/yr) | AF21: =OFFSET($B1,MATCH(AF$20,$A:$A)-1,0) -> Bus | AG21: =OFFSET($B1,MATCH(AG$20,$A:$A)-1,0) -> Pass Train | AH21: =OFFSET($B1,MATCH(AH$20,$A:$A)-1,0) -> Light Rail | AI21: =OFFSET($B1,MATCH(AI$20,$A:$A)-1,0) -> Highway | AK21: Value of
B22: Year | Q22: Adjusted (no induced) | R22: New | S22: Constant | T22: Present | AE22: Year | AK22: Induced | AM22: Constant
C23: No Build | D23: Build | E23: No Build | F23: Build | G23: No Build | H23: Build | I23: No Build | J23: Build | K23: No Build | L23: Build | M23: No Build | N23: Build | O23: No Build | P23: Build | Q23: Build | R23: (Induced) | S23: Dollars | T23: Value | AK23: Demand | AM23: Dollars
B24: =YearFirst -> 2033 | C24: =SUMIF(INDEX(HwyTransitModelGroup,,1),B18,INDEX(ModelData1NB,,3))*AnnualFactor -> 0 | D24: =SUMIF(INDEX(HwyTransitModelGroup,,1),B18,INDEX(ModelData1B,,3))*AnnualFactor -> 0 | G24: =SUMIF(INDEX(HwyTransitModelGroup,,1),B18,INDEX(ModelData1NB,,1))*AnnualFactor -> 0 | H24: =SUMIF(INDEX(HwyTransitModelGroup,,1),B18,INDEX(ModelData1B,,1))*AnnualFactor -> 0 | K24: =SUMIF(INDEX(HwyTransitModelGroup,,1),B18,INDEX(ModelData1NB,,5))*AnnualFactor -> 0 | L24: =SUMIF(INDEX(HwyTransitModelGroup,,1),B18,INDEX(ModelData1B,,5))*AnnualFactor -> 0 | M24: =IFERROR(IF(B18=Hwy,C24*E24/G24,K24/G24),0) -> 0 | N24: =IFERROR(IF(B18=Hwy,D24*F24/H24,L24/H24),0) -> 0 | O24: =IF(E24=0,0,SUMPRODUCT(--(INDEX(HwyTransitModelGroup,,1)=B18),INDEX(ModelData1NB,,6),INDEX(ModelData1NB,,1))/IF(SUMPRODUCT(--(INDEX(HwyTransitModelGroup,,1)=B18),INDEX(ModelData1NB,,1))=0,1,SUMPRODUCT(--(INDEX(HwyTransitModelGroup,,1)=B18),INDEX(ModelData1NB,,1)))) -> 0 | P24: =IF(F24=0,0,SUMPRODUCT(--(INDEX(HwyTransitModelGroup,,1)=B18),INDEX(ModelData1B,,6),INDEX(ModelData1B,,1))/IF(SUMPRODUCT(--(INDEX(HwyTransitModelGroup,,1)=B18),INDEX(ModelData1B,,1))=0,1,SUMPRODUCT(--(INDEX(HwyTransitModelGroup,,1)=B18),INDEX(ModelData1B,,1)))) -> 0 | Q24: =IFERROR($H24-SUMIF('Consumer Surplus'!$C$277:$C$280,B18,'Consumer Surplus'!$G$277:$G$280),0) -> 0 | R24: =IF(Induced="N",0,(IF(B18=Hwy,M24*(I24*ValTimeTruck+(1-I24)*ValTimeAuto)-N24*(J24*ValTimeTruck+(1-J24)*ValTimeAuto),(IF(INDEX($P$277:$X$280,MATCH(B18,$O$277:$O$280,0),7)>0,INDEX($P$277:$X$280,MATCH(B18,$O$277:$O$280,0),7)/IF(INDEX($P$277:$X$280,MATCH(B18,$O$277:$O$280,0),6)=0,1,INDEX($P$277:$X$280,MATCH(B18,$O$277:$O$280,0),6)),M24)-N24)*ValTimeAuto)+O24-P24)*(H24-Q24)*0.5*(1+TTUprater)^($B24-YearCurrent)) -> 0 | S24: =SUM(R24:R24) -> 0 | T24: =S24/(1+DiscRate)^(B24-YearCurrent) -> 0 | AE24: =YearOpen -> 2028 | AF24: =OFFSET($T9,MATCH(AF$20,$A:$A),0) -> 0 | AG24: 0 | AH24: 0 | AI24: 507253.7166 | AK24: =IF(Induced<>"N",SUM(AF24:AI24),0) -> 507253.7166 | AM24: =$AK24*(1+DiscRate)^($AE24-YearCurrent) -> 617151.7066
B25: =YearLast -> 2043 | C25: =SUMIF(INDEX(HwyTransitModelGroup,,1),B18,INDEX(ModelData20NB,,3))*AnnualFactor -> 0 | D25: =SUMIF(INDEX(HwyTransitModelGroup,,1),B18,INDEX(ModelData20B,,3))*AnnualFactor -> 0 | G25: =SUMIF(INDEX(HwyTransitModelGroup,,1),B18,INDEX(ModelData20NB,,1))*AnnualFactor -> 0 | H25: =SUMIF(INDEX(HwyTransitModelGroup,,1),B18,INDEX(ModelData20B,,1))*AnnualFactor -> 0 | K25: =SUMIF(INDEX(HwyTransitModelGroup,,1),B18,INDEX(ModelData20NB,,5))*AnnualFactor -> 0 | L25: =SUMIF(INDEX(HwyTransitModelGroup,,1),B18,INDEX(ModelData20B,,5))*AnnualFactor -> 0 | M25: =IFERROR(IF(B18=Hwy,C25*E25/G25,K25/G25),0) -> 0 | N25: =IFERROR(IF(B18=Hwy,D25*F25/H25,L25/H25),0) -> 0 | O25: =IF(E25=0,0,SUMPRODUCT(--(INDEX(HwyTransitModelGroup,,1)=B18),INDEX(ModelData20NB,,6),INDEX(ModelData20NB,,1))/IF(SUMPRODUCT(--(INDEX(HwyTransitModelGroup,,1)=B18),INDEX(ModelData20NB,,1))=0,1,SUMPRODUCT(--(INDEX(HwyTransitModelGroup,,1)=B18),INDEX(ModelData20NB,,1)))) -> 0 | P25: =IF(F25=0,0,SUMPRODUCT(--(INDEX(HwyTransitModelGroup,,1)=B18),INDEX(ModelData20B,,6),INDEX(ModelData20B,,1))/IF(SUMPRODUCT(--(INDEX(HwyTransitModelGroup,,1)=B18),INDEX(ModelData20B,,1))=0,1,SUMPRODUCT(--(INDEX(HwyTransitModelGroup,,1)=B18),INDEX(ModelData20B,,1)))) -> 0 | Q25: =IFERROR($H25-SUMIF('Consumer Surplus'!$C$277:$C$280,B18,'Consumer Surplus'!$K$277:$K$280),0) -> 0 | R25: =IF(Induced="N",0,(IF(B18=Hwy,M25*(I25*ValTimeTruck+(1-I25)*ValTimeAuto)-N25*(J25*ValTimeTruck+(1-J25)*ValTimeAuto),(IF(INDEX($P$277:$X$280,MATCH(B18,$O$277:$O$280,0),9)>0,INDEX($P$277:$X$280,MATCH(B18,$O$277:$O$280,0),9)/IF(INDEX($P$277:$X$280,MATCH(B18,$O$277:$O$280,0),9)=0,1,INDEX($P$277:$X$280,MATCH(B18,$O$277:$O$280,0),8)),M25)-N25)*ValTimeAuto)+O25-P25)*(H25-Q25)*0.5*(1+TTUprater)^($B25-YearCurrent)) -> 0 | S25: =SUM(R25:R25) -> 0 | T25: =S25/(1+DiscRate)^(B25-YearCurrent) -> 0 | AE25: =AE24+1 -> 2029 | AF25: 0 | AG25: 0 | AH25: 0 | AI25: 898006.5761 | AK25: 898006.5761 | AM25: 1136264.799
AE26: 2030 | AF26: 0 | AG26: 0 | AH26: 0 | AI26: 1257960.721 | AK26: 1257960.721 | AM26: 1655390.489
B27: =YearOpen -> 2028 | C27: =MAX(TREND(C24:C25,B24:B25,B27),0) -> 0 | D27: =MAX(TREND(D24:D25,B24:B25,B27),0) -> 0 | G27: =MAX(TREND(G24:G25,$B24:$B25,$B27),0) -> 0 | H27: =MAX(TREND(H24:H25,$B24:$B25,$B27),0) -> 0 | K27: =MAX(TREND(K24:K25,B24:B25,B27),0) -> 0 | L27: =MAX(TREND(L24:L25,B24:B25,B27),0) -> 0 | M27: =IFERROR(IF(B18=Hwy,C27*E27/G27,K27/G27),0) -> 0 | N27: =IFERROR(IF(B18=Hwy,D27*F27/H27,L27/H27),0) -> 0 | O27: =MAX(TREND(O24:O25,$B24:$B25,$B27),0) -> 0 | P27: =MAX(TREND(P24:P25,$B24:$B25,$B27),0) -> 0 | Q27: =TREND(Q24:Q25,$B24:$B25,$B27) -> 0 | R27: =IF(Induced="N",0,(IF(B18=Hwy,M27*(I27*ValTimeTruck+(1-I27)*ValTimeAuto)-N27*(J27*ValTimeTruck+(1-J27)*ValTimeAuto),(IF(INDEX($P$277:$X$280,MATCH(B18,$O$277:$O$280,0),7)>0,INDEX($P$277:$X$280,MATCH(B18,$O$277:$O$280,0),7)/IF(INDEX($P$277:$X$280,MATCH(B18,$O$277:$O$280,0),6)=0,1,INDEX($P$277:$X$280,MATCH(B18,$O$277:$O$280,0),6)),M27)-N27)*ValTimeAuto)+O27-P27)*(H27-Q27)*0.5*(1+TTUprater)^($B27-YearCurrent)) -> 0 | S27: =SUM(R27:R27) -> 0 | T27: =S27/(1+DiscRate)^(B27-YearCurrent) -> 0 | AE27: 2031 | AF27: 0 | AG27: 0 | AH27: 0 | AI27: 1588905.421 | AK27: 1588905.421 | AM27: 2174526.783
B28: =B27+1 -> 2029 | C28: =MAX(TREND(C24:C25,B24:B25,B28),0) -> 0 | D28: =MAX(TREND(D24:D25,B24:B25,B28),0) -> 0 | G28: =MAX(TREND(G24:G25,$B24:$B25,$B28),0) -> 0 | H28: =MAX(TREND(H24:H25,$B24:$B25,$B28),0) -> 0 | K28: =MAX(TREND(K24:K25,B24:B25,B28),0) -> 0 | L28: =MAX(TREND(L24:L25,B24:B25,B28),0) -> 0 | M28: =IFERROR(IF(B18=Hwy,C28*E28/G28,K28/G28),0) -> 0 | N28: =IFERROR(IF(B18=Hwy,D28*F28/H28,L28/H28),0) -> 0 | O28: =MAX(TREND(O24:O25,$B24:$B25,$B28),0) -> 0 | P28: =MAX(TREND(P24:P25,$B24:$B25,$B28),0) -> 0 | Q28: =TREND(Q24:Q25,$B24:$B25,$B28) -> 0 | R28: =IF(Induced="N",0,(IF(B18=Hwy,M28*(I28*ValTimeTruck+(1-I28)*ValTimeAuto)-N28*(J28*ValTimeTruck+(1-J28)*ValTimeAuto),(IF(INDEX($P$277:$X$280,MATCH(B18,$O$277:$O$280,0),7)>0,INDEX($P$277:$X$280,MATCH(B18,$O$277:$O$280,0),7)/IF(INDEX($P$277:$X$280,MATCH(B18,$O$277:$O$280,0),6)=0,1,INDEX($P$277:$X$280,MATCH(B18,$O$277:$O$280,0),6)),M28)-N28)*ValTimeAuto)+O28-P28)*(H28-Q28)*0.5*(1+TTUprater)^($B28-YearCurrent)) -> 0 | S28: 0 | T28: 0 | AE28: 2032 | AF28: 0 | AG28: 0 | AH28: 0 | AI28: 1892538.279 | AK28: 1892538.279 | AM28: 2693672.089
B29: =B28+1 -> 2030 | C29: =MAX(TREND(C24:C25,B24:B25,B29),0) -> 0 | D29: =MAX(TREND(D24:D25,B24:B25,B29),0) -> 0 | G29: =MAX(TREND(G24:G25,$B24:$B25,$B29),0) -> 0 | H29: =MAX(TREND(H24:H25,$B24:$B25,$B29),0) -> 0 | K29: =MAX(TREND(K24:K25,B24:B25,B29),0) -> 0 | L29: =MAX(TREND(L24:L25,B24:B25,B29),0) -> 0 | M29: =IFERROR(IF(B18=Hwy,C29*E29/G29,K29/G29),0) -> 0 | N29: =IFERROR(IF(B18=Hwy,D29*F29/H29,L29/H29),0) -> 0 | O29: =MAX(TREND(O24:O25,$B24:$B25,$B29),0) -> 0 | P29: =MAX(TREND(P24:P25,$B24:$B25,$B29),0) -> 0 | Q29: =TREND(Q24:Q25,$B24:$B25,$B29) -> 0 | R29: =IF(Induced="N",0,(IF(B18=Hwy,M29*(I29*ValTimeTruck+(1-I29)*ValTimeAuto)-N29*(J29*ValTimeTruck+(1-J29)*ValTimeAuto),(IF(INDEX($P$277:$X$280,MATCH(B18,$O$277:$O$280,0),7)>0,INDEX($P$277:$X$280,MATCH(B18,$O$277:$O$280,0),7)/IF(INDEX($P$277:$X$280,MATCH(B18,$O$277:$O$280,0),6)=0,1,INDEX($P$277:$X$280,MATCH(B18,$O$277:$O$280,0),6)),M29)-N29)*ValTimeAuto)+O29-P29)*(H29-Q29)*0.5*(1+TTUprater)^($B29-YearCurrent)) -> 0 | S29: 0 | T29: 0 | AE29: 2033 | AF29: 0 | AG29: 0 | AH29: 0 | AI29: 2170469.529 | AK29: 2170469.529 | AM29: 3212825.116
B30: 2031 | C30: =MAX(TREND(C24:C25,B24:B25,B30),0) -> 0 | D30: =MAX(TREND(D24:D25,B24:B25,B30),0) -> 0 | G30: =MAX(TREND(G24:G25,$B24:$B25,$B30),0) -> 0 | H30: =MAX(TREND(H24:H25,$B24:$B25,$B30),0) -> 0 | K30: =MAX(TREND(K24:K25,B24:B25,B30),0) -> 0 | L30: =MAX(TREND(L24:L25,B24:B25,B30),0) -> 0 | M30: =IFERROR(IF(B18=Hwy,C30*E30/G30,K30/G30),0) -> 0 | N30: =IFERROR(IF(B18=Hwy,D30*F30/H30,L30/H30),0) -> 0 | O30: =MAX(TREND(O24:O25,$B24:$B25,$B30),0) -> 0 | P30: =MAX(TREND(P24:P25,$B24:$B25,$B30),0) -> 0 | Q30: =TREND(Q24:Q25,$B24:$B25,$B30) -> 0 | R30: =IF(Induced="N",0,(IF(B18=Hwy,M30*(I30*ValTimeTruck+(1-I30)*ValTimeAuto)-N30*(J30*ValTimeTruck+(1-J30)*ValTimeAuto),(IF(INDEX($P$277:$X$280,MATCH(B18,$O$277:$O$280,0),7)>0,INDEX($P$277:$X$280,MATCH(B18,$O$277:$O$280,0),7)/IF(INDEX($P$277:$X$280,MATCH(B18,$O$277:$O$280,0),6)=0,1,INDEX($P$277:$X$280,MATCH(B18,$O$277:$O$280,0),6)),M30)-N30)*ValTimeAuto)+O30-P30)*(H30-Q30)*0.5*(1+TTUprater)^($B30-YearCurrent)) -> 0 | S30: 0 | T30: 0 | AE30: 2034 | AF30: 0 | AG30: 0 | AH30: 0 | AI30: 2424226.169 | AK30: 2424226.169 | AM30: 3731984.81
B31: 2032 | C31: =MAX(TREND(C24:C25,B24:B25,B31),0) -> 0 | D31: =MAX(TREND(D24:D25,B24:B25,B31),0) -> 0 | G31: =MAX(TREND(G24:G25,$B24:$B25,$B31),0) -> 0 | H31: =MAX(TREND(H24:H25,$B24:$B25,$B31),0) -> 0 | K31: =MAX(TREND(K24:K25,B24:B25,B31),0) -> 0 | L31: =MAX(TREND(L24:L25,B24:B25,B31),0) -> 0 | M31: =IFERROR(IF(B18=Hwy,C31*E31/G31,K31/G31),0) -> 0 | N31: =IFERROR(IF(B18=Hwy,D31*F31/H31,L31/H31),0) -> 0 | O31: =MAX(TREND(O24:O25,$B24:$B25,$B31),0) -> 0 | P31: =MAX(TREND(P24:P25,$B24:$B25,$B31),0) -> 0 | Q31: =TREND(Q24:Q25,$B24:$B25,$B31) -> 0 | R31: =IF(Induced="N",0,(IF(B18=Hwy,M31*(I31*ValTimeTruck+(1-I31)*ValTimeAuto)-N31*(J31*ValTimeTruck+(1-J31)*ValTimeAuto),(IF(INDEX($P$277:$X$280,MATCH(B18,$O$277:$O$280,0),7)>0,INDEX($P$277:$X$280,MATCH(B18,$O$277:$O$280,0),7)/IF(INDEX($P$277:$X$280,MATCH(B18,$O$277:$O$280,0),6)=0,1,INDEX($P$277:$X$280,MATCH(B18,$O$277:$O$280,0),6)),M31)-N31)*ValTimeAuto)+O31-P31)*(H31-Q31)*0.5*(1+TTUprater)^($B31-YearCurrent)) -> 0 | S31: 0 | T31: 0 | AE31: 2035 | AF31: 0 | AG31: 0 | AH31: 0 | AI31: 2655255.935 | AK31: 2655255.935 | AM31: 4251150.301
B32: 2033 | C32: =MAX(TREND(C24:C25,B24:B25,B32),0) -> 0 | D32: =MAX(TREND(D24:D25,B24:B25,B32),0) -> 0 | G32: =MAX(TREND(G24:G25,$B24:$B25,$B32),0) -> 0 | H32: =MAX(TREND(H24:H25,$B24:$B25,$B32),0) -> 0 | K32: =MAX(TREND(K24:K25,B24:B25,B32),0) -> 0 | L32: =MAX(TREND(L24:L25,B24:B25,B32),0) -> 0 | M32: =IFERROR(IF(B18=Hwy,C32*E32/G32,K32/G32),0) -> 0 | N32: =IFERROR(IF(B18=Hwy,D32*F32/H32,L32/H32),0) -> 0 | O32: =MAX(TREND(O24:O25,$B24:$B25,$B32),0) -> 0 | P32: =MAX(TREND(P24:P25,$B24:$B25,$B32),0) -> 0 | Q32: =TREND(Q24:Q25,$B24:$B25,$B32) -> 0 | R32: =IF(Induced="N",0,(IF(B18=Hwy,M32*(I32*ValTimeTruck+(1-I32)*ValTimeAuto)-N32*(J32*ValTimeTruck+(1-J32)*ValTimeAuto),(IF(INDEX($P$277:$X$280,MATCH(B18,$O$277:$O$280,0),7)>0,INDEX($P$277:$X$280,MATCH(B18,$O$277:$O$280,0),7)/IF(INDEX($P$277:$X$280,MATCH(B18,$O$277:$O$280,0),6)=0,1,INDEX($P$277:$X$280,MATCH(B18,$O$277:$O$280,0),6)),M32)-N32)*ValTimeAuto)+O32-P32)*(H32-Q32)*0.5*(1+TTUprater)^($B32-YearCurrent)) -> 0 | S32: 0 | T32: 0 | AE32: 2036 | AF32: 0 | AG32: 0 | AH32: 0 | AI32: 2864931.092 | AK32: 2864931.092 | AM32: 4770320.862
B33: 2034 | C33: =MAX(TREND(C24:C25,B24:B25,B33),0) -> 0 | D33: =MAX(TREND(D24:D25,B24:B25,B33),0) -> 0 | G33: =MAX(TREND(G24:G25,$B24:$B25,$B33),0) -> 0 | H33: =MAX(TREND(H24:H25,$B24:$B25,$B33),0) -> 0 | K33: =MAX(TREND(K24:K25,B24:B25,B33),0) -> 0 | L33: =MAX(TREND(L24:L25,B24:B25,B33),0) -> 0 | M33: =IFERROR(IF(B18=Hwy,C33*E33/G33,K33/G33),0) -> 0 | N33: =IFERROR(IF(B18=Hwy,D33*F33/H33,L33/H33),0) -> 0 | O33: =MAX(TREND(O24:O25,$B24:$B25,$B33),0) -> 0 | P33: =MAX(TREND(P24:P25,$B24:$B25,$B33),0) -> 0 | Q33: =TREND(Q24:Q25,$B24:$B25,$B33) -> 0 | R33: =IF(Induced="N",0,(IF(B18=Hwy,M33*(I33*ValTimeTruck+(1-I33)*ValTimeAuto)-N33*(J33*ValTimeTruck+(1-J33)*ValTimeAuto),(IF(INDEX($P$277:$X$280,MATCH(B18,$O$277:$O$280,0),7)>0,INDEX($P$277:$X$280,MATCH(B18,$O$277:$O$280,0),7)/IF(INDEX($P$277:$X$280,MATCH(B18,$O$277:$O$280,0),6)=0,1,INDEX($P$277:$X$280,MATCH(B18,$O$277:$O$280,0),6)),M33)-N33)*ValTimeAuto)+O33-P33)*(H33-Q33)*0.5*(1+TTUprater)^($B33-YearCurrent)) -> 0 | S33: 0 | T33: 0 | AE33: 2037 | AF33: 0 | AG33: 0 | AH33: 0 | AI33: 3054552.075 | AK33: 3054552.075 | AM33: 5289495.885
B34: 2035 | C34: =MAX(TREND(C24:C25,B24:B25,B34),0) -> 0 | D34: =MAX(TREND(D24:D25,B24:B25,B34),0) -> 0 | G34: =MAX(TREND(G24:G25,$B24:$B25,$B34),0) -> 0 | H34: =MAX(TREND(H24:H25,$B24:$B25,$B34),0) -> 0 | K34: =MAX(TREND(K24:K25,B24:B25,B34),0) -> 0 | L34: =MAX(TREND(L24:L25,B24:B25,B34),0) -> 0 | M34: =IFERROR(IF(B18=Hwy,C34*E34/G34,K34/G34),0) -> 0 | N34: =IFERROR(IF(B18=Hwy,D34*F34/H34,L34/H34),0) -> 0 | O34: =MAX(TREND(O24:O25,$B24:$B25,$B34),0) -> 0 | P34: =MAX(TREND(P24:P25,$B24:$B25,$B34),0) -> 0 | Q34: =TREND(Q24:Q25,$B24:$B25,$B34) -> 0 | R34: =IF(Induced="N",0,(IF(B18=Hwy,M34*(I34*ValTimeTruck+(1-I34)*ValTimeAuto)-N34*(J34*ValTimeTruck+(1-J34)*ValTimeAuto),(IF(INDEX($P$277:$X$280,MATCH(B18,$O$277:$O$280,0),7)>0,INDEX($P$277:$X$280,MATCH(B18,$O$277:$O$280,0),7)/IF(INDEX($P$277:$X$280,MATCH(B18,$O$277:$O$280,0),6)=0,1,INDEX($P$277:$X$280,MATCH(B18,$O$277:$O$280,0),6)),M34)-N34)*ValTimeAuto)+O34-P34)*(H34-Q34)*0.5*(1+TTUprater)^($B34-YearCurrent)) -> 0 | S34: 0 | T34: 0 | AE34: 2038 | AF34: 0 | AG34: 0 | AH34: 0 | AI34: 3225350.955 | AK34: 3225350.955 | AM34: 5808674.855
B35: 2036 | C35: =MAX(TREND(C24:C25,B24:B25,B35),0) -> 0 | D35: =MAX(TREND(D24:D25,B24:B25,B35),0) -> 0 | G35: =MAX(TREND(G24:G25,$B24:$B25,$B35),0) -> 0 | H35: =MAX(TREND(H24:H25,$B24:$B25,$B35),0) -> 0 | K35: =MAX(TREND(K24:K25,B24:B25,B35),0) -> 0 | L35: =MAX(TREND(L24:L25,B24:B25,B35),0) -> 0 | M35: =IFERROR(IF(B18=Hwy,C35*E35/G35,K35/G35),0) -> 0 | N35: =IFERROR(IF(B18=Hwy,D35*F35/H35,L35/H35),0) -> 0 | O35: =MAX(TREND(O24:O25,$B24:$B25,$B35),0) -> 0 | P35: =MAX(TREND(P24:P25,$B24:$B25,$B35),0) -> 0 | Q35: =TREND(Q24:Q25,$B24:$B25,$B35) -> 0 | R35: =IF(Induced="N",0,(IF(B18=Hwy,M35*(I35*ValTimeTruck+(1-I35)*ValTimeAuto)-N35*(J35*ValTimeTruck+(1-J35)*ValTimeAuto),(IF(INDEX($P$277:$X$280,MATCH(B18,$O$277:$O$280,0),7)>0,INDEX($P$277:$X$280,MATCH(B18,$O$277:$O$280,0),7)/IF(INDEX($P$277:$X$280,MATCH(B18,$O$277:$O$280,0),6)=0,1,INDEX($P$277:$X$280,MATCH(B18,$O$277:$O$280,0),6)),M35)-N35)*ValTimeAuto)+O35-P35)*(H35-Q35)*0.5*(1+TTUprater)^($B35-YearCurrent)) -> 0 | S35: 0 | T35: 0 | AE35: 2039 | AF35: 0 | AG35: 0 | AH35: 0 | AI35: 3378494.764 | AK35: 3378494.764 | AM35: 6327857.331
B36: 2037 | C36: =MAX(TREND(C24:C25,B24:B25,B36),0) -> 0 | D36: =MAX(TREND(D24:D25,B24:B25,B36),0) -> 0 | G36: =MAX(TREND(G24:G25,$B24:$B25,$B36),0) -> 0 | H36: =MAX(TREND(H24:H25,$B24:$B25,$B36),0) -> 0 | K36: =MAX(TREND(K24:K25,B24:B25,B36),0) -> 0 | L36: =MAX(TREND(L24:L25,B24:B25,B36),0) -> 0 | M36: =IFERROR(IF(B18=Hwy,C36*E36/G36,K36/G36),0) -> 0 | N36: =IFERROR(IF(B18=Hwy,D36*F36/H36,L36/H36),0) -> 0 | O36: =MAX(TREND(O24:O25,$B24:$B25,$B36),0) -> 0 | P36: =MAX(TREND(P24:P25,$B24:$B25,$B36),0) -> 0 | Q36: =TREND(Q24:Q25,$B24:$B25,$B36) -> 0 | R36: =IF(Induced="N",0,(IF(B18=Hwy,M36*(I36*ValTimeTruck+(1-I36)*ValTimeAuto)-N36*(J36*ValTimeTruck+(1-J36)*ValTimeAuto),(IF(INDEX($P$277:$X$280,MATCH(B18,$O$277:$O$280,0),7)>0,INDEX($P$277:$X$280,MATCH(B18,$O$277:$O$280,0),7)/IF(INDEX($P$277:$X$280,MATCH(B18,$O$277:$O$280,0),6)=0,1,INDEX($P$277:$X$280,MATCH(B18,$O$277:$O$280,0),6)),M36)-N36)*ValTimeAuto)+O36-P36)*(H36-Q36)*0.5*(1+TTUprater)^($B36-YearCurrent)) -> 0 | S36: 0 | T36: 0 | AE36: 2040 | AF36: 0 | AG36: 0 | AH36: 0 | AI36: 3515088.658 | AK36: 3515088.658 | AM36: 6847042.938
B37: 2038 | C37: =MAX(TREND(C24:C25,B24:B25,B37),0) -> 0 | D37: =MAX(TREND(D24:D25,B24:B25,B37),0) -> 0 | G37: =MAX(TREND(G24:G25,$B24:$B25,$B37),0) -> 0 | H37: =MAX(TREND(H24:H25,$B24:$B25,$B37),0) -> 0 | K37: =MAX(TREND(K24:K25,B24:B25,B37),0) -> 0 | L37: =MAX(TREND(L24:L25,B24:B25,B37),0) -> 0 | M37: =IFERROR(IF(B18=Hwy,C37*E37/G37,K37/G37),0) -> 0 | N37: =IFERROR(IF(B18=Hwy,D37*F37/H37,L37/H37),0) -> 0 | O37: =MAX(TREND(O24:O25,$B24:$B25,$B37),0) -> 0 | P37: =MAX(TREND(P24:P25,$B24:$B25,$B37),0) -> 0 | Q37: =TREND(Q24:Q25,$B24:$B25,$B37) -> 0 | R37: =IF(Induced="N",0,(IF(B18=Hwy,M37*(I37*ValTimeTruck+(1-I37)*ValTimeAuto)-N37*(J37*ValTimeTruck+(1-J37)*ValTimeAuto),(IF(INDEX($P$277:$X$280,MATCH(B18,$O$277:$O$280,0),7)>0,INDEX($P$277:$X$280,MATCH(B18,$O$277:$O$280,0),7)/IF(INDEX($P$277:$X$280,MATCH(B18,$O$277:$O$280,0),6)=0,1,INDEX($P$277:$X$280,MATCH(B18,$O$277:$O$280,0),6)),M37)-N37)*ValTimeAuto)+O37-P37)*(H37-Q37)*0.5*(1+TTUprater)^($B37-YearCurrent)) -> 0 | S37: 0 | T37: 0 | AE37: 2041 | AF37: 0 | AG37: 0 | AH37: 0 | AI37: 3636178.941 | AK37: 3636178.941 | AM37: 7366231.352
B38: 2039 | C38: =MAX(TREND(C24:C25,B24:B25,B38),0) -> 0 | D38: =MAX(TREND(D24:D25,B24:B25,B38),0) -> 0 | G38: =MAX(TREND(G24:G25,$B24:$B25,$B38),0) -> 0 | H38: =MAX(TREND(H24:H25,$B24:$B25,$B38),0) -> 0 | K38: =MAX(TREND(K24:K25,B24:B25,B38),0) -> 0 | L38: =MAX(TREND(L24:L25,B24:B25,B38),0) -> 0 | M38: =IFERROR(IF(B18=Hwy,C38*E38/G38,K38/G38),0) -> 0 | N38: =IFERROR(IF(B18=Hwy,D38*F38/H38,L38/H38),0) -> 0 | O38: =MAX(TREND(O24:O25,$B24:$B25,$B38),0) -> 0 | P38: =MAX(TREND(P24:P25,$B24:$B25,$B38),0) -> 0 | Q38: =TREND(Q24:Q25,$B24:$B25,$B38) -> 0 | R38: =IF(Induced="N",0,(IF(B18=Hwy,M38*(I38*ValTimeTruck+(1-I38)*ValTimeAuto)-N38*(J38*ValTimeTruck+(1-J38)*ValTimeAuto),(IF(INDEX($P$277:$X$280,MATCH(B18,$O$277:$O$280,0),7)>0,INDEX($P$277:$X$280,MATCH(B18,$O$277:$O$280,0),7)/IF(INDEX($P$277:$X$280,MATCH(B18,$O$277:$O$280,0),6)=0,1,INDEX($P$277:$X$280,MATCH(B18,$O$277:$O$280,0),6)),M38)-N38)*ValTimeAuto)+O38-P38)*(H38-Q38)*0.5*(1+TTUprater)^($B38-YearCurrent)) -> 0 | S38: 0 | T38: 0 | AE38: 2042 | AF38: 0 | AG38: 0 | AH38: 0 | AI38: 3742755.951 | AK38: 3742755.951 | AM38: 7885422.292
B39: 2040 | C39: =MAX(TREND(C24:C25,B24:B25,B39),0) -> 0 | D39: =MAX(TREND(D24:D25,B24:B25,B39),0) -> 0 | G39: =MAX(TREND(G24:G25,$B24:$B25,$B39),0) -> 0 | H39: =MAX(TREND(H24:H25,$B24:$B25,$B39),0) -> 0 | K39: =MAX(TREND(K24:K25,B24:B25,B39),0) -> 0 | L39: =MAX(TREND(L24:L25,B24:B25,B39),0) -> 0 | M39: =IFERROR(IF(B18=Hwy,C39*E39/G39,K39/G39),0) -> 0 | N39: =IFERROR(IF(B18=Hwy,D39*F39/H39,L39/H39),0) -> 0 | O39: =MAX(TREND(O24:O25,$B24:$B25,$B39),0) -> 0 | P39: =MAX(TREND(P24:P25,$B24:$B25,$B39),0) -> 0 | Q39: =TREND(Q24:Q25,$B24:$B25,$B39) -> 0 | R39: =IF(Induced="N",0,(IF(B18=Hwy,M39*(I39*ValTimeTruck+(1-I39)*ValTimeAuto)-N39*(J39*ValTimeTruck+(1-J39)*ValTimeAuto),(IF(INDEX($P$277:$X$280,MATCH(B18,$O$277:$O$280,0),7)>0,INDEX($P$277:$X$280,MATCH(B18,$O$277:$O$280,0),7)/IF(INDEX($P$277:$X$280,MATCH(B18,$O$277:$O$280,0),6)=0,1,INDEX($P$277:$X$280,MATCH(B18,$O$277:$O$280,0),6)),M39)-N39)*ValTimeAuto)+O39-P39)*(H39-Q39)*0.5*(1+TTUprater)^($B39-YearCurrent)) -> 0 | S39: 0 | T39: 0 | AE39: 2043 | AF39: 0 | AG39: 0 | AH39: 0 | AI39: 3835756.808 | AK39: 3835756.808 | AM39: 8404615.513
B40: 2041 | C40: =MAX(TREND(C24:C25,B24:B25,B40),0) -> 0 | D40: =MAX(TREND(D24:D25,B24:B25,B40),0) -> 0 | G40: =MAX(TREND(G24:G25,$B24:$B25,$B40),0) -> 0 | H40: =MAX(TREND(H24:H25,$B24:$B25,$B40),0) -> 0 | K40: =MAX(TREND(K24:K25,B24:B25,B40),0) -> 0 | L40: =MAX(TREND(L24:L25,B24:B25,B40),0) -> 0 | M40: =IFERROR(IF(B18=Hwy,C40*E40/G40,K40/G40),0) -> 0 | N40: =IFERROR(IF(B18=Hwy,D40*F40/H40,L40/H40),0) -> 0 | O40: =MAX(TREND(O24:O25,$B24:$B25,$B40),0) -> 0 | P40: =MAX(TREND(P24:P25,$B24:$B25,$B40),0) -> 0 | Q40: =TREND(Q24:Q25,$B24:$B25,$B40) -> 0 | R40: =IF(Induced="N",0,(IF(B18=Hwy,M40*(I40*ValTimeTruck+(1-I40)*ValTimeAuto)-N40*(J40*ValTimeTruck+(1-J40)*ValTimeAuto),(IF(INDEX($P$277:$X$280,MATCH(B18,$O$277:$O$280,0),7)>0,INDEX($P$277:$X$280,MATCH(B18,$O$277:$O$280,0),7)/IF(INDEX($P$277:$X$280,MATCH(B18,$O$277:$O$280,0),6)=0,1,INDEX($P$277:$X$280,MATCH(B18,$O$277:$O$280,0),6)),M40)-N40)*ValTimeAuto)+O40-P40)*(H40-Q40)*0.5*(1+TTUprater)^($B40-YearCurrent)) -> 0 | S40: 0 | T40: 0 | AE40: 2044 | AF40: 0 | AG40: 0 | AH40: 0 | AI40: 3916068.038 | AK40: 3916068.038 | AM40: 8923810.8
B41: 2042 | C41: =MAX(TREND(C24:C25,B24:B25,B41),0) -> 0 | D41: =MAX(TREND(D24:D25,B24:B25,B41),0) -> 0 | G41: =MAX(TREND(G24:G25,$B24:$B25,$B41),0) -> 0 | H41: =MAX(TREND(H24:H25,$B24:$B25,$B41),0) -> 0 | K41: =MAX(TREND(K24:K25,B24:B25,B41),0) -> 0 | L41: =MAX(TREND(L24:L25,B24:B25,B41),0) -> 0 | M41: =IFERROR(IF(B18=Hwy,C41*E41/G41,K41/G41),0) -> 0 | N41: =IFERROR(IF(B18=Hwy,D41*F41/H41,L41/H41),0) -> 0 | O41: =MAX(TREND(O24:O25,$B24:$B25,$B41),0) -> 0 | P41: =MAX(TREND(P24:P25,$B24:$B25,$B41),0) -> 0 | Q41: =TREND(Q24:Q25,$B24:$B25,$B41) -> 0 | R41: =IF(Induced="N",0,(IF(B18=Hwy,M41*(I41*ValTimeTruck+(1-I41)*ValTimeAuto)-N41*(J41*ValTimeTruck+(1-J41)*ValTimeAuto),(IF(INDEX($P$277:$X$280,MATCH(B18,$O$277:$O$280,0),7)>0,INDEX($P$277:$X$280,MATCH(B18,$O$277:$O$280,0),7)/IF(INDEX($P$277:$X$280,MATCH(B18,$O$277:$O$280,0),6)=0,1,INDEX($P$277:$X$280,MATCH(B18,$O$277:$O$280,0),6)),M41)-N41)*ValTimeAuto)+O41-P41)*(H41-Q41)*0.5*(1+TTUprater)^($B41-YearCurrent)) -> 0 | S41: 0 | T41: 0 | AE41: 2045 | AF41: 0 | AG41: 0 | AH41: 0 | AI41: 3984528.078 | AK41: 3984528.078 | AM41: 9443007.967
B42: 2043 | C42: =MAX(TREND(C24:C25,B24:B25,B42),0) -> 0 | D42: =MAX(TREND(D24:D25,B24:B25,B42),0) -> 0 | G42: =MAX(TREND(G24:G25,$B24:$B25,$B42),0) -> 0 | H42: =MAX(TREND(H24:H25,$B24:$B25,$B42),0) -> 0 | K42: =MAX(TREND(K24:K25,B24:B25,B42),0) -> 0 | L42: =MAX(TREND(L24:L25,B24:B25,B42),0) -> 0 | M42: =IFERROR(IF(B18=Hwy,C42*E42/G42,K42/G42),0) -> 0 | N42: =IFERROR(IF(B18=Hwy,D42*F42/H42,L42/H42),0) -> 0 | O42: =MAX(TREND(O24:O25,$B24:$B25,$B42),0) -> 0 | P42: =MAX(TREND(P24:P25,$B24:$B25,$B42),0) -> 0 | Q42: =TREND(Q24:Q25,$B24:$B25,$B42) -> 0 | R42: =IF(Induced="N",0,(IF(B18=Hwy,M42*(I42*ValTimeTruck+(1-I42)*ValTimeAuto)-N42*(J42*ValTimeTruck+(1-J42)*ValTimeAuto),(IF(INDEX($P$277:$X$280,MATCH(B18,$O$277:$O$280,0),7)>0,INDEX($P$277:$X$280,MATCH(B18,$O$277:$O$280,0),7)/IF(INDEX($P$277:$X$280,MATCH(B18,$O$277:$O$280,0),6)=0,1,INDEX($P$277:$X$280,MATCH(B18,$O$277:$O$280,0),6)),M42)-N42)*ValTimeAuto)+O42-P42)*(H42-Q42)*0.5*(1+TTUprater)^($B42-YearCurrent)) -> 0 | S42: 0 | T42: 0 | AE42: 2046 | AF42: 0 | AG42: 0 | AH42: 0 | AI42: 4041929.655 | AK42: 4041929.655 | AM42: 9962206.846
B43: 2044 | C43: =MAX(TREND(C24:C25,B24:B25,B43),0) -> 0 | D43: =MAX(TREND(D24:D25,B24:B25,B43),0) -> 0 | G43: =MAX(TREND(G24:G25,$B24:$B25,$B43),0) -> 0 | H43: =MAX(TREND(H24:H25,$B24:$B25,$B43),0) -> 0 | K43: =MAX(TREND(K24:K25,B24:B25,B43),0) -> 0 | L43: =MAX(TREND(L24:L25,B24:B25,B43),0) -> 0 | M43: =IFERROR(IF(B18=Hwy,C43*E43/G43,K43/G43),0) -> 0 | N43: =IFERROR(IF(B18=Hwy,D43*F43/H43,L43/H43),0) -> 0 | O43: =MAX(TREND(O24:O25,$B24:$B25,$B43),0) -> 0 | P43: =MAX(TREND(P24:P25,$B24:$B25,$B43),0) -> 0 | Q43: =TREND(Q24:Q25,$B24:$B25,$B43) -> 0 | R43: =IF(Induced="N",0,(IF(B18=Hwy,M43*(I43*ValTimeTruck+(1-I43)*ValTimeAuto)-N43*(J43*ValTimeTruck+(1-J43)*ValTimeAuto),(IF(INDEX($P$277:$X$280,MATCH(B18,$O$277:$O$280,0),7)>0,INDEX($P$277:$X$280,MATCH(B18,$O$277:$O$280,0),7)/IF(INDEX($P$277:$X$280,MATCH(B18,$O$277:$O$280,0),6)=0,1,INDEX($P$277:$X$280,MATCH(B18,$O$277:$O$280,0),6)),M43)-N43)*ValTimeAuto)+O43-P43)*(H43-Q43)*0.5*(1+TTUprater)^($B43-YearCurrent)) -> 0 | S43: 0 | T43: 0 | AE43: 2047 | AF43: 0 | AG43: 0 | AH43: 0 | AI43: 4089022.066 | AK43: 4089022.066 | AM43: 10481407.29
B44: 2045 | C44: =MAX(TREND(C24:C25,B24:B25,B44),0) -> 0 | D44: =MAX(TREND(D24:D25,B24:B25,B44),0) -> 0 | G44: =MAX(TREND(G24:G25,$B24:$B25,$B44),0) -> 0 | H44: =MAX(TREND(H24:H25,$B24:$B25,$B44),0) -> 0 | K44: =MAX(TREND(K24:K25,B24:B25,B44),0) -> 0 | L44: =MAX(TREND(L24:L25,B24:B25,B44),0) -> 0 | M44: =IFERROR(IF(B18=Hwy,C44*E44/G44,K44/G44),0) -> 0 | N44: =IFERROR(IF(B18=Hwy,D44*F44/H44,L44/H44),0) -> 0 | O44: =MAX(TREND(O24:O25,$B24:$B25,$B44),0) -> 0 | P44: =MAX(TREND(P24:P25,$B24:$B25,$B44),0) -> 0 | Q44: =TREND(Q24:Q25,$B24:$B25,$B44) -> 0 | R44: =IF(Induced="N",0,(IF(B18=Hwy,M44*(I44*ValTimeTruck+(1-I44)*ValTimeAuto)-N44*(J44*ValTimeTruck+(1-J44)*ValTimeAuto),(IF(INDEX($P$277:$X$280,MATCH(B18,$O$277:$O$280,0),7)>0,INDEX($P$277:$X$280,MATCH(B18,$O$277:$O$280,0),7)/IF(INDEX($P$277:$X$280,MATCH(B18,$O$277:$O$280,0),6)=0,1,INDEX($P$277:$X$280,MATCH(B18,$O$277:$O$280,0),6)),M44)-N44)*ValTimeAuto)+O44-P44)*(H44-Q44)*0.5*(1+TTUprater)^($B44-YearCurrent)) -> 0 | S44: 0 | T44: 0 | AE44: 2048 | AF44: =OFFSET($T29,MATCH(AF$20,$A:$A),0) -> 0 | AG44: 0 | AH44: 0 | AI44: 4126513.336 | AK44: 4126513.336 | AM44: 11000609.17
B45: 2046 | C45: =MAX(TREND(C24:C25,B24:B25,B45),0) -> 0 | D45: =MAX(TREND(D24:D25,B24:B25,B45),0) -> 0 | G45: =MAX(TREND(G24:G25,$B24:$B25,$B45),0) -> 0 | H45: =MAX(TREND(H24:H25,$B24:$B25,$B45),0) -> 0 | K45: =MAX(TREND(K24:K25,B24:B25,B45),0) -> 0 | L45: =MAX(TREND(L24:L25,B24:B25,B45),0) -> 0 | M45: =IFERROR(IF(B18=Hwy,C45*E45/G45,K45/G45),0) -> 0 | N45: =IFERROR(IF(B18=Hwy,D45*F45/H45,L45/H45),0) -> 0 | O45: =MAX(TREND(O24:O25,$B24:$B25,$B45),0) -> 0 | P45: =MAX(TREND(P24:P25,$B24:$B25,$B45),0) -> 0 | Q45: =TREND(Q24:Q25,$B24:$B25,$B45) -> 0 | R45: =IF(Induced="N",0,(IF(B18=Hwy,M45*(I45*ValTimeTruck+(1-I45)*ValTimeAuto)-N45*(J45*ValTimeTruck+(1-J45)*ValTimeAuto),(IF(INDEX($P$277:$X$280,MATCH(B18,$O$277:$O$280,0),7)>0,INDEX($P$277:$X$280,MATCH(B18,$O$277:$O$280,0),7)/IF(INDEX($P$277:$X$280,MATCH(B18,$O$277:$O$280,0),6)=0,1,INDEX($P$277:$X$280,MATCH(B18,$O$277:$O$280,0),6)),M45)-N45)*ValTimeAuto)+O45-P45)*(H45-Q45)*0.5*(1+TTUprater)^($B45-YearCurrent)) -> 0 | S45: 0 | T45: 0 | AE45: 2049 | AF45: 0 | AG45: 0 | AH45: 0 | AI45: 4155072.288 | AK45: 4155072.288 | AM45: 11519812.37
B46: 2047 | C46: =MAX(TREND(C24:C25,B24:B25,B46),0) -> 0 | D46: =MAX(TREND(D24:D25,B24:B25,B46),0) -> 0 | G46: =MAX(TREND(G24:G25,$B24:$B25,$B46),0) -> 0 | H46: =MAX(TREND(H24:H25,$B24:$B25,$B46),0) -> 0 | K46: =MAX(TREND(K24:K25,B24:B25,B46),0) -> 0 | L46: =MAX(TREND(L24:L25,B24:B25,B46),0) -> 0 | M46: =IFERROR(IF(B18=Hwy,C46*E46/G46,K46/G46),0) -> 0 | N46: =IFERROR(IF(B18=Hwy,D46*F46/H46,L46/H46),0) -> 0 | O46: =MAX(TREND(O24:O25,$B24:$B25,$B46),0) -> 0 | P46: =MAX(TREND(P24:P25,$B24:$B25,$B46),0) -> 0 | Q46: =TREND(Q24:Q25,$B24:$B25,$B46) -> 0 | R46: =IF(Induced="N",0,(IF(B18=Hwy,M46*(I46*ValTimeTruck+(1-I46)*ValTimeAuto)-N46*(J46*ValTimeTruck+(1-J46)*ValTimeAuto),(IF(INDEX($P$277:$X$280,MATCH(B18,$O$277:$O$280,0),7)>0,INDEX($P$277:$X$280,MATCH(B18,$O$277:$O$280,0),7)/IF(INDEX($P$277:$X$280,MATCH(B18,$O$277:$O$280,0),6)=0,1,INDEX($P$277:$X$280,MATCH(B18,$O$277:$O$280,0),6)),M46)-N46)*ValTimeAuto)+O46-P46)*(H46-Q46)*0.5*(1+TTUprater)^($B46-YearCurrent)) -> 0 | S46: 0 | T46: 0 | AE46: 2050 | AF46: 0 | AG46: 0 | AH46: 0 | AI46: 4175330.51 | AK46: 4175330.51 | AM46: 12039016.79
B47: 2048 | C47: =MAX(TREND(C24:C25,B24:B25,B47),0) -> 0 | D47: =MAX(TREND(D24:D25,B24:B25,B47),0) -> 0 | G47: =MAX(TREND(G24:G25,$B24:$B25,$B47),0) -> 0 | H47: =MAX(TREND(H24:H25,$B24:$B25,$B47),0) -> 0 | K47: =MAX(TREND(K24:K25,B24:B25,B47),0) -> 0 | L47: =MAX(TREND(L24:L25,B24:B25,B47),0) -> 0 | M47: =IFERROR(IF(B18=Hwy,C47*E47/G47,K47/G47),0) -> 0 | N47: =IFERROR(IF(B18=Hwy,D47*F47/H47,L47/H47),0) -> 0 | O47: =MAX(TREND(O24:O25,$B24:$B25,$B47),0) -> 0 | P47: =MAX(TREND(P24:P25,$B24:$B25,$B47),0) -> 0 | Q47: =TREND(Q24:Q25,$B24:$B25,$B47) -> 0 | R47: =IF(Induced="N",0,(IF(B18=Hwy,M47*(I47*ValTimeTruck+(1-I47)*ValTimeAuto)-N47*(J47*ValTimeTruck+(1-J47)*ValTimeAuto),(IF(INDEX($P$277:$X$280,MATCH(B18,$O$277:$O$280,0),7)>0,INDEX($P$277:$X$280,MATCH(B18,$O$277:$O$280,0),7)/IF(INDEX($P$277:$X$280,MATCH(B18,$O$277:$O$280,0),6)=0,1,INDEX($P$277:$X$280,MATCH(B18,$O$277:$O$280,0),6)),M47)-N47)*ValTimeAuto)+O47-P47)*(H47-Q47)*0.5*(1+TTUprater)^($B47-YearCurrent)) -> 0 | S47: 0 | T47: 0 | AE47: 2051 | AF47: 0 | AG47: 0 | AH47: 0 | AI47: 4187884.224 | AK47: 4187884.224 | AM47: 12558222.32
B48: 2049 | C48: =MAX(TREND(C24:C25,B24:B25,B48),0) -> 0 | D48: =MAX(TREND(D24:D25,B24:B25,B48),0) -> 0 | G48: =MAX(TREND(G24:G25,$B24:$B25,$B48),0) -> 0 | H48: =MAX(TREND(H24:H25,$B24:$B25,$B48),0) -> 0 | K48: =MAX(TREND(K24:K25,B24:B25,B48),0) -> 0 | L48: =MAX(TREND(L24:L25,B24:B25,B48),0) -> 0 | M48: =IFERROR(IF(B18=Hwy,C48*E48/G48,K48/G48),0) -> 0 | N48: =IFERROR(IF(B18=Hwy,D48*F48/H48,L48/H48),0) -> 0 | O48: =MAX(TREND(O24:O25,$B24:$B25,$B48),0) -> 0 | P48: =MAX(TREND(P24:P25,$B24:$B25,$B48),0) -> 0 | Q48: =TREND(Q24:Q25,$B24:$B25,$B48) -> 0 | R48: =IF(Induced="N",0,(IF(B18=Hwy,M48*(I48*ValTimeTruck+(1-I48)*ValTimeAuto)-N48*(J48*ValTimeTruck+(1-J48)*ValTimeAuto),(IF(INDEX($P$277:$X$280,MATCH(B18,$O$277:$O$280,0),7)>0,INDEX($P$277:$X$280,MATCH(B18,$O$277:$O$280,0),7)/IF(INDEX($P$277:$X$280,MATCH(B18,$O$277:$O$280,0),6)=0,1,INDEX($P$277:$X$280,MATCH(B18,$O$277:$O$280,0),6)),M48)-N48)*ValTimeAuto)+O48-P48)*(H48-Q48)*0.5*(1+TTUprater)^($B48-YearCurrent)) -> 0 | S48: 0 | T48: 0 | AE48: 2052 | AF48: 0 | AG48: 0 | AH48: 0 | AI48: 4193296.075 | AK48: 4193296.075 | AM48: 13077428.89
B49: 2050 | C49: =MAX(TREND(C24:C25,B24:B25,B49),0) -> 0 | D49: =MAX(TREND(D24:D25,B24:B25,B49),0) -> 0 | G49: =MAX(TREND(G24:G25,$B24:$B25,$B49),0) -> 0 | H49: =MAX(TREND(H24:H25,$B24:$B25,$B49),0) -> 0 | K49: =MAX(TREND(K24:K25,B24:B25,B49),0) -> 0 | L49: =MAX(TREND(L24:L25,B24:B25,B49),0) -> 0 | M49: =IFERROR(IF(B18=Hwy,C49*E49/G49,K49/G49),0) -> 0 | N49: =IFERROR(IF(B18=Hwy,D49*F49/H49,L49/H49),0) -> 0 | O49: =MAX(TREND(O24:O25,$B24:$B25,$B49),0) -> 0 | P49: =MAX(TREND(P24:P25,$B24:$B25,$B49),0) -> 0 | Q49: =TREND(Q24:Q25,$B24:$B25,$B49) -> 0 | R49: =IF(Induced="N",0,(IF(B18=Hwy,M49*(I49*ValTimeTruck+(1-I49)*ValTimeAuto)-N49*(J49*ValTimeTruck+(1-J49)*ValTimeAuto),(IF(INDEX($P$277:$X$280,MATCH(B18,$O$277:$O$280,0),7)>0,INDEX($P$277:$X$280,MATCH(B18,$O$277:$O$280,0),7)/IF(INDEX($P$277:$X$280,MATCH(B18,$O$277:$O$280,0),6)=0,1,INDEX($P$277:$X$280,MATCH(B18,$O$277:$O$280,0),6)),M49)-N49)*ValTimeAuto)+O49-P49)*(H49-Q49)*0.5*(1+TTUprater)^($B49-YearCurrent)) -> 0 | S49: 0 | T49: 0 | AE49: 2053 | AF49: 0 | AG49: 0 | AH49: 0 | AI49: 4192096.832 | AK49: 4192096.832 | AM49: 13596636.43
B50: 2051 | C50: =MAX(TREND(C24:C25,B24:B25,B50),0) -> 0 | D50: =MAX(TREND(D24:D25,B24:B25,B50),0) -> 0 | G50: =MAX(TREND(G24:G25,$B24:$B25,$B50),0) -> 0 | H50: =MAX(TREND(H24:H25,$B24:$B25,$B50),0) -> 0 | K50: =MAX(TREND(K24:K25,B24:B25,B50),0) -> 0 | L50: =MAX(TREND(L24:L25,B24:B25,B50),0) -> 0 | M50: =IFERROR(IF(B18=Hwy,C50*E50/G50,K50/G50),0) -> 0 | N50: =IFERROR(IF(B18=Hwy,D50*F50/H50,L50/H50),0) -> 0 | O50: =MAX(TREND(O24:O25,$B24:$B25,$B50),0) -> 0 | P50: =MAX(TREND(P24:P25,$B24:$B25,$B50),0) -> 0 | Q50: =TREND(Q24:Q25,$B24:$B25,$B50) -> 0 | R50: =IF(Induced="N",0,(IF(B18=Hwy,M50*(I50*ValTimeTruck+(1-I50)*ValTimeAuto)-N50*(J50*ValTimeTruck+(1-J50)*ValTimeAuto),(IF(INDEX($P$277:$X$280,MATCH(B18,$O$277:$O$280,0),7)>0,INDEX($P$277:$X$280,MATCH(B18,$O$277:$O$280,0),7)/IF(INDEX($P$277:$X$280,MATCH(B18,$O$277:$O$280,0),6)=0,1,INDEX($P$277:$X$280,MATCH(B18,$O$277:$O$280,0),6)),M50)-N50)*ValTimeAuto)+O50-P50)*(H50-Q50)*0.5*(1+TTUprater)^($B50-YearCurrent)) -> 0 | S50: 0 | T50: 0 | AE50: 2054 | AF50: 0 | AG50: 0 | AH50: 0 | AI50: 4184787.002 | AK50: 4184787.002 | AM50: 14115844.85
B51: 2052 | C51: =MAX(TREND(C24:C25,B24:B25,B51),0) -> 0 | D51: =MAX(TREND(D24:D25,B24:B25,B51),0) -> 0 | G51: =MAX(TREND(G24:G25,$B24:$B25,$B51),0) -> 0 | H51: =MAX(TREND(H24:H25,$B24:$B25,$B51),0) -> 0 | K51: =MAX(TREND(K24:K25,B24:B25,B51),0) -> 0 | L51: =MAX(TREND(L24:L25,B24:B25,B51),0) -> 0 | M51: =IFERROR(IF(B18=Hwy,C51*E51/G51,K51/G51),0) -> 0 | N51: =IFERROR(IF(B18=Hwy,D51*F51/H51,L51/H51),0) -> 0 | O51: =MAX(TREND(O24:O25,$B24:$B25,$B51),0) -> 0 | P51: =MAX(TREND(P24:P25,$B24:$B25,$B51),0) -> 0 | Q51: =TREND(Q24:Q25,$B24:$B25,$B51) -> 0 | R51: =IF(Induced="N",0,(IF(B18=Hwy,M51*(I51*ValTimeTruck+(1-I51)*ValTimeAuto)-N51*(J51*ValTimeTruck+(1-J51)*ValTimeAuto),(IF(INDEX($P$277:$X$280,MATCH(B18,$O$277:$O$280,0),7)>0,INDEX($P$277:$X$280,MATCH(B18,$O$277:$O$280,0),7)/IF(INDEX($P$277:$X$280,MATCH(B18,$O$277:$O$280,0),6)=0,1,INDEX($P$277:$X$280,MATCH(B18,$O$277:$O$280,0),6)),M51)-N51)*ValTimeAuto)+O51-P51)*(H51-Q51)*0.5*(1+TTUprater)^($B51-YearCurrent)) -> 0 | S51: 0 | T51: 0 | AE51: 2055 | AF51: 0 | AG51: 0 | AH51: 0 | AI51: 4171838.377 | AK51: 4171838.377 | AM51: 14635054.11
B52: 2053 | C52: =MAX(TREND(C24:C25,B24:B25,B52),0) -> 0 | D52: =MAX(TREND(D24:D25,B24:B25,B52),0) -> 0 | G52: =MAX(TREND(G24:G25,$B24:$B25,$B52),0) -> 0 | H52: =MAX(TREND(H24:H25,$B24:$B25,$B52),0) -> 0 | K52: =MAX(TREND(K24:K25,B24:B25,B52),0) -> 0 | L52: =MAX(TREND(L24:L25,B24:B25,B52),0) -> 0 | M52: =IFERROR(IF(B18=Hwy,C52*E52/G52,K52/G52),0) -> 0 | N52: =IFERROR(IF(B18=Hwy,D52*F52/H52,L52/H52),0) -> 0 | O52: =MAX(TREND(O24:O25,$B24:$B25,$B52),0) -> 0 | P52: =MAX(TREND(P24:P25,$B24:$B25,$B52),0) -> 0 | Q52: =TREND(Q24:Q25,$B24:$B25,$B52) -> 0 | R52: =IF(Induced="N",0,(IF(B18=Hwy,M52*(I52*ValTimeTruck+(1-I52)*ValTimeAuto)-N52*(J52*ValTimeTruck+(1-J52)*ValTimeAuto),(IF(INDEX($P$277:$X$280,MATCH(B18,$O$277:$O$280,0),7)>0,INDEX($P$277:$X$280,MATCH(B18,$O$277:$O$280,0),7)/IF(INDEX($P$277:$X$280,MATCH(B18,$O$277:$O$280,0),6)=0,1,INDEX($P$277:$X$280,MATCH(B18,$O$277:$O$280,0),6)),M52)-N52)*ValTimeAuto)+O52-P52)*(H52-Q52)*0.5*(1+TTUprater)^($B52-YearCurrent)) -> 0 | S52: 0 | T52: 0 | AE52: 2056 | AF52: 0 | AG52: 0 | AH52: 0 | AI52: 4153695.498 | AK52: 4153695.498 | AM52: 15154264.14
B53: 2054 | C53: =MAX(TREND(C24:C25,B24:B25,B53),0) -> 0 | D53: =MAX(TREND(D24:D25,B24:B25,B53),0) -> 0 | G53: =MAX(TREND(G24:G25,$B24:$B25,$B53),0) -> 0 | H53: =MAX(TREND(H24:H25,$B24:$B25,$B53),0) -> 0 | K53: =MAX(TREND(K24:K25,B24:B25,B53),0) -> 0 | L53: =MAX(TREND(L24:L25,B24:B25,B53),0) -> 0 | M53: =IFERROR(IF(B18=Hwy,C53*E53/G53,K53/G53),0) -> 0 | N53: =IFERROR(IF(B18=Hwy,D53*F53/H53,L53/H53),0) -> 0 | O53: =MAX(TREND(O24:O25,$B24:$B25,$B53),0) -> 0 | P53: =MAX(TREND(P24:P25,$B24:$B25,$B53),0) -> 0 | Q53: =TREND(Q24:Q25,$B24:$B25,$B53) -> 0 | R53: =IF(Induced="N",0,(IF(B18=Hwy,M53*(I53*ValTimeTruck+(1-I53)*ValTimeAuto)-N53*(J53*ValTimeTruck+(1-J53)*ValTimeAuto),(IF(INDEX($P$277:$X$280,MATCH(B18,$O$277:$O$280,0),7)>0,INDEX($P$277:$X$280,MATCH(B18,$O$277:$O$280,0),7)/IF(INDEX($P$277:$X$280,MATCH(B18,$O$277:$O$280,0),6)=0,1,INDEX($P$277:$X$280,MATCH(B18,$O$277:$O$280,0),6)),M53)-N53)*ValTimeAuto)+O53-P53)*(H53-Q53)*0.5*(1+TTUprater)^($B53-YearCurrent)) -> 0 | S53: 0 | T53: 0 | AE53: 2057 | AF53: 0 | AG53: 0 | AH53: 0 | AI53: 4130777.058 | AK53: 4130777.058 | AM53: 15673474.89
B54: 2055 | C54: =MAX(TREND(C24:C25,B24:B25,B54),0) -> 0 | D54: =MAX(TREND(D24:D25,B24:B25,B54),0) -> 0 | G54: =MAX(TREND(G24:G25,$B24:$B25,$B54),0) -> 0 | H54: =MAX(TREND(H24:H25,$B24:$B25,$B54),0) -> 0 | K54: =MAX(TREND(K24:K25,B24:B25,B54),0) -> 0 | L54: =MAX(TREND(L24:L25,B24:B25,B54),0) -> 0 | M54: =IFERROR(IF(B18=Hwy,C54*E54/G54,K54/G54),0) -> 0 | N54: =IFERROR(IF(B18=Hwy,D54*F54/H54,L54/H54),0) -> 0 | O54: =MAX(TREND(O24:O25,$B24:$B25,$B54),0) -> 0 | P54: =MAX(TREND(P24:P25,$B24:$B25,$B54),0) -> 0 | Q54: =TREND(Q24:Q25,$B24:$B25,$B54) -> 0 | R54: =IF(Induced="N",0,(IF(B18=Hwy,M54*(I54*ValTimeTruck+(1-I54)*ValTimeAuto)-N54*(J54*ValTimeTruck+(1-J54)*ValTimeAuto),(IF(INDEX($P$277:$X$280,MATCH(B18,$O$277:$O$280,0),7)>0,INDEX($P$277:$X$280,MATCH(B18,$O$277:$O$280,0),7)/IF(INDEX($P$277:$X$280,MATCH(B18,$O$277:$O$280,0),6)=0,1,INDEX($P$277:$X$280,MATCH(B18,$O$277:$O$280,0),6)),M54)-N54)*ValTimeAuto)+O54-P54)*(H54-Q54)*0.5*(1+TTUprater)^($B54-YearCurrent)) -> 0 | S54: 0 | T54: 0 | AE54: 2058 | AF54: 0 | AG54: 0 | AH54: 0 | AI54: 4103477.225 | AK54: 4103477.225 | AM54: 16192686.31
B55: 2056 | C55: =MAX(TREND(C24:C25,B24:B25,B55),0) -> 0 | D55: =MAX(TREND(D24:D25,B24:B25,B55),0) -> 0 | G55: =MAX(TREND(G24:G25,$B24:$B25,$B55),0) -> 0 | H55: =MAX(TREND(H24:H25,$B24:$B25,$B55),0) -> 0 | K55: =MAX(TREND(K24:K25,B24:B25,B55),0) -> 0 | L55: =MAX(TREND(L24:L25,B24:B25,B55),0) -> 0 | M55: =IFERROR(IF(B18=Hwy,C55*E55/G55,K55/G55),0) -> 0 | N55: =IFERROR(IF(B18=Hwy,D55*F55/H55,L55/H55),0) -> 0 | O55: =MAX(TREND(O24:O25,$B24:$B25,$B55),0) -> 0 | P55: =MAX(TREND(P24:P25,$B24:$B25,$B55),0) -> 0 | Q55: =TREND(Q24:Q25,$B24:$B25,$B55) -> 0 | R55: =IF(Induced="N",0,(IF(B18=Hwy,M55*(I55*ValTimeTruck+(1-I55)*ValTimeAuto)-N55*(J55*ValTimeTruck+(1-J55)*ValTimeAuto),(IF(INDEX($P$277:$X$280,MATCH(B18,$O$277:$O$280,0),7)>0,INDEX($P$277:$X$280,MATCH(B18,$O$277:$O$280,0),7)/IF(INDEX($P$277:$X$280,MATCH(B18,$O$277:$O$280,0),6)=0,1,INDEX($P$277:$X$280,MATCH(B18,$O$277:$O$280,0),6)),M55)-N55)*ValTimeAuto)+O55-P55)*(H55-Q55)*0.5*(1+TTUprater)^($B55-YearCurrent)) -> 0 | S55: 0 | T55: 0 | AE55: 2059 | AF55: 0 | AG55: 0 | AH55: 0 | AI55: 4072166.916 | AK55: 4072166.916 | AM55: 16711898.37
B56: 2057 | C56: =MAX(TREND(C24:C25,B24:B25,B56),0) -> 0 | D56: =MAX(TREND(D24:D25,B24:B25,B56),0) -> 0 | G56: =MAX(TREND(G24:G25,$B24:$B25,$B56),0) -> 0 | H56: =MAX(TREND(H24:H25,$B24:$B25,$B56),0) -> 0 | K56: =MAX(TREND(K24:K25,B24:B25,B56),0) -> 0 | L56: =MAX(TREND(L24:L25,B24:B25,B56),0) -> 0 | M56: =IFERROR(IF(B18=Hwy,C56*E56/G56,K56/G56),0) -> 0 | N56: =IFERROR(IF(B18=Hwy,D56*F56/H56,L56/H56),0) -> 0 | O56: =MAX(TREND(O24:O25,$B24:$B25,$B56),0) -> 0 | P56: =MAX(TREND(P24:P25,$B24:$B25,$B56),0) -> 0 | Q56: =TREND(Q24:Q25,$B24:$B25,$B56) -> 0 | R56: =IF(Induced="N",0,(IF(B18=Hwy,M56*(I56*ValTimeTruck+(1-I56)*ValTimeAuto)-N56*(J56*ValTimeTruck+(1-J56)*ValTimeAuto),(IF(INDEX($P$277:$X$280,MATCH(B18,$O$277:$O$280,0),7)>0,INDEX($P$277:$X$280,MATCH(B18,$O$277:$O$280,0),7)/IF(INDEX($P$277:$X$280,MATCH(B18,$O$277:$O$280,0),6)=0,1,INDEX($P$277:$X$280,MATCH(B18,$O$277:$O$280,0),6)),M56)-N56)*ValTimeAuto)+O56-P56)*(H56-Q56)*0.5*(1+TTUprater)^($B56-YearCurrent)) -> 0 | S56: 0 | T56: 0 | AE56: 2060 | AF56: 0 | AG56: 0 | AH56: 0 | AI56: 4037194.999 | AK56: =IF(Induced<>"N",SUM(AF56:AI56),0) -> 4037194.999 | AM56: =$AK56*(1+DiscRate)^($AE56-YearCurrent) -> 17231111.02
B57: 2058 | C57: =MAX(TREND(C24:C25,B24:B25,B57),0) -> 0 | D57: =MAX(TREND(D24:D25,B24:B25,B57),0) -> 0 | G57: =MAX(TREND(G24:G25,$B24:$B25,$B57),0) -> 0 | H57: =MAX(TREND(H24:H25,$B24:$B25,$B57),0) -> 0 | K57: =MAX(TREND(K24:K25,B24:B25,B57),0) -> 0 | L57: =MAX(TREND(L24:L25,B24:B25,B57),0) -> 0 | M57: =IFERROR(IF(B18=Hwy,C57*E57/G57,K57/G57),0) -> 0 | N57: =IFERROR(IF(B18=Hwy,D57*F57/H57,L57/H57),0) -> 0 | O57: =MAX(TREND(O24:O25,$B24:$B25,$B57),0) -> 0 | P57: =MAX(TREND(P24:P25,$B24:$B25,$B57),0) -> 0 | Q57: =TREND(Q24:Q25,$B24:$B25,$B57) -> 0 | R57: =IF(Induced="N",0,(IF(B18=Hwy,M57*(I57*ValTimeTruck+(1-I57)*ValTimeAuto)-N57*(J57*ValTimeTruck+(1-J57)*ValTimeAuto),(IF(INDEX($P$277:$X$280,MATCH(B18,$O$277:$O$280,0),7)>0,INDEX($P$277:$X$280,MATCH(B18,$O$277:$O$280,0),7)/IF(INDEX($P$277:$X$280,MATCH(B18,$O$277:$O$280,0),6)=0,1,INDEX($P$277:$X$280,MATCH(B18,$O$277:$O$280,0),6)),M57)-N57)*ValTimeAuto)+O57-P57)*(H57-Q57)*0.5*(1+TTUprater)^($B57-YearCurrent)) -> 0 | S57: 0 | T57: 0 | AE57: =AE56+1 -> 2061 | AF57: 0 | AG57: 0 | AH57: 0 | AI57: 3998889.439 | AK57: 3998889.439 | AM57: 17750324.23
B58: 2059 | C58: =MAX(TREND(C24:C25,B24:B25,B58),0) -> 0 | D58: =MAX(TREND(D24:D25,B24:B25,B58),0) -> 0 | G58: =MAX(TREND(G24:G25,$B24:$B25,$B58),0) -> 0 | H58: =MAX(TREND(H24:H25,$B24:$B25,$B58),0) -> 0 | K58: =MAX(TREND(K24:K25,B24:B25,B58),0) -> 0 | L58: =MAX(TREND(L24:L25,B24:B25,B58),0) -> 0 | M58: =IFERROR(IF(B18=Hwy,C58*E58/G58,K58/G58),0) -> 0 | N58: =IFERROR(IF(B18=Hwy,D58*F58/H58,L58/H58),0) -> 0 | O58: =MAX(TREND(O24:O25,$B24:$B25,$B58),0) -> 0 | P58: =MAX(TREND(P24:P25,$B24:$B25,$B58),0) -> 0 | Q58: =TREND(Q24:Q25,$B24:$B25,$B58) -> 0 | R58: =IF(Induced="N",0,(IF(B18=Hwy,M58*(I58*ValTimeTruck+(1-I58)*ValTimeAuto)-N58*(J58*ValTimeTruck+(1-J58)*ValTimeAuto),(IF(INDEX($P$277:$X$280,MATCH(B18,$O$277:$O$280,0),7)>0,INDEX($P$277:$X$280,MATCH(B18,$O$277:$O$280,0),7)/IF(INDEX($P$277:$X$280,MATCH(B18,$O$277:$O$280,0),6)=0,1,INDEX($P$277:$X$280,MATCH(B18,$O$277:$O$280,0),6)),M58)-N58)*ValTimeAuto)+O58-P58)*(H58-Q58)*0.5*(1+TTUprater)^($B58-YearCurrent)) -> 0 | S58: 0 | T58: 0 | AE58: 2062 | AF58: 0 | AG58: 0 | AH58: 0 | AI58: 3957558.391 | AK58: 3957558.391 | AM58: 18269537.95
B59: 2060 | C59: =MAX(TREND(C24:C25,B24:B25,B59),0) -> 0 | D59: =MAX(TREND(D24:D25,B24:B25,B59),0) -> 0 | G59: =MAX(TREND(G24:G25,$B24:$B25,$B59),0) -> 0 | H59: =MAX(TREND(H24:H25,$B24:$B25,$B59),0) -> 0 | K59: =MAX(TREND(K24:K25,B24:B25,B59),0) -> 0 | L59: =MAX(TREND(L24:L25,B24:B25,B59),0) -> 0 | M59: =IFERROR(IF(B18=Hwy,C59*E59/G59,K59/G59),0) -> 0 | N59: =IFERROR(IF(B18=Hwy,D59*F59/H59,L59/H59),0) -> 0 | O59: =MAX(TREND(O24:O25,$B24:$B25,$B59),0) -> 0 | P59: =MAX(TREND(P24:P25,$B24:$B25,$B59),0) -> 0 | Q59: =TREND(Q24:Q25,$B24:$B25,$B59) -> 0 | R59: =IF(Induced="N",0,(IF(B18=Hwy,M59*(I59*ValTimeTruck+(1-I59)*ValTimeAuto)-N59*(J59*ValTimeTruck+(1-J59)*ValTimeAuto),(IF(INDEX($P$277:$X$280,MATCH(B18,$O$277:$O$280,0),7)>0,INDEX($P$277:$X$280,MATCH(B18,$O$277:$O$280,0),7)/IF(INDEX($P$277:$X$280,MATCH(B18,$O$277:$O$280,0),6)=0,1,INDEX($P$277:$X$280,MATCH(B18,$O$277:$O$280,0),6)),M59)-N59)*ValTimeAuto)+O59-P59)*(H59-Q59)*0.5*(1+TTUprater)^($B59-YearCurrent)) -> 0 | S59: =SUM(R59:R59) -> 0 | T59: =S59/(1+DiscRate)^(B59-YearCurrent) -> 0 | AE59: 2063 | AF59: 0 | AG59: 0 | AH59: 0 | AI59: 3913491.241 | AK59: 3913491.241 | AM59: 18788752.17
B60: 2061 | C60: =MAX(TREND(C24:C25,B24:B25,B60),0) -> 0 | D60: =MAX(TREND(D24:D25,B24:B25,B60),0) -> 0 | G60: =MAX(TREND(G24:G25,$B24:$B25,$B60),0) -> 0 | H60: =MAX(TREND(H24:H25,$B24:$B25,$B60),0) -> 0 | K60: =MAX(TREND(K24:K25,B24:B25,B60),0) -> 0 | L60: =MAX(TREND(L24:L25,B24:B25,B60),0) -> 0 | M60: =IFERROR(IF(B18=Hwy,C60*E60/G60,K60/G60),0) -> 0 | N60: =IFERROR(IF(B18=Hwy,D60*F60/H60,L60/H60),0) -> 0 | O60: =MAX(TREND(O24:O25,$B24:$B25,$B60),0) -> 0 | P60: =MAX(TREND(P24:P25,$B24:$B25,$B60),0) -> 0 | Q60: =TREND(Q24:Q25,$B24:$B25,$B60) -> 0 | R60: =IF(Induced="N",0,(IF(B18=Hwy,M60*(I60*ValTimeTruck+(1-I60)*ValTimeAuto)-N60*(J60*ValTimeTruck+(1-J60)*ValTimeAuto),(IF(INDEX($P$277:$X$280,MATCH(B18,$O$277:$O$280,0),7)>0,INDEX($P$277:$X$280,MATCH(B18,$O$277:$O$280,0),7)/IF(INDEX($P$277:$X$280,MATCH(B18,$O$277:$O$280,0),6)=0,1,INDEX($P$277:$X$280,MATCH(B18,$O$277:$O$280,0),6)),M60)-N60)*ValTimeAuto)+O60-P60)*(H60-Q60)*0.5*(1+TTUprater)^($B60-YearCurrent)) -> 0 | S60: 0 | T60: 0 | AE60: 2064 | AF60: 0 | AG60: 0 | AH60: 0 | AI60: 3866959.587 | AK60: 3866959.587 | AM60: 19307966.86
B61: 2062 | C61: =MAX(TREND(C24:C25,B24:B25,B61),0) -> 0 | D61: =MAX(TREND(D24:D25,B24:B25,B61),0) -> 0 | G61: =MAX(TREND(G24:G25,$B24:$B25,$B61),0) -> 0 | H61: =MAX(TREND(H24:H25,$B24:$B25,$B61),0) -> 0 | K61: =MAX(TREND(K24:K25,B24:B25,B61),0) -> 0 | L61: =MAX(TREND(L24:L25,B24:B25,B61),0) -> 0 | M61: =IFERROR(IF(B18=Hwy,C61*E61/G61,K61/G61),0) -> 0 | N61: =IFERROR(IF(B18=Hwy,D61*F61/H61,L61/H61),0) -> 0 | O61: =MAX(TREND(O24:O25,$B24:$B25,$B61),0) -> 0 | P61: =MAX(TREND(P24:P25,$B24:$B25,$B61),0) -> 0 | Q61: =TREND(Q24:Q25,$B24:$B25,$B61) -> 0 | R61: =IF(Induced="N",0,(IF(B18=Hwy,M61*(I61*ValTimeTruck+(1-I61)*ValTimeAuto)-N61*(J61*ValTimeTruck+(1-J61)*ValTimeAuto),(IF(INDEX($P$277:$X$280,MATCH(B18,$O$277:$O$280,0),7)>0,INDEX($P$277:$X$280,MATCH(B18,$O$277:$O$280,0),7)/IF(INDEX($P$277:$X$280,MATCH(B18,$O$277:$O$280,0),6)=0,1,INDEX($P$277:$X$280,MATCH(B18,$O$277:$O$280,0),6)),M61)-N61)*ValTimeAuto)+O61-P61)*(H61-Q61)*0.5*(1+TTUprater)^($B61-YearCurrent)) -> 0 | S61: 0 | T61: 0 | AE61: 2065 | AF61: 0 | AG61: 0 | AH61: 0 | AI61: 3818218.188 | AK61: 3818218.188 | AM61: 19827181.98
B62: 2063 | C62: =MAX(TREND(C24:C25,B24:B25,B62),0) -> 0 | D62: =MAX(TREND(D24:D25,B24:B25,B62),0) -> 0 | G62: =MAX(TREND(G24:G25,$B24:$B25,$B62),0) -> 0 | H62: =MAX(TREND(H24:H25,$B24:$B25,$B62),0) -> 0 | K62: =MAX(TREND(K24:K25,B24:B25,B62),0) -> 0 | L62: =MAX(TREND(L24:L25,B24:B25,B62),0) -> 0 | M62: =IFERROR(IF(B18=Hwy,C62*E62/G62,K62/G62),0) -> 0 | N62: =IFERROR(IF(B18=Hwy,D62*F62/H62,L62/H62),0) -> 0 | O62: =MAX(TREND(O24:O25,$B24:$B25,$B62),0) -> 0 | P62: =MAX(TREND(P24:P25,$B24:$B25,$B62),0) -> 0 | Q62: =TREND(Q24:Q25,$B24:$B25,$B62) -> 0 | R62: =IF(Induced="N",0,(IF(B18=Hwy,M62*(I62*ValTimeTruck+(1-I62)*ValTimeAuto)-N62*(J62*ValTimeTruck+(1-J62)*ValTimeAuto),(IF(INDEX($P$277:$X$280,MATCH(B18,$O$277:$O$280,0),7)>0,INDEX($P$277:$X$280,MATCH(B18,$O$277:$O$280,0),7)/IF(INDEX($P$277:$X$280,MATCH(B18,$O$277:$O$280,0),6)=0,1,INDEX($P$277:$X$280,MATCH(B18,$O$277:$O$280,0),6)),M62)-N62)*ValTimeAuto)+O62-P62)*(H62-Q62)*0.5*(1+TTUprater)^($B62-YearCurrent)) -> 0 | S62: 0 | T62: 0 | AE62: 2066 | AF62: 0 | AG62: 0 | AH62: 0 | AI62: 3767505.849 | AK62: 3767505.849 | AM62: 20346397.51
B63: 2064 | C63: =MAX(TREND(C24:C25,B24:B25,B63),0) -> 0 | D63: =MAX(TREND(D24:D25,B24:B25,B63),0) -> 0 | G63: =MAX(TREND(G24:G25,$B24:$B25,$B63),0) -> 0 | H63: =MAX(TREND(H24:H25,$B24:$B25,$B63),0) -> 0 | K63: =MAX(TREND(K24:K25,B24:B25,B63),0) -> 0 | L63: =MAX(TREND(L24:L25,B24:B25,B63),0) -> 0 | M63: =IFERROR(IF(B18=Hwy,C63*E63/G63,K63/G63),0) -> 0 | N63: =IFERROR(IF(B18=Hwy,D63*F63/H63,L63/H63),0) -> 0 | O63: =MAX(TREND(O24:O25,$B24:$B25,$B63),0) -> 0 | P63: =MAX(TREND(P24:P25,$B24:$B25,$B63),0) -> 0 | Q63: =TREND(Q24:Q25,$B24:$B25,$B63) -> 0 | R63: =IF(Induced="N",0,(IF(B18=Hwy,M63*(I63*ValTimeTruck+(1-I63)*ValTimeAuto)-N63*(J63*ValTimeTruck+(1-J63)*ValTimeAuto),(IF(INDEX($P$277:$X$280,MATCH(B18,$O$277:$O$280,0),7)>0,INDEX($P$277:$X$280,MATCH(B18,$O$277:$O$280,0),7)/IF(INDEX($P$277:$X$280,MATCH(B18,$O$277:$O$280,0),6)=0,1,INDEX($P$277:$X$280,MATCH(B18,$O$277:$O$280,0),6)),M63)-N63)*ValTimeAuto)+O63-P63)*(H63-Q63)*0.5*(1+TTUprater)^($B63-YearCurrent)) -> 0 | S63: 0 | T63: 0 | AE63: 2067 | AF63: 0 | AG63: 0 | AH63: 0 | AI63: 3715046.277 | AK63: 3715046.277 | AM63: 20865613.43
B64: 2065 | C64: =MAX(TREND(C24:C25,B24:B25,B64),0) -> 0 | D64: =MAX(TREND(D24:D25,B24:B25,B64),0) -> 0 | G64: =MAX(TREND(G24:G25,$B24:$B25,$B64),0) -> 0 | H64: =MAX(TREND(H24:H25,$B24:$B25,$B64),0) -> 0 | K64: =MAX(TREND(K24:K25,B24:B25,B64),0) -> 0 | L64: =MAX(TREND(L24:L25,B24:B25,B64),0) -> 0 | M64: =IFERROR(IF(B18=Hwy,C64*E64/G64,K64/G64),0) -> 0 | N64: =IFERROR(IF(B18=Hwy,D64*F64/H64,L64/H64),0) -> 0 | O64: =MAX(TREND(O24:O25,$B24:$B25,$B64),0) -> 0 | P64: =MAX(TREND(P24:P25,$B24:$B25,$B64),0) -> 0 | Q64: =TREND(Q24:Q25,$B24:$B25,$B64) -> 0 | R64: =IF(Induced="N",0,(IF(B18=Hwy,M64*(I64*ValTimeTruck+(1-I64)*ValTimeAuto)-N64*(J64*ValTimeTruck+(1-J64)*ValTimeAuto),(IF(INDEX($P$277:$X$280,MATCH(B18,$O$277:$O$280,0),7)>0,INDEX($P$277:$X$280,MATCH(B18,$O$277:$O$280,0),7)/IF(INDEX($P$277:$X$280,MATCH(B18,$O$277:$O$280,0),6)=0,1,INDEX($P$277:$X$280,MATCH(B18,$O$277:$O$280,0),6)),M64)-N64)*ValTimeAuto)+O64-P64)*(H64-Q64)*0.5*(1+TTUprater)^($B64-YearCurrent)) -> 0 | S64: 0 | T64: 0 | AE64: 2068 | AF64: =OFFSET($T49,MATCH(AF$20,$A:$A),0) -> 0 | AG64: 0 | AH64: 0 | AI64: 3661048.886 | AK64: 3661048.886 | AM64: 21384829.72
B65: 2066 | C65: =MAX(TREND(C24:C25,B24:B25,B65),0) -> 0 | D65: =MAX(TREND(D24:D25,B24:B25,B65),0) -> 0 | G65: =MAX(TREND(G24:G25,$B24:$B25,$B65),0) -> 0 | H65: =MAX(TREND(H24:H25,$B24:$B25,$B65),0) -> 0 | K65: =MAX(TREND(K24:K25,B24:B25,B65),0) -> 0 | L65: =MAX(TREND(L24:L25,B24:B25,B65),0) -> 0 | M65: =IFERROR(IF(B18=Hwy,C65*E65/G65,K65/G65),0) -> 0 | N65: =IFERROR(IF(B18=Hwy,D65*F65/H65,L65/H65),0) -> 0 | O65: =MAX(TREND(O24:O25,$B24:$B25,$B65),0) -> 0 | P65: =MAX(TREND(P24:P25,$B24:$B25,$B65),0) -> 0 | Q65: =TREND(Q24:Q25,$B24:$B25,$B65) -> 0 | R65: =IF(Induced="N",0,(IF(B18=Hwy,M65*(I65*ValTimeTruck+(1-I65)*ValTimeAuto)-N65*(J65*ValTimeTruck+(1-J65)*ValTimeAuto),(IF(INDEX($P$277:$X$280,MATCH(B18,$O$277:$O$280,0),7)>0,INDEX($P$277:$X$280,MATCH(B18,$O$277:$O$280,0),7)/IF(INDEX($P$277:$X$280,MATCH(B18,$O$277:$O$280,0),6)=0,1,INDEX($P$277:$X$280,MATCH(B18,$O$277:$O$280,0),6)),M65)-N65)*ValTimeAuto)+O65-P65)*(H65-Q65)*0.5*(1+TTUprater)^($B65-YearCurrent)) -> 0 | S65: 0 | T65: 0 | AE65: 2069 | AF65: 0 | AG65: 0 | AH65: 0 | AI65: 3605709.568 | AK65: 3605709.568 | AM65: 21904046.37
B66: 2067 | C66: =MAX(TREND(C24:C25,B24:B25,B66),0) -> 0 | D66: =MAX(TREND(D24:D25,B24:B25,B66),0) -> 0 | G66: =MAX(TREND(G24:G25,$B24:$B25,$B66),0) -> 0 | H66: =MAX(TREND(H24:H25,$B24:$B25,$B66),0) -> 0 | K66: =MAX(TREND(K24:K25,B24:B25,B66),0) -> 0 | L66: =MAX(TREND(L24:L25,B24:B25,B66),0) -> 0 | M66: =IFERROR(IF(B18=Hwy,C66*E66/G66,K66/G66),0) -> 0 | N66: =IFERROR(IF(B18=Hwy,D66*F66/H66,L66/H66),0) -> 0 | O66: =MAX(TREND(O24:O25,$B24:$B25,$B66),0) -> 0 | P66: =MAX(TREND(P24:P25,$B24:$B25,$B66),0) -> 0 | Q66: =TREND(Q24:Q25,$B24:$B25,$B66) -> 0 | R66: =IF(Induced="N",0,(IF(B18=Hwy,M66*(I66*ValTimeTruck+(1-I66)*ValTimeAuto)-N66*(J66*ValTimeTruck+(1-J66)*ValTimeAuto),(IF(INDEX($P$277:$X$280,MATCH(B18,$O$277:$O$280,0),7)>0,INDEX($P$277:$X$280,MATCH(B18,$O$277:$O$280,0),7)/IF(INDEX($P$277:$X$280,MATCH(B18,$O$277:$O$280,0),6)=0,1,INDEX($P$277:$X$280,MATCH(B18,$O$277:$O$280,0),6)),M66)-N66)*ValTimeAuto)+O66-P66)*(H66-Q66)*0.5*(1+TTUprater)^($B66-YearCurrent)) -> 0 | S66: 0 | T66: 0 | AE66: 2070 | AF66: 0 | AG66: 0 | AH66: 0 | AI66: 3549211.42 | AK66: 3549211.42 | AM66: 22423263.34
B67: 2068 | C67: =MAX(TREND(C24:C25,B24:B25,B67),0) -> 0 | D67: =MAX(TREND(D24:D25,B24:B25,B67),0) -> 0 | G67: =MAX(TREND(G24:G25,$B24:$B25,$B67),0) -> 0 | H67: =MAX(TREND(H24:H25,$B24:$B25,$B67),0) -> 0 | K67: =MAX(TREND(K24:K25,B24:B25,B67),0) -> 0 | L67: =MAX(TREND(L24:L25,B24:B25,B67),0) -> 0 | M67: =IFERROR(IF(B18=Hwy,C67*E67/G67,K67/G67),0) -> 0 | N67: =IFERROR(IF(B18=Hwy,D67*F67/H67,L67/H67),0) -> 0 | O67: =MAX(TREND(O24:O25,$B24:$B25,$B67),0) -> 0 | P67: =MAX(TREND(P24:P25,$B24:$B25,$B67),0) -> 0 | Q67: =TREND(Q24:Q25,$B24:$B25,$B67) -> 0 | R67: =IF(Induced="N",0,(IF(B18=Hwy,M67*(I67*ValTimeTruck+(1-I67)*ValTimeAuto)-N67*(J67*ValTimeTruck+(1-J67)*ValTimeAuto),(IF(INDEX($P$277:$X$280,MATCH(B18,$O$277:$O$280,0),7)>0,INDEX($P$277:$X$280,MATCH(B18,$O$277:$O$280,0),7)/IF(INDEX($P$277:$X$280,MATCH(B18,$O$277:$O$280,0),6)=0,1,INDEX($P$277:$X$280,MATCH(B18,$O$277:$O$280,0),6)),M67)-N67)*ValTimeAuto)+O67-P67)*(H67-Q67)*0.5*(1+TTUprater)^($B67-YearCurrent)) -> 0 | S67: 0 | T67: 0 | AE67: 2071 | AF67: 0 | AG67: 0 | AH67: 0 | AI67: 3491725.442 | AK67: 3491725.442 | AM67: 22942480.63
B68: 2069 | C68: =MAX(TREND(C24:C25,B24:B25,B68),0) -> 0 | D68: =MAX(TREND(D24:D25,B24:B25,B68),0) -> 0 | G68: =MAX(TREND(G24:G25,$B24:$B25,$B68),0) -> 0 | H68: =MAX(TREND(H24:H25,$B24:$B25,$B68),0) -> 0 | K68: =MAX(TREND(K24:K25,B24:B25,B68),0) -> 0 | L68: =MAX(TREND(L24:L25,B24:B25,B68),0) -> 0 | M68: =IFERROR(IF(B18=Hwy,C68*E68/G68,K68/G68),0) -> 0 | N68: =IFERROR(IF(B18=Hwy,D68*F68/H68,L68/H68),0) -> 0 | O68: =MAX(TREND(O24:O25,$B24:$B25,$B68),0) -> 0 | P68: =MAX(TREND(P24:P25,$B24:$B25,$B68),0) -> 0 | Q68: =TREND(Q24:Q25,$B24:$B25,$B68) -> 0 | R68: =IF(Induced="N",0,(IF(B18=Hwy,M68*(I68*ValTimeTruck+(1-I68)*ValTimeAuto)-N68*(J68*ValTimeTruck+(1-J68)*ValTimeAuto),(IF(INDEX($P$277:$X$280,MATCH(B18,$O$277:$O$280,0),7)>0,INDEX($P$277:$X$280,MATCH(B18,$O$277:$O$280,0),7)/IF(INDEX($P$277:$X$280,MATCH(B18,$O$277:$O$280,0),6)=0,1,INDEX($P$277:$X$280,MATCH(B18,$O$277:$O$280,0),6)),M68)-N68)*ValTimeAuto)+O68-P68)*(H68-Q68)*0.5*(1+TTUprater)^($B68-YearCurrent)) -> 0 | S68: 0 | T68: 0 | AE68: 2072 | AF68: 0 | AG68: 0 | AH68: 0 | AI68: 3433411.193 | AK68: 3433411.193 | AM68: 23461698.22
B69: 2070 | C69: =MAX(TREND(C24:C25,B24:B25,B69),0) -> 0 | D69: =MAX(TREND(D24:D25,B24:B25,B69),0) -> 0 | G69: =MAX(TREND(G24:G25,$B24:$B25,$B69),0) -> 0 | H69: =MAX(TREND(H24:H25,$B24:$B25,$B69),0) -> 0 | K69: =MAX(TREND(K24:K25,B24:B25,B69),0) -> 0 | L69: =MAX(TREND(L24:L25,B24:B25,B69),0) -> 0 | M69: =IFERROR(IF(B18=Hwy,C69*E69/G69,K69/G69),0) -> 0 | N69: =IFERROR(IF(B18=Hwy,D69*F69/H69,L69/H69),0) -> 0 | O69: =MAX(TREND(O24:O25,$B24:$B25,$B69),0) -> 0 | P69: =MAX(TREND(P24:P25,$B24:$B25,$B69),0) -> 0 | Q69: =TREND(Q24:Q25,$B24:$B25,$B69) -> 0 | R69: =IF(Induced="N",0,(IF(B18=Hwy,M69*(I69*ValTimeTruck+(1-I69)*ValTimeAuto)-N69*(J69*ValTimeTruck+(1-J69)*ValTimeAuto),(IF(INDEX($P$277:$X$280,MATCH(B18,$O$277:$O$280,0),7)>0,INDEX($P$277:$X$280,MATCH(B18,$O$277:$O$280,0),7)/IF(INDEX($P$277:$X$280,MATCH(B18,$O$277:$O$280,0),6)=0,1,INDEX($P$277:$X$280,MATCH(B18,$O$277:$O$280,0),6)),M69)-N69)*ValTimeAuto)+O69-P69)*(H69-Q69)*0.5*(1+TTUprater)^($B69-YearCurrent)) -> 0 | S69: 0 | T69: 0 | AE69: 2073 | AF69: 0 | AG69: 0 | AH69: 0 | AI69: 3374417.421 | AK69: 3374417.421 | AM69: 23980916.09
B70: 2071 | C70: =MAX(TREND(C24:C25,B24:B25,B70),0) -> 0 | D70: =MAX(TREND(D24:D25,B24:B25,B70),0) -> 0 | G70: =MAX(TREND(G24:G25,$B24:$B25,$B70),0) -> 0 | H70: =MAX(TREND(H24:H25,$B24:$B25,$B70),0) -> 0 | K70: =MAX(TREND(K24:K25,B24:B25,B70),0) -> 0 | L70: =MAX(TREND(L24:L25,B24:B25,B70),0) -> 0 | M70: =IFERROR(IF(B18=Hwy,C70*E70/G70,K70/G70),0) -> 0 | N70: =IFERROR(IF(B18=Hwy,D70*F70/H70,L70/H70),0) -> 0 | O70: =MAX(TREND(O24:O25,$B24:$B25,$B70),0) -> 0 | P70: =MAX(TREND(P24:P25,$B24:$B25,$B70),0) -> 0 | Q70: =TREND(Q24:Q25,$B24:$B25,$B70) -> 0 | R70: =IF(Induced="N",0,(IF(B18=Hwy,M70*(I70*ValTimeTruck+(1-I70)*ValTimeAuto)-N70*(J70*ValTimeTruck+(1-J70)*ValTimeAuto),(IF(INDEX($P$277:$X$280,MATCH(B18,$O$277:$O$280,0),7)>0,INDEX($P$277:$X$280,MATCH(B18,$O$277:$O$280,0),7)/IF(INDEX($P$277:$X$280,MATCH(B18,$O$277:$O$280,0),6)=0,1,INDEX($P$277:$X$280,MATCH(B18,$O$277:$O$280,0),6)),M70)-N70)*ValTimeAuto)+O70-P70)*(H70-Q70)*0.5*(1+TTUprater)^($B70-YearCurrent)) -> 0 | S70: 0 | T70: 0 | AE70: 2074 | AF70: 0 | AG70: 0 | AH70: 0 | AI70: 3314882.657 | AK70: 3314882.657 | AM70: 24500134.23
B71: 2072 | C71: =MAX(TREND(C24:C25,B24:B25,B71),0) -> 0 | D71: =MAX(TREND(D24:D25,B24:B25,B71),0) -> 0 | G71: =MAX(TREND(G24:G25,$B24:$B25,$B71),0) -> 0 | H71: =MAX(TREND(H24:H25,$B24:$B25,$B71),0) -> 0 | K71: =MAX(TREND(K24:K25,B24:B25,B71),0) -> 0 | L71: =MAX(TREND(L24:L25,B24:B25,B71),0) -> 0 | M71: =IFERROR(IF(B18=Hwy,C71*E71/G71,K71/G71),0) -> 0 | N71: =IFERROR(IF(B18=Hwy,D71*F71/H71,L71/H71),0) -> 0 | O71: =MAX(TREND(O24:O25,$B24:$B25,$B71),0) -> 0 | P71: =MAX(TREND(P24:P25,$B24:$B25,$B71),0) -> 0 | Q71: =TREND(Q24:Q25,$B24:$B25,$B71) -> 0 | R71: =IF(Induced="N",0,(IF(B18=Hwy,M71*(I71*ValTimeTruck+(1-I71)*ValTimeAuto)-N71*(J71*ValTimeTruck+(1-J71)*ValTimeAuto),(IF(INDEX($P$277:$X$280,MATCH(B18,$O$277:$O$280,0),7)>0,INDEX($P$277:$X$280,MATCH(B18,$O$277:$O$280,0),7)/IF(INDEX($P$277:$X$280,MATCH(B18,$O$277:$O$280,0),6)=0,1,INDEX($P$277:$X$280,MATCH(B18,$O$277:$O$280,0),6)),M71)-N71)*ValTimeAuto)+O71-P71)*(H71-Q71)*0.5*(1+TTUprater)^($B71-YearCurrent)) -> 0 | S71: 0 | T71: 0 | AE71: 2075 | AF71: 0 | AG71: 0 | AH71: 0 | AI71: 3254935.783 | AK71: 3254935.783 | AM71: 25019352.63
B72: 2073 | C72: =MAX(TREND(C24:C25,B24:B25,B72),0) -> 0 | D72: =MAX(TREND(D24:D25,B24:B25,B72),0) -> 0 | G72: =MAX(TREND(G24:G25,$B24:$B25,$B72),0) -> 0 | H72: =MAX(TREND(H24:H25,$B24:$B25,$B72),0) -> 0 | K72: =MAX(TREND(K24:K25,B24:B25,B72),0) -> 0 | L72: =MAX(TREND(L24:L25,B24:B25,B72),0) -> 0 | M72: =IFERROR(IF(B18=Hwy,C72*E72/G72,K72/G72),0) -> 0 | N72: =IFERROR(IF(B18=Hwy,D72*F72/H72,L72/H72),0) -> 0 | O72: =MAX(TREND(O24:O25,$B24:$B25,$B72),0) -> 0 | P72: =MAX(TREND(P24:P25,$B24:$B25,$B72),0) -> 0 | Q72: =TREND(Q24:Q25,$B24:$B25,$B72) -> 0 | R72: =IF(Induced="N",0,(IF(B18=Hwy,M72*(I72*ValTimeTruck+(1-I72)*ValTimeAuto)-N72*(J72*ValTimeTruck+(1-J72)*ValTimeAuto),(IF(INDEX($P$277:$X$280,MATCH(B18,$O$277:$O$280,0),7)>0,INDEX($P$277:$X$280,MATCH(B18,$O$277:$O$280,0),7)/IF(INDEX($P$277:$X$280,MATCH(B18,$O$277:$O$280,0),6)=0,1,INDEX($P$277:$X$280,MATCH(B18,$O$277:$O$280,0),6)),M72)-N72)*ValTimeAuto)+O72-P72)*(H72-Q72)*0.5*(1+TTUprater)^($B72-YearCurrent)) -> 0 | S72: 0 | T72: 0 | AE72: 2076 | AF72: 0 | AG72: 0 | AH72: 0 | AI72: 3194696.565 | AK72: 3194696.565 | AM72: 25538571.28
B73: 2074 | C73: =MAX(TREND(C24:C25,B24:B25,B73),0) -> 0 | D73: =MAX(TREND(D24:D25,B24:B25,B73),0) -> 0 | G73: =MAX(TREND(G24:G25,$B24:$B25,$B73),0) -> 0 | H73: =MAX(TREND(H24:H25,$B24:$B25,$B73),0) -> 0 | K73: =MAX(TREND(K24:K25,B24:B25,B73),0) -> 0 | L73: =MAX(TREND(L24:L25,B24:B25,B73),0) -> 0 | M73: =IFERROR(IF(B18=Hwy,C73*E73/G73,K73/G73),0) -> 0 | N73: =IFERROR(IF(B18=Hwy,D73*F73/H73,L73/H73),0) -> 0 | O73: =MAX(TREND(O24:O25,$B24:$B25,$B73),0) -> 0 | P73: =MAX(TREND(P24:P25,$B24:$B25,$B73),0) -> 0 | Q73: =TREND(Q24:Q25,$B24:$B25,$B73) -> 0 | R73: =IF(Induced="N",0,(IF(B18=Hwy,M73*(I73*ValTimeTruck+(1-I73)*ValTimeAuto)-N73*(J73*ValTimeTruck+(1-J73)*ValTimeAuto),(IF(INDEX($P$277:$X$280,MATCH(B18,$O$277:$O$280,0),7)>0,INDEX($P$277:$X$280,MATCH(B18,$O$277:$O$280,0),7)/IF(INDEX($P$277:$X$280,MATCH(B18,$O$277:$O$280,0),6)=0,1,INDEX($P$277:$X$280,MATCH(B18,$O$277:$O$280,0),6)),M73)-N73)*ValTimeAuto)+O73-P73)*(H73-Q73)*0.5*(1+TTUprater)^($B73-YearCurrent)) -> 0 | S73: 0 | T73: 0 | AE73: 2077 | AF73: 0 | AG73: 0 | AH73: 0 | AI73: 3134276.167 | AK73: 3134276.167 | AM73: 26057790.16
B74: 2075 | C74: =MAX(TREND(C24:C25,B24:B25,B74),0) -> 0 | D74: =MAX(TREND(D24:D25,B24:B25,B74),0) -> 0 | G74: =MAX(TREND(G24:G25,$B24:$B25,$B74),0) -> 0 | H74: =MAX(TREND(H24:H25,$B24:$B25,$B74),0) -> 0 | K74: =MAX(TREND(K24:K25,B24:B25,B74),0) -> 0 | L74: =MAX(TREND(L24:L25,B24:B25,B74),0) -> 0 | M74: =IFERROR(IF(B18=Hwy,C74*E74/G74,K74/G74),0) -> 0 | N74: =IFERROR(IF(B18=Hwy,D74*F74/H74,L74/H74),0) -> 0 | O74: =MAX(TREND(O24:O25,$B24:$B25,$B74),0) -> 0 | P74: =MAX(TREND(P24:P25,$B24:$B25,$B74),0) -> 0 | Q74: =TREND(Q24:Q25,$B24:$B25,$B74) -> 0 | R74: =IF(Induced="N",0,(IF(B18=Hwy,M74*(I74*ValTimeTruck+(1-I74)*ValTimeAuto)-N74*(J74*ValTimeTruck+(1-J74)*ValTimeAuto),(IF(INDEX($P$277:$X$280,MATCH(B18,$O$277:$O$280,0),7)>0,INDEX($P$277:$X$280,MATCH(B18,$O$277:$O$280,0),7)/IF(INDEX($P$277:$X$280,MATCH(B18,$O$277:$O$280,0),6)=0,1,INDEX($P$277:$X$280,MATCH(B18,$O$277:$O$280,0),6)),M74)-N74)*ValTimeAuto)+O74-P74)*(H74-Q74)*0.5*(1+TTUprater)^($B74-YearCurrent)) -> 0 | S74: 0 | T74: 0
B75: 2076 | C75: =MAX(TREND(C24:C25,B24:B25,B75),0) -> 0 | D75: =MAX(TREND(D24:D25,B24:B25,B75),0) -> 0 | G75: =MAX(TREND(G24:G25,$B24:$B25,$B75),0) -> 0 | H75: =MAX(TREND(H24:H25,$B24:$B25,$B75),0) -> 0 | K75: =MAX(TREND(K24:K25,B24:B25,B75),0) -> 0 | L75: =MAX(TREND(L24:L25,B24:B25,B75),0) -> 0 | M75: =IFERROR(IF(B18=Hwy,C75*E75/G75,K75/G75),0) -> 0 | N75: =IFERROR(IF(B18=Hwy,D75*F75/H75,L75/H75),0) -> 0 | O75: =MAX(TREND(O24:O25,$B24:$B25,$B75),0) -> 0 | P75: =MAX(TREND(P24:P25,$B24:$B25,$B75),0) -> 0 | Q75: =TREND(Q24:Q25,$B24:$B25,$B75) -> 0 | R75: =IF(Induced="N",0,(IF(B18=Hwy,M75*(I75*ValTimeTruck+(1-I75)*ValTimeAuto)-N75*(J75*ValTimeTruck+(1-J75)*ValTimeAuto),(IF(INDEX($P$277:$X$280,MATCH(B18,$O$277:$O$280,0),7)>0,INDEX($P$277:$X$280,MATCH(B18,$O$277:$O$280,0),7)/IF(INDEX($P$277:$X$280,MATCH(B18,$O$277:$O$280,0),6)=0,1,INDEX($P$277:$X$280,MATCH(B18,$O$277:$O$280,0),6)),M75)-N75)*ValTimeAuto)+O75-P75)*(H75-Q75)*0.5*(1+TTUprater)^($B75-YearCurrent)) -> 0 | S75: 0 | T75: 0 | AE75: Total | AF75: =SUM(AF24:AF73) -> 0 | AG75: =SUM(AG24:AG73) -> 0 | AH75: =SUM(AH24:AH73) -> 0 | AI75: =SUM(AI24:AI73) -> 171615387.8 | AK75: =SUM(AK24:AK73) -> 171615387.8 | AM75: =SUM(AM24:AM73) -> 666857976.5
B76: 2077 | C76: =MAX(TREND(C24:C25,B24:B25,B76),0) -> 0 | D76: =MAX(TREND(D24:D25,B24:B25,B76),0) -> 0 | G76: =MAX(TREND(G24:G25,$B24:$B25,$B76),0) -> 0 | H76: =MAX(TREND(H24:H25,$B24:$B25,$B76),0) -> 0 | K76: =MAX(TREND(K24:K25,B24:B25,B76),0) -> 0 | L76: =MAX(TREND(L24:L25,B24:B25,B76),0) -> 0 | M76: =IFERROR(IF(B18=Hwy,C76*E76/G76,K76/G76),0) -> 0 | N76: =IFERROR(IF(B18=Hwy,D76*F76/H76,L76/H76),0) -> 0 | O76: =MAX(TREND(O24:O25,$B24:$B25,$B76),0) -> 0 | P76: =MAX(TREND(P24:P25,$B24:$B25,$B76),0) -> 0 | Q76: =TREND(Q24:Q25,$B24:$B25,$B76) -> 0 | R76: =IF(Induced="N",0,(IF(B18=Hwy,M76*(I76*ValTimeTruck+(1-I76)*ValTimeAuto)-N76*(J76*ValTimeTruck+(1-J76)*ValTimeAuto),(IF(INDEX($P$277:$X$280,MATCH(B18,$O$277:$O$280,0),7)>0,INDEX($P$277:$X$280,MATCH(B18,$O$277:$O$280,0),7)/IF(INDEX($P$277:$X$280,MATCH(B18,$O$277:$O$280,0),6)=0,1,INDEX($P$277:$X$280,MATCH(B18,$O$277:$O$280,0),6)),M76)-N76)*ValTimeAuto)+O76-P76)*(H76-Q76)*0.5*(1+TTUprater)^($B76-YearCurrent)) -> 0 | S76: 0 | T76: 0
AE77: =IF(Induced="Y","","* Induced Travel Not Counted") -> 
B78: Total | T78: =SUM(T27:T76) -> 0
A81: 2 | B81: =PARAMETERS!$J$10 -> Pass Train
C83: TOTAL VHT | E83: AVERAGE VEH OCC | G83: =IF(B81=Hwy,"TOTAL VEHICLE TRIPS","TOTAL PERSON TRIPS") -> TOTAL PERSON TRIPS | I83: PERCENT TRUCKS | K83: TOTAL PHT | M83: AVERAGE TRAVEL TIME | O83: OUT OF POCKET COST | Q83: =IF(B81=Hwy,"TOTAL VEHICLE TRIPS","TOTAL PERSON TRIPS") -> TOTAL PERSON TRIPS | R83: CONSUMER SURPLUS BENEFIT
C84: (veh-hours/yr) | E84: (persons/vehicle) | G84: (trips/yr) | I84: (%) | K84: (per-hours/yr) | M84: (hours/trip) | O84: ($/trip) | Q84: (trips/yr) | R84: ($/yr)
B85: Year | Q85: Adjusted (no induced) | R85: New | S85: Constant | T85: Present
C86: No Build | D86: Build | E86: No Build | F86: Build | G86: No Build | H86: Build | I86: No Build | J86: Build | K86: No Build | L86: Build | M86: No Build | N86: Build | O86: No Build | P86: Build | Q86: Build | R86: (Induced) | S86: Dollars | T86: Value
B87: =YearFirst -> 2033 | C87: =SUMIF(INDEX(HwyTransitModelGroup,,1),B81,INDEX(ModelData1NB,,3))*AnnualFactor -> 0 | D87: =SUMIF(INDEX(HwyTransitModelGroup,,1),B81,INDEX(ModelData1B,,3))*AnnualFactor -> 0 | G87: =SUMIF(INDEX(HwyTransitModelGroup,,1),B81,INDEX(ModelData1NB,,1))*AnnualFactor -> 0 | H87: =SUMIF(INDEX(HwyTransitModelGroup,,1),B81,INDEX(ModelData1B,,1))*AnnualFactor -> 0 | K87: =SUMIF(INDEX(HwyTransitModelGroup,,1),B81,INDEX(ModelData1NB,,5))*AnnualFactor -> 0 | L87: =SUMIF(INDEX(HwyTransitModelGroup,,1),B81,INDEX(ModelData1B,,5))*AnnualFactor -> 0 | M87: =IFERROR(IF(B81=Hwy,C87*E87/G87,K87/G87),0) -> 0 | N87: =IFERROR(IF(B81=Hwy,D87*F87/H87,L87/H87),0) -> 0 | O87: =IF(E87=0,0,SUMPRODUCT(--(INDEX(HwyTransitModelGroup,,1)=B81),INDEX(ModelData1NB,,6),INDEX(ModelData1NB,,1))/IF(SUMPRODUCT(--(INDEX(HwyTransitModelGroup,,1)=B81),INDEX(ModelData1NB,,1))=0,1,SUMPRODUCT(--(INDEX(HwyTransitModelGroup,,1)=B81),INDEX(ModelData1NB,,1)))) -> 0 | P87: =IF(F87=0,0,SUMPRODUCT(--(INDEX(HwyTransitModelGroup,,1)=B81),INDEX(ModelData1B,,6),INDEX(ModelData1B,,1))/IF(SUMPRODUCT(--(INDEX(HwyTransitModelGroup,,1)=B81),INDEX(ModelData1B,,1))=0,1,SUMPRODUCT(--(INDEX(HwyTransitModelGroup,,1)=B81),INDEX(ModelData1B,,1)))) -> 0 | Q87: =IFERROR($H87-SUMIF('Consumer Surplus'!$C$277:$C$280,B81,'Consumer Surplus'!$G$277:$G$280),0) -> 0 | R87: =IF(Induced="N",0,(IF(B81=Hwy,M87*(I87*ValTimeTruck+(1-I87)*ValTimeAuto)-N87*(J87*ValTimeTruck+(1-J87)*ValTimeAuto),(IF(INDEX($P$277:$X$280,MATCH(B81,$O$277:$O$280,0),7)>0,INDEX($P$277:$X$280,MATCH(B81,$O$277:$O$280,0),7)/IF(INDEX($P$277:$X$280,MATCH(B81,$O$277:$O$280,0),6)=0,1,INDEX($P$277:$X$280,MATCH(B81,$O$277:$O$280,0),6)),M87)-N87)*ValTimeAuto)+O87-P87)*(H87-Q87)*0.5*(1+TTUprater)^($B87-YearCurrent)) -> 0 | S87: =SUM(R87:R87) -> 0 | T87: =S87/(1+DiscRate)^(B87-YearCurrent) -> 0
B88: =YearLast -> 2043 | C88: =SUMIF(INDEX(HwyTransitModelGroup,,1),B81,INDEX(ModelData20NB,,3))*AnnualFactor -> 0 | D88: =SUMIF(INDEX(HwyTransitModelGroup,,1),B81,INDEX(ModelData20B,,3))*AnnualFactor -> 0 | G88: =SUMIF(INDEX(HwyTransitModelGroup,,1),B81,INDEX(ModelData20NB,,1))*AnnualFactor -> 0 | H88: =SUMIF(INDEX(HwyTransitModelGroup,,1),B81,INDEX(ModelData20B,,1))*AnnualFactor -> 0 | K88: =SUMIF(INDEX(HwyTransitModelGroup,,1),B81,INDEX(ModelData20NB,,5))*AnnualFactor -> 0 | L88: =SUMIF(INDEX(HwyTransitModelGroup,,1),B81,INDEX(ModelData20B,,5))*AnnualFactor -> 0 | M88: =IFERROR(IF(B81=Hwy,C88*E88/G88,K88/G88),0) -> 0 | N88: =IFERROR(IF(B81=Hwy,D88*F88/H88,L88/H88),0) -> 0 | O88: =IF(E88=0,0,SUMPRODUCT(--(INDEX(HwyTransitModelGroup,,1)=B81),INDEX(ModelData20NB,,6),INDEX(ModelData20NB,,1))/IF(SUMPRODUCT(--(INDEX(HwyTransitModelGroup,,1)=B81),INDEX(ModelData20NB,,1))=0,1,SUMPRODUCT(--(INDEX(HwyTransitModelGroup,,1)=B81),INDEX(ModelData20NB,,1)))) -> 0 | P88: =IF(F88=0,0,SUMPRODUCT(--(INDEX(HwyTransitModelGroup,,1)=B81),INDEX(ModelData20B,,6),INDEX(ModelData20B,,1))/IF(SUMPRODUCT(--(INDEX(HwyTransitModelGroup,,1)=B81),INDEX(ModelData20B,,1))=0,1,SUMPRODUCT(--(INDEX(HwyTransitModelGroup,,1)=B81),INDEX(ModelData20B,,1)))) -> 0 | Q88: =IFERROR($H88-SUMIF('Consumer Surplus'!$C$277:$C$280,B81,'Consumer Surplus'!$K$277:$K$280),0) -> 0 | R88: =IF(Induced="N",0,(IF(B81=Hwy,M88*(I88*ValTimeTruck+(1-I88)*ValTimeAuto)-N88*(J88*ValTimeTruck+(1-J88)*ValTimeAuto),(IF(INDEX($P$277:$X$280,MATCH(B81,$O$277:$O$280,0),9)>0,INDEX($P$277:$X$280,MATCH(B81,$O$277:$O$280,0),9)/IF(INDEX($P$277:$X$280,MATCH(B81,$O$277:$O$280,0),9)=0,1,INDEX($P$277:$X$280,MATCH(B81,$O$277:$O$280,0),8)),M88)-N88)*ValTimeAuto)+O88-P88)*(H88-Q88)*0.5*(1+TTUprater)^($B88-YearCurrent)) -> 0 | S88: =SUM(R88:R88) -> 0 | T88: =S88/(1+DiscRate)^(B88-YearCurrent) -> 0
B90: =YearOpen -> 2028 | C90: =MAX(TREND(C87:C88,B87:B88,B90),0) -> 0 | D90: =MAX(TREND(D87:D88,B87:B88,B90),0) -> 0 | G90: =MAX(TREND(G87:G88,$B87:$B88,$B90),0) -> 0 | H90: =MAX(TREND(H87:H88,$B87:$B88,$B90),0) -> 0 | K90: =MAX(TREND(K87:K88,B87:B88,B90),0) -> 0 | L90: =MAX(TREND(L87:L88,B87:B88,B90),0) -> 0 | M90: =IFERROR(IF(B81=Hwy,C90*E90/G90,K90/G90),0) -> 0 | N90: =IFERROR(IF(B81=Hwy,D90*F90/H90,L90/H90),0) -> 0 | O90: =MAX(TREND(O87:O88,$B87:$B88,$B90),0) -> 0 | P90: =MAX(TREND(P87:P88,$B87:$B88,$B90),0) -> 0 | Q90: =TREND(Q87:Q88,$B87:$B88,$B90) -> 0 | R90: =IF(Induced="N",0,(IF(B81=Hwy,M90*(I90*ValTimeTruck+(1-I90)*ValTimeAuto)-N90*(J90*ValTimeTruck+(1-J90)*ValTimeAuto),(IF(INDEX($P$277:$X$280,MATCH(B81,$O$277:$O$280,0),7)>0,INDEX($P$277:$X$280,MATCH(B81,$O$277:$O$280,0),7)/IF(INDEX($P$277:$X$280,MATCH(B81,$O$277:$O$280,0),6)=0,1,INDEX($P$277:$X$280,MATCH(B81,$O$277:$O$280,0),6)),M90)-N90)*ValTimeAuto)+O90-P90)*(H90-Q90)*0.5*(1+TTUprater)^($B90-YearCurrent)) -> 0 | S90: =SUM(R90:R90) -> 0 | T90: =S90/(1+DiscRate)^(B90-YearCurrent) -> 0
B91: =B90+1 -> 2029 | C91: =MAX(TREND(C87:C88,B87:B88,B91),0) -> 0 | D91: =MAX(TREND(D87:D88,B87:B88,B91),0) -> 0 | G91: =MAX(TREND(G87:G88,$B87:$B88,$B91),0) -> 0 | H91: =MAX(TREND(H87:H88,$B87:$B88,$B91),0) -> 0 | K91: =MAX(TREND(K87:K88,B87:B88,B91),0) -> 0 | L91: =MAX(TREND(L87:L88,B87:B88,B91),0) -> 0 | M91: =IFERROR(IF(B81=Hwy,C91*E91/G91,K91/G91),0) -> 0 | N91: =IFERROR(IF(B81=Hwy,D91*F91/H91,L91/H91),0) -> 0 | O91: =MAX(TREND(O87:O88,$B87:$B88,$B91),0) -> 0 | P91: =MAX(TREND(P87:P88,$B87:$B88,$B91),0) -> 0 | Q91: =TREND(Q87:Q88,$B87:$B88,$B91) -> 0 | R91: =IF(Induced="N",0,(IF(B81=Hwy,M91*(I91*ValTimeTruck+(1-I91)*ValTimeAuto)-N91*(J91*ValTimeTruck+(1-J91)*ValTimeAuto),(IF(INDEX($P$277:$X$280,MATCH(B81,$O$277:$O$280,0),7)>0,INDEX($P$277:$X$280,MATCH(B81,$O$277:$O$280,0),7)/IF(INDEX($P$277:$X$280,MATCH(B81,$O$277:$O$280,0),6)=0,1,INDEX($P$277:$X$280,MATCH(B81,$O$277:$O$280,0),6)),M91)-N91)*ValTimeAuto)+O91-P91)*(H91-Q91)*0.5*(1+TTUprater)^($B91-YearCurrent)) -> 0 | S91: 0 | T91: 0
B92: =B91+1 -> 2030 | C92: =MAX(TREND(C87:C88,B87:B88,B92),0) -> 0 | D92: =MAX(TREND(D87:D88,B87:B88,B92),0) -> 0 | G92: =MAX(TREND(G87:G88,$B87:$B88,$B92),0) -> 0 | H92: =MAX(TREND(H87:H88,$B87:$B88,$B92),0) -> 0 | K92: =MAX(TREND(K87:K88,B87:B88,B92),0) -> 0 | L92: =MAX(TREND(L87:L88,B87:B88,B92),0) -> 0 | M92: =IFERROR(IF(B81=Hwy,C92*E92/G92,K92/G92),0) -> 0 | N92: =IFERROR(IF(B81=Hwy,D92*F92/H92,L92/H92),0) -> 0 | O92: =MAX(TREND(O87:O88,$B87:$B88,$B92),0) -> 0 | P92: =MAX(TREND(P87:P88,$B87:$B88,$B92),0) -> 0 | Q92: =TREND(Q87:Q88,$B87:$B88,$B92) -> 0 | R92: =IF(Induced="N",0,(IF(B81=Hwy,M92*(I92*ValTimeTruck+(1-I92)*ValTimeAuto)-N92*(J92*ValTimeTruck+(1-J92)*ValTimeAuto),(IF(INDEX($P$277:$X$280,MATCH(B81,$O$277:$O$280,0),7)>0,INDEX($P$277:$X$280,MATCH(B81,$O$277:$O$280,0),7)/IF(INDEX($P$277:$X$280,MATCH(B81,$O$277:$O$280,0),6)=0,1,INDEX($P$277:$X$280,MATCH(B81,$O$277:$O$280,0),6)),M92)-N92)*ValTimeAuto)+O92-P92)*(H92-Q92)*0.5*(1+TTUprater)^($B92-YearCurrent)) -> 0 | S92: 0 | T92: 0
B93: 2031 | C93: =MAX(TREND(C87:C88,B87:B88,B93),0) -> 0 | D93: =MAX(TREND(D87:D88,B87:B88,B93),0) -> 0 | G93: =MAX(TREND(G87:G88,$B87:$B88,$B93),0) -> 0 | H93: =MAX(TREND(H87:H88,$B87:$B88,$B93),0) -> 0 | K93: =MAX(TREND(K87:K88,B87:B88,B93),0) -> 0 | L93: =MAX(TREND(L87:L88,B87:B88,B93),0) -> 0 | M93: =IFERROR(IF(B81=Hwy,C93*E93/G93,K93/G93),0) -> 0 | N93: =IFERROR(IF(B81=Hwy,D93*F93/H93,L93/H93),0) -> 0 | O93: =MAX(TREND(O87:O88,$B87:$B88,$B93),0) -> 0 | P93: =MAX(TREND(P87:P88,$B87:$B88,$B93),0) -> 0 | Q93: =TREND(Q87:Q88,$B87:$B88,$B93) -> 0 | R93: =IF(Induced="N",0,(IF(B81=Hwy,M93*(I93*ValTimeTruck+(1-I93)*ValTimeAuto)-N93*(J93*ValTimeTruck+(1-J93)*ValTimeAuto),(IF(INDEX($P$277:$X$280,MATCH(B81,$O$277:$O$280,0),7)>0,INDEX($P$277:$X$280,MATCH(B81,$O$277:$O$280,0),7)/IF(INDEX($P$277:$X$280,MATCH(B81,$O$277:$O$280,0),6)=0,1,INDEX($P$277:$X$280,MATCH(B81,$O$277:$O$280,0),6)),M93)-N93)*ValTimeAuto)+O93-P93)*(H93-Q93)*0.5*(1+TTUprater)^($B93-YearCurrent)) -> 0 | S93: 0 | T93: 0
B94: 2032 | C94: =MAX(TREND(C87:C88,B87:B88,B94),0) -> 0 | D94: =MAX(TREND(D87:D88,B87:B88,B94),0) -> 0 | G94: =MAX(TREND(G87:G88,$B87:$B88,$B94),0) -> 0 | H94: =MAX(TREND(H87:H88,$B87:$B88,$B94),0) -> 0 | K94: =MAX(TREND(K87:K88,B87:B88,B94),0) -> 0 | L94: =MAX(TREND(L87:L88,B87:B88,B94),0) -> 0 | M94: =IFERROR(IF(B81=Hwy,C94*E94/G94,K94/G94),0) -> 0 | N94: =IFERROR(IF(B81=Hwy,D94*F94/H94,L94/H94),0) -> 0 | O94: =MAX(TREND(O87:O88,$B87:$B88,$B94),0) -> 0 | P94: =MAX(TREND(P87:P88,$B87:$B88,$B94),0) -> 0 | Q94: =TREND(Q87:Q88,$B87:$B88,$B94) -> 0 | R94: =IF(Induced="N",0,(IF(B81=Hwy,M94*(I94*ValTimeTruck+(1-I94)*ValTimeAuto)-N94*(J94*ValTimeTruck+(1-J94)*ValTimeAuto),(IF(INDEX($P$277:$X$280,MATCH(B81,$O$277:$O$280,0),7)>0,INDEX($P$277:$X$280,MATCH(B81,$O$277:$O$280,0),7)/IF(INDEX($P$277:$X$280,MATCH(B81,$O$277:$O$280,0),6)=0,1,INDEX($P$277:$X$280,MATCH(B81,$O$277:$O$280,0),6)),M94)-N94)*ValTimeAuto)+O94-P94)*(H94-Q94)*0.5*(1+TTUprater)^($B94-YearCurrent)) -> 0 | S94: 0 | T94: 0
B95: 2033 | C95: =MAX(TREND(C87:C88,B87:B88,B95),0) -> 0 | D95: =MAX(TREND(D87:D88,B87:B88,B95),0) -> 0 | G95: =MAX(TREND(G87:G88,$B87:$B88,$B95),0) -> 0 | H95: =MAX(TREND(H87:H88,$B87:$B88,$B95),0) -> 0 | K95: =MAX(TREND(K87:K88,B87:B88,B95),0) -> 0 | L95: =MAX(TREND(L87:L88,B87:B88,B95),0) -> 0 | M95: =IFERROR(IF(B81=Hwy,C95*E95/G95,K95/G95),0) -> 0 | N95: =IFERROR(IF(B81=Hwy,D95*F95/H95,L95/H95),0) -> 0 | O95: =MAX(TREND(O87:O88,$B87:$B88,$B95),0) -> 0 | P95: =MAX(TREND(P87:P88,$B87:$B88,$B95),0) -> 0 | Q95: =TREND(Q87:Q88,$B87:$B88,$B95) -> 0 | R95: =IF(Induced="N",0,(IF(B81=Hwy,M95*(I95*ValTimeTruck+(1-I95)*ValTimeAuto)-N95*(J95*ValTimeTruck+(1-J95)*ValTimeAuto),(IF(INDEX($P$277:$X$280,MATCH(B81,$O$277:$O$280,0),7)>0,INDEX($P$277:$X$280,MATCH(B81,$O$277:$O$280,0),7)/IF(INDEX($P$277:$X$280,MATCH(B81,$O$277:$O$280,0),6)=0,1,INDEX($P$277:$X$280,MATCH(B81,$O$277:$O$280,0),6)),M95)-N95)*ValTimeAuto)+O95-P95)*(H95-Q95)*0.5*(1+TTUprater)^($B95-YearCurrent)) -> 0 | S95: 0 | T95: 0
B96: 2034 | C96: =MAX(TREND(C87:C88,B87:B88,B96),0) -> 0 | D96: =MAX(TREND(D87:D88,B87:B88,B96),0) -> 0 | G96: =MAX(TREND(G87:G88,$B87:$B88,$B96),0) -> 0 | H96: =MAX(TREND(H87:H88,$B87:$B88,$B96),0) -> 0 | K96: =MAX(TREND(K87:K88,B87:B88,B96),0) -> 0 | L96: =MAX(TREND(L87:L88,B87:B88,B96),0) -> 0 | M96: =IFERROR(IF(B81=Hwy,C96*E96/G96,K96/G96),0) -> 0 | N96: =IFERROR(IF(B81=Hwy,D96*F96/H96,L96/H96),0) -> 0 | O96: =MAX(TREND(O87:O88,$B87:$B88,$B96),0) -> 0 | P96: =MAX(TREND(P87:P88,$B87:$B88,$B96),0) -> 0 | Q96: =TREND(Q87:Q88,$B87:$B88,$B96) -> 0 | R96: =IF(Induced="N",0,(IF(B81=Hwy,M96*(I96*ValTimeTruck+(1-I96)*ValTimeAuto)-N96*(J96*ValTimeTruck+(1-J96)*ValTimeAuto),(IF(INDEX($P$277:$X$280,MATCH(B81,$O$277:$O$280,0),7)>0,INDEX($P$277:$X$280,MATCH(B81,$O$277:$O$280,0),7)/IF(INDEX($P$277:$X$280,MATCH(B81,$O$277:$O$280,0),6)=0,1,INDEX($P$277:$X$280,MATCH(B81,$O$277:$O$280,0),6)),M96)-N96)*ValTimeAuto)+O96-P96)*(H96-Q96)*0.5*(1+TTUprater)^($B96-YearCurrent)) -> 0 | S96: 0 | T96: 0
B97: 2035 | C97: =MAX(TREND(C87:C88,B87:B88,B97),0) -> 0 | D97: =MAX(TREND(D87:D88,B87:B88,B97),0) -> 0 | G97: =MAX(TREND(G87:G88,$B87:$B88,$B97),0) -> 0 | H97: =MAX(TREND(H87:H88,$B87:$B88,$B97),0) -> 0 | K97: =MAX(TREND(K87:K88,B87:B88,B97),0) -> 0 | L97: =MAX(TREND(L87:L88,B87:B88,B97),0) -> 0 | M97: =IFERROR(IF(B81=Hwy,C97*E97/G97,K97/G97),0) -> 0 | N97: =IFERROR(IF(B81=Hwy,D97*F97/H97,L97/H97),0) -> 0 | O97: =MAX(TREND(O87:O88,$B87:$B88,$B97),0) -> 0 | P97: =MAX(TREND(P87:P88,$B87:$B88,$B97),0) -> 0 | Q97: =TREND(Q87:Q88,$B87:$B88,$B97) -> 0 | R97: =IF(Induced="N",0,(IF(B81=Hwy,M97*(I97*ValTimeTruck+(1-I97)*ValTimeAuto)-N97*(J97*ValTimeTruck+(1-J97)*ValTimeAuto),(IF(INDEX($P$277:$X$280,MATCH(B81,$O$277:$O$280,0),7)>0,INDEX($P$277:$X$280,MATCH(B81,$O$277:$O$280,0),7)/IF(INDEX($P$277:$X$280,MATCH(B81,$O$277:$O$280,0),6)=0,1,INDEX($P$277:$X$280,MATCH(B81,$O$277:$O$280,0),6)),M97)-N97)*ValTimeAuto)+O97-P97)*(H97-Q97)*0.5*(1+TTUprater)^($B97-YearCurrent)) -> 0 | S97: 0 | T97: 0
B98: 2036 | C98: =MAX(TREND(C87:C88,B87:B88,B98),0) -> 0 | D98: =MAX(TREND(D87:D88,B87:B88,B98),0) -> 0 | G98: =MAX(TREND(G87:G88,$B87:$B88,$B98),0) -> 0 | H98: =MAX(TREND(H87:H88,$B87:$B88,$B98),0) -> 0 | K98: =MAX(TREND(K87:K88,B87:B88,B98),0) -> 0 | L98: =MAX(TREND(L87:L88,B87:B88,B98),0) -> 0 | M98: =IFERROR(IF(B81=Hwy,C98*E98/G98,K98/G98),0) -> 0 | N98: =IFERROR(IF(B81=Hwy,D98*F98/H98,L98/H98),0) -> 0 | O98: =MAX(TREND(O87:O88,$B87:$B88,$B98),0) -> 0 | P98: =MAX(TREND(P87:P88,$B87:$B88,$B98),0) -> 0 | Q98: =TREND(Q87:Q88,$B87:$B88,$B98) -> 0 | R98: =IF(Induced="N",0,(IF(B81=Hwy,M98*(I98*ValTimeTruck+(1-I98)*ValTimeAuto)-N98*(J98*ValTimeTruck+(1-J98)*ValTimeAuto),(IF(INDEX($P$277:$X$280,MATCH(B81,$O$277:$O$280,0),7)>0,INDEX($P$277:$X$280,MATCH(B81,$O$277:$O$280,0),7)/IF(INDEX($P$277:$X$280,MATCH(B81,$O$277:$O$280,0),6)=0,1,INDEX($P$277:$X$280,MATCH(B81,$O$277:$O$280,0),6)),M98)-N98)*ValTimeAuto)+O98-P98)*(H98-Q98)*0.5*(1+TTUprater)^($B98-YearCurrent)) -> 0 | S98: 0 | T98: 0
B99: 2037 | C99: =MAX(TREND(C87:C88,B87:B88,B99),0) -> 0 | D99: =MAX(TREND(D87:D88,B87:B88,B99),0) -> 0 | G99: =MAX(TREND(G87:G88,$B87:$B88,$B99),0) -> 0 | H99: =MAX(TREND(H87:H88,$B87:$B88,$B99),0) -> 0 | K99: =MAX(TREND(K87:K88,B87:B88,B99),0) -> 0 | L99: =MAX(TREND(L87:L88,B87:B88,B99),0) -> 0 | M99: =IFERROR(IF(B81=Hwy,C99*E99/G99,K99/G99),0) -> 0 | N99: =IFERROR(IF(B81=Hwy,D99*F99/H99,L99/H99),0) -> 0 | O99: =MAX(TREND(O87:O88,$B87:$B88,$B99),0) -> 0 | P99: =MAX(TREND(P87:P88,$B87:$B88,$B99),0) -> 0 | Q99: =TREND(Q87:Q88,$B87:$B88,$B99) -> 0 | R99: =IF(Induced="N",0,(IF(B81=Hwy,M99*(I99*ValTimeTruck+(1-I99)*ValTimeAuto)-N99*(J99*ValTimeTruck+(1-J99)*ValTimeAuto),(IF(INDEX($P$277:$X$280,MATCH(B81,$O$277:$O$280,0),7)>0,INDEX($P$277:$X$280,MATCH(B81,$O$277:$O$280,0),7)/IF(INDEX($P$277:$X$280,MATCH(B81,$O$277:$O$280,0),6)=0,1,INDEX($P$277:$X$280,MATCH(B81,$O$277:$O$280,0),6)),M99)-N99)*ValTimeAuto)+O99-P99)*(H99-Q99)*0.5*(1+TTUprater)^($B99-YearCurrent)) -> 0 | S99: 0 | T99: 0
B100: 2038 | C100: =MAX(TREND(C87:C88,B87:B88,B100),0) -> 0 | D100: =MAX(TREND(D87:D88,B87:B88,B100),0) -> 0 | G100: =MAX(TREND(G87:G88,$B87:$B88,$B100),0) -> 0 | H100: =MAX(TREND(H87:H88,$B87:$B88,$B100),0) -> 0 | K100: =MAX(TREND(K87:K88,B87:B88,B100),0) -> 0 | L100: =MAX(TREND(L87:L88,B87:B88,B100),0) -> 0 | M100: =IFERROR(IF(B81=Hwy,C100*E100/G100,K100/G100),0) -> 0 | N100: =IFERROR(IF(B81=Hwy,D100*F100/H100,L100/H100),0) -> 0 | O100: =MAX(TREND(O87:O88,$B87:$B88,$B100),0) -> 0 | P100: =MAX(TREND(P87:P88,$B87:$B88,$B100),0) -> 0 | Q100: =TREND(Q87:Q88,$B87:$B88,$B100) -> 0 | R100: =IF(Induced="N",0,(IF(B81=Hwy,M100*(I100*ValTimeTruck+(1-I100)*ValTimeAuto)-N100*(J100*ValTimeTruck+(1-J100)*ValTimeAuto),(IF(INDEX($P$277:$X$280,MATCH(B81,$O$277:$O$280,0),7)>0,INDEX($P$277:$X$280,MATCH(B81,$O$277:$O$280,0),7)/IF(INDEX($P$277:$X$280,MATCH(B81,$O$277:$O$280,0),6)=0,1,INDEX($P$277:$X$280,MATCH(B81,$O$277:$O$280,0),6)),M100)-N100)*ValTimeAuto)+O100-P100)*(H100-Q100)*0.5*(1+TTUprater)^($B100-YearCurrent)) -> 0 | S100: 0 | T100: 0
B101: 2039 | C101: =MAX(TREND(C87:C88,B87:B88,B101),0) -> 0 | D101: =MAX(TREND(D87:D88,B87:B88,B101),0) -> 0 | G101: =MAX(TREND(G87:G88,$B87:$B88,$B101),0) -> 0 | H101: =MAX(TREND(H87:H88,$B87:$B88,$B101),0) -> 0 | K101: =MAX(TREND(K87:K88,B87:B88,B101),0) -> 0 | L101: =MAX(TREND(L87:L88,B87:B88,B101),0) -> 0 | M101: =IFERROR(IF(B81=Hwy,C101*E101/G101,K101/G101),0) -> 0 | N101: =IFERROR(IF(B81=Hwy,D101*F101/H101,L101/H101),0) -> 0 | O101: =MAX(TREND(O87:O88,$B87:$B88,$B101),0) -> 0 | P101: =MAX(TREND(P87:P88,$B87:$B88,$B101),0) -> 0 | Q101: =TREND(Q87:Q88,$B87:$B88,$B101) -> 0 | R101: =IF(Induced="N",0,(IF(B81=Hwy,M101*(I101*ValTimeTruck+(1-I101)*ValTimeAuto)-N101*(J101*ValTimeTruck+(1-J101)*ValTimeAuto),(IF(INDEX($P$277:$X$280,MATCH(B81,$O$277:$O$280,0),7)>0,INDEX($P$277:$X$280,MATCH(B81,$O$277:$O$280,0),7)/IF(INDEX($P$277:$X$280,MATCH(B81,$O$277:$O$280,0),6)=0,1,INDEX($P$277:$X$280,MATCH(B81,$O$277:$O$280,0),6)),M101)-N101)*ValTimeAuto)+O101-P101)*(H101-Q101)*0.5*(1+TTUprater)^($B101-YearCurrent)) -> 0 | S101: 0 | T101: 0
B102: 2040 | C102: =MAX(TREND(C87:C88,B87:B88,B102),0) -> 0 | D102: =MAX(TREND(D87:D88,B87:B88,B102),0) -> 0 | G102: =MAX(TREND(G87:G88,$B87:$B88,$B102),0) -> 0 | H102: =MAX(TREND(H87:H88,$B87:$B88,$B102),0) -> 0 | K102: =MAX(TREND(K87:K88,B87:B88,B102),0) -> 0 | L102: =MAX(TREND(L87:L88,B87:B88,B102),0) -> 0 | M102: =IFERROR(IF(B81=Hwy,C102*E102/G102,K102/G102),0) -> 0 | N102: =IFERROR(IF(B81=Hwy,D102*F102/H102,L102/H102),0) -> 0 | O102: =MAX(TREND(O87:O88,$B87:$B88,$B102),0) -> 0 | P102: =MAX(TREND(P87:P88,$B87:$B88,$B102),0) -> 0 | Q102: =TREND(Q87:Q88,$B87:$B88,$B102) -> 0 | R102: =IF(Induced="N",0,(IF(B81=Hwy,M102*(I102*ValTimeTruck+(1-I102)*ValTimeAuto)-N102*(J102*ValTimeTruck+(1-J102)*ValTimeAuto),(IF(INDEX($P$277:$X$280,MATCH(B81,$O$277:$O$280,0),7)>0,INDEX($P$277:$X$280,MATCH(B81,$O$277:$O$280,0),7)/IF(INDEX($P$277:$X$280,MATCH(B81,$O$277:$O$280,0),6)=0,1,INDEX($P$277:$X$280,MATCH(B81,$O$277:$O$280,0),6)),M102)-N102)*ValTimeAuto)+O102-P102)*(H102-Q102)*0.5*(1+TTUprater)^($B102-YearCurrent)) -> 0 | S102: 0 | T102: 0
B103: 2041 | C103: =MAX(TREND(C87:C88,B87:B88,B103),0) -> 0 | D103: =MAX(TREND(D87:D88,B87:B88,B103),0) -> 0 | G103: =MAX(TREND(G87:G88,$B87:$B88,$B103),0) -> 0 | H103: =MAX(TREND(H87:H88,$B87:$B88,$B103),0) -> 0 | K103: =MAX(TREND(K87:K88,B87:B88,B103),0) -> 0 | L103: =MAX(TREND(L87:L88,B87:B88,B103),0) -> 0 | M103: =IFERROR(IF(B81=Hwy,C103*E103/G103,K103/G103),0) -> 0 | N103: =IFERROR(IF(B81=Hwy,D103*F103/H103,L103/H103),0) -> 0 | O103: =MAX(TREND(O87:O88,$B87:$B88,$B103),0) -> 0 | P103: =MAX(TREND(P87:P88,$B87:$B88,$B103),0) -> 0 | Q103: =TREND(Q87:Q88,$B87:$B88,$B103) -> 0 | R103: =IF(Induced="N",0,(IF(B81=Hwy,M103*(I103*ValTimeTruck+(1-I103)*ValTimeAuto)-N103*(J103*ValTimeTruck+(1-J103)*ValTimeAuto),(IF(INDEX($P$277:$X$280,MATCH(B81,$O$277:$O$280,0),7)>0,INDEX($P$277:$X$280,MATCH(B81,$O$277:$O$280,0),7)/IF(INDEX($P$277:$X$280,MATCH(B81,$O$277:$O$280,0),6)=0,1,INDEX($P$277:$X$280,MATCH(B81,$O$277:$O$280,0),6)),M103)-N103)*ValTimeAuto)+O103-P103)*(H103-Q103)*0.5*(1+TTUprater)^($B103-YearCurrent)) -> 0 | S103: 0 | T103: 0
B104: 2042 | C104: =MAX(TREND(C87:C88,B87:B88,B104),0) -> 0 | D104: =MAX(TREND(D87:D88,B87:B88,B104),0) -> 0 | G104: =MAX(TREND(G87:G88,$B87:$B88,$B104),0) -> 0 | H104: =MAX(TREND(H87:H88,$B87:$B88,$B104),0) -> 0 | K104: =MAX(TREND(K87:K88,B87:B88,B104),0) -> 0 | L104: =MAX(TREND(L87:L88,B87:B88,B104),0) -> 0 | M104: =IFERROR(IF(B81=Hwy,C104*E104/G104,K104/G104),0) -> 0 | N104: =IFERROR(IF(B81=Hwy,D104*F104/H104,L104/H104),0) -> 0 | O104: =MAX(TREND(O87:O88,$B87:$B88,$B104),0) -> 0 | P104: =MAX(TREND(P87:P88,$B87:$B88,$B104),0) -> 0 | Q104: =TREND(Q87:Q88,$B87:$B88,$B104) -> 0 | R104: =IF(Induced="N",0,(IF(B81=Hwy,M104*(I104*ValTimeTruck+(1-I104)*ValTimeAuto)-N104*(J104*ValTimeTruck+(1-J104)*ValTimeAuto),(IF(INDEX($P$277:$X$280,MATCH(B81,$O$277:$O$280,0),7)>0,INDEX($P$277:$X$280,MATCH(B81,$O$277:$O$280,0),7)/IF(INDEX($P$277:$X$280,MATCH(B81,$O$277:$O$280,0),6)=0,1,INDEX($P$277:$X$280,MATCH(B81,$O$277:$O$280,0),6)),M104)-N104)*ValTimeAuto)+O104-P104)*(H104-Q104)*0.5*(1+TTUprater)^($B104-YearCurrent)) -> 0 | S104: 0 | T104: 0
B105: 2043 | C105: =MAX(TREND(C87:C88,B87:B88,B105),0) -> 0 | D105: =MAX(TREND(D87:D88,B87:B88,B105),0) -> 0 | G105: =MAX(TREND(G87:G88,$B87:$B88,$B105),0) -> 0 | H105: =MAX(TREND(H87:H88,$B87:$B88,$B105),0) -> 0 | K105: =MAX(TREND(K87:K88,B87:B88,B105),0) -> 0 | L105: =MAX(TREND(L87:L88,B87:B88,B105),0) -> 0 | M105: =IFERROR(IF(B81=Hwy,C105*E105/G105,K105/G105),0) -> 0 | N105: =IFERROR(IF(B81=Hwy,D105*F105/H105,L105/H105),0) -> 0 | O105: =MAX(TREND(O87:O88,$B87:$B88,$B105),0) -> 0 | P105: =MAX(TREND(P87:P88,$B87:$B88,$B105),0) -> 0 | Q105: =TREND(Q87:Q88,$B87:$B88,$B105) -> 0 | R105: =IF(Induced="N",0,(IF(B81=Hwy,M105*(I105*ValTimeTruck+(1-I105)*ValTimeAuto)-N105*(J105*ValTimeTruck+(1-J105)*ValTimeAuto),(IF(INDEX($P$277:$X$280,MATCH(B81,$O$277:$O$280,0),7)>0,INDEX($P$277:$X$280,MATCH(B81,$O$277:$O$280,0),7)/IF(INDEX($P$277:$X$280,MATCH(B81,$O$277:$O$280,0),6)=0,1,INDEX($P$277:$X$280,MATCH(B81,$O$277:$O$280,0),6)),M105)-N105)*ValTimeAuto)+O105-P105)*(H105-Q105)*0.5*(1+TTUprater)^($B105-YearCurrent)) -> 0 | S105: 0 | T105: 0
B106: 2044 | C106: =MAX(TREND(C87:C88,B87:B88,B106),0) -> 0 | D106: =MAX(TREND(D87:D88,B87:B88,B106),0) -> 0 | G106: =MAX(TREND(G87:G88,$B87:$B88,$B106),0) -> 0 | H106: =MAX(TREND(H87:H88,$B87:$B88,$B106),0) -> 0 | K106: =MAX(TREND(K87:K88,B87:B88,B106),0) -> 0 | L106: =MAX(TREND(L87:L88,B87:B88,B106),0) -> 0 | M106: =IFERROR(IF(B81=Hwy,C106*E106/G106,K106/G106),0) -> 0 | N106: =IFERROR(IF(B81=Hwy,D106*F106/H106,L106/H106),0) -> 0 | O106: =MAX(TREND(O87:O88,$B87:$B88,$B106),0) -> 0 | P106: =MAX(TREND(P87:P88,$B87:$B88,$B106),0) -> 0 | Q106: =TREND(Q87:Q88,$B87:$B88,$B106) -> 0 | R106: =IF(Induced="N",0,(IF(B81=Hwy,M106*(I106*ValTimeTruck+(1-I106)*ValTimeAuto)-N106*(J106*ValTimeTruck+(1-J106)*ValTimeAuto),(IF(INDEX($P$277:$X$280,MATCH(B81,$O$277:$O$280,0),7)>0,INDEX($P$277:$X$280,MATCH(B81,$O$277:$O$280,0),7)/IF(INDEX($P$277:$X$280,MATCH(B81,$O$277:$O$280,0),6)=0,1,INDEX($P$277:$X$280,MATCH(B81,$O$277:$O$280,0),6)),M106)-N106)*ValTimeAuto)+O106-P106)*(H106-Q106)*0.5*(1+TTUprater)^($B106-YearCurrent)) -> 0 | S106: 0 | T106: 0
B107: 2045 | C107: =MAX(TREND(C87:C88,B87:B88,B107),0) -> 0 | D107: =MAX(TREND(D87:D88,B87:B88,B107),0) -> 0 | G107: =MAX(TREND(G87:G88,$B87:$B88,$B107),0) -> 0 | H107: =MAX(TREND(H87:H88,$B87:$B88,$B107),0) -> 0 | K107: =MAX(TREND(K87:K88,B87:B88,B107),0) -> 0 | L107: =MAX(TREND(L87:L88,B87:B88,B107),0) -> 0 | M107: =IFERROR(IF(B81=Hwy,C107*E107/G107,K107/G107),0) -> 0 | N107: =IFERROR(IF(B81=Hwy,D107*F107/H107,L107/H107),0) -> 0 | O107: =MAX(TREND(O87:O88,$B87:$B88,$B107),0) -> 0 | P107: =MAX(TREND(P87:P88,$B87:$B88,$B107),0) -> 0 | Q107: =TREND(Q87:Q88,$B87:$B88,$B107) -> 0 | R107: =IF(Induced="N",0,(IF(B81=Hwy,M107*(I107*ValTimeTruck+(1-I107)*ValTimeAuto)-N107*(J107*ValTimeTruck+(1-J107)*ValTimeAuto),(IF(INDEX($P$277:$X$280,MATCH(B81,$O$277:$O$280,0),7)>0,INDEX($P$277:$X$280,MATCH(B81,$O$277:$O$280,0),7)/IF(INDEX($P$277:$X$280,MATCH(B81,$O$277:$O$280,0),6)=0,1,INDEX($P$277:$X$280,MATCH(B81,$O$277:$O$280,0),6)),M107)-N107)*ValTimeAuto)+O107-P107)*(H107-Q107)*0.5*(1+TTUprater)^($B107-YearCurrent)) -> 0 | S107: 0 | T107: 0
B108: 2046 | C108: =MAX(TREND(C87:C88,B87:B88,B108),0) -> 0 | D108: =MAX(TREND(D87:D88,B87:B88,B108),0) -> 0 | G108: =MAX(TREND(G87:G88,$B87:$B88,$B108),0) -> 0 | H108: =MAX(TREND(H87:H88,$B87:$B88,$B108),0) -> 0 | K108: =MAX(TREND(K87:K88,B87:B88,B108),0) -> 0 | L108: =MAX(TREND(L87:L88,B87:B88,B108),0) -> 0 | M108: =IFERROR(IF(B81=Hwy,C108*E108/G108,K108/G108),0) -> 0 | N108: =IFERROR(IF(B81=Hwy,D108*F108/H108,L108/H108),0) -> 0 | O108: =MAX(TREND(O87:O88,$B87:$B88,$B108),0) -> 0 | P108: =MAX(TREND(P87:P88,$B87:$B88,$B108),0) -> 0 | Q108: =TREND(Q87:Q88,$B87:$B88,$B108) -> 0 | R108: =IF(Induced="N",0,(IF(B81=Hwy,M108*(I108*ValTimeTruck+(1-I108)*ValTimeAuto)-N108*(J108*ValTimeTruck+(1-J108)*ValTimeAuto),(IF(INDEX($P$277:$X$280,MATCH(B81,$O$277:$O$280,0),7)>0,INDEX($P$277:$X$280,MATCH(B81,$O$277:$O$280,0),7)/IF(INDEX($P$277:$X$280,MATCH(B81,$O$277:$O$280,0),6)=0,1,INDEX($P$277:$X$280,MATCH(B81,$O$277:$O$280,0),6)),M108)-N108)*ValTimeAuto)+O108-P108)*(H108-Q108)*0.5*(1+TTUprater)^($B108-YearCurrent)) -> 0 | S108: 0 | T108: 0
B109: 2047 | C109: =MAX(TREND(C87:C88,B87:B88,B109),0) -> 0 | D109: =MAX(TREND(D87:D88,B87:B88,B109),0) -> 0 | G109: =MAX(TREND(G87:G88,$B87:$B88,$B109),0) -> 0 | H109: =MAX(TREND(H87:H88,$B87:$B88,$B109),0) -> 0 | K109: =MAX(TREND(K87:K88,B87:B88,B109),0) -> 0 | L109: =MAX(TREND(L87:L88,B87:B88,B109),0) -> 0 | M109: =IFERROR(IF(B81=Hwy,C109*E109/G109,K109/G109),0) -> 0 | N109: =IFERROR(IF(B81=Hwy,D109*F109/H109,L109/H109),0) -> 0 | O109: =MAX(TREND(O87:O88,$B87:$B88,$B109),0) -> 0 | P109: =MAX(TREND(P87:P88,$B87:$B88,$B109),0) -> 0 | Q109: =TREND(Q87:Q88,$B87:$B88,$B109) -> 0 | R109: =IF(Induced="N",0,(IF(B81=Hwy,M109*(I109*ValTimeTruck+(1-I109)*ValTimeAuto)-N109*(J109*ValTimeTruck+(1-J109)*ValTimeAuto),(IF(INDEX($P$277:$X$280,MATCH(B81,$O$277:$O$280,0),7)>0,INDEX($P$277:$X$280,MATCH(B81,$O$277:$O$280,0),7)/IF(INDEX($P$277:$X$280,MATCH(B81,$O$277:$O$280,0),6)=0,1,INDEX($P$277:$X$280,MATCH(B81,$O$277:$O$280,0),6)),M109)-N109)*ValTimeAuto)+O109-P109)*(H109-Q109)*0.5*(1+TTUprater)^($B109-YearCurrent)) -> 0 | S109: 0 | T109: 0
B110: 2048 | C110: =MAX(TREND(C87:C88,B87:B88,B110),0) -> 0 | D110: =MAX(TREND(D87:D88,B87:B88,B110),0) -> 0 | G110: =MAX(TREND(G87:G88,$B87:$B88,$B110),0) -> 0 | H110: =MAX(TREND(H87:H88,$B87:$B88,$B110),0) -> 0 | K110: =MAX(TREND(K87:K88,B87:B88,B110),0) -> 0 | L110: =MAX(TREND(L87:L88,B87:B88,B110),0) -> 0 | M110: =IFERROR(IF(B81=Hwy,C110*E110/G110,K110/G110),0) -> 0 | N110: =IFERROR(IF(B81=Hwy,D110*F110/H110,L110/H110),0) -> 0 | O110: =MAX(TREND(O87:O88,$B87:$B88,$B110),0) -> 0 | P110: =MAX(TREND(P87:P88,$B87:$B88,$B110),0) -> 0 | Q110: =TREND(Q87:Q88,$B87:$B88,$B110) -> 0 | R110: =IF(Induced="N",0,(IF(B81=Hwy,M110*(I110*ValTimeTruck+(1-I110)*ValTimeAuto)-N110*(J110*ValTimeTruck+(1-J110)*ValTimeAuto),(IF(INDEX($P$277:$X$280,MATCH(B81,$O$277:$O$280,0),7)>0,INDEX($P$277:$X$280,MATCH(B81,$O$277:$O$280,0),7)/IF(INDEX($P$277:$X$280,MATCH(B81,$O$277:$O$280,0),6)=0,1,INDEX($P$277:$X$280,MATCH(B81,$O$277:$O$280,0),6)),M110)-N110)*ValTimeAuto)+O110-P110)*(H110-Q110)*0.5*(1+TTUprater)^($B110-YearCurrent)) -> 0 | S110: 0 | T110: 0
B111: 2049 | C111: =MAX(TREND(C87:C88,B87:B88,B111),0) -> 0 | D111: =MAX(TREND(D87:D88,B87:B88,B111),0) -> 0 | G111: =MAX(TREND(G87:G88,$B87:$B88,$B111),0) -> 0 | H111: =MAX(TREND(H87:H88,$B87:$B88,$B111),0) -> 0 | K111: =MAX(TREND(K87:K88,B87:B88,B111),0) -> 0 | L111: =MAX(TREND(L87:L88,B87:B88,B111),0) -> 0 | M111: =IFERROR(IF(B81=Hwy,C111*E111/G111,K111/G111),0) -> 0 | N111: =IFERROR(IF(B81=Hwy,D111*F111/H111,L111/H111),0) -> 0 | O111: =MAX(TREND(O87:O88,$B87:$B88,$B111),0) -> 0 | P111: =MAX(TREND(P87:P88,$B87:$B88,$B111),0) -> 0 | Q111: =TREND(Q87:Q88,$B87:$B88,$B111) -> 0 | R111: =IF(Induced="N",0,(IF(B81=Hwy,M111*(I111*ValTimeTruck+(1-I111)*ValTimeAuto)-N111*(J111*ValTimeTruck+(1-J111)*ValTimeAuto),(IF(INDEX($P$277:$X$280,MATCH(B81,$O$277:$O$280,0),7)>0,INDEX($P$277:$X$280,MATCH(B81,$O$277:$O$280,0),7)/IF(INDEX($P$277:$X$280,MATCH(B81,$O$277:$O$280,0),6)=0,1,INDEX($P$277:$X$280,MATCH(B81,$O$277:$O$280,0),6)),M111)-N111)*ValTimeAuto)+O111-P111)*(H111-Q111)*0.5*(1+TTUprater)^($B111-YearCurrent)) -> 0 | S111: 0 | T111: 0
B112: 2050 | C112: =MAX(TREND(C87:C88,B87:B88,B112),0) -> 0 | D112: =MAX(TREND(D87:D88,B87:B88,B112),0) -> 0 | G112: =MAX(TREND(G87:G88,$B87:$B88,$B112),0) -> 0 | H112: =MAX(TREND(H87:H88,$B87:$B88,$B112),0) -> 0 | K112: =MAX(TREND(K87:K88,B87:B88,B112),0) -> 0 | L112: =MAX(TREND(L87:L88,B87:B88,B112),0) -> 0 | M112: =IFERROR(IF(B81=Hwy,C112*E112/G112,K112/G112),0) -> 0 | N112: =IFERROR(IF(B81=Hwy,D112*F112/H112,L112/H112),0) -> 0 | O112: =MAX(TREND(O87:O88,$B87:$B88,$B112),0) -> 0 | P112: =MAX(TREND(P87:P88,$B87:$B88,$B112),0) -> 0 | Q112: =TREND(Q87:Q88,$B87:$B88,$B112) -> 0 | R112: =IF(Induced="N",0,(IF(B81=Hwy,M112*(I112*ValTimeTruck+(1-I112)*ValTimeAuto)-N112*(J112*ValTimeTruck+(1-J112)*ValTimeAuto),(IF(INDEX($P$277:$X$280,MATCH(B81,$O$277:$O$280,0),7)>0,INDEX($P$277:$X$280,MATCH(B81,$O$277:$O$280,0),7)/IF(INDEX($P$277:$X$280,MATCH(B81,$O$277:$O$280,0),6)=0,1,INDEX($P$277:$X$280,MATCH(B81,$O$277:$O$280,0),6)),M112)-N112)*ValTimeAuto)+O112-P112)*(H112-Q112)*0.5*(1+TTUprater)^($B112-YearCurrent)) -> 0 | S112: 0 | T112: 0
B113: 2051 | C113: =MAX(TREND(C87:C88,B87:B88,B113),0) -> 0 | D113: =MAX(TREND(D87:D88,B87:B88,B113),0) -> 0 | G113: =MAX(TREND(G87:G88,$B87:$B88,$B113),0) -> 0 | H113: =MAX(TREND(H87:H88,$B87:$B88,$B113),0) -> 0 | K113: =MAX(TREND(K87:K88,B87:B88,B113),0) -> 0 | L113: =MAX(TREND(L87:L88,B87:B88,B113),0) -> 0 | M113: =IFERROR(IF(B81=Hwy,C113*E113/G113,K113/G113),0) -> 0 | N113: =IFERROR(IF(B81=Hwy,D113*F113/H113,L113/H113),0) -> 0 | O113: =MAX(TREND(O87:O88,$B87:$B88,$B113),0) -> 0 | P113: =MAX(TREND(P87:P88,$B87:$B88,$B113),0) -> 0 | Q113: =TREND(Q87:Q88,$B87:$B88,$B113) -> 0 | R113: =IF(Induced="N",0,(IF(B81=Hwy,M113*(I113*ValTimeTruck+(1-I113)*ValTimeAuto)-N113*(J113*ValTimeTruck+(1-J113)*ValTimeAuto),(IF(INDEX($P$277:$X$280,MATCH(B81,$O$277:$O$280,0),7)>0,INDEX($P$277:$X$280,MATCH(B81,$O$277:$O$280,0),7)/IF(INDEX($P$277:$X$280,MATCH(B81,$O$277:$O$280,0),6)=0,1,INDEX($P$277:$X$280,MATCH(B81,$O$277:$O$280,0),6)),M113)-N113)*ValTimeAuto)+O113-P113)*(H113-Q113)*0.5*(1+TTUprater)^($B113-YearCurrent)) -> 0 | S113: 0 | T113: 0
B114: 2052 | C114: =MAX(TREND(C87:C88,B87:B88,B114),0) -> 0 | D114: =MAX(TREND(D87:D88,B87:B88,B114),0) -> 0 | G114: =MAX(TREND(G87:G88,$B87:$B88,$B114),0) -> 0 | H114: =MAX(TREND(H87:H88,$B87:$B88,$B114),0) -> 0 | K114: =MAX(TREND(K87:K88,B87:B88,B114),0) -> 0 | L114: =MAX(TREND(L87:L88,B87:B88,B114),0) -> 0 | M114: =IFERROR(IF(B81=Hwy,C114*E114/G114,K114/G114),0) -> 0 | N114: =IFERROR(IF(B81=Hwy,D114*F114/H114,L114/H114),0) -> 0 | O114: =MAX(TREND(O87:O88,$B87:$B88,$B114),0) -> 0 | P114: =MAX(TREND(P87:P88,$B87:$B88,$B114),0) -> 0 | Q114: =TREND(Q87:Q88,$B87:$B88,$B114) -> 0 | R114: =IF(Induced="N",0,(IF(B81=Hwy,M114*(I114*ValTimeTruck+(1-I114)*ValTimeAuto)-N114*(J114*ValTimeTruck+(1-J114)*ValTimeAuto),(IF(INDEX($P$277:$X$280,MATCH(B81,$O$277:$O$280,0),7)>0,INDEX($P$277:$X$280,MATCH(B81,$O$277:$O$280,0),7)/IF(INDEX($P$277:$X$280,MATCH(B81,$O$277:$O$280,0),6)=0,1,INDEX($P$277:$X$280,MATCH(B81,$O$277:$O$280,0),6)),M114)-N114)*ValTimeAuto)+O114-P114)*(H114-Q114)*0.5*(1+TTUprater)^($B114-YearCurrent)) -> 0 | S114: 0 | T114: 0
B115: 2053 | C115: =MAX(TREND(C87:C88,B87:B88,B115),0) -> 0 | D115: =MAX(TREND(D87:D88,B87:B88,B115),0) -> 0 | G115: =MAX(TREND(G87:G88,$B87:$B88,$B115),0) -> 0 | H115: =MAX(TREND(H87:H88,$B87:$B88,$B115),0) -> 0 | K115: =MAX(TREND(K87:K88,B87:B88,B115),0) -> 0 | L115: =MAX(TREND(L87:L88,B87:B88,B115),0) -> 0 | M115: =IFERROR(IF(B81=Hwy,C115*E115/G115,K115/G115),0) -> 0 | N115: =IFERROR(IF(B81=Hwy,D115*F115/H115,L115/H115),0) -> 0 | O115: =MAX(TREND(O87:O88,$B87:$B88,$B115),0) -> 0 | P115: =MAX(TREND(P87:P88,$B87:$B88,$B115),0) -> 0 | Q115: =TREND(Q87:Q88,$B87:$B88,$B115) -> 0 | R115: =IF(Induced="N",0,(IF(B81=Hwy,M115*(I115*ValTimeTruck+(1-I115)*ValTimeAuto)-N115*(J115*ValTimeTruck+(1-J115)*ValTimeAuto),(IF(INDEX($P$277:$X$280,MATCH(B81,$O$277:$O$280,0),7)>0,INDEX($P$277:$X$280,MATCH(B81,$O$277:$O$280,0),7)/IF(INDEX($P$277:$X$280,MATCH(B81,$O$277:$O$280,0),6)=0,1,INDEX($P$277:$X$280,MATCH(B81,$O$277:$O$280,0),6)),M115)-N115)*ValTimeAuto)+O115-P115)*(H115-Q115)*0.5*(1+TTUprater)^($B115-YearCurrent)) -> 0 | S115: 0 | T115: 0
B116: 2054 | C116: =MAX(TREND(C87:C88,B87:B88,B116),0) -> 0 | D116: =MAX(TREND(D87:D88,B87:B88,B116),0) -> 0 | G116: =MAX(TREND(G87:G88,$B87:$B88,$B116),0) -> 0 | H116: =MAX(TREND(H87:H88,$B87:$B88,$B116),0) -> 0 | K116: =MAX(TREND(K87:K88,B87:B88,B116),0) -> 0 | L116: =MAX(TREND(L87:L88,B87:B88,B116),0) -> 0 | M116: =IFERROR(IF(B81=Hwy,C116*E116/G116,K116/G116),0) -> 0 | N116: =IFERROR(IF(B81=Hwy,D116*F116/H116,L116/H116),0) -> 0 | O116: =MAX(TREND(O87:O88,$B87:$B88,$B116),0) -> 0 | P116: =MAX(TREND(P87:P88,$B87:$B88,$B116),0) -> 0 | Q116: =TREND(Q87:Q88,$B87:$B88,$B116) -> 0 | R116: =IF(Induced="N",0,(IF(B81=Hwy,M116*(I116*ValTimeTruck+(1-I116)*ValTimeAuto)-N116*(J116*ValTimeTruck+(1-J116)*ValTimeAuto),(IF(INDEX($P$277:$X$280,MATCH(B81,$O$277:$O$280,0),7)>0,INDEX($P$277:$X$280,MATCH(B81,$O$277:$O$280,0),7)/IF(INDEX($P$277:$X$280,MATCH(B81,$O$277:$O$280,0),6)=0,1,INDEX($P$277:$X$280,MATCH(B81,$O$277:$O$280,0),6)),M116)-N116)*ValTimeAuto)+O116-P116)*(H116-Q116)*0.5*(1+TTUprater)^($B116-YearCurrent)) -> 0 | S116: 0 | T116: 0
B117: 2055 | C117: =MAX(TREND(C87:C88,B87:B88,B117),0) -> 0 | D117: =MAX(TREND(D87:D88,B87:B88,B117),0) -> 0 | G117: =MAX(TREND(G87:G88,$B87:$B88,$B117),0) -> 0 | H117: =MAX(TREND(H87:H88,$B87:$B88,$B117),0) -> 0 | K117: =MAX(TREND(K87:K88,B87:B88,B117),0) -> 0 | L117: =MAX(TREND(L87:L88,B87:B88,B117),0) -> 0 | M117: =IFERROR(IF(B81=Hwy,C117*E117/G117,K117/G117),0) -> 0 | N117: =IFERROR(IF(B81=Hwy,D117*F117/H117,L117/H117),0) -> 0 | O117: =MAX(TREND(O87:O88,$B87:$B88,$B117),0) -> 0 | P117: =MAX(TREND(P87:P88,$B87:$B88,$B117),0) -> 0 | Q117: =TREND(Q87:Q88,$B87:$B88,$B117) -> 0 | R117: =IF(Induced="N",0,(IF(B81=Hwy,M117*(I117*ValTimeTruck+(1-I117)*ValTimeAuto)-N117*(J117*ValTimeTruck+(1-J117)*ValTimeAuto),(IF(INDEX($P$277:$X$280,MATCH(B81,$O$277:$O$280,0),7)>0,INDEX($P$277:$X$280,MATCH(B81,$O$277:$O$280,0),7)/IF(INDEX($P$277:$X$280,MATCH(B81,$O$277:$O$280,0),6)=0,1,INDEX($P$277:$X$280,MATCH(B81,$O$277:$O$280,0),6)),M117)-N117)*ValTimeAuto)+O117-P117)*(H117-Q117)*0.5*(1+TTUprater)^($B117-YearCurrent)) -> 0 | S117: 0 | T117: 0
B118: 2056 | C118: =MAX(TREND(C87:C88,B87:B88,B118),0) -> 0 | D118: =MAX(TREND(D87:D88,B87:B88,B118),0) -> 0 | G118: =MAX(TREND(G87:G88,$B87:$B88,$B118),0) -> 0 | H118: =MAX(TREND(H87:H88,$B87:$B88,$B118),0) -> 0 | K118: =MAX(TREND(K87:K88,B87:B88,B118),0) -> 0 | L118: =MAX(TREND(L87:L88,B87:B88,B118),0) -> 0 | M118: =IFERROR(IF(B81=Hwy,C118*E118/G118,K118/G118),0) -> 0 | N118: =IFERROR(IF(B81=Hwy,D118*F118/H118,L118/H118),0) -> 0 | O118: =MAX(TREND(O87:O88,$B87:$B88,$B118),0) -> 0 | P118: =MAX(TREND(P87:P88,$B87:$B88,$B118),0) -> 0 | Q118: =TREND(Q87:Q88,$B87:$B88,$B118) -> 0 | R118: =IF(Induced="N",0,(IF(B81=Hwy,M118*(I118*ValTimeTruck+(1-I118)*ValTimeAuto)-N118*(J118*ValTimeTruck+(1-J118)*ValTimeAuto),(IF(INDEX($P$277:$X$280,MATCH(B81,$O$277:$O$280,0),7)>0,INDEX($P$277:$X$280,MATCH(B81,$O$277:$O$280,0),7)/IF(INDEX($P$277:$X$280,MATCH(B81,$O$277:$O$280,0),6)=0,1,INDEX($P$277:$X$280,MATCH(B81,$O$277:$O$280,0),6)),M118)-N118)*ValTimeAuto)+O118-P118)*(H118-Q118)*0.5*(1+TTUprater)^($B118-YearCurrent)) -> 0 | S118: 0 | T118: 0
B119: 2057 | C119: =MAX(TREND(C87:C88,B87:B88,B119),0) -> 0 | D119: =MAX(TREND(D87:D88,B87:B88,B119),0) -> 0 | G119: =MAX(TREND(G87:G88,$B87:$B88,$B119),0) -> 0 | H119: =MAX(TREND(H87:H88,$B87:$B88,$B119),0) -> 0 | K119: =MAX(TREND(K87:K88,B87:B88,B119),0) -> 0 | L119: =MAX(TREND(L87:L88,B87:B88,B119),0) -> 0 | M119: =IFERROR(IF(B81=Hwy,C119*E119/G119,K119/G119),0) -> 0 | N119: =IFERROR(IF(B81=Hwy,D119*F119/H119,L119/H119),0) -> 0 | O119: =MAX(TREND(O87:O88,$B87:$B88,$B119),0) -> 0 | P119: =MAX(TREND(P87:P88,$B87:$B88,$B119),0) -> 0 | Q119: =TREND(Q87:Q88,$B87:$B88,$B119) -> 0 | R119: =IF(Induced="N",0,(IF(B81=Hwy,M119*(I119*ValTimeTruck+(1-I119)*ValTimeAuto)-N119*(J119*ValTimeTruck+(1-J119)*ValTimeAuto),(IF(INDEX($P$277:$X$280,MATCH(B81,$O$277:$O$280,0),7)>0,INDEX($P$277:$X$280,MATCH(B81,$O$277:$O$280,0),7)/IF(INDEX($P$277:$X$280,MATCH(B81,$O$277:$O$280,0),6)=0,1,INDEX($P$277:$X$280,MATCH(B81,$O$277:$O$280,0),6)),M119)-N119)*ValTimeAuto)+O119-P119)*(H119-Q119)*0.5*(1+TTUprater)^($B119-YearCurrent)) -> 0 | S119: 0 | T119: 0
B120: 2058 | C120: =MAX(TREND(C87:C88,B87:B88,B120),0) -> 0 | D120: =MAX(TREND(D87:D88,B87:B88,B120),0) -> 0 | G120: =MAX(TREND(G87:G88,$B87:$B88,$B120),0) -> 0 | H120: =MAX(TREND(H87:H88,$B87:$B88,$B120),0) -> 0 | K120: =MAX(TREND(K87:K88,B87:B88,B120),0) -> 0 | L120: =MAX(TREND(L87:L88,B87:B88,B120),0) -> 0 | M120: =IFERROR(IF(B81=Hwy,C120*E120/G120,K120/G120),0) -> 0 | N120: =IFERROR(IF(B81=Hwy,D120*F120/H120,L120/H120),0) -> 0 | O120: =MAX(TREND(O87:O88,$B87:$B88,$B120),0) -> 0 | P120: =MAX(TREND(P87:P88,$B87:$B88,$B120),0) -> 0 | Q120: =TREND(Q87:Q88,$B87:$B88,$B120) -> 0 | R120: =IF(Induced="N",0,(IF(B81=Hwy,M120*(I120*ValTimeTruck+(1-I120)*ValTimeAuto)-N120*(J120*ValTimeTruck+(1-J120)*ValTimeAuto),(IF(INDEX($P$277:$X$280,MATCH(B81,$O$277:$O$280,0),7)>0,INDEX($P$277:$X$280,MATCH(B81,$O$277:$O$280,0),7)/IF(INDEX($P$277:$X$280,MATCH(B81,$O$277:$O$280,0),6)=0,1,INDEX($P$277:$X$280,MATCH(B81,$O$277:$O$280,0),6)),M120)-N120)*ValTimeAuto)+O120-P120)*(H120-Q120)*0.5*(1+TTUprater)^($B120-YearCurrent)) -> 0 | S120: 0 | T120: 0
B121: 2059 | C121: =MAX(TREND(C87:C88,B87:B88,B121),0) -> 0 | D121: =MAX(TREND(D87:D88,B87:B88,B121),0) -> 0 | G121: =MAX(TREND(G87:G88,$B87:$B88,$B121),0) -> 0 | H121: =MAX(TREND(H87:H88,$B87:$B88,$B121),0) -> 0 | K121: =MAX(TREND(K87:K88,B87:B88,B121),0) -> 0 | L121: =MAX(TREND(L87:L88,B87:B88,B121),0) -> 0 | M121: =IFERROR(IF(B81=Hwy,C121*E121/G121,K121/G121),0) -> 0 | N121: =IFERROR(IF(B81=Hwy,D121*F121/H121,L121/H121),0) -> 0 | O121: =MAX(TREND(O87:O88,$B87:$B88,$B121),0) -> 0 | P121: =MAX(TREND(P87:P88,$B87:$B88,$B121),0) -> 0 | Q121: =TREND(Q87:Q88,$B87:$B88,$B121) -> 0 | R121: =IF(Induced="N",0,(IF(B81=Hwy,M121*(I121*ValTimeTruck+(1-I121)*ValTimeAuto)-N121*(J121*ValTimeTruck+(1-J121)*ValTimeAuto),(IF(INDEX($P$277:$X$280,MATCH(B81,$O$277:$O$280,0),7)>0,INDEX($P$277:$X$280,MATCH(B81,$O$277:$O$280,0),7)/IF(INDEX($P$277:$X$280,MATCH(B81,$O$277:$O$280,0),6)=0,1,INDEX($P$277:$X$280,MATCH(B81,$O$277:$O$280,0),6)),M121)-N121)*ValTimeAuto)+O121-P121)*(H121-Q121)*0.5*(1+TTUprater)^($B121-YearCurrent)) -> 0 | S121: 0 | T121: 0
B122: 2060 | C122: =MAX(TREND(C87:C88,B87:B88,B122),0) -> 0 | D122: =MAX(TREND(D87:D88,B87:B88,B122),0) -> 0 | G122: =MAX(TREND(G87:G88,$B87:$B88,$B122),0) -> 0 | H122: =MAX(TREND(H87:H88,$B87:$B88,$B122),0) -> 0 | K122: =MAX(TREND(K87:K88,B87:B88,B122),0) -> 0 | L122: =MAX(TREND(L87:L88,B87:B88,B122),0) -> 0 | M122: =IFERROR(IF(B81=Hwy,C122*E122/G122,K122/G122),0) -> 0 | N122: =IFERROR(IF(B81=Hwy,D122*F122/H122,L122/H122),0) -> 0 | O122: =MAX(TREND(O87:O88,$B87:$B88,$B122),0) -> 0 | P122: =MAX(TREND(P87:P88,$B87:$B88,$B122),0) -> 0 | Q122: =TREND(Q87:Q88,$B87:$B88,$B122) -> 0 | R122: =IF(Induced="N",0,(IF(B81=Hwy,M122*(I122*ValTimeTruck+(1-I122)*ValTimeAuto)-N122*(J122*ValTimeTruck+(1-J122)*ValTimeAuto),(IF(INDEX($P$277:$X$280,MATCH(B81,$O$277:$O$280,0),7)>0,INDEX($P$277:$X$280,MATCH(B81,$O$277:$O$280,0),7)/IF(INDEX($P$277:$X$280,MATCH(B81,$O$277:$O$280,0),6)=0,1,INDEX($P$277:$X$280,MATCH(B81,$O$277:$O$280,0),6)),M122)-N122)*ValTimeAuto)+O122-P122)*(H122-Q122)*0.5*(1+TTUprater)^($B122-YearCurrent)) -> 0 | S122: 0 | T122: 0
B123: 2061 | C123: =MAX(TREND(C87:C88,B87:B88,B123),0) -> 0 | D123: =MAX(TREND(D87:D88,B87:B88,B123),0) -> 0 | G123: =MAX(TREND(G87:G88,$B87:$B88,$B123),0) -> 0 | H123: =MAX(TREND(H87:H88,$B87:$B88,$B123),0) -> 0 | K123: =MAX(TREND(K87:K88,B87:B88,B123),0) -> 0 | L123: =MAX(TREND(L87:L88,B87:B88,B123),0) -> 0 | M123: =IFERROR(IF(B81=Hwy,C123*E123/G123,K123/G123),0) -> 0 | N123: =IFERROR(IF(B81=Hwy,D123*F123/H123,L123/H123),0) -> 0 | O123: =MAX(TREND(O87:O88,$B87:$B88,$B123),0) -> 0 | P123: =MAX(TREND(P87:P88,$B87:$B88,$B123),0) -> 0 | Q123: =TREND(Q87:Q88,$B87:$B88,$B123) -> 0 | R123: =IF(Induced="N",0,(IF(B81=Hwy,M123*(I123*ValTimeTruck+(1-I123)*ValTimeAuto)-N123*(J123*ValTimeTruck+(1-J123)*ValTimeAuto),(IF(INDEX($P$277:$X$280,MATCH(B81,$O$277:$O$280,0),7)>0,INDEX($P$277:$X$280,MATCH(B81,$O$277:$O$280,0),7)/IF(INDEX($P$277:$X$280,MATCH(B81,$O$277:$O$280,0),6)=0,1,INDEX($P$277:$X$280,MATCH(B81,$O$277:$O$280,0),6)),M123)-N123)*ValTimeAuto)+O123-P123)*(H123-Q123)*0.5*(1+TTUprater)^($B123-YearCurrent)) -> 0 | S123: 0 | T123: 0
B124: 2062 | C124: =MAX(TREND(C87:C88,B87:B88,B124),0) -> 0 | D124: =MAX(TREND(D87:D88,B87:B88,B124),0) -> 0 | G124: =MAX(TREND(G87:G88,$B87:$B88,$B124),0) -> 0 | H124: =MAX(TREND(H87:H88,$B87:$B88,$B124),0) -> 0 | K124: =MAX(TREND(K87:K88,B87:B88,B124),0) -> 0 | L124: =MAX(TREND(L87:L88,B87:B88,B124),0) -> 0 | M124: =IFERROR(IF(B81=Hwy,C124*E124/G124,K124/G124),0) -> 0 | N124: =IFERROR(IF(B81=Hwy,D124*F124/H124,L124/H124),0) -> 0 | O124: =MAX(TREND(O87:O88,$B87:$B88,$B124),0) -> 0 | P124: =MAX(TREND(P87:P88,$B87:$B88,$B124),0) -> 0 | Q124: =TREND(Q87:Q88,$B87:$B88,$B124) -> 0 | R124: =IF(Induced="N",0,(IF(B81=Hwy,M124*(I124*ValTimeTruck+(1-I124)*ValTimeAuto)-N124*(J124*ValTimeTruck+(1-J124)*ValTimeAuto),(IF(INDEX($P$277:$X$280,MATCH(B81,$O$277:$O$280,0),7)>0,INDEX($P$277:$X$280,MATCH(B81,$O$277:$O$280,0),7)/IF(INDEX($P$277:$X$280,MATCH(B81,$O$277:$O$280,0),6)=0,1,INDEX($P$277:$X$280,MATCH(B81,$O$277:$O$280,0),6)),M124)-N124)*ValTimeAuto)+O124-P124)*(H124-Q124)*0.5*(1+TTUprater)^($B124-YearCurrent)) -> 0 | S124: 0 | T124: 0
B125: 2063 | C125: =MAX(TREND(C87:C88,B87:B88,B125),0) -> 0 | D125: =MAX(TREND(D87:D88,B87:B88,B125),0) -> 0 | G125: =MAX(TREND(G87:G88,$B87:$B88,$B125),0) -> 0 | H125: =MAX(TREND(H87:H88,$B87:$B88,$B125),0) -> 0 | K125: =MAX(TREND(K87:K88,B87:B88,B125),0) -> 0 | L125: =MAX(TREND(L87:L88,B87:B88,B125),0) -> 0 | M125: =IFERROR(IF(B81=Hwy,C125*E125/G125,K125/G125),0) -> 0 | N125: =IFERROR(IF(B81=Hwy,D125*F125/H125,L125/H125),0) -> 0 | O125: =MAX(TREND(O87:O88,$B87:$B88,$B125),0) -> 0 | P125: =MAX(TREND(P87:P88,$B87:$B88,$B125),0) -> 0 | Q125: =TREND(Q87:Q88,$B87:$B88,$B125) -> 0 | R125: =IF(Induced="N",0,(IF(B81=Hwy,M125*(I125*ValTimeTruck+(1-I125)*ValTimeAuto)-N125*(J125*ValTimeTruck+(1-J125)*ValTimeAuto),(IF(INDEX($P$277:$X$280,MATCH(B81,$O$277:$O$280,0),7)>0,INDEX($P$277:$X$280,MATCH(B81,$O$277:$O$280,0),7)/IF(INDEX($P$277:$X$280,MATCH(B81,$O$277:$O$280,0),6)=0,1,INDEX($P$277:$X$280,MATCH(B81,$O$277:$O$280,0),6)),M125)-N125)*ValTimeAuto)+O125-P125)*(H125-Q125)*0.5*(1+TTUprater)^($B125-YearCurrent)) -> 0 | S125: 0 | T125: 0
B126: 2064 | C126: =MAX(TREND(C87:C88,B87:B88,B126),0) -> 0 | D126: =MAX(TREND(D87:D88,B87:B88,B126),0) -> 0 | G126: =MAX(TREND(G87:G88,$B87:$B88,$B126),0) -> 0 | H126: =MAX(TREND(H87:H88,$B87:$B88,$B126),0) -> 0 | K126: =MAX(TREND(K87:K88,B87:B88,B126),0) -> 0 | L126: =MAX(TREND(L87:L88,B87:B88,B126),0) -> 0 | M126: =IFERROR(IF(B81=Hwy,C126*E126/G126,K126/G126),0) -> 0 | N126: =IFERROR(IF(B81=Hwy,D126*F126/H126,L126/H126),0) -> 0 | O126: =MAX(TREND(O87:O88,$B87:$B88,$B126),0) -> 0 | P126: =MAX(TREND(P87:P88,$B87:$B88,$B126),0) -> 0 | Q126: =TREND(Q87:Q88,$B87:$B88,$B126) -> 0 | R126: =IF(Induced="N",0,(IF(B81=Hwy,M126*(I126*ValTimeTruck+(1-I126)*ValTimeAuto)-N126*(J126*ValTimeTruck+(1-J126)*ValTimeAuto),(IF(INDEX($P$277:$X$280,MATCH(B81,$O$277:$O$280,0),7)>0,INDEX($P$277:$X$280,MATCH(B81,$O$277:$O$280,0),7)/IF(INDEX($P$277:$X$280,MATCH(B81,$O$277:$O$280,0),6)=0,1,INDEX($P$277:$X$280,MATCH(B81,$O$277:$O$280,0),6)),M126)-N126)*ValTimeAuto)+O126-P126)*(H126-Q126)*0.5*(1+TTUprater)^($B126-YearCurrent)) -> 0 | S126: 0 | T126: 0
B127: 2065 | C127: =MAX(TREND(C87:C88,B87:B88,B127),0) -> 0 | D127: =MAX(TREND(D87:D88,B87:B88,B127),0) -> 0 | G127: =MAX(TREND(G87:G88,$B87:$B88,$B127),0) -> 0 | H127: =MAX(TREND(H87:H88,$B87:$B88,$B127),0) -> 0 | K127: =MAX(TREND(K87:K88,B87:B88,B127),0) -> 0 | L127: =MAX(TREND(L87:L88,B87:B88,B127),0) -> 0 | M127: =IFERROR(IF(B81=Hwy,C127*E127/G127,K127/G127),0) -> 0 | N127: =IFERROR(IF(B81=Hwy,D127*F127/H127,L127/H127),0) -> 0 | O127: =MAX(TREND(O87:O88,$B87:$B88,$B127),0) -> 0 | P127: =MAX(TREND(P87:P88,$B87:$B88,$B127),0) -> 0 | Q127: =TREND(Q87:Q88,$B87:$B88,$B127) -> 0 | R127: =IF(Induced="N",0,(IF(B81=Hwy,M127*(I127*ValTimeTruck+(1-I127)*ValTimeAuto)-N127*(J127*ValTimeTruck+(1-J127)*ValTimeAuto),(IF(INDEX($P$277:$X$280,MATCH(B81,$O$277:$O$280,0),7)>0,INDEX($P$277:$X$280,MATCH(B81,$O$277:$O$280,0),7)/IF(INDEX($P$277:$X$280,MATCH(B81,$O$277:$O$280,0),6)=0,1,INDEX($P$277:$X$280,MATCH(B81,$O$277:$O$280,0),6)),M127)-N127)*ValTimeAuto)+O127-P127)*(H127-Q127)*0.5*(1+TTUprater)^($B127-YearCurrent)) -> 0 | S127: 0 | T127: 0
B128: 2066 | C128: =MAX(TREND(C87:C88,B87:B88,B128),0) -> 0 | D128: =MAX(TREND(D87:D88,B87:B88,B128),0) -> 0 | G128: =MAX(TREND(G87:G88,$B87:$B88,$B128),0) -> 0 | H128: =MAX(TREND(H87:H88,$B87:$B88,$B128),0) -> 0 | K128: =MAX(TREND(K87:K88,B87:B88,B128),0) -> 0 | L128: =MAX(TREND(L87:L88,B87:B88,B128),0) -> 0 | M128: =IFERROR(IF(B81=Hwy,C128*E128/G128,K128/G128),0) -> 0 | N128: =IFERROR(IF(B81=Hwy,D128*F128/H128,L128/H128),0) -> 0 | O128: =MAX(TREND(O87:O88,$B87:$B88,$B128),0) -> 0 | P128: =MAX(TREND(P87:P88,$B87:$B88,$B128),0) -> 0 | Q128: =TREND(Q87:Q88,$B87:$B88,$B128) -> 0 | R128: =IF(Induced="N",0,(IF(B81=Hwy,M128*(I128*ValTimeTruck+(1-I128)*ValTimeAuto)-N128*(J128*ValTimeTruck+(1-J128)*ValTimeAuto),(IF(INDEX($P$277:$X$280,MATCH(B81,$O$277:$O$280,0),7)>0,INDEX($P$277:$X$280,MATCH(B81,$O$277:$O$280,0),7)/IF(INDEX($P$277:$X$280,MATCH(B81,$O$277:$O$280,0),6)=0,1,INDEX($P$277:$X$280,MATCH(B81,$O$277:$O$280,0),6)),M128)-N128)*ValTimeAuto)+O128-P128)*(H128-Q128)*0.5*(1+TTUprater)^($B128-YearCurrent)) -> 0 | S128: 0 | T128: 0
B129: 2067 | C129: =MAX(TREND(C87:C88,B87:B88,B129),0) -> 0 | D129: =MAX(TREND(D87:D88,B87:B88,B129),0) -> 0 | G129: =MAX(TREND(G87:G88,$B87:$B88,$B129),0) -> 0 | H129: =MAX(TREND(H87:H88,$B87:$B88,$B129),0) -> 0 | K129: =MAX(TREND(K87:K88,B87:B88,B129),0) -> 0 | L129: =MAX(TREND(L87:L88,B87:B88,B129),0) -> 0 | M129: =IFERROR(IF(B81=Hwy,C129*E129/G129,K129/G129),0) -> 0 | N129: =IFERROR(IF(B81=Hwy,D129*F129/H129,L129/H129),0) -> 0 | O129: =MAX(TREND(O87:O88,$B87:$B88,$B129),0) -> 0 | P129: =MAX(TREND(P87:P88,$B87:$B88,$B129),0) -> 0 | Q129: =TREND(Q87:Q88,$B87:$B88,$B129) -> 0 | R129: =IF(Induced="N",0,(IF(B81=Hwy,M129*(I129*ValTimeTruck+(1-I129)*ValTimeAuto)-N129*(J129*ValTimeTruck+(1-J129)*ValTimeAuto),(IF(INDEX($P$277:$X$280,MATCH(B81,$O$277:$O$280,0),7)>0,INDEX($P$277:$X$280,MATCH(B81,$O$277:$O$280,0),7)/IF(INDEX($P$277:$X$280,MATCH(B81,$O$277:$O$280,0),6)=0,1,INDEX($P$277:$X$280,MATCH(B81,$O$277:$O$280,0),6)),M129)-N129)*ValTimeAuto)+O129-P129)*(H129-Q129)*0.5*(1+TTUprater)^($B129-YearCurrent)) -> 0 | S129: 0 | T129: 0
B130: 2068 | C130: =MAX(TREND(C87:C88,B87:B88,B130),0) -> 0 | D130: =MAX(TREND(D87:D88,B87:B88,B130),0) -> 0 | G130: =MAX(TREND(G87:G88,$B87:$B88,$B130),0) -> 0 | H130: =MAX(TREND(H87:H88,$B87:$B88,$B130),0) -> 0 | K130: =MAX(TREND(K87:K88,B87:B88,B130),0) -> 0 | L130: =MAX(TREND(L87:L88,B87:B88,B130),0) -> 0 | M130: =IFERROR(IF(B81=Hwy,C130*E130/G130,K130/G130),0) -> 0 | N130: =IFERROR(IF(B81=Hwy,D130*F130/H130,L130/H130),0) -> 0 | O130: =MAX(TREND(O87:O88,$B87:$B88,$B130),0) -> 0 | P130: =MAX(TREND(P87:P88,$B87:$B88,$B130),0) -> 0 | Q130: =TREND(Q87:Q88,$B87:$B88,$B130) -> 0 | R130: =IF(Induced="N",0,(IF(B81=Hwy,M130*(I130*ValTimeTruck+(1-I130)*ValTimeAuto)-N130*(J130*ValTimeTruck+(1-J130)*ValTimeAuto),(IF(INDEX($P$277:$X$280,MATCH(B81,$O$277:$O$280,0),7)>0,INDEX($P$277:$X$280,MATCH(B81,$O$277:$O$280,0),7)/IF(INDEX($P$277:$X$280,MATCH(B81,$O$277:$O$280,0),6)=0,1,INDEX($P$277:$X$280,MATCH(B81,$O$277:$O$280,0),6)),M130)-N130)*ValTimeAuto)+O130-P130)*(H130-Q130)*0.5*(1+TTUprater)^($B130-YearCurrent)) -> 0 | S130: 0 | T130: 0
B131: 2069 | C131: =MAX(TREND(C87:C88,B87:B88,B131),0) -> 0 | D131: =MAX(TREND(D87:D88,B87:B88,B131),0) -> 0 | G131: =MAX(TREND(G87:G88,$B87:$B88,$B131),0) -> 0 | H131: =MAX(TREND(H87:H88,$B87:$B88,$B131),0) -> 0 | K131: =MAX(TREND(K87:K88,B87:B88,B131),0) -> 0 | L131: =MAX(TREND(L87:L88,B87:B88,B131),0) -> 0 | M131: =IFERROR(IF(B81=Hwy,C131*E131/G131,K131/G131),0) -> 0 | N131: =IFERROR(IF(B81=Hwy,D131*F131/H131,L131/H131),0) -> 0 | O131: =MAX(TREND(O87:O88,$B87:$B88,$B131),0) -> 0 | P131: =MAX(TREND(P87:P88,$B87:$B88,$B131),0) -> 0 | Q131: =TREND(Q87:Q88,$B87:$B88,$B131) -> 0 | R131: =IF(Induced="N",0,(IF(B81=Hwy,M131*(I131*ValTimeTruck+(1-I131)*ValTimeAuto)-N131*(J131*ValTimeTruck+(1-J131)*ValTimeAuto),(IF(INDEX($P$277:$X$280,MATCH(B81,$O$277:$O$280,0),7)>0,INDEX($P$277:$X$280,MATCH(B81,$O$277:$O$280,0),7)/IF(INDEX($P$277:$X$280,MATCH(B81,$O$277:$O$280,0),6)=0,1,INDEX($P$277:$X$280,MATCH(B81,$O$277:$O$280,0),6)),M131)-N131)*ValTimeAuto)+O131-P131)*(H131-Q131)*0.5*(1+TTUprater)^($B131-YearCurrent)) -> 0 | S131: 0 | T131: 0
B132: 2070 | C132: =MAX(TREND(C87:C88,B87:B88,B132),0) -> 0 | D132: =MAX(TREND(D87:D88,B87:B88,B132),0) -> 0 | G132: =MAX(TREND(G87:G88,$B87:$B88,$B132),0) -> 0 | H132: =MAX(TREND(H87:H88,$B87:$B88,$B132),0) -> 0 | K132: =MAX(TREND(K87:K88,B87:B88,B132),0) -> 0 | L132: =MAX(TREND(L87:L88,B87:B88,B132),0) -> 0 | M132: =IFERROR(IF(B81=Hwy,C132*E132/G132,K132/G132),0) -> 0 | N132: =IFERROR(IF(B81=Hwy,D132*F132/H132,L132/H132),0) -> 0 | O132: =MAX(TREND(O87:O88,$B87:$B88,$B132),0) -> 0 | P132: =MAX(TREND(P87:P88,$B87:$B88,$B132),0) -> 0 | Q132: =TREND(Q87:Q88,$B87:$B88,$B132) -> 0 | R132: =IF(Induced="N",0,(IF(B81=Hwy,M132*(I132*ValTimeTruck+(1-I132)*ValTimeAuto)-N132*(J132*ValTimeTruck+(1-J132)*ValTimeAuto),(IF(INDEX($P$277:$X$280,MATCH(B81,$O$277:$O$280,0),7)>0,INDEX($P$277:$X$280,MATCH(B81,$O$277:$O$280,0),7)/IF(INDEX($P$277:$X$280,MATCH(B81,$O$277:$O$280,0),6)=0,1,INDEX($P$277:$X$280,MATCH(B81,$O$277:$O$280,0),6)),M132)-N132)*ValTimeAuto)+O132-P132)*(H132-Q132)*0.5*(1+TTUprater)^($B132-YearCurrent)) -> 0 | S132: 0 | T132: 0
B133: 2071 | C133: =MAX(TREND(C87:C88,B87:B88,B133),0) -> 0 | D133: =MAX(TREND(D87:D88,B87:B88,B133),0) -> 0 | G133: =MAX(TREND(G87:G88,$B87:$B88,$B133),0) -> 0 | H133: =MAX(TREND(H87:H88,$B87:$B88,$B133),0) -> 0 | K133: =MAX(TREND(K87:K88,B87:B88,B133),0) -> 0 | L133: =MAX(TREND(L87:L88,B87:B88,B133),0) -> 0 | M133: =IFERROR(IF(B81=Hwy,C133*E133/G133,K133/G133),0) -> 0 | N133: =IFERROR(IF(B81=Hwy,D133*F133/H133,L133/H133),0) -> 0 | O133: =MAX(TREND(O87:O88,$B87:$B88,$B133),0) -> 0 | P133: =MAX(TREND(P87:P88,$B87:$B88,$B133),0) -> 0 | Q133: =TREND(Q87:Q88,$B87:$B88,$B133) -> 0 | R133: =IF(Induced="N",0,(IF(B81=Hwy,M133*(I133*ValTimeTruck+(1-I133)*ValTimeAuto)-N133*(J133*ValTimeTruck+(1-J133)*ValTimeAuto),(IF(INDEX($P$277:$X$280,MATCH(B81,$O$277:$O$280,0),7)>0,INDEX($P$277:$X$280,MATCH(B81,$O$277:$O$280,0),7)/IF(INDEX($P$277:$X$280,MATCH(B81,$O$277:$O$280,0),6)=0,1,INDEX($P$277:$X$280,MATCH(B81,$O$277:$O$280,0),6)),M133)-N133)*ValTimeAuto)+O133-P133)*(H133-Q133)*0.5*(1+TTUprater)^($B133-YearCurrent)) -> 0 | S133: 0 | T133: 0
B134: 2072 | C134: =MAX(TREND(C87:C88,B87:B88,B134),0) -> 0 | D134: =MAX(TREND(D87:D88,B87:B88,B134),0) -> 0 | G134: =MAX(TREND(G87:G88,$B87:$B88,$B134),0) -> 0 | H134: =MAX(TREND(H87:H88,$B87:$B88,$B134),0) -> 0 | K134: =MAX(TREND(K87:K88,B87:B88,B134),0) -> 0 | L134: =MAX(TREND(L87:L88,B87:B88,B134),0) -> 0 | M134: =IFERROR(IF(B81=Hwy,C134*E134/G134,K134/G134),0) -> 0 | N134: =IFERROR(IF(B81=Hwy,D134*F134/H134,L134/H134),0) -> 0 | O134: =MAX(TREND(O87:O88,$B87:$B88,$B134),0) -> 0 | P134: =MAX(TREND(P87:P88,$B87:$B88,$B134),0) -> 0 | Q134: =TREND(Q87:Q88,$B87:$B88,$B134) -> 0 | R134: =IF(Induced="N",0,(IF(B81=Hwy,M134*(I134*ValTimeTruck+(1-I134)*ValTimeAuto)-N134*(J134*ValTimeTruck+(1-J134)*ValTimeAuto),(IF(INDEX($P$277:$X$280,MATCH(B81,$O$277:$O$280,0),7)>0,INDEX($P$277:$X$280,MATCH(B81,$O$277:$O$280,0),7)/IF(INDEX($P$277:$X$280,MATCH(B81,$O$277:$O$280,0),6)=0,1,INDEX($P$277:$X$280,MATCH(B81,$O$277:$O$280,0),6)),M134)-N134)*ValTimeAuto)+O134-P134)*(H134-Q134)*0.5*(1+TTUprater)^($B134-YearCurrent)) -> 0 | S134: 0 | T134: 0
B135: 2073 | C135: =MAX(TREND(C87:C88,B87:B88,B135),0) -> 0 | D135: =MAX(TREND(D87:D88,B87:B88,B135),0) -> 0 | G135: =MAX(TREND(G87:G88,$B87:$B88,$B135),0) -> 0 | H135: =MAX(TREND(H87:H88,$B87:$B88,$B135),0) -> 0 | K135: =MAX(TREND(K87:K88,B87:B88,B135),0) -> 0 | L135: =MAX(TREND(L87:L88,B87:B88,B135),0) -> 0 | M135: =IFERROR(IF(B81=Hwy,C135*E135/G135,K135/G135),0) -> 0 | N135: =IFERROR(IF(B81=Hwy,D135*F135/H135,L135/H135),0) -> 0 | O135: =MAX(TREND(O87:O88,$B87:$B88,$B135),0) -> 0 | P135: =MAX(TREND(P87:P88,$B87:$B88,$B135),0) -> 0 | Q135: =TREND(Q87:Q88,$B87:$B88,$B135) -> 0 | R135: =IF(Induced="N",0,(IF(B81=Hwy,M135*(I135*ValTimeTruck+(1-I135)*ValTimeAuto)-N135*(J135*ValTimeTruck+(1-J135)*ValTimeAuto),(IF(INDEX($P$277:$X$280,MATCH(B81,$O$277:$O$280,0),7)>0,INDEX($P$277:$X$280,MATCH(B81,$O$277:$O$280,0),7)/IF(INDEX($P$277:$X$280,MATCH(B81,$O$277:$O$280,0),6)=0,1,INDEX($P$277:$X$280,MATCH(B81,$O$277:$O$280,0),6)),M135)-N135)*ValTimeAuto)+O135-P135)*(H135-Q135)*0.5*(1+TTUprater)^($B135-YearCurrent)) -> 0 | S135: 0 | T135: 0
B136: 2074 | C136: =MAX(TREND(C87:C88,B87:B88,B136),0) -> 0 | D136: =MAX(TREND(D87:D88,B87:B88,B136),0) -> 0 | G136: =MAX(TREND(G87:G88,$B87:$B88,$B136),0) -> 0 | H136: =MAX(TREND(H87:H88,$B87:$B88,$B136),0) -> 0 | K136: =MAX(TREND(K87:K88,B87:B88,B136),0) -> 0 | L136: =MAX(TREND(L87:L88,B87:B88,B136),0) -> 0 | M136: =IFERROR(IF(B81=Hwy,C136*E136/G136,K136/G136),0) -> 0 | N136: =IFERROR(IF(B81=Hwy,D136*F136/H136,L136/H136),0) -> 0 | O136: =MAX(TREND(O87:O88,$B87:$B88,$B136),0) -> 0 | P136: =MAX(TREND(P87:P88,$B87:$B88,$B136),0) -> 0 | Q136: =TREND(Q87:Q88,$B87:$B88,$B136) -> 0 | R136: =IF(Induced="N",0,(IF(B81=Hwy,M136*(I136*ValTimeTruck+(1-I136)*ValTimeAuto)-N136*(J136*ValTimeTruck+(1-J136)*ValTimeAuto),(IF(INDEX($P$277:$X$280,MATCH(B81,$O$277:$O$280,0),7)>0,INDEX($P$277:$X$280,MATCH(B81,$O$277:$O$280,0),7)/IF(INDEX($P$277:$X$280,MATCH(B81,$O$277:$O$280,0),6)=0,1,INDEX($P$277:$X$280,MATCH(B81,$O$277:$O$280,0),6)),M136)-N136)*ValTimeAuto)+O136-P136)*(H136-Q136)*0.5*(1+TTUprater)^($B136-YearCurrent)) -> 0 | S136: 0 | T136: 0
B137: 2075 | C137: =MAX(TREND(C87:C88,B87:B88,B137),0) -> 0 | D137: =MAX(TREND(D87:D88,B87:B88,B137),0) -> 0 | G137: =MAX(TREND(G87:G88,$B87:$B88,$B137),0) -> 0 | H137: =MAX(TREND(H87:H88,$B87:$B88,$B137),0) -> 0 | K137: =MAX(TREND(K87:K88,B87:B88,B137),0) -> 0 | L137: =MAX(TREND(L87:L88,B87:B88,B137),0) -> 0 | M137: =IFERROR(IF(B81=Hwy,C137*E137/G137,K137/G137),0) -> 0 | N137: =IFERROR(IF(B81=Hwy,D137*F137/H137,L137/H137),0) -> 0 | O137: =MAX(TREND(O87:O88,$B87:$B88,$B137),0) -> 0 | P137: =MAX(TREND(P87:P88,$B87:$B88,$B137),0) -> 0 | Q137: =TREND(Q87:Q88,$B87:$B88,$B137) -> 0 | R137: =IF(Induced="N",0,(IF(B81=Hwy,M137*(I137*ValTimeTruck+(1-I137)*ValTimeAuto)-N137*(J137*ValTimeTruck+(1-J137)*ValTimeAuto),(IF(INDEX($P$277:$X$280,MATCH(B81,$O$277:$O$280,0),7)>0,INDEX($P$277:$X$280,MATCH(B81,$O$277:$O$280,0),7)/IF(INDEX($P$277:$X$280,MATCH(B81,$O$277:$O$280,0),6)=0,1,INDEX($P$277:$X$280,MATCH(B81,$O$277:$O$280,0),6)),M137)-N137)*ValTimeAuto)+O137-P137)*(H137-Q137)*0.5*(1+TTUprater)^($B137-YearCurrent)) -> 0 | S137: 0 | T137: 0
B138: 2076 | C138: =MAX(TREND(C87:C88,B87:B88,B138),0) -> 0 | D138: =MAX(TREND(D87:D88,B87:B88,B138),0) -> 0 | G138: =MAX(TREND(G87:G88,$B87:$B88,$B138),0) -> 0 | H138: =MAX(TREND(H87:H88,$B87:$B88,$B138),0) -> 0 | K138: =MAX(TREND(K87:K88,B87:B88,B138),0) -> 0 | L138: =MAX(TREND(L87:L88,B87:B88,B138),0) -> 0 | M138: =IFERROR(IF(B81=Hwy,C138*E138/G138,K138/G138),0) -> 0 | N138: =IFERROR(IF(B81=Hwy,D138*F138/H138,L138/H138),0) -> 0 | O138: =MAX(TREND(O87:O88,$B87:$B88,$B138),0) -> 0 | P138: =MAX(TREND(P87:P88,$B87:$B88,$B138),0) -> 0 | Q138: =TREND(Q87:Q88,$B87:$B88,$B138) -> 0 | R138: =IF(Induced="N",0,(IF(B81=Hwy,M138*(I138*ValTimeTruck+(1-I138)*ValTimeAuto)-N138*(J138*ValTimeTruck+(1-J138)*ValTimeAuto),(IF(INDEX($P$277:$X$280,MATCH(B81,$O$277:$O$280,0),7)>0,INDEX($P$277:$X$280,MATCH(B81,$O$277:$O$280,0),7)/IF(INDEX($P$277:$X$280,MATCH(B81,$O$277:$O$280,0),6)=0,1,INDEX($P$277:$X$280,MATCH(B81,$O$277:$O$280,0),6)),M138)-N138)*ValTimeAuto)+O138-P138)*(H138-Q138)*0.5*(1+TTUprater)^($B138-YearCurrent)) -> 0 | S138: 0 | T138: 0
B139: 2077 | C139: =MAX(TREND(C87:C88,B87:B88,B139),0) -> 0 | D139: =MAX(TREND(D87:D88,B87:B88,B139),0) -> 0 | G139: =MAX(TREND(G87:G88,$B87:$B88,$B139),0) -> 0 | H139: =MAX(TREND(H87:H88,$B87:$B88,$B139),0) -> 0 | K139: =MAX(TREND(K87:K88,B87:B88,B139),0) -> 0 | L139: =MAX(TREND(L87:L88,B87:B88,B139),0) -> 0 | M139: =IFERROR(IF(B81=Hwy,C139*E139/G139,K139/G139),0) -> 0 | N139: =IFERROR(IF(B81=Hwy,D139*F139/H139,L139/H139),0) -> 0 | O139: =MAX(TREND(O87:O88,$B87:$B88,$B139),0) -> 0 | P139: =MAX(TREND(P87:P88,$B87:$B88,$B139),0) -> 0 | Q139: =TREND(Q87:Q88,$B87:$B88,$B139) -> 0 | R139: =IF(Induced="N",0,(IF(B81=Hwy,M139*(I139*ValTimeTruck+(1-I139)*ValTimeAuto)-N139*(J139*ValTimeTruck+(1-J139)*ValTimeAuto),(IF(INDEX($P$277:$X$280,MATCH(B81,$O$277:$O$280,0),7)>0,INDEX($P$277:$X$280,MATCH(B81,$O$277:$O$280,0),7)/IF(INDEX($P$277:$X$280,MATCH(B81,$O$277:$O$280,0),6)=0,1,INDEX($P$277:$X$280,MATCH(B81,$O$277:$O$280,0),6)),M139)-N139)*ValTimeAuto)+O139-P139)*(H139-Q139)*0.5*(1+TTUprater)^($B139-YearCurrent)) -> 0 | S139: 0 | T139: 0
B141: Total | T141: =SUM(T90:T139) -> 0
A144: 3 | B144: =PARAMETERS!$J$11 -> Light Rail
C146: TOTAL VHT | E146: AVERAGE VEH OCC | G146: =IF(B144=Hwy,"TOTAL VEHICLE TRIPS","TOTAL PERSON TRIPS") -> TOTAL PERSON TRIPS | I146: PERCENT TRUCKS | K146: TOTAL PHT | M146: AVERAGE TRAVEL TIME | O146: OUT OF POCKET COST | Q146: =IF(B144=Hwy,"TOTAL VEHICLE TRIPS","TOTAL PERSON TRIPS") -> TOTAL PERSON TRIPS | R146: CONSUMER SURPLUS BENEFIT
C147: (veh-hours/yr) | E147: (persons/vehicle) | G147: (trips/yr) | I147: (%) | K147: (per-hours/yr) | M147: (hours/trip) | O147: ($/trip) | Q147: (trips/yr) | R147: ($/yr)
B148: Year | Q148: Adjusted (no induced) | R148: New | S148: Constant | T148: Present
C149: No Build | D149: Build | E149: No Build | F149: Build | G149: No Build | H149: Build | I149: No Build | J149: Build | K149: No Build | L149: Build | M149: No Build | N149: Build | O149: No Build | P149: Build | Q149: Build | R149: (Induced) | S149: Dollars | T149: Value
B150: =YearFirst -> 2033 | C150: =SUMIF(INDEX(HwyTransitModelGroup,,1),B144,INDEX(ModelData1NB,,3))*AnnualFactor -> 0 | D150: =SUMIF(INDEX(HwyTransitModelGroup,,1),B144,INDEX(ModelData1B,,3))*AnnualFactor -> 0 | G150: =SUMIF(INDEX(HwyTransitModelGroup,,1),B144,INDEX(ModelData1NB,,1))*AnnualFactor -> 0 | H150: =SUMIF(INDEX(HwyTransitModelGroup,,1),B144,INDEX(ModelData1B,,1))*AnnualFactor -> 0 | K150: =SUMIF(INDEX(HwyTransitModelGroup,,1),B144,INDEX(ModelData1NB,,5))*AnnualFactor -> 0 | L150: =SUMIF(INDEX(HwyTransitModelGroup,,1),B144,INDEX(ModelData1B,,5))*AnnualFactor -> 0 | M150: =IFERROR(IF(B144=Hwy,C150*E150/G150,K150/G150),0) -> 0 | N150: =IFERROR(IF(B144=Hwy,D150*F150/H150,L150/H150),0) -> 0 | O150: =IF(E150=0,0,SUMPRODUCT(--(INDEX(HwyTransitModelGroup,,1)=B144),INDEX(ModelData1NB,,6),INDEX(ModelData1NB,,1))/IF(SUMPRODUCT(--(INDEX(HwyTransitModelGroup,,1)=B144),INDEX(ModelData1NB,,1))=0,1,SUMPRODUCT(--(INDEX(HwyTransitModelGroup,,1)=B144),INDEX(ModelData1NB,,1)))) -> 0 | P150: =IF(F150=0,0,SUMPRODUCT(--(INDEX(HwyTransitModelGroup,,1)=B144),INDEX(ModelData1B,,6),INDEX(ModelData1B,,1))/IF(SUMPRODUCT(--(INDEX(HwyTransitModelGroup,,1)=B144),INDEX(ModelData1B,,1))=0,1,SUMPRODUCT(--(INDEX(HwyTransitModelGroup,,1)=B144),INDEX(ModelData1B,,1)))) -> 0 | Q150: =IFERROR($H150-SUMIF('Consumer Surplus'!$C$277:$C$280,B144,'Consumer Surplus'!$G$277:$G$280),0) -> 0 | R150: =IF(Induced="N",0,(IF(B144=Hwy,M150*(I150*ValTimeTruck+(1-I150)*ValTimeAuto)-N150*(J150*ValTimeTruck+(1-J150)*ValTimeAuto),(IF(INDEX($P$277:$X$280,MATCH(B144,$O$277:$O$280,0),7)>0,INDEX($P$277:$X$280,MATCH(B144,$O$277:$O$280,0),7)/IF(INDEX($P$277:$X$280,MATCH(B144,$O$277:$O$280,0),6)=0,1,INDEX($P$277:$X$280,MATCH(B144,$O$277:$O$280,0),6)),M150)-N150)*ValTimeAuto)+O150-P150)*(H150-Q150)*0.5*(1+TTUprater)^($B150-YearCurrent)) -> 0 | S150: =SUM(R150:R150) -> 0 | T150: =S150/(1+DiscRate)^(B150-YearCurrent) -> 0
B151: =YearLast -> 2043 | C151: =SUMIF(INDEX(HwyTransitModelGroup,,1),B144,INDEX(ModelData20NB,,3))*AnnualFactor -> 0 | D151: =SUMIF(INDEX(HwyTransitModelGroup,,1),B144,INDEX(ModelData20B,,3))*AnnualFactor -> 0 | G151: =SUMIF(INDEX(HwyTransitModelGroup,,1),B144,INDEX(ModelData20NB,,1))*AnnualFactor -> 0 | H151: =SUMIF(INDEX(HwyTransitModelGroup,,1),B144,INDEX(ModelData20B,,1))*AnnualFactor -> 0 | K151: =SUMIF(INDEX(HwyTransitModelGroup,,1),B144,INDEX(ModelData20NB,,5))*AnnualFactor -> 0 | L151: =SUMIF(INDEX(HwyTransitModelGroup,,1),B144,INDEX(ModelData20B,,5))*AnnualFactor -> 0 | M151: =IFERROR(IF(B144=Hwy,C151*E151/G151,K151/G151),0) -> 0 | N151: =IFERROR(IF(B144=Hwy,D151*F151/H151,L151/H151),0) -> 0 | O151: =IF(E151=0,0,SUMPRODUCT(--(INDEX(HwyTransitModelGroup,,1)=B144),INDEX(ModelData20NB,,6),INDEX(ModelData20NB,,1))/IF(SUMPRODUCT(--(INDEX(HwyTransitModelGroup,,1)=B144),INDEX(ModelData20NB,,1))=0,1,SUMPRODUCT(--(INDEX(HwyTransitModelGroup,,1)=B144),INDEX(ModelData20NB,,1)))) -> 0 | P151: =IF(F151=0,0,SUMPRODUCT(--(INDEX(HwyTransitModelGroup,,1)=B144),INDEX(ModelData20B,,6),INDEX(ModelData20B,,1))/IF(SUMPRODUCT(--(INDEX(HwyTransitModelGroup,,1)=B144),INDEX(ModelData20B,,1))=0,1,SUMPRODUCT(--(INDEX(HwyTransitModelGroup,,1)=B144),INDEX(ModelData20B,,1)))) -> 0 | Q151: =IFERROR($H151-SUMIF('Consumer Surplus'!$C$277:$C$280,B144,'Consumer Surplus'!$K$277:$K$280),0) -> 0 | R151: =IF(Induced="N",0,(IF(B144=Hwy,M151*(I151*ValTimeTruck+(1-I151)*ValTimeAuto)-N151*(J151*ValTimeTruck+(1-J151)*ValTimeAuto),(IF(INDEX($P$277:$X$280,MATCH(B144,$O$277:$O$280,0),9)>0,INDEX($P$277:$X$280,MATCH(B144,$O$277:$O$280,0),9)/IF(INDEX($P$277:$X$280,MATCH(B144,$O$277:$O$280,0),9)=0,1,INDEX($P$277:$X$280,MATCH(B144,$O$277:$O$280,0),8)),M151)-N151)*ValTimeAuto)+O151-P151)*(H151-Q151)*0.5*(1+TTUprater)^($B151-YearCurrent)) -> 0 | S151: =SUM(R151:R151) -> 0 | T151: =S151/(1+DiscRate)^(B151-YearCurrent) -> 0
B153: =YearOpen -> 2028 | C153: =MAX(TREND(C150:C151,B150:B151,B153),0) -> 0 | D153: =MAX(TREND(D150:D151,B150:B151,B153),0) -> 0 | G153: =MAX(TREND(G150:G151,$B150:$B151,$B153),0) -> 0 | H153: =MAX(TREND(H150:H151,$B150:$B151,$B153),0) -> 0 | K153: =MAX(TREND(K150:K151,B150:B151,B153),0) -> 0 | L153: =MAX(TREND(L150:L151,B150:B151,B153),0) -> 0 | M153: =IFERROR(IF(B144=Hwy,C153*E153/G153,K153/G153),0) -> 0 | N153: =IFERROR(IF(B144=Hwy,D153*F153/H153,L153/H153),0) -> 0 | O153: =MAX(TREND(O150:O151,$B150:$B151,$B153),0) -> 0 | P153: =MAX(TREND(P150:P151,$B150:$B151,$B153),0) -> 0 | Q153: =TREND(Q150:Q151,$B150:$B151,$B153) -> 0 | R153: =IF(Induced="N",0,(IF(B144=Hwy,M153*(I153*ValTimeTruck+(1-I153)*ValTimeAuto)-N153*(J153*ValTimeTruck+(1-J153)*ValTimeAuto),(IF(INDEX($P$277:$X$280,MATCH(B144,$O$277:$O$280,0),7)>0,INDEX($P$277:$X$280,MATCH(B144,$O$277:$O$280,0),7)/IF(INDEX($P$277:$X$280,MATCH(B144,$O$277:$O$280,0),6)=0,1,INDEX($P$277:$X$280,MATCH(B144,$O$277:$O$280,0),6)),M153)-N153)*ValTimeAuto)+O153-P153)*(H153-Q153)*0.5*(1+TTUprater)^($B153-YearCurrent)) -> 0 | S153: =SUM(R153:R153) -> 0 | T153: =S153/(1+DiscRate)^(B153-YearCurrent) -> 0
B154: =B153+1 -> 2029 | C154: =MAX(TREND(C150:C151,B150:B151,B154),0) -> 0 | D154: =MAX(TREND(D150:D151,B150:B151,B154),0) -> 0 | G154: =MAX(TREND(G150:G151,$B150:$B151,$B154),0) -> 0 | H154: =MAX(TREND(H150:H151,$B150:$B151,$B154),0) -> 0 | K154: =MAX(TREND(K150:K151,B150:B151,B154),0) -> 0 | L154: =MAX(TREND(L150:L151,B150:B151,B154),0) -> 0 | M154: =IFERROR(IF(B144=Hwy,C154*E154/G154,K154/G154),0) -> 0 | N154: =IFERROR(IF(B144=Hwy,D154*F154/H154,L154/H154),0) -> 0 | O154: =MAX(TREND(O150:O151,$B150:$B151,$B154),0) -> 0 | P154: =MAX(TREND(P150:P151,$B150:$B151,$B154),0) -> 0 | Q154: =TREND(Q150:Q151,$B150:$B151,$B154) -> 0 | R154: =IF(Induced="N",0,(IF(B144=Hwy,M154*(I154*ValTimeTruck+(1-I154)*ValTimeAuto)-N154*(J154*ValTimeTruck+(1-J154)*ValTimeAuto),(IF(INDEX($P$277:$X$280,MATCH(B144,$O$277:$O$280,0),7)>0,INDEX($P$277:$X$280,MATCH(B144,$O$277:$O$280,0),7)/IF(INDEX($P$277:$X$280,MATCH(B144,$O$277:$O$280,0),6)=0,1,INDEX($P$277:$X$280,MATCH(B144,$O$277:$O$280,0),6)),M154)-N154)*ValTimeAuto)+O154-P154)*(H154-Q154)*0.5*(1+TTUprater)^($B154-YearCurrent)) -> 0 | S154: 0 | T154: 0
B155: =B154+1 -> 2030 | C155: =MAX(TREND(C150:C151,B150:B151,B155),0) -> 0 | D155: =MAX(TREND(D150:D151,B150:B151,B155),0) -> 0 | G155: =MAX(TREND(G150:G151,$B150:$B151,$B155),0) -> 0 | H155: =MAX(TREND(H150:H151,$B150:$B151,$B155),0) -> 0 | K155: =MAX(TREND(K150:K151,B150:B151,B155),0) -> 0 | L155: =MAX(TREND(L150:L151,B150:B151,B155),0) -> 0 | M155: =IFERROR(IF(B144=Hwy,C155*E155/G155,K155/G155),0) -> 0 | N155: =IFERROR(IF(B144=Hwy,D155*F155/H155,L155/H155),0) -> 0 | O155: =MAX(TREND(O150:O151,$B150:$B151,$B155),0) -> 0 | P155: =MAX(TREND(P150:P151,$B150:$B151,$B155),0) -> 0 | Q155: =TREND(Q150:Q151,$B150:$B151,$B155) -> 0 | R155: =IF(Induced="N",0,(IF(B144=Hwy,M155*(I155*ValTimeTruck+(1-I155)*ValTimeAuto)-N155*(J155*ValTimeTruck+(1-J155)*ValTimeAuto),(IF(INDEX($P$277:$X$280,MATCH(B144,$O$277:$O$280,0),7)>0,INDEX($P$277:$X$280,MATCH(B144,$O$277:$O$280,0),7)/IF(INDEX($P$277:$X$280,MATCH(B144,$O$277:$O$280,0),6)=0,1,INDEX($P$277:$X$280,MATCH(B144,$O$277:$O$280,0),6)),M155)-N155)*ValTimeAuto)+O155-P155)*(H155-Q155)*0.5*(1+TTUprater)^($B155-YearCurrent)) -> 0 | S155: 0 | T155: 0
B156: 2031 | C156: =MAX(TREND(C150:C151,B150:B151,B156),0) -> 0 | D156: =MAX(TREND(D150:D151,B150:B151,B156),0) -> 0 | G156: =MAX(TREND(G150:G151,$B150:$B151,$B156),0) -> 0 | H156: =MAX(TREND(H150:H151,$B150:$B151,$B156),0) -> 0 | K156: =MAX(TREND(K150:K151,B150:B151,B156),0) -> 0 | L156: =MAX(TREND(L150:L151,B150:B151,B156),0) -> 0 | M156: =IFERROR(IF(B144=Hwy,C156*E156/G156,K156/G156),0) -> 0 | N156: =IFERROR(IF(B144=Hwy,D156*F156/H156,L156/H156),0) -> 0 | O156: =MAX(TREND(O150:O151,$B150:$B151,$B156),0) -> 0 | P156: =MAX(TREND(P150:P151,$B150:$B151,$B156),0) -> 0 | Q156: =TREND(Q150:Q151,$B150:$B151,$B156) -> 0 | R156: =IF(Induced="N",0,(IF(B144=Hwy,M156*(I156*ValTimeTruck+(1-I156)*ValTimeAuto)-N156*(J156*ValTimeTruck+(1-J156)*ValTimeAuto),(IF(INDEX($P$277:$X$280,MATCH(B144,$O$277:$O$280,0),7)>0,INDEX($P$277:$X$280,MATCH(B144,$O$277:$O$280,0),7)/IF(INDEX($P$277:$X$280,MATCH(B144,$O$277:$O$280,0),6)=0,1,INDEX($P$277:$X$280,MATCH(B144,$O$277:$O$280,0),6)),M156)-N156)*ValTimeAuto)+O156-P156)*(H156-Q156)*0.5*(1+TTUprater)^($B156-YearCurrent)) -> 0 | S156: 0 | T156: 0
B157: 2032 | C157: =MAX(TREND(C150:C151,B150:B151,B157),0) -> 0 | D157: =MAX(TREND(D150:D151,B150:B151,B157),0) -> 0 | G157: =MAX(TREND(G150:G151,$B150:$B151,$B157),0) -> 0 | H157: =MAX(TREND(H150:H151,$B150:$B151,$B157),0) -> 0 | K157: =MAX(TREND(K150:K151,B150:B151,B157),0) -> 0 | L157: =MAX(TREND(L150:L151,B150:B151,B157),0) -> 0 | M157: =IFERROR(IF(B144=Hwy,C157*E157/G157,K157/G157),0) -> 0 | N157: =IFERROR(IF(B144=Hwy,D157*F157/H157,L157/H157),0) -> 0 | O157: =MAX(TREND(O150:O151,$B150:$B151,$B157),0) -> 0 | P157: =MAX(TREND(P150:P151,$B150:$B151,$B157),0) -> 0 | Q157: =TREND(Q150:Q151,$B150:$B151,$B157) -> 0 | R157: =IF(Induced="N",0,(IF(B144=Hwy,M157*(I157*ValTimeTruck+(1-I157)*ValTimeAuto)-N157*(J157*ValTimeTruck+(1-J157)*ValTimeAuto),(IF(INDEX($P$277:$X$280,MATCH(B144,$O$277:$O$280,0),7)>0,INDEX($P$277:$X$280,MATCH(B144,$O$277:$O$280,0),7)/IF(INDEX($P$277:$X$280,MATCH(B144,$O$277:$O$280,0),6)=0,1,INDEX($P$277:$X$280,MATCH(B144,$O$277:$O$280,0),6)),M157)-N157)*ValTimeAuto)+O157-P157)*(H157-Q157)*0.5*(1+TTUprater)^($B157-YearCurrent)) -> 0 | S157: 0 | T157: 0
B158: 2033 | C158: =MAX(TREND(C150:C151,B150:B151,B158),0) -> 0 | D158: =MAX(TREND(D150:D151,B150:B151,B158),0) -> 0 | G158: =MAX(TREND(G150:G151,$B150:$B151,$B158),0) -> 0 | H158: =MAX(TREND(H150:H151,$B150:$B151,$B158),0) -> 0 | K158: =MAX(TREND(K150:K151,B150:B151,B158),0) -> 0 | L158: =MAX(TREND(L150:L151,B150:B151,B158),0) -> 0 | M158: =IFERROR(IF(B144=Hwy,C158*E158/G158,K158/G158),0) -> 0 | N158: =IFERROR(IF(B144=Hwy,D158*F158/H158,L158/H158),0) -> 0 | O158: =MAX(TREND(O150:O151,$B150:$B151,$B158),0) -> 0 | P158: =MAX(TREND(P150:P151,$B150:$B151,$B158),0) -> 0 | Q158: =TREND(Q150:Q151,$B150:$B151,$B158) -> 0 | R158: =IF(Induced="N",0,(IF(B144=Hwy,M158*(I158*ValTimeTruck+(1-I158)*ValTimeAuto)-N158*(J158*ValTimeTruck+(1-J158)*ValTimeAuto),(IF(INDEX($P$277:$X$280,MATCH(B144,$O$277:$O$280,0),7)>0,INDEX($P$277:$X$280,MATCH(B144,$O$277:$O$280,0),7)/IF(INDEX($P$277:$X$280,MATCH(B144,$O$277:$O$280,0),6)=0,1,INDEX($P$277:$X$280,MATCH(B144,$O$277:$O$280,0),6)),M158)-N158)*ValTimeAuto)+O158-P158)*(H158-Q158)*0.5*(1+TTUprater)^($B158-YearCurrent)) -> 0 | S158: 0 | T158: 0
B159: 2034 | C159: =MAX(TREND(C150:C151,B150:B151,B159),0) -> 0 | D159: =MAX(TREND(D150:D151,B150:B151,B159),0) -> 0 | G159: =MAX(TREND(G150:G151,$B150:$B151,$B159),0) -> 0 | H159: =MAX(TREND(H150:H151,$B150:$B151,$B159),0) -> 0 | K159: =MAX(TREND(K150:K151,B150:B151,B159),0) -> 0 | L159: =MAX(TREND(L150:L151,B150:B151,B159),0) -> 0 | M159: =IFERROR(IF(B144=Hwy,C159*E159/G159,K159/G159),0) -> 0 | N159: =IFERROR(IF(B144=Hwy,D159*F159/H159,L159/H159),0) -> 0 | O159: =MAX(TREND(O150:O151,$B150:$B151,$B159),0) -> 0 | P159: =MAX(TREND(P150:P151,$B150:$B151,$B159),0) -> 0 | Q159: =TREND(Q150:Q151,$B150:$B151,$B159) -> 0 | R159: =IF(Induced="N",0,(IF(B144=Hwy,M159*(I159*ValTimeTruck+(1-I159)*ValTimeAuto)-N159*(J159*ValTimeTruck+(1-J159)*ValTimeAuto),(IF(INDEX($P$277:$X$280,MATCH(B144,$O$277:$O$280,0),7)>0,INDEX($P$277:$X$280,MATCH(B144,$O$277:$O$280,0),7)/IF(INDEX($P$277:$X$280,MATCH(B144,$O$277:$O$280,0),6)=0,1,INDEX($P$277:$X$280,MATCH(B144,$O$277:$O$280,0),6)),M159)-N159)*ValTimeAuto)+O159-P159)*(H159-Q159)*0.5*(1+TTUprater)^($B159-YearCurrent)) -> 0 | S159: 0 | T159: 0
B160: 2035 | C160: =MAX(TREND(C150:C151,B150:B151,B160),0) -> 0 | D160: =MAX(TREND(D150:D151,B150:B151,B160),0) -> 0 | G160: =MAX(TREND(G150:G151,$B150:$B151,$B160),0) -> 0 | H160: =MAX(TREND(H150:H151,$B150:$B151,$B160),0) -> 0 | K160: =MAX(TREND(K150:K151,B150:B151,B160),0) -> 0 | L160: =MAX(TREND(L150:L151,B150:B151,B160),0) -> 0 | M160: =IFERROR(IF(B144=Hwy,C160*E160/G160,K160/G160),0) -> 0 | N160: =IFERROR(IF(B144=Hwy,D160*F160/H160,L160/H160),0) -> 0 | O160: =MAX(TREND(O150:O151,$B150:$B151,$B160),0) -> 0 | P160: =MAX(TREND(P150:P151,$B150:$B151,$B160),0) -> 0 | Q160: =TREND(Q150:Q151,$B150:$B151,$B160) -> 0 | R160: =IF(Induced="N",0,(IF(B144=Hwy,M160*(I160*ValTimeTruck+(1-I160)*ValTimeAuto)-N160*(J160*ValTimeTruck+(1-J160)*ValTimeAuto),(IF(INDEX($P$277:$X$280,MATCH(B144,$O$277:$O$280,0),7)>0,INDEX($P$277:$X$280,MATCH(B144,$O$277:$O$280,0),7)/IF(INDEX($P$277:$X$280,MATCH(B144,$O$277:$O$280,0),6)=0,1,INDEX($P$277:$X$280,MATCH(B144,$O$277:$O$280,0),6)),M160)-N160)*ValTimeAuto)+O160-P160)*(H160-Q160)*0.5*(1+TTUprater)^($B160-YearCurrent)) -> 0 | S160: 0 | T160: 0
B161: 2036 | C161: =MAX(TREND(C150:C151,B150:B151,B161),0) -> 0 | D161: =MAX(TREND(D150:D151,B150:B151,B161),0) -> 0 | G161: =MAX(TREND(G150:G151,$B150:$B151,$B161),0) -> 0 | H161: =MAX(TREND(H150:H151,$B150:$B151,$B161),0) -> 0 | K161: =MAX(TREND(K150:K151,B150:B151,B161),0) -> 0 | L161: =MAX(TREND(L150:L151,B150:B151,B161),0) -> 0 | M161: =IFERROR(IF(B144=Hwy,C161*E161/G161,K161/G161),0) -> 0 | N161: =IFERROR(IF(B144=Hwy,D161*F161/H161,L161/H161),0) -> 0 | O161: =MAX(TREND(O150:O151,$B150:$B151,$B161),0) -> 0 | P161: =MAX(TREND(P150:P151,$B150:$B151,$B161),0) -> 0 | Q161: =TREND(Q150:Q151,$B150:$B151,$B161) -> 0 | R161: =IF(Induced="N",0,(IF(B144=Hwy,M161*(I161*ValTimeTruck+(1-I161)*ValTimeAuto)-N161*(J161*ValTimeTruck+(1-J161)*ValTimeAuto),(IF(INDEX($P$277:$X$280,MATCH(B144,$O$277:$O$280,0),7)>0,INDEX($P$277:$X$280,MATCH(B144,$O$277:$O$280,0),7)/IF(INDEX($P$277:$X$280,MATCH(B144,$O$277:$O$280,0),6)=0,1,INDEX($P$277:$X$280,MATCH(B144,$O$277:$O$280,0),6)),M161)-N161)*ValTimeAuto)+O161-P161)*(H161-Q161)*0.5*(1+TTUprater)^($B161-YearCurrent)) -> 0 | S161: 0 | T161: 0
B162: 2037 | C162: =MAX(TREND(C150:C151,B150:B151,B162),0) -> 0 | D162: =MAX(TREND(D150:D151,B150:B151,B162),0) -> 0 | G162: =MAX(TREND(G150:G151,$B150:$B151,$B162),0) -> 0 | H162: =MAX(TREND(H150:H151,$B150:$B151,$B162),0) -> 0 | K162: =MAX(TREND(K150:K151,B150:B151,B162),0) -> 0 | L162: =MAX(TREND(L150:L151,B150:B151,B162),0) -> 0 | M162: =IFERROR(IF(B144=Hwy,C162*E162/G162,K162/G162),0) -> 0 | N162: =IFERROR(IF(B144=Hwy,D162*F162/H162,L162/H162),0) -> 0 | O162: =MAX(TREND(O150:O151,$B150:$B151,$B162),0) -> 0 | P162: =MAX(TREND(P150:P151,$B150:$B151,$B162),0) -> 0 | Q162: =TREND(Q150:Q151,$B150:$B151,$B162) -> 0 | R162: =IF(Induced="N",0,(IF(B144=Hwy,M162*(I162*ValTimeTruck+(1-I162)*ValTimeAuto)-N162*(J162*ValTimeTruck+(1-J162)*ValTimeAuto),(IF(INDEX($P$277:$X$280,MATCH(B144,$O$277:$O$280,0),7)>0,INDEX($P$277:$X$280,MATCH(B144,$O$277:$O$280,0),7)/IF(INDEX($P$277:$X$280,MATCH(B144,$O$277:$O$280,0),6)=0,1,INDEX($P$277:$X$280,MATCH(B144,$O$277:$O$280,0),6)),M162)-N162)*ValTimeAuto)+O162-P162)*(H162-Q162)*0.5*(1+TTUprater)^($B162-YearCurrent)) -> 0 | S162: 0 | T162: 0
B163: 2038 | C163: =MAX(TREND(C150:C151,B150:B151,B163),0) -> 0 | D163: =MAX(TREND(D150:D151,B150:B151,B163),0) -> 0 | G163: =MAX(TREND(G150:G151,$B150:$B151,$B163),0) -> 0 | H163: =MAX(TREND(H150:H151,$B150:$B151,$B163),0) -> 0 | K163: =MAX(TREND(K150:K151,B150:B151,B163),0) -> 0 | L163: =MAX(TREND(L150:L151,B150:B151,B163),0) -> 0 | M163: =IFERROR(IF(B144=Hwy,C163*E163/G163,K163/G163),0) -> 0 | N163: =IFERROR(IF(B144=Hwy,D163*F163/H163,L163/H163),0) -> 0 | O163: =MAX(TREND(O150:O151,$B150:$B151,$B163),0) -> 0 | P163: =MAX(TREND(P150:P151,$B150:$B151,$B163),0) -> 0 | Q163: =TREND(Q150:Q151,$B150:$B151,$B163) -> 0 | R163: =IF(Induced="N",0,(IF(B144=Hwy,M163*(I163*ValTimeTruck+(1-I163)*ValTimeAuto)-N163*(J163*ValTimeTruck+(1-J163)*ValTimeAuto),(IF(INDEX($P$277:$X$280,MATCH(B144,$O$277:$O$280,0),7)>0,INDEX($P$277:$X$280,MATCH(B144,$O$277:$O$280,0),7)/IF(INDEX($P$277:$X$280,MATCH(B144,$O$277:$O$280,0),6)=0,1,INDEX($P$277:$X$280,MATCH(B144,$O$277:$O$280,0),6)),M163)-N163)*ValTimeAuto)+O163-P163)*(H163-Q163)*0.5*(1+TTUprater)^($B163-YearCurrent)) -> 0 | S163: 0 | T163: 0
B164: 2039 | C164: =MAX(TREND(C150:C151,B150:B151,B164),0) -> 0 | D164: =MAX(TREND(D150:D151,B150:B151,B164),0) -> 0 | G164: =MAX(TREND(G150:G151,$B150:$B151,$B164),0) -> 0 | H164: =MAX(TREND(H150:H151,$B150:$B151,$B164),0) -> 0 | K164: =MAX(TREND(K150:K151,B150:B151,B164),0) -> 0 | L164: =MAX(TREND(L150:L151,B150:B151,B164),0) -> 0 | M164: =IFERROR(IF(B144=Hwy,C164*E164/G164,K164/G164),0) -> 0 | N164: =IFERROR(IF(B144=Hwy,D164*F164/H164,L164/H164),0) -> 0 | O164: =MAX(TREND(O150:O151,$B150:$B151,$B164),0) -> 0 | P164: =MAX(TREND(P150:P151,$B150:$B151,$B164),0) -> 0 | Q164: =TREND(Q150:Q151,$B150:$B151,$B164) -> 0 | R164: =IF(Induced="N",0,(IF(B144=Hwy,M164*(I164*ValTimeTruck+(1-I164)*ValTimeAuto)-N164*(J164*ValTimeTruck+(1-J164)*ValTimeAuto),(IF(INDEX($P$277:$X$280,MATCH(B144,$O$277:$O$280,0),7)>0,INDEX($P$277:$X$280,MATCH(B144,$O$277:$O$280,0),7)/IF(INDEX($P$277:$X$280,MATCH(B144,$O$277:$O$280,0),6)=0,1,INDEX($P$277:$X$280,MATCH(B144,$O$277:$O$280,0),6)),M164)-N164)*ValTimeAuto)+O164-P164)*(H164-Q164)*0.5*(1+TTUprater)^($B164-YearCurrent)) -> 0 | S164: 0 | T164: 0
B165: 2040 | C165: =MAX(TREND(C150:C151,B150:B151,B165),0) -> 0 | D165: =MAX(TREND(D150:D151,B150:B151,B165),0) -> 0 | G165: =MAX(TREND(G150:G151,$B150:$B151,$B165),0) -> 0 | H165: =MAX(TREND(H150:H151,$B150:$B151,$B165),0) -> 0 | K165: =MAX(TREND(K150:K151,B150:B151,B165),0) -> 0 | L165: =MAX(TREND(L150:L151,B150:B151,B165),0) -> 0 | M165: =IFERROR(IF(B144=Hwy,C165*E165/G165,K165/G165),0) -> 0 | N165: =IFERROR(IF(B144=Hwy,D165*F165/H165,L165/H165),0) -> 0 | O165: =MAX(TREND(O150:O151,$B150:$B151,$B165),0) -> 0 | P165: =MAX(TREND(P150:P151,$B150:$B151,$B165),0) -> 0 | Q165: =TREND(Q150:Q151,$B150:$B151,$B165) -> 0 | R165: =IF(Induced="N",0,(IF(B144=Hwy,M165*(I165*ValTimeTruck+(1-I165)*ValTimeAuto)-N165*(J165*ValTimeTruck+(1-J165)*ValTimeAuto),(IF(INDEX($P$277:$X$280,MATCH(B144,$O$277:$O$280,0),7)>0,INDEX($P$277:$X$280,MATCH(B144,$O$277:$O$280,0),7)/IF(INDEX($P$277:$X$280,MATCH(B144,$O$277:$O$280,0),6)=0,1,INDEX($P$277:$X$280,MATCH(B144,$O$277:$O$280,0),6)),M165)-N165)*ValTimeAuto)+O165-P165)*(H165-Q165)*0.5*(1+TTUprater)^($B165-YearCurrent)) -> 0 | S165: 0 | T165: 0
B166: 2041 | C166: =MAX(TREND(C150:C151,B150:B151,B166),0) -> 0 | D166: =MAX(TREND(D150:D151,B150:B151,B166),0) -> 0 | G166: =MAX(TREND(G150:G151,$B150:$B151,$B166),0) -> 0 | H166: =MAX(TREND(H150:H151,$B150:$B151,$B166),0) -> 0 | K166: =MAX(TREND(K150:K151,B150:B151,B166),0) -> 0 | L166: =MAX(TREND(L150:L151,B150:B151,B166),0) -> 0 | M166: =IFERROR(IF(B144=Hwy,C166*E166/G166,K166/G166),0) -> 0 | N166: =IFERROR(IF(B144=Hwy,D166*F166/H166,L166/H166),0) -> 0 | O166: =MAX(TREND(O150:O151,$B150:$B151,$B166),0) -> 0 | P166: =MAX(TREND(P150:P151,$B150:$B151,$B166),0) -> 0 | Q166: =TREND(Q150:Q151,$B150:$B151,$B166) -> 0 | R166: =IF(Induced="N",0,(IF(B144=Hwy,M166*(I166*ValTimeTruck+(1-I166)*ValTimeAuto)-N166*(J166*ValTimeTruck+(1-J166)*ValTimeAuto),(IF(INDEX($P$277:$X$280,MATCH(B144,$O$277:$O$280,0),7)>0,INDEX($P$277:$X$280,MATCH(B144,$O$277:$O$280,0),7)/IF(INDEX($P$277:$X$280,MATCH(B144,$O$277:$O$280,0),6)=0,1,INDEX($P$277:$X$280,MATCH(B144,$O$277:$O$280,0),6)),M166)-N166)*ValTimeAuto)+O166-P166)*(H166-Q166)*0.5*(1+TTUprater)^($B166-YearCurrent)) -> 0 | S166: 0 | T166: 0
B167: 2042 | C167: =MAX(TREND(C150:C151,B150:B151,B167),0) -> 0 | D167: =MAX(TREND(D150:D151,B150:B151,B167),0) -> 0 | G167: =MAX(TREND(G150:G151,$B150:$B151,$B167),0) -> 0 | H167: =MAX(TREND(H150:H151,$B150:$B151,$B167),0) -> 0 | K167: =MAX(TREND(K150:K151,B150:B151,B167),0) -> 0 | L167: =MAX(TREND(L150:L151,B150:B151,B167),0) -> 0 | M167: =IFERROR(IF(B144=Hwy,C167*E167/G167,K167/G167),0) -> 0 | N167: =IFERROR(IF(B144=Hwy,D167*F167/H167,L167/H167),0) -> 0 | O167: =MAX(TREND(O150:O151,$B150:$B151,$B167),0) -> 0 | P167: =MAX(TREND(P150:P151,$B150:$B151,$B167),0) -> 0 | Q167: =TREND(Q150:Q151,$B150:$B151,$B167) -> 0 | R167: =IF(Induced="N",0,(IF(B144=Hwy,M167*(I167*ValTimeTruck+(1-I167)*ValTimeAuto)-N167*(J167*ValTimeTruck+(1-J167)*ValTimeAuto),(IF(INDEX($P$277:$X$280,MATCH(B144,$O$277:$O$280,0),7)>0,INDEX($P$277:$X$280,MATCH(B144,$O$277:$O$280,0),7)/IF(INDEX($P$277:$X$280,MATCH(B144,$O$277:$O$280,0),6)=0,1,INDEX($P$277:$X$280,MATCH(B144,$O$277:$O$280,0),6)),M167)-N167)*ValTimeAuto)+O167-P167)*(H167-Q167)*0.5*(1+TTUprater)^($B167-YearCurrent)) -> 0 | S167: 0 | T167: 0
B168: 2043 | C168: =MAX(TREND(C150:C151,B150:B151,B168),0) -> 0 | D168: =MAX(TREND(D150:D151,B150:B151,B168),0) -> 0 | G168: =MAX(TREND(G150:G151,$B150:$B151,$B168),0) -> 0 | H168: =MAX(TREND(H150:H151,$B150:$B151,$B168),0) -> 0 | K168: =MAX(TREND(K150:K151,B150:B151,B168),0) -> 0 | L168: =MAX(TREND(L150:L151,B150:B151,B168),0) -> 0 | M168: =IFERROR(IF(B144=Hwy,C168*E168/G168,K168/G168),0) -> 0 | N168: =IFERROR(IF(B144=Hwy,D168*F168/H168,L168/H168),0) -> 0 | O168: =MAX(TREND(O150:O151,$B150:$B151,$B168),0) -> 0 | P168: =MAX(TREND(P150:P151,$B150:$B151,$B168),0) -> 0 | Q168: =TREND(Q150:Q151,$B150:$B151,$B168) -> 0 | R168: =IF(Induced="N",0,(IF(B144=Hwy,M168*(I168*ValTimeTruck+(1-I168)*ValTimeAuto)-N168*(J168*ValTimeTruck+(1-J168)*ValTimeAuto),(IF(INDEX($P$277:$X$280,MATCH(B144,$O$277:$O$280,0),7)>0,INDEX($P$277:$X$280,MATCH(B144,$O$277:$O$280,0),7)/IF(INDEX($P$277:$X$280,MATCH(B144,$O$277:$O$280,0),6)=0,1,INDEX($P$277:$X$280,MATCH(B144,$O$277:$O$280,0),6)),M168)-N168)*ValTimeAuto)+O168-P168)*(H168-Q168)*0.5*(1+TTUprater)^($B168-YearCurrent)) -> 0 | S168: 0 | T168: 0
B169: 2044 | C169: =MAX(TREND(C150:C151,B150:B151,B169),0) -> 0 | D169: =MAX(TREND(D150:D151,B150:B151,B169),0) -> 0 | G169: =MAX(TREND(G150:G151,$B150:$B151,$B169),0) -> 0 | H169: =MAX(TREND(H150:H151,$B150:$B151,$B169),0) -> 0 | K169: =MAX(TREND(K150:K151,B150:B151,B169),0) -> 0 | L169: =MAX(TREND(L150:L151,B150:B151,B169),0) -> 0 | M169: =IFERROR(IF(B144=Hwy,C169*E169/G169,K169/G169),0) -> 0 | N169: =IFERROR(IF(B144=Hwy,D169*F169/H169,L169/H169),0) -> 0 | O169: =MAX(TREND(O150:O151,$B150:$B151,$B169),0) -> 0 | P169: =MAX(TREND(P150:P151,$B150:$B151,$B169),0) -> 0 | Q169: =TREND(Q150:Q151,$B150:$B151,$B169) -> 0 | R169: =IF(Induced="N",0,(IF(B144=Hwy,M169*(I169*ValTimeTruck+(1-I169)*ValTimeAuto)-N169*(J169*ValTimeTruck+(1-J169)*ValTimeAuto),(IF(INDEX($P$277:$X$280,MATCH(B144,$O$277:$O$280,0),7)>0,INDEX($P$277:$X$280,MATCH(B144,$O$277:$O$280,0),7)/IF(INDEX($P$277:$X$280,MATCH(B144,$O$277:$O$280,0),6)=0,1,INDEX($P$277:$X$280,MATCH(B144,$O$277:$O$280,0),6)),M169)-N169)*ValTimeAuto)+O169-P169)*(H169-Q169)*0.5*(1+TTUprater)^($B169-YearCurrent)) -> 0 | S169: 0 | T169: 0
B170: 2045 | C170: =MAX(TREND(C150:C151,B150:B151,B170),0) -> 0 | D170: =MAX(TREND(D150:D151,B150:B151,B170),0) -> 0 | G170: =MAX(TREND(G150:G151,$B150:$B151,$B170),0) -> 0 | H170: =MAX(TREND(H150:H151,$B150:$B151,$B170),0) -> 0 | K170: =MAX(TREND(K150:K151,B150:B151,B170),0) -> 0 | L170: =MAX(TREND(L150:L151,B150:B151,B170),0) -> 0 | M170: =IFERROR(IF(B144=Hwy,C170*E170/G170,K170/G170),0) -> 0 | N170: =IFERROR(IF(B144=Hwy,D170*F170/H170,L170/H170),0) -> 0 | O170: =MAX(TREND(O150:O151,$B150:$B151,$B170),0) -> 0 | P170: =MAX(TREND(P150:P151,$B150:$B151,$B170),0) -> 0 | Q170: =TREND(Q150:Q151,$B150:$B151,$B170) -> 0 | R170: =IF(Induced="N",0,(IF(B144=Hwy,M170*(I170*ValTimeTruck+(1-I170)*ValTimeAuto)-N170*(J170*ValTimeTruck+(1-J170)*ValTimeAuto),(IF(INDEX($P$277:$X$280,MATCH(B144,$O$277:$O$280,0),7)>0,INDEX($P$277:$X$280,MATCH(B144,$O$277:$O$280,0),7)/IF(INDEX($P$277:$X$280,MATCH(B144,$O$277:$O$280,0),6)=0,1,INDEX($P$277:$X$280,MATCH(B144,$O$277:$O$280,0),6)),M170)-N170)*ValTimeAuto)+O170-P170)*(H170-Q170)*0.5*(1+TTUprater)^($B170-YearCurrent)) -> 0 | S170: 0 | T170: 0
B171: 2046 | C171: =MAX(TREND(C150:C151,B150:B151,B171),0) -> 0 | D171: =MAX(TREND(D150:D151,B150:B151,B171),0) -> 0 | G171: =MAX(TREND(G150:G151,$B150:$B151,$B171),0) -> 0 | H171: =MAX(TREND(H150:H151,$B150:$B151,$B171),0) -> 0 | K171: =MAX(TREND(K150:K151,B150:B151,B171),0) -> 0 | L171: =MAX(TREND(L150:L151,B150:B151,B171),0) -> 0 | M171: =IFERROR(IF(B144=Hwy,C171*E171/G171,K171/G171),0) -> 0 | N171: =IFERROR(IF(B144=Hwy,D171*F171/H171,L171/H171),0) -> 0 | O171: =MAX(TREND(O150:O151,$B150:$B151,$B171),0) -> 0 | P171: =MAX(TREND(P150:P151,$B150:$B151,$B171),0) -> 0 | Q171: =TREND(Q150:Q151,$B150:$B151,$B171) -> 0 | R171: =IF(Induced="N",0,(IF(B144=Hwy,M171*(I171*ValTimeTruck+(1-I171)*ValTimeAuto)-N171*(J171*ValTimeTruck+(1-J171)*ValTimeAuto),(IF(INDEX($P$277:$X$280,MATCH(B144,$O$277:$O$280,0),7)>0,INDEX($P$277:$X$280,MATCH(B144,$O$277:$O$280,0),7)/IF(INDEX($P$277:$X$280,MATCH(B144,$O$277:$O$280,0),6)=0,1,INDEX($P$277:$X$280,MATCH(B144,$O$277:$O$280,0),6)),M171)-N171)*ValTimeAuto)+O171-P171)*(H171-Q171)*0.5*(1+TTUprater)^($B171-YearCurrent)) -> 0 | S171: 0 | T171: 0
B172: 2047 | C172: =MAX(TREND(C150:C151,B150:B151,B172),0) -> 0 | D172: =MAX(TREND(D150:D151,B150:B151,B172),0) -> 0 | G172: =MAX(TREND(G150:G151,$B150:$B151,$B172),0) -> 0 | H172: =MAX(TREND(H150:H151,$B150:$B151,$B172),0) -> 0 | K172: =MAX(TREND(K150:K151,B150:B151,B172),0) -> 0 | L172: =MAX(TREND(L150:L151,B150:B151,B172),0) -> 0 | M172: =IFERROR(IF(B144=Hwy,C172*E172/G172,K172/G172),0) -> 0 | N172: =IFERROR(IF(B144=Hwy,D172*F172/H172,L172/H172),0) -> 0 | O172: =MAX(TREND(O150:O151,$B150:$B151,$B172),0) -> 0 | P172: =MAX(TREND(P150:P151,$B150:$B151,$B172),0) -> 0 | Q172: =TREND(Q150:Q151,$B150:$B151,$B172) -> 0 | R172: =IF(Induced="N",0,(IF(B144=Hwy,M172*(I172*ValTimeTruck+(1-I172)*ValTimeAuto)-N172*(J172*ValTimeTruck+(1-J172)*ValTimeAuto),(IF(INDEX($P$277:$X$280,MATCH(B144,$O$277:$O$280,0),7)>0,INDEX($P$277:$X$280,MATCH(B144,$O$277:$O$280,0),7)/IF(INDEX($P$277:$X$280,MATCH(B144,$O$277:$O$280,0),6)=0,1,INDEX($P$277:$X$280,MATCH(B144,$O$277:$O$280,0),6)),M172)-N172)*ValTimeAuto)+O172-P172)*(H172-Q172)*0.5*(1+TTUprater)^($B172-YearCurrent)) -> 0 | S172: 0 | T172: 0
B173: 2048 | C173: =MAX(TREND(C150:C151,B150:B151,B173),0) -> 0 | D173: =MAX(TREND(D150:D151,B150:B151,B173),0) -> 0 | G173: =MAX(TREND(G150:G151,$B150:$B151,$B173),0) -> 0 | H173: =MAX(TREND(H150:H151,$B150:$B151,$B173),0) -> 0 | K173: =MAX(TREND(K150:K151,B150:B151,B173),0) -> 0 | L173: =MAX(TREND(L150:L151,B150:B151,B173),0) -> 0 | M173: =IFERROR(IF(B144=Hwy,C173*E173/G173,K173/G173),0) -> 0 | N173: =IFERROR(IF(B144=Hwy,D173*F173/H173,L173/H173),0) -> 0 | O173: =MAX(TREND(O150:O151,$B150:$B151,$B173),0) -> 0 | P173: =MAX(TREND(P150:P151,$B150:$B151,$B173),0) -> 0 | Q173: =TREND(Q150:Q151,$B150:$B151,$B173) -> 0 | R173: =IF(Induced="N",0,(IF(B144=Hwy,M173*(I173*ValTimeTruck+(1-I173)*ValTimeAuto)-N173*(J173*ValTimeTruck+(1-J173)*ValTimeAuto),(IF(INDEX($P$277:$X$280,MATCH(B144,$O$277:$O$280,0),7)>0,INDEX($P$277:$X$280,MATCH(B144,$O$277:$O$280,0),7)/IF(INDEX($P$277:$X$280,MATCH(B144,$O$277:$O$280,0),6)=0,1,INDEX($P$277:$X$280,MATCH(B144,$O$277:$O$280,0),6)),M173)-N173)*ValTimeAuto)+O173-P173)*(H173-Q173)*0.5*(1+TTUprater)^($B173-YearCurrent)) -> 0 | S173: 0 | T173: 0
B174: 2049 | C174: =MAX(TREND(C150:C151,B150:B151,B174),0) -> 0 | D174: =MAX(TREND(D150:D151,B150:B151,B174),0) -> 0 | G174: =MAX(TREND(G150:G151,$B150:$B151,$B174),0) -> 0 | H174: =MAX(TREND(H150:H151,$B150:$B151,$B174),0) -> 0 | K174: =MAX(TREND(K150:K151,B150:B151,B174),0) -> 0 | L174: =MAX(TREND(L150:L151,B150:B151,B174),0) -> 0 | M174: =IFERROR(IF(B144=Hwy,C174*E174/G174,K174/G174),0) -> 0 | N174: =IFERROR(IF(B144=Hwy,D174*F174/H174,L174/H174),0) -> 0 | O174: =MAX(TREND(O150:O151,$B150:$B151,$B174),0) -> 0 | P174: =MAX(TREND(P150:P151,$B150:$B151,$B174),0) -> 0 | Q174: =TREND(Q150:Q151,$B150:$B151,$B174) -> 0 | R174: =IF(Induced="N",0,(IF(B144=Hwy,M174*(I174*ValTimeTruck+(1-I174)*ValTimeAuto)-N174*(J174*ValTimeTruck+(1-J174)*ValTimeAuto),(IF(INDEX($P$277:$X$280,MATCH(B144,$O$277:$O$280,0),7)>0,INDEX($P$277:$X$280,MATCH(B144,$O$277:$O$280,0),7)/IF(INDEX($P$277:$X$280,MATCH(B144,$O$277:$O$280,0),6)=0,1,INDEX($P$277:$X$280,MATCH(B144,$O$277:$O$280,0),6)),M174)-N174)*ValTimeAuto)+O174-P174)*(H174-Q174)*0.5*(1+TTUprater)^($B174-YearCurrent)) -> 0 | S174: 0 | T174: 0
B175: 2050 | C175: =MAX(TREND(C150:C151,B150:B151,B175),0) -> 0 | D175: =MAX(TREND(D150:D151,B150:B151,B175),0) -> 0 | G175: =MAX(TREND(G150:G151,$B150:$B151,$B175),0) -> 0 | H175: =MAX(TREND(H150:H151,$B150:$B151,$B175),0) -> 0 | K175: =MAX(TREND(K150:K151,B150:B151,B175),0) -> 0 | L175: =MAX(TREND(L150:L151,B150:B151,B175),0) -> 0 | M175: =IFERROR(IF(B144=Hwy,C175*E175/G175,K175/G175),0) -> 0 | N175: =IFERROR(IF(B144=Hwy,D175*F175/H175,L175/H175),0) -> 0 | O175: =MAX(TREND(O150:O151,$B150:$B151,$B175),0) -> 0 | P175: =MAX(TREND(P150:P151,$B150:$B151,$B175),0) -> 0 | Q175: =TREND(Q150:Q151,$B150:$B151,$B175) -> 0 | R175: =IF(Induced="N",0,(IF(B144=Hwy,M175*(I175*ValTimeTruck+(1-I175)*ValTimeAuto)-N175*(J175*ValTimeTruck+(1-J175)*ValTimeAuto),(IF(INDEX($P$277:$X$280,MATCH(B144,$O$277:$O$280,0),7)>0,INDEX($P$277:$X$280,MATCH(B144,$O$277:$O$280,0),7)/IF(INDEX($P$277:$X$280,MATCH(B144,$O$277:$O$280,0),6)=0,1,INDEX($P$277:$X$280,MATCH(B144,$O$277:$O$280,0),6)),M175)-N175)*ValTimeAuto)+O175-P175)*(H175-Q175)*0.5*(1+TTUprater)^($B175-YearCurrent)) -> 0 | S175: 0 | T175: 0
B176: 2051 | C176: =MAX(TREND(C150:C151,B150:B151,B176),0) -> 0 | D176: =MAX(TREND(D150:D151,B150:B151,B176),0) -> 0 | G176: =MAX(TREND(G150:G151,$B150:$B151,$B176),0) -> 0 | H176: =MAX(TREND(H150:H151,$B150:$B151,$B176),0) -> 0 | K176: =MAX(TREND(K150:K151,B150:B151,B176),0) -> 0 | L176: =MAX(TREND(L150:L151,B150:B151,B176),0) -> 0 | M176: =IFERROR(IF(B144=Hwy,C176*E176/G176,K176/G176),0) -> 0 | N176: =IFERROR(IF(B144=Hwy,D176*F176/H176,L176/H176),0) -> 0 | O176: =MAX(TREND(O150:O151,$B150:$B151,$B176),0) -> 0 | P176: =MAX(TREND(P150:P151,$B150:$B151,$B176),0) -> 0 | Q176: =TREND(Q150:Q151,$B150:$B151,$B176) -> 0 | R176: =IF(Induced="N",0,(IF(B144=Hwy,M176*(I176*ValTimeTruck+(1-I176)*ValTimeAuto)-N176*(J176*ValTimeTruck+(1-J176)*ValTimeAuto),(IF(INDEX($P$277:$X$280,MATCH(B144,$O$277:$O$280,0),7)>0,INDEX($P$277:$X$280,MATCH(B144,$O$277:$O$280,0),7)/IF(INDEX($P$277:$X$280,MATCH(B144,$O$277:$O$280,0),6)=0,1,INDEX($P$277:$X$280,MATCH(B144,$O$277:$O$280,0),6)),M176)-N176)*ValTimeAuto)+O176-P176)*(H176-Q176)*0.5*(1+TTUprater)^($B176-YearCurrent)) -> 0 | S176: 0 | T176: 0
B177: 2052 | C177: =MAX(TREND(C150:C151,B150:B151,B177),0) -> 0 | D177: =MAX(TREND(D150:D151,B150:B151,B177),0) -> 0 | G177: =MAX(TREND(G150:G151,$B150:$B151,$B177),0) -> 0 | H177: =MAX(TREND(H150:H151,$B150:$B151,$B177),0) -> 0 | K177: =MAX(TREND(K150:K151,B150:B151,B177),0) -> 0 | L177: =MAX(TREND(L150:L151,B150:B151,B177),0) -> 0 | M177: =IFERROR(IF(B144=Hwy,C177*E177/G177,K177/G177),0) -> 0 | N177: =IFERROR(IF(B144=Hwy,D177*F177/H177,L177/H177),0) -> 0 | O177: =MAX(TREND(O150:O151,$B150:$B151,$B177),0) -> 0 | P177: =MAX(TREND(P150:P151,$B150:$B151,$B177),0) -> 0 | Q177: =TREND(Q150:Q151,$B150:$B151,$B177) -> 0 | R177: =IF(Induced="N",0,(IF(B144=Hwy,M177*(I177*ValTimeTruck+(1-I177)*ValTimeAuto)-N177*(J177*ValTimeTruck+(1-J177)*ValTimeAuto),(IF(INDEX($P$277:$X$280,MATCH(B144,$O$277:$O$280,0),7)>0,INDEX($P$277:$X$280,MATCH(B144,$O$277:$O$280,0),7)/IF(INDEX($P$277:$X$280,MATCH(B144,$O$277:$O$280,0),6)=0,1,INDEX($P$277:$X$280,MATCH(B144,$O$277:$O$280,0),6)),M177)-N177)*ValTimeAuto)+O177-P177)*(H177-Q177)*0.5*(1+TTUprater)^($B177-YearCurrent)) -> 0 | S177: 0 | T177: 0
B178: 2053 | C178: =MAX(TREND(C150:C151,B150:B151,B178),0) -> 0 | D178: =MAX(TREND(D150:D151,B150:B151,B178),0) -> 0 | G178: =MAX(TREND(G150:G151,$B150:$B151,$B178),0) -> 0 | H178: =MAX(TREND(H150:H151,$B150:$B151,$B178),0) -> 0 | K178: =MAX(TREND(K150:K151,B150:B151,B178),0) -> 0 | L178: =MAX(TREND(L150:L151,B150:B151,B178),0) -> 0 | M178: =IFERROR(IF(B144=Hwy,C178*E178/G178,K178/G178),0) -> 0 | N178: =IFERROR(IF(B144=Hwy,D178*F178/H178,L178/H178),0) -> 0 | O178: =MAX(TREND(O150:O151,$B150:$B151,$B178),0) -> 0 | P178: =MAX(TREND(P150:P151,$B150:$B151,$B178),0) -> 0 | Q178: =TREND(Q150:Q151,$B150:$B151,$B178) -> 0 | R178: =IF(Induced="N",0,(IF(B144=Hwy,M178*(I178*ValTimeTruck+(1-I178)*ValTimeAuto)-N178*(J178*ValTimeTruck+(1-J178)*ValTimeAuto),(IF(INDEX($P$277:$X$280,MATCH(B144,$O$277:$O$280,0),7)>0,INDEX($P$277:$X$280,MATCH(B144,$O$277:$O$280,0),7)/IF(INDEX($P$277:$X$280,MATCH(B144,$O$277:$O$280,0),6)=0,1,INDEX($P$277:$X$280,MATCH(B144,$O$277:$O$280,0),6)),M178)-N178)*ValTimeAuto)+O178-P178)*(H178-Q178)*0.5*(1+TTUprater)^($B178-YearCurrent)) -> 0 | S178: 0 | T178: 0
B179: 2054 | C179: =MAX(TREND(C150:C151,B150:B151,B179),0) -> 0 | D179: =MAX(TREND(D150:D151,B150:B151,B179),0) -> 0 | G179: =MAX(TREND(G150:G151,$B150:$B151,$B179),0) -> 0 | H179: =MAX(TREND(H150:H151,$B150:$B151,$B179),0) -> 0 | K179: =MAX(TREND(K150:K151,B150:B151,B179),0) -> 0 | L179: =MAX(TREND(L150:L151,B150:B151,B179),0) -> 0 | M179: =IFERROR(IF(B144=Hwy,C179*E179/G179,K179/G179),0) -> 0 | N179: =IFERROR(IF(B144=Hwy,D179*F179/H179,L179/H179),0) -> 0 | O179: =MAX(TREND(O150:O151,$B150:$B151,$B179),0) -> 0 | P179: =MAX(TREND(P150:P151,$B150:$B151,$B179),0) -> 0 | Q179: =TREND(Q150:Q151,$B150:$B151,$B179) -> 0 | R179: =IF(Induced="N",0,(IF(B144=Hwy,M179*(I179*ValTimeTruck+(1-I179)*ValTimeAuto)-N179*(J179*ValTimeTruck+(1-J179)*ValTimeAuto),(IF(INDEX($P$277:$X$280,MATCH(B144,$O$277:$O$280,0),7)>0,INDEX($P$277:$X$280,MATCH(B144,$O$277:$O$280,0),7)/IF(INDEX($P$277:$X$280,MATCH(B144,$O$277:$O$280,0),6)=0,1,INDEX($P$277:$X$280,MATCH(B144,$O$277:$O$280,0),6)),M179)-N179)*ValTimeAuto)+O179-P179)*(H179-Q179)*0.5*(1+TTUprater)^($B179-YearCurrent)) -> 0 | S179: 0 | T179: 0
B180: 2055 | C180: =MAX(TREND(C150:C151,B150:B151,B180),0) -> 0 | D180: =MAX(TREND(D150:D151,B150:B151,B180),0) -> 0 | G180: =MAX(TREND(G150:G151,$B150:$B151,$B180),0) -> 0 | H180: =MAX(TREND(H150:H151,$B150:$B151,$B180),0) -> 0 | K180: =MAX(TREND(K150:K151,B150:B151,B180),0) -> 0 | L180: =MAX(TREND(L150:L151,B150:B151,B180),0) -> 0 | M180: =IFERROR(IF(B144=Hwy,C180*E180/G180,K180/G180),0) -> 0 | N180: =IFERROR(IF(B144=Hwy,D180*F180/H180,L180/H180),0) -> 0 | O180: =MAX(TREND(O150:O151,$B150:$B151,$B180),0) -> 0 | P180: =MAX(TREND(P150:P151,$B150:$B151,$B180),0) -> 0 | Q180: =TREND(Q150:Q151,$B150:$B151,$B180) -> 0 | R180: =IF(Induced="N",0,(IF(B144=Hwy,M180*(I180*ValTimeTruck+(1-I180)*ValTimeAuto)-N180*(J180*ValTimeTruck+(1-J180)*ValTimeAuto),(IF(INDEX($P$277:$X$280,MATCH(B144,$O$277:$O$280,0),7)>0,INDEX($P$277:$X$280,MATCH(B144,$O$277:$O$280,0),7)/IF(INDEX($P$277:$X$280,MATCH(B144,$O$277:$O$280,0),6)=0,1,INDEX($P$277:$X$280,MATCH(B144,$O$277:$O$280,0),6)),M180)-N180)*ValTimeAuto)+O180-P180)*(H180-Q180)*0.5*(1+TTUprater)^($B180-YearCurrent)) -> 0 | S180: 0 | T180: 0
B181: 2056 | C181: =MAX(TREND(C150:C151,B150:B151,B181),0) -> 0 | D181: =MAX(TREND(D150:D151,B150:B151,B181),0) -> 0 | G181: =MAX(TREND(G150:G151,$B150:$B151,$B181),0) -> 0 | H181: =MAX(TREND(H150:H151,$B150:$B151,$B181),0) -> 0 | K181: =MAX(TREND(K150:K151,B150:B151,B181),0) -> 0 | L181: =MAX(TREND(L150:L151,B150:B151,B181),0) -> 0 | M181: =IFERROR(IF(B144=Hwy,C181*E181/G181,K181/G181),0) -> 0 | N181: =IFERROR(IF(B144=Hwy,D181*F181/H181,L181/H181),0) -> 0 | O181: =MAX(TREND(O150:O151,$B150:$B151,$B181),0) -> 0 | P181: =MAX(TREND(P150:P151,$B150:$B151,$B181),0) -> 0 | Q181: =TREND(Q150:Q151,$B150:$B151,$B181) -> 0 | R181: =IF(Induced="N",0,(IF(B144=Hwy,M181*(I181*ValTimeTruck+(1-I181)*ValTimeAuto)-N181*(J181*ValTimeTruck+(1-J181)*ValTimeAuto),(IF(INDEX($P$277:$X$280,MATCH(B144,$O$277:$O$280,0),7)>0,INDEX($P$277:$X$280,MATCH(B144,$O$277:$O$280,0),7)/IF(INDEX($P$277:$X$280,MATCH(B144,$O$277:$O$280,0),6)=0,1,INDEX($P$277:$X$280,MATCH(B144,$O$277:$O$280,0),6)),M181)-N181)*ValTimeAuto)+O181-P181)*(H181-Q181)*0.5*(1+TTUprater)^($B181-YearCurrent)) -> 0 | S181: 0 | T181: 0
B182: 2057 | C182: =MAX(TREND(C150:C151,B150:B151,B182),0) -> 0 | D182: =MAX(TREND(D150:D151,B150:B151,B182),0) -> 0 | G182: =MAX(TREND(G150:G151,$B150:$B151,$B182),0) -> 0 | H182: =MAX(TREND(H150:H151,$B150:$B151,$B182),0) -> 0 | K182: =MAX(TREND(K150:K151,B150:B151,B182),0) -> 0 | L182: =MAX(TREND(L150:L151,B150:B151,B182),0) -> 0 | M182: =IFERROR(IF(B144=Hwy,C182*E182/G182,K182/G182),0) -> 0 | N182: =IFERROR(IF(B144=Hwy,D182*F182/H182,L182/H182),0) -> 0 | O182: =MAX(TREND(O150:O151,$B150:$B151,$B182),0) -> 0 | P182: =MAX(TREND(P150:P151,$B150:$B151,$B182),0) -> 0 | Q182: =TREND(Q150:Q151,$B150:$B151,$B182) -> 0 | R182: =IF(Induced="N",0,(IF(B144=Hwy,M182*(I182*ValTimeTruck+(1-I182)*ValTimeAuto)-N182*(J182*ValTimeTruck+(1-J182)*ValTimeAuto),(IF(INDEX($P$277:$X$280,MATCH(B144,$O$277:$O$280,0),7)>0,INDEX($P$277:$X$280,MATCH(B144,$O$277:$O$280,0),7)/IF(INDEX($P$277:$X$280,MATCH(B144,$O$277:$O$280,0),6)=0,1,INDEX($P$277:$X$280,MATCH(B144,$O$277:$O$280,0),6)),M182)-N182)*ValTimeAuto)+O182-P182)*(H182-Q182)*0.5*(1+TTUprater)^($B182-YearCurrent)) -> 0 | S182: 0 | T182: 0
B183: 2058 | C183: =MAX(TREND(C150:C151,B150:B151,B183),0) -> 0 | D183: =MAX(TREND(D150:D151,B150:B151,B183),0) -> 0 | G183: =MAX(TREND(G150:G151,$B150:$B151,$B183),0) -> 0 | H183: =MAX(TREND(H150:H151,$B150:$B151,$B183),0) -> 0 | K183: =MAX(TREND(K150:K151,B150:B151,B183),0) -> 0 | L183: =MAX(TREND(L150:L151,B150:B151,B183),0) -> 0 | M183: =IFERROR(IF(B144=Hwy,C183*E183/G183,K183/G183),0) -> 0 | N183: =IFERROR(IF(B144=Hwy,D183*F183/H183,L183/H183),0) -> 0 | O183: =MAX(TREND(O150:O151,$B150:$B151,$B183),0) -> 0 | P183: =MAX(TREND(P150:P151,$B150:$B151,$B183),0) -> 0 | Q183: =TREND(Q150:Q151,$B150:$B151,$B183) -> 0 | R183: =IF(Induced="N",0,(IF(B144=Hwy,M183*(I183*ValTimeTruck+(1-I183)*ValTimeAuto)-N183*(J183*ValTimeTruck+(1-J183)*ValTimeAuto),(IF(INDEX($P$277:$X$280,MATCH(B144,$O$277:$O$280,0),7)>0,INDEX($P$277:$X$280,MATCH(B144,$O$277:$O$280,0),7)/IF(INDEX($P$277:$X$280,MATCH(B144,$O$277:$O$280,0),6)=0,1,INDEX($P$277:$X$280,MATCH(B144,$O$277:$O$280,0),6)),M183)-N183)*ValTimeAuto)+O183-P183)*(H183-Q183)*0.5*(1+TTUprater)^($B183-YearCurrent)) -> 0 | S183: 0 | T183: 0
B184: 2059 | C184: =MAX(TREND(C150:C151,B150:B151,B184),0) -> 0 | D184: =MAX(TREND(D150:D151,B150:B151,B184),0) -> 0 | G184: =MAX(TREND(G150:G151,$B150:$B151,$B184),0) -> 0 | H184: =MAX(TREND(H150:H151,$B150:$B151,$B184),0) -> 0 | K184: =MAX(TREND(K150:K151,B150:B151,B184),0) -> 0 | L184: =MAX(TREND(L150:L151,B150:B151,B184),0) -> 0 | M184: =IFERROR(IF(B144=Hwy,C184*E184/G184,K184/G184),0) -> 0 | N184: =IFERROR(IF(B144=Hwy,D184*F184/H184,L184/H184),0) -> 0 | O184: =MAX(TREND(O150:O151,$B150:$B151,$B184),0) -> 0 | P184: =MAX(TREND(P150:P151,$B150:$B151,$B184),0) -> 0 | Q184: =TREND(Q150:Q151,$B150:$B151,$B184) -> 0 | R184: =IF(Induced="N",0,(IF(B144=Hwy,M184*(I184*ValTimeTruck+(1-I184)*ValTimeAuto)-N184*(J184*ValTimeTruck+(1-J184)*ValTimeAuto),(IF(INDEX($P$277:$X$280,MATCH(B144,$O$277:$O$280,0),7)>0,INDEX($P$277:$X$280,MATCH(B144,$O$277:$O$280,0),7)/IF(INDEX($P$277:$X$280,MATCH(B144,$O$277:$O$280,0),6)=0,1,INDEX($P$277:$X$280,MATCH(B144,$O$277:$O$280,0),6)),M184)-N184)*ValTimeAuto)+O184-P184)*(H184-Q184)*0.5*(1+TTUprater)^($B184-YearCurrent)) -> 0 | S184: 0 | T184: 0
B185: 2060 | C185: =MAX(TREND(C150:C151,B150:B151,B185),0) -> 0 | D185: =MAX(TREND(D150:D151,B150:B151,B185),0) -> 0 | G185: =MAX(TREND(G150:G151,$B150:$B151,$B185),0) -> 0 | H185: =MAX(TREND(H150:H151,$B150:$B151,$B185),0) -> 0 | K185: =MAX(TREND(K150:K151,B150:B151,B185),0) -> 0 | L185: =MAX(TREND(L150:L151,B150:B151,B185),0) -> 0 | M185: =IFERROR(IF(B144=Hwy,C185*E185/G185,K185/G185),0) -> 0 | N185: =IFERROR(IF(B144=Hwy,D185*F185/H185,L185/H185),0) -> 0 | O185: =MAX(TREND(O150:O151,$B150:$B151,$B185),0) -> 0 | P185: =MAX(TREND(P150:P151,$B150:$B151,$B185),0) -> 0 | Q185: =TREND(Q150:Q151,$B150:$B151,$B185) -> 0 | R185: =IF(Induced="N",0,(IF(B144=Hwy,M185*(I185*ValTimeTruck+(1-I185)*ValTimeAuto)-N185*(J185*ValTimeTruck+(1-J185)*ValTimeAuto),(IF(INDEX($P$277:$X$280,MATCH(B144,$O$277:$O$280,0),7)>0,INDEX($P$277:$X$280,MATCH(B144,$O$277:$O$280,0),7)/IF(INDEX($P$277:$X$280,MATCH(B144,$O$277:$O$280,0),6)=0,1,INDEX($P$277:$X$280,MATCH(B144,$O$277:$O$280,0),6)),M185)-N185)*ValTimeAuto)+O185-P185)*(H185-Q185)*0.5*(1+TTUprater)^($B185-YearCurrent)) -> 0 | S185: 0 | T185: 0
B186: 2061 | C186: =MAX(TREND(C150:C151,B150:B151,B186),0) -> 0 | D186: =MAX(TREND(D150:D151,B150:B151,B186),0) -> 0 | G186: =MAX(TREND(G150:G151,$B150:$B151,$B186),0) -> 0 | H186: =MAX(TREND(H150:H151,$B150:$B151,$B186),0) -> 0 | K186: =MAX(TREND(K150:K151,B150:B151,B186),0) -> 0 | L186: =MAX(TREND(L150:L151,B150:B151,B186),0) -> 0 | M186: =IFERROR(IF(B144=Hwy,C186*E186/G186,K186/G186),0) -> 0 | N186: =IFERROR(IF(B144=Hwy,D186*F186/H186,L186/H186),0) -> 0 | O186: =MAX(TREND(O150:O151,$B150:$B151,$B186),0) -> 0 | P186: =MAX(TREND(P150:P151,$B150:$B151,$B186),0) -> 0 | Q186: =TREND(Q150:Q151,$B150:$B151,$B186) -> 0 | R186: =IF(Induced="N",0,(IF(B144=Hwy,M186*(I186*ValTimeTruck+(1-I186)*ValTimeAuto)-N186*(J186*ValTimeTruck+(1-J186)*ValTimeAuto),(IF(INDEX($P$277:$X$280,MATCH(B144,$O$277:$O$280,0),7)>0,INDEX($P$277:$X$280,MATCH(B144,$O$277:$O$280,0),7)/IF(INDEX($P$277:$X$280,MATCH(B144,$O$277:$O$280,0),6)=0,1,INDEX($P$277:$X$280,MATCH(B144,$O$277:$O$280,0),6)),M186)-N186)*ValTimeAuto)+O186-P186)*(H186-Q186)*0.5*(1+TTUprater)^($B186-YearCurrent)) -> 0 | S186: 0 | T186: 0
B187: 2062 | C187: =MAX(TREND(C150:C151,B150:B151,B187),0) -> 0 | D187: =MAX(TREND(D150:D151,B150:B151,B187),0) -> 0 | G187: =MAX(TREND(G150:G151,$B150:$B151,$B187),0) -> 0 | H187: =MAX(TREND(H150:H151,$B150:$B151,$B187),0) -> 0 | K187: =MAX(TREND(K150:K151,B150:B151,B187),0) -> 0 | L187: =MAX(TREND(L150:L151,B150:B151,B187),0) -> 0 | M187: =IFERROR(IF(B144=Hwy,C187*E187/G187,K187/G187),0) -> 0 | N187: =IFERROR(IF(B144=Hwy,D187*F187/H187,L187/H187),0) -> 0 | O187: =MAX(TREND(O150:O151,$B150:$B151,$B187),0) -> 0 | P187: =MAX(TREND(P150:P151,$B150:$B151,$B187),0) -> 0 | Q187: =TREND(Q150:Q151,$B150:$B151,$B187) -> 0 | R187: =IF(Induced="N",0,(IF(B144=Hwy,M187*(I187*ValTimeTruck+(1-I187)*ValTimeAuto)-N187*(J187*ValTimeTruck+(1-J187)*ValTimeAuto),(IF(INDEX($P$277:$X$280,MATCH(B144,$O$277:$O$280,0),7)>0,INDEX($P$277:$X$280,MATCH(B144,$O$277:$O$280,0),7)/IF(INDEX($P$277:$X$280,MATCH(B144,$O$277:$O$280,0),6)=0,1,INDEX($P$277:$X$280,MATCH(B144,$O$277:$O$280,0),6)),M187)-N187)*ValTimeAuto)+O187-P187)*(H187-Q187)*0.5*(1+TTUprater)^($B187-YearCurrent)) -> 0 | S187: 0 | T187: 0
B188: 2063 | C188: =MAX(TREND(C150:C151,B150:B151,B188),0) -> 0 | D188: =MAX(TREND(D150:D151,B150:B151,B188),0) -> 0 | G188: =MAX(TREND(G150:G151,$B150:$B151,$B188),0) -> 0 | H188: =MAX(TREND(H150:H151,$B150:$B151,$B188),0) -> 0 | K188: =MAX(TREND(K150:K151,B150:B151,B188),0) -> 0 | L188: =MAX(TREND(L150:L151,B150:B151,B188),0) -> 0 | M188: =IFERROR(IF(B144=Hwy,C188*E188/G188,K188/G188),0) -> 0 | N188: =IFERROR(IF(B144=Hwy,D188*F188/H188,L188/H188),0) -> 0 | O188: =MAX(TREND(O150:O151,$B150:$B151,$B188),0) -> 0 | P188: =MAX(TREND(P150:P151,$B150:$B151,$B188),0) -> 0 | Q188: =TREND(Q150:Q151,$B150:$B151,$B188) -> 0 | R188: =IF(Induced="N",0,(IF(B144=Hwy,M188*(I188*ValTimeTruck+(1-I188)*ValTimeAuto)-N188*(J188*ValTimeTruck+(1-J188)*ValTimeAuto),(IF(INDEX($P$277:$X$280,MATCH(B144,$O$277:$O$280,0),7)>0,INDEX($P$277:$X$280,MATCH(B144,$O$277:$O$280,0),7)/IF(INDEX($P$277:$X$280,MATCH(B144,$O$277:$O$280,0),6)=0,1,INDEX($P$277:$X$280,MATCH(B144,$O$277:$O$280,0),6)),M188)-N188)*ValTimeAuto)+O188-P188)*(H188-Q188)*0.5*(1+TTUprater)^($B188-YearCurrent)) -> 0 | S188: 0 | T188: 0
B189: 2064 | C189: =MAX(TREND(C150:C151,B150:B151,B189),0) -> 0 | D189: =MAX(TREND(D150:D151,B150:B151,B189),0) -> 0 | G189: =MAX(TREND(G150:G151,$B150:$B151,$B189),0) -> 0 | H189: =MAX(TREND(H150:H151,$B150:$B151,$B189),0) -> 0 | K189: =MAX(TREND(K150:K151,B150:B151,B189),0) -> 0 | L189: =MAX(TREND(L150:L151,B150:B151,B189),0) -> 0 | M189: =IFERROR(IF(B144=Hwy,C189*E189/G189,K189/G189),0) -> 0 | N189: =IFERROR(IF(B144=Hwy,D189*F189/H189,L189/H189),0) -> 0 | O189: =MAX(TREND(O150:O151,$B150:$B151,$B189),0) -> 0 | P189: =MAX(TREND(P150:P151,$B150:$B151,$B189),0) -> 0 | Q189: =TREND(Q150:Q151,$B150:$B151,$B189) -> 0 | R189: =IF(Induced="N",0,(IF(B144=Hwy,M189*(I189*ValTimeTruck+(1-I189)*ValTimeAuto)-N189*(J189*ValTimeTruck+(1-J189)*ValTimeAuto),(IF(INDEX($P$277:$X$280,MATCH(B144,$O$277:$O$280,0),7)>0,INDEX($P$277:$X$280,MATCH(B144,$O$277:$O$280,0),7)/IF(INDEX($P$277:$X$280,MATCH(B144,$O$277:$O$280,0),6)=0,1,INDEX($P$277:$X$280,MATCH(B144,$O$277:$O$280,0),6)),M189)-N189)*ValTimeAuto)+O189-P189)*(H189-Q189)*0.5*(1+TTUprater)^($B189-YearCurrent)) -> 0 | S189: 0 | T189: 0
B190: 2065 | C190: =MAX(TREND(C150:C151,B150:B151,B190),0) -> 0 | D190: =MAX(TREND(D150:D151,B150:B151,B190),0) -> 0 | G190: =MAX(TREND(G150:G151,$B150:$B151,$B190),0) -> 0 | H190: =MAX(TREND(H150:H151,$B150:$B151,$B190),0) -> 0 | K190: =MAX(TREND(K150:K151,B150:B151,B190),0) -> 0 | L190: =MAX(TREND(L150:L151,B150:B151,B190),0) -> 0 | M190: =IFERROR(IF(B144=Hwy,C190*E190/G190,K190/G190),0) -> 0 | N190: =IFERROR(IF(B144=Hwy,D190*F190/H190,L190/H190),0) -> 0 | O190: =MAX(TREND(O150:O151,$B150:$B151,$B190),0) -> 0 | P190: =MAX(TREND(P150:P151,$B150:$B151,$B190),0) -> 0 | Q190: =TREND(Q150:Q151,$B150:$B151,$B190) -> 0 | R190: =IF(Induced="N",0,(IF(B144=Hwy,M190*(I190*ValTimeTruck+(1-I190)*ValTimeAuto)-N190*(J190*ValTimeTruck+(1-J190)*ValTimeAuto),(IF(INDEX($P$277:$X$280,MATCH(B144,$O$277:$O$280,0),7)>0,INDEX($P$277:$X$280,MATCH(B144,$O$277:$O$280,0),7)/IF(INDEX($P$277:$X$280,MATCH(B144,$O$277:$O$280,0),6)=0,1,INDEX($P$277:$X$280,MATCH(B144,$O$277:$O$280,0),6)),M190)-N190)*ValTimeAuto)+O190-P190)*(H190-Q190)*0.5*(1+TTUprater)^($B190-YearCurrent)) -> 0 | S190: 0 | T190: 0
B191: 2066 | C191: =MAX(TREND(C150:C151,B150:B151,B191),0) -> 0 | D191: =MAX(TREND(D150:D151,B150:B151,B191),0) -> 0 | G191: =MAX(TREND(G150:G151,$B150:$B151,$B191),0) -> 0 | H191: =MAX(TREND(H150:H151,$B150:$B151,$B191),0) -> 0 | K191: =MAX(TREND(K150:K151,B150:B151,B191),0) -> 0 | L191: =MAX(TREND(L150:L151,B150:B151,B191),0) -> 0 | M191: =IFERROR(IF(B144=Hwy,C191*E191/G191,K191/G191),0) -> 0 | N191: =IFERROR(IF(B144=Hwy,D191*F191/H191,L191/H191),0) -> 0 | O191: =MAX(TREND(O150:O151,$B150:$B151,$B191),0) -> 0 | P191: =MAX(TREND(P150:P151,$B150:$B151,$B191),0) -> 0 | Q191: =TREND(Q150:Q151,$B150:$B151,$B191) -> 0 | R191: =IF(Induced="N",0,(IF(B144=Hwy,M191*(I191*ValTimeTruck+(1-I191)*ValTimeAuto)-N191*(J191*ValTimeTruck+(1-J191)*ValTimeAuto),(IF(INDEX($P$277:$X$280,MATCH(B144,$O$277:$O$280,0),7)>0,INDEX($P$277:$X$280,MATCH(B144,$O$277:$O$280,0),7)/IF(INDEX($P$277:$X$280,MATCH(B144,$O$277:$O$280,0),6)=0,1,INDEX($P$277:$X$280,MATCH(B144,$O$277:$O$280,0),6)),M191)-N191)*ValTimeAuto)+O191-P191)*(H191-Q191)*0.5*(1+TTUprater)^($B191-YearCurrent)) -> 0 | S191: 0 | T191: 0
B192: 2067 | C192: =MAX(TREND(C150:C151,B150:B151,B192),0) -> 0 | D192: =MAX(TREND(D150:D151,B150:B151,B192),0) -> 0 | G192: =MAX(TREND(G150:G151,$B150:$B151,$B192),0) -> 0 | H192: =MAX(TREND(H150:H151,$B150:$B151,$B192),0) -> 0 | K192: =MAX(TREND(K150:K151,B150:B151,B192),0) -> 0 | L192: =MAX(TREND(L150:L151,B150:B151,B192),0) -> 0 | M192: =IFERROR(IF(B144=Hwy,C192*E192/G192,K192/G192),0) -> 0 | N192: =IFERROR(IF(B144=Hwy,D192*F192/H192,L192/H192),0) -> 0 | O192: =MAX(TREND(O150:O151,$B150:$B151,$B192),0) -> 0 | P192: =MAX(TREND(P150:P151,$B150:$B151,$B192),0) -> 0 | Q192: =TREND(Q150:Q151,$B150:$B151,$B192) -> 0 | R192: =IF(Induced="N",0,(IF(B144=Hwy,M192*(I192*ValTimeTruck+(1-I192)*ValTimeAuto)-N192*(J192*ValTimeTruck+(1-J192)*ValTimeAuto),(IF(INDEX($P$277:$X$280,MATCH(B144,$O$277:$O$280,0),7)>0,INDEX($P$277:$X$280,MATCH(B144,$O$277:$O$280,0),7)/IF(INDEX($P$277:$X$280,MATCH(B144,$O$277:$O$280,0),6)=0,1,INDEX($P$277:$X$280,MATCH(B144,$O$277:$O$280,0),6)),M192)-N192)*ValTimeAuto)+O192-P192)*(H192-Q192)*0.5*(1+TTUprater)^($B192-YearCurrent)) -> 0 | S192: 0 | T192: 0
B193: 2068 | C193: =MAX(TREND(C150:C151,B150:B151,B193),0) -> 0 | D193: =MAX(TREND(D150:D151,B150:B151,B193),0) -> 0 | G193: =MAX(TREND(G150:G151,$B150:$B151,$B193),0) -> 0 | H193: =MAX(TREND(H150:H151,$B150:$B151,$B193),0) -> 0 | K193: =MAX(TREND(K150:K151,B150:B151,B193),0) -> 0 | L193: =MAX(TREND(L150:L151,B150:B151,B193),0) -> 0 | M193: =IFERROR(IF(B144=Hwy,C193*E193/G193,K193/G193),0) -> 0 | N193: =IFERROR(IF(B144=Hwy,D193*F193/H193,L193/H193),0) -> 0 | O193: =MAX(TREND(O150:O151,$B150:$B151,$B193),0) -> 0 | P193: =MAX(TREND(P150:P151,$B150:$B151,$B193),0) -> 0 | Q193: =TREND(Q150:Q151,$B150:$B151,$B193) -> 0 | R193: =IF(Induced="N",0,(IF(B144=Hwy,M193*(I193*ValTimeTruck+(1-I193)*ValTimeAuto)-N193*(J193*ValTimeTruck+(1-J193)*ValTimeAuto),(IF(INDEX($P$277:$X$280,MATCH(B144,$O$277:$O$280,0),7)>0,INDEX($P$277:$X$280,MATCH(B144,$O$277:$O$280,0),7)/IF(INDEX($P$277:$X$280,MATCH(B144,$O$277:$O$280,0),6)=0,1,INDEX($P$277:$X$280,MATCH(B144,$O$277:$O$280,0),6)),M193)-N193)*ValTimeAuto)+O193-P193)*(H193-Q193)*0.5*(1+TTUprater)^($B193-YearCurrent)) -> 0 | S193: 0 | T193: 0
B194: 2069 | C194: =MAX(TREND(C150:C151,B150:B151,B194),0) -> 0 | D194: =MAX(TREND(D150:D151,B150:B151,B194),0) -> 0 | G194: =MAX(TREND(G150:G151,$B150:$B151,$B194),0) -> 0 | H194: =MAX(TREND(H150:H151,$B150:$B151,$B194),0) -> 0 | K194: =MAX(TREND(K150:K151,B150:B151,B194),0) -> 0 | L194: =MAX(TREND(L150:L151,B150:B151,B194),0) -> 0 | M194: =IFERROR(IF(B144=Hwy,C194*E194/G194,K194/G194),0) -> 0 | N194: =IFERROR(IF(B144=Hwy,D194*F194/H194,L194/H194),0) -> 0 | O194: =MAX(TREND(O150:O151,$B150:$B151,$B194),0) -> 0 | P194: =MAX(TREND(P150:P151,$B150:$B151,$B194),0) -> 0 | Q194: =TREND(Q150:Q151,$B150:$B151,$B194) -> 0 | R194: =IF(Induced="N",0,(IF(B144=Hwy,M194*(I194*ValTimeTruck+(1-I194)*ValTimeAuto)-N194*(J194*ValTimeTruck+(1-J194)*ValTimeAuto),(IF(INDEX($P$277:$X$280,MATCH(B144,$O$277:$O$280,0),7)>0,INDEX($P$277:$X$280,MATCH(B144,$O$277:$O$280,0),7)/IF(INDEX($P$277:$X$280,MATCH(B144,$O$277:$O$280,0),6)=0,1,INDEX($P$277:$X$280,MATCH(B144,$O$277:$O$280,0),6)),M194)-N194)*ValTimeAuto)+O194-P194)*(H194-Q194)*0.5*(1+TTUprater)^($B194-YearCurrent)) -> 0 | S194: 0 | T194: 0
B195: 2070 | C195: =MAX(TREND(C150:C151,B150:B151,B195),0) -> 0 | D195: =MAX(TREND(D150:D151,B150:B151,B195),0) -> 0 | G195: =MAX(TREND(G150:G151,$B150:$B151,$B195),0) -> 0 | H195: =MAX(TREND(H150:H151,$B150:$B151,$B195),0) -> 0 | K195: =MAX(TREND(K150:K151,B150:B151,B195),0) -> 0 | L195: =MAX(TREND(L150:L151,B150:B151,B195),0) -> 0 | M195: =IFERROR(IF(B144=Hwy,C195*E195/G195,K195/G195),0) -> 0 | N195: =IFERROR(IF(B144=Hwy,D195*F195/H195,L195/H195),0) -> 0 | O195: =MAX(TREND(O150:O151,$B150:$B151,$B195),0) -> 0 | P195: =MAX(TREND(P150:P151,$B150:$B151,$B195),0) -> 0 | Q195: =TREND(Q150:Q151,$B150:$B151,$B195) -> 0 | R195: =IF(Induced="N",0,(IF(B144=Hwy,M195*(I195*ValTimeTruck+(1-I195)*ValTimeAuto)-N195*(J195*ValTimeTruck+(1-J195)*ValTimeAuto),(IF(INDEX($P$277:$X$280,MATCH(B144,$O$277:$O$280,0),7)>0,INDEX($P$277:$X$280,MATCH(B144,$O$277:$O$280,0),7)/IF(INDEX($P$277:$X$280,MATCH(B144,$O$277:$O$280,0),6)=0,1,INDEX($P$277:$X$280,MATCH(B144,$O$277:$O$280,0),6)),M195)-N195)*ValTimeAuto)+O195-P195)*(H195-Q195)*0.5*(1+TTUprater)^($B195-YearCurrent)) -> 0 | S195: 0 | T195: 0
B196: 2071 | C196: =MAX(TREND(C150:C151,B150:B151,B196),0) -> 0 | D196: =MAX(TREND(D150:D151,B150:B151,B196),0) -> 0 | G196: =MAX(TREND(G150:G151,$B150:$B151,$B196),0) -> 0 | H196: =MAX(TREND(H150:H151,$B150:$B151,$B196),0) -> 0 | K196: =MAX(TREND(K150:K151,B150:B151,B196),0) -> 0 | L196: =MAX(TREND(L150:L151,B150:B151,B196),0) -> 0 | M196: =IFERROR(IF(B144=Hwy,C196*E196/G196,K196/G196),0) -> 0 | N196: =IFERROR(IF(B144=Hwy,D196*F196/H196,L196/H196),0) -> 0 | O196: =MAX(TREND(O150:O151,$B150:$B151,$B196),0) -> 0 | P196: =MAX(TREND(P150:P151,$B150:$B151,$B196),0) -> 0 | Q196: =TREND(Q150:Q151,$B150:$B151,$B196) -> 0 | R196: =IF(Induced="N",0,(IF(B144=Hwy,M196*(I196*ValTimeTruck+(1-I196)*ValTimeAuto)-N196*(J196*ValTimeTruck+(1-J196)*ValTimeAuto),(IF(INDEX($P$277:$X$280,MATCH(B144,$O$277:$O$280,0),7)>0,INDEX($P$277:$X$280,MATCH(B144,$O$277:$O$280,0),7)/IF(INDEX($P$277:$X$280,MATCH(B144,$O$277:$O$280,0),6)=0,1,INDEX($P$277:$X$280,MATCH(B144,$O$277:$O$280,0),6)),M196)-N196)*ValTimeAuto)+O196-P196)*(H196-Q196)*0.5*(1+TTUprater)^($B196-YearCurrent)) -> 0 | S196: 0 | T196: 0
B197: 2072 | C197: =MAX(TREND(C150:C151,B150:B151,B197),0) -> 0 | D197: =MAX(TREND(D150:D151,B150:B151,B197),0) -> 0 | G197: =MAX(TREND(G150:G151,$B150:$B151,$B197),0) -> 0 | H197: =MAX(TREND(H150:H151,$B150:$B151,$B197),0) -> 0 | K197: =MAX(TREND(K150:K151,B150:B151,B197),0) -> 0 | L197: =MAX(TREND(L150:L151,B150:B151,B197),0) -> 0 | M197: =IFERROR(IF(B144=Hwy,C197*E197/G197,K197/G197),0) -> 0 | N197: =IFERROR(IF(B144=Hwy,D197*F197/H197,L197/H197),0) -> 0 | O197: =MAX(TREND(O150:O151,$B150:$B151,$B197),0) -> 0 | P197: =MAX(TREND(P150:P151,$B150:$B151,$B197),0) -> 0 | Q197: =TREND(Q150:Q151,$B150:$B151,$B197) -> 0 | R197: =IF(Induced="N",0,(IF(B144=Hwy,M197*(I197*ValTimeTruck+(1-I197)*ValTimeAuto)-N197*(J197*ValTimeTruck+(1-J197)*ValTimeAuto),(IF(INDEX($P$277:$X$280,MATCH(B144,$O$277:$O$280,0),7)>0,INDEX($P$277:$X$280,MATCH(B144,$O$277:$O$280,0),7)/IF(INDEX($P$277:$X$280,MATCH(B144,$O$277:$O$280,0),6)=0,1,INDEX($P$277:$X$280,MATCH(B144,$O$277:$O$280,0),6)),M197)-N197)*ValTimeAuto)+O197-P197)*(H197-Q197)*0.5*(1+TTUprater)^($B197-YearCurrent)) -> 0 | S197: 0 | T197: 0
B198: 2073 | C198: =MAX(TREND(C150:C151,B150:B151,B198),0) -> 0 | D198: =MAX(TREND(D150:D151,B150:B151,B198),0) -> 0 | G198: =MAX(TREND(G150:G151,$B150:$B151,$B198),0) -> 0 | H198: =MAX(TREND(H150:H151,$B150:$B151,$B198),0) -> 0 | K198: =MAX(TREND(K150:K151,B150:B151,B198),0) -> 0 | L198: =MAX(TREND(L150:L151,B150:B151,B198),0) -> 0 | M198: =IFERROR(IF(B144=Hwy,C198*E198/G198,K198/G198),0) -> 0 | N198: =IFERROR(IF(B144=Hwy,D198*F198/H198,L198/H198),0) -> 0 | O198: =MAX(TREND(O150:O151,$B150:$B151,$B198),0) -> 0 | P198: =MAX(TREND(P150:P151,$B150:$B151,$B198),0) -> 0 | Q198: =TREND(Q150:Q151,$B150:$B151,$B198) -> 0 | R198: =IF(Induced="N",0,(IF(B144=Hwy,M198*(I198*ValTimeTruck+(1-I198)*ValTimeAuto)-N198*(J198*ValTimeTruck+(1-J198)*ValTimeAuto),(IF(INDEX($P$277:$X$280,MATCH(B144,$O$277:$O$280,0),7)>0,INDEX($P$277:$X$280,MATCH(B144,$O$277:$O$280,0),7)/IF(INDEX($P$277:$X$280,MATCH(B144,$O$277:$O$280,0),6)=0,1,INDEX($P$277:$X$280,MATCH(B144,$O$277:$O$280,0),6)),M198)-N198)*ValTimeAuto)+O198-P198)*(H198-Q198)*0.5*(1+TTUprater)^($B198-YearCurrent)) -> 0 | S198: 0 | T198: 0
B199: 2074 | C199: =MAX(TREND(C150:C151,B150:B151,B199),0) -> 0 | D199: =MAX(TREND(D150:D151,B150:B151,B199),0) -> 0 | G199: =MAX(TREND(G150:G151,$B150:$B151,$B199),0) -> 0 | H199: =MAX(TREND(H150:H151,$B150:$B151,$B199),0) -> 0 | K199: =MAX(TREND(K150:K151,B150:B151,B199),0) -> 0 | L199: =MAX(TREND(L150:L151,B150:B151,B199),0) -> 0 | M199: =IFERROR(IF(B144=Hwy,C199*E199/G199,K199/G199),0) -> 0 | N199: =IFERROR(IF(B144=Hwy,D199*F199/H199,L199/H199),0) -> 0 | O199: =MAX(TREND(O150:O151,$B150:$B151,$B199),0) -> 0 | P199: =MAX(TREND(P150:P151,$B150:$B151,$B199),0) -> 0 | Q199: =TREND(Q150:Q151,$B150:$B151,$B199) -> 0 | R199: =IF(Induced="N",0,(IF(B144=Hwy,M199*(I199*ValTimeTruck+(1-I199)*ValTimeAuto)-N199*(J199*ValTimeTruck+(1-J199)*ValTimeAuto),(IF(INDEX($P$277:$X$280,MATCH(B144,$O$277:$O$280,0),7)>0,INDEX($P$277:$X$280,MATCH(B144,$O$277:$O$280,0),7)/IF(INDEX($P$277:$X$280,MATCH(B144,$O$277:$O$280,0),6)=0,1,INDEX($P$277:$X$280,MATCH(B144,$O$277:$O$280,0),6)),M199)-N199)*ValTimeAuto)+O199-P199)*(H199-Q199)*0.5*(1+TTUprater)^($B199-YearCurrent)) -> 0 | S199: 0 | T199: 0
B200: 2075 | C200: =MAX(TREND(C150:C151,B150:B151,B200),0) -> 0 | D200: =MAX(TREND(D150:D151,B150:B151,B200),0) -> 0 | G200: =MAX(TREND(G150:G151,$B150:$B151,$B200),0) -> 0 | H200: =MAX(TREND(H150:H151,$B150:$B151,$B200),0) -> 0 | K200: =MAX(TREND(K150:K151,B150:B151,B200),0) -> 0 | L200: =MAX(TREND(L150:L151,B150:B151,B200),0) -> 0 | M200: =IFERROR(IF(B144=Hwy,C200*E200/G200,K200/G200),0) -> 0 | N200: =IFERROR(IF(B144=Hwy,D200*F200/H200,L200/H200),0) -> 0 | O200: =MAX(TREND(O150:O151,$B150:$B151,$B200),0) -> 0 | P200: =MAX(TREND(P150:P151,$B150:$B151,$B200),0) -> 0 | Q200: =TREND(Q150:Q151,$B150:$B151,$B200) -> 0 | R200: =IF(Induced="N",0,(IF(B144=Hwy,M200*(I200*ValTimeTruck+(1-I200)*ValTimeAuto)-N200*(J200*ValTimeTruck+(1-J200)*ValTimeAuto),(IF(INDEX($P$277:$X$280,MATCH(B144,$O$277:$O$280,0),7)>0,INDEX($P$277:$X$280,MATCH(B144,$O$277:$O$280,0),7)/IF(INDEX($P$277:$X$280,MATCH(B144,$O$277:$O$280,0),6)=0,1,INDEX($P$277:$X$280,MATCH(B144,$O$277:$O$280,0),6)),M200)-N200)*ValTimeAuto)+O200-P200)*(H200-Q200)*0.5*(1+TTUprater)^($B200-YearCurrent)) -> 0 | S200: 0 | T200: 0
B201: 2076 | C201: =MAX(TREND(C150:C151,B150:B151,B201),0) -> 0 | D201: =MAX(TREND(D150:D151,B150:B151,B201),0) -> 0 | G201: =MAX(TREND(G150:G151,$B150:$B151,$B201),0) -> 0 | H201: =MAX(TREND(H150:H151,$B150:$B151,$B201),0) -> 0 | K201: =MAX(TREND(K150:K151,B150:B151,B201),0) -> 0 | L201: =MAX(TREND(L150:L151,B150:B151,B201),0) -> 0 | M201: =IFERROR(IF(B144=Hwy,C201*E201/G201,K201/G201),0) -> 0 | N201: =IFERROR(IF(B144=Hwy,D201*F201/H201,L201/H201),0) -> 0 | O201: =MAX(TREND(O150:O151,$B150:$B151,$B201),0) -> 0 | P201: =MAX(TREND(P150:P151,$B150:$B151,$B201),0) -> 0 | Q201: =TREND(Q150:Q151,$B150:$B151,$B201) -> 0 | R201: =IF(Induced="N",0,(IF(B144=Hwy,M201*(I201*ValTimeTruck+(1-I201)*ValTimeAuto)-N201*(J201*ValTimeTruck+(1-J201)*ValTimeAuto),(IF(INDEX($P$277:$X$280,MATCH(B144,$O$277:$O$280,0),7)>0,INDEX($P$277:$X$280,MATCH(B144,$O$277:$O$280,0),7)/IF(INDEX($P$277:$X$280,MATCH(B144,$O$277:$O$280,0),6)=0,1,INDEX($P$277:$X$280,MATCH(B144,$O$277:$O$280,0),6)),M201)-N201)*ValTimeAuto)+O201-P201)*(H201-Q201)*0.5*(1+TTUprater)^($B201-YearCurrent)) -> 0 | S201: 0 | T201: 0
B202: 2077 | C202: =MAX(TREND(C150:C151,B150:B151,B202),0) -> 0 | D202: =MAX(TREND(D150:D151,B150:B151,B202),0) -> 0 | G202: =MAX(TREND(G150:G151,$B150:$B151,$B202),0) -> 0 | H202: =MAX(TREND(H150:H151,$B150:$B151,$B202),0) -> 0 | K202: =MAX(TREND(K150:K151,B150:B151,B202),0) -> 0 | L202: =MAX(TREND(L150:L151,B150:B151,B202),0) -> 0 | M202: =IFERROR(IF(B144=Hwy,C202*E202/G202,K202/G202),0) -> 0 | N202: =IFERROR(IF(B144=Hwy,D202*F202/H202,L202/H202),0) -> 0 | O202: =MAX(TREND(O150:O151,$B150:$B151,$B202),0) -> 0 | P202: =MAX(TREND(P150:P151,$B150:$B151,$B202),0) -> 0 | Q202: =TREND(Q150:Q151,$B150:$B151,$B202) -> 0 | R202: =IF(Induced="N",0,(IF(B144=Hwy,M202*(I202*ValTimeTruck+(1-I202)*ValTimeAuto)-N202*(J202*ValTimeTruck+(1-J202)*ValTimeAuto),(IF(INDEX($P$277:$X$280,MATCH(B144,$O$277:$O$280,0),7)>0,INDEX($P$277:$X$280,MATCH(B144,$O$277:$O$280,0),7)/IF(INDEX($P$277:$X$280,MATCH(B144,$O$277:$O$280,0),6)=0,1,INDEX($P$277:$X$280,MATCH(B144,$O$277:$O$280,0),6)),M202)-N202)*ValTimeAuto)+O202-P202)*(H202-Q202)*0.5*(1+TTUprater)^($B202-YearCurrent)) -> 0 | S202: 0 | T202: 0
B204: Total | T204: =SUM(T153:T202) -> 0
A207: 4 | B207: =PARAMETERS!$J$12 -> Highway
C209: TOTAL VHT | E209: AVERAGE VEH OCC | G209: =IF(B207=Hwy,"TOTAL VEHICLE TRIPS","TOTAL PERSON TRIPS") -> TOTAL VEHICLE TRIPS | I209: PERCENT TRUCKS | K209: TOTAL PHT | M209: AVERAGE TRAVEL TIME | O209: OUT OF POCKET COST | Q209: =IF(B207=Hwy,"TOTAL VEHICLE TRIPS","TOTAL PERSON TRIPS") -> TOTAL VEHICLE TRIPS | R209: CONSUMER SURPLUS BENEFIT
C210: (veh-hours/yr) | E210: (persons/vehicle) | G210: (trips/yr) | I210: (%) | K210: (per-hours/yr) | M210: (hours/trip) | O210: ($/trip) | Q210: (trips/yr) | R210: ($/yr)
B211: Year | Q211: Adjusted (no induced) | R211: New | S211: Constant | T211: Present
C212: No Build | D212: Build | E212: No Build | F212: Build | G212: No Build | H212: Build | I212: No Build | J212: Build | K212: No Build | L212: Build | M212: No Build | N212: Build | O212: No Build | P212: Build | Q212: Build | R212: (Induced) | S212: Dollars | T212: Value
B213: =YearFirst -> 2033 | C213: =SUMIF(INDEX(HwyTransitModelGroup,,1),B207,INDEX(ModelData1NB,,3))*AnnualFactor -> 6697750 | D213: =SUMIF(INDEX(HwyTransitModelGroup,,1),B207,INDEX(ModelData1B,,3))*AnnualFactor -> 3763150 | E213: =IFERROR(IF(B207=Hwy,SUMPRODUCT(--(INDEX(HwyTransitModelGroup,,1)=B207),INDEX(ModelData1NB,,8),INDEX(ModelData1NB,,3))/SUMPRODUCT(--(INDEX(HwyTransitModelGroup,,1)=B207),INDEX(ModelData1NB,,3)),0),0) -> 1.67 | F213: =IFERROR(IF(B207=Hwy,SUMPRODUCT(--(INDEX(HwyTransitModelGroup,,1)=B207),INDEX(ModelData1B,,8),INDEX(ModelData1B,,3))/SUMPRODUCT(--(INDEX(HwyTransitModelGroup,,1)=B207),INDEX(ModelData1B,,3)),0),0) -> 1.67 | G213: =SUMIF(INDEX(HwyTransitModelGroup,,1),B207,INDEX(ModelData1NB,,1))*AnnualFactor -> 16096500 | H213: =SUMIF(INDEX(HwyTransitModelGroup,,1),B207,INDEX(ModelData1B,,1))*AnnualFactor -> 17097330 | I213: =IFERROR(IF(B207=Hwy,SUMPRODUCT(--(INDEX(HwyTransitModelGroup,,1)=B207),INDEX(ModelData1NB,,9),INDEX(ModelData1NB,,3))/SUMPRODUCT(--(INDEX(HwyTransitModelGroup,,1)=B207),INDEX(ModelData1NB,,3)),0),0) -> 0.15 | J213: =IFERROR(IF(B207=Hwy,SUMPRODUCT(--(INDEX(HwyTransitModelGroup,,1)=B207),INDEX(ModelData1B,,9),INDEX(ModelData1B,,3))/SUMPRODUCT(--(INDEX(HwyTransitModelGroup,,1)=B207),INDEX(ModelData1B,,3)),0),0) -> 0.15 | K213: =SUMIF(INDEX(HwyTransitModelGroup,,1),B207,INDEX(ModelData1NB,,5))*AnnualFactor -> 0 | L213: =SUMIF(INDEX(HwyTransitModelGroup,,1),B207,INDEX(ModelData1B,,5))*AnnualFactor -> 0 | M213: =IFERROR(IF(B207=Hwy,C213*E213/G213,K213/G213),0) -> 0.6948866213 | N213: =IFERROR(IF(B207=Hwy,D213*F213/H213,L213/H213),0) -> 0.3675697024 | O213: =IFERROR(IF(E213=0,0,SUMPRODUCT(--(INDEX(HwyTransitModelGroup,,1)=B207),INDEX(ModelData1NB,,6),INDEX(ModelData1NB,,1))/IF(SUMPRODUCT(--(INDEX(HwyTransitModelGroup,,1)=B207),INDEX(ModelData1NB,,1))=0,1,SUMPRODUCT(--(INDEX(HwyTransitModelGroup,,1)=B207),INDEX(ModelData1NB,,1)))),0) -> 0 | P213: =IFERROR(IF(F213=0,0,SUMPRODUCT(--(INDEX(HwyTransitModelGroup,,1)=B207),INDEX(ModelData1B,,6),INDEX(ModelData1B,,1))/IF(SUMPRODUCT(--(INDEX(HwyTransitModelGroup,,1)=B207),INDEX(ModelData1B,,1))=0,1,SUMPRODUCT(--(INDEX(HwyTransitModelGroup,,1)=B207),INDEX(ModelData1B,,1)))),0) -> 0 | Q213: =IFERROR($H213-SUMIF('Consumer Surplus'!$C$277:$C$280,B207,'Consumer Surplus'!$G$277:$G$280),0) -> 16096500 | R213: =IF(Induced="N",0,(IF(B207=Hwy,M213*(I213*ValTimeTruck+(1-I213)*ValTimeAuto)-N213*(J213*ValTimeTruck+(1-J213)*ValTimeAuto),(IF(INDEX($P$277:$X$280,MATCH(B207,$O$277:$O$280,0),7)>0,INDEX($P$277:$X$280,MATCH(B207,$O$277:$O$280,0),7)/IF(INDEX($P$277:$X$280,MATCH(B207,$O$277:$O$280,0),6)=0,1,INDEX($P$277:$X$280,MATCH(B207,$O$277:$O$280,0),6)),M213)-N213)*ValTimeAuto)+O213-P213)*(H213-Q213)*0.5*(1+TTUprater)^($B213-YearCurrent)) -> 3212825.116 | S213: =SUM(R213:R213) -> 3212825.116 | T213: =S213/(1+DiscRate)^(B213-YearCurrent) -> 2170469.529
B214: =YearLast -> 2043 | C214: =SUMIF(INDEX(HwyTransitModelGroup,,1),B207,INDEX(ModelData20NB,,3))*AnnualFactor -> 17520000 | D214: =SUMIF(INDEX(HwyTransitModelGroup,,1),B207,INDEX(ModelData20B,,3))*AnnualFactor -> 9843685 | E214: =IFERROR(IF(B207=Hwy,SUMPRODUCT(--(INDEX(HwyTransitModelGroup,,1)=B207),INDEX(ModelData20NB,,8),INDEX(ModelData20NB,,3))/SUMPRODUCT(--(INDEX(HwyTransitModelGroup,,1)=B207),INDEX(ModelData20NB,,3)),0),0) -> 1.67 | F214: =IFERROR(IF(B207=Hwy,SUMPRODUCT(--(INDEX(HwyTransitModelGroup,,1)=B207),INDEX(ModelData20B,,8),INDEX(ModelData20B,,3))/SUMPRODUCT(--(INDEX(HwyTransitModelGroup,,1)=B207),INDEX(ModelData20B,,3)),0),0) -> 1.67 | G214: =SUMIF(INDEX(HwyTransitModelGroup,,1),B207,INDEX(ModelData20NB,,1))*AnnualFactor -> 23773545 | H214: =SUMIF(INDEX(HwyTransitModelGroup,,1),B207,INDEX(ModelData20B,,1))*AnnualFactor -> 25251795 | I214: =IFERROR(IF(B207=Hwy,SUMPRODUCT(--(INDEX(HwyTransitModelGroup,,1)=B207),INDEX(ModelData20NB,,9),INDEX(ModelData20NB,,3))/SUMPRODUCT(--(INDEX(HwyTransitModelGroup,,1)=B207),INDEX(ModelData20NB,,3)),0),0) -> 0.15 | J214: =IFERROR(IF(B207=Hwy,SUMPRODUCT(--(INDEX(HwyTransitModelGroup,,1)=B207),INDEX(ModelData20B,,9),INDEX(ModelData20B,,3))/SUMPRODUCT(--(INDEX(HwyTransitModelGroup,,1)=B207),INDEX(ModelData20B,,3)),0),0) -> 0.15 | K214: =SUMIF(INDEX(HwyTransitModelGroup,,1),B207,INDEX(ModelData20NB,,5))*AnnualFactor -> 0 | L214: =SUMIF(INDEX(HwyTransitModelGroup,,1),B207,INDEX(ModelData20B,,5))*AnnualFactor -> 0 | M214: =IFERROR(IF(B207=Hwy,C214*E214/G214,K214/G214),0) -> 1.230712542 | N214: =IFERROR(IF(B207=Hwy,D214*F214/H214,L214/H214),0) -> 0.6510014021 | O214: =IFERROR(IF(E214=0,0,SUMPRODUCT(--(INDEX(HwyTransitModelGroup,,1)=B207),INDEX(ModelData20NB,,6),INDEX(ModelData20NB,,1))/IF(SUMPRODUCT(--(INDEX(HwyTransitModelGroup,,1)=B207),INDEX(ModelData20NB,,1))=0,1,SUMPRODUCT(--(INDEX(HwyTransitModelGroup,,1)=B207),INDEX(ModelData20NB,,1)))),0) -> 0 | P214: =IFERROR(IF(F214=0,0,SUMPRODUCT(--(INDEX(HwyTransitModelGroup,,1)=B207),INDEX(ModelData20B,,6),INDEX(ModelData20B,,1))/IF(SUMPRODUCT(--(INDEX(HwyTransitModelGroup,,1)=B207),INDEX(ModelData20B,,1))=0,1,SUMPRODUCT(--(INDEX(HwyTransitModelGroup,,1)=B207),INDEX(ModelData20B,,1)))),0) -> 0 | Q214: =IFERROR($H214-SUMIF('Consumer Surplus'!$C$277:$C$280,B207,'Consumer Surplus'!$K$277:$K$280),0) -> 23773545 | R214: =IF(Induced="N",0,(IF(B207=Hwy,M214*(I214*ValTimeTruck+(1-I214)*ValTimeAuto)-N214*(J214*ValTimeTruck+(1-J214)*ValTimeAuto),(IF(INDEX($P$277:$X$280,MATCH(B207,$O$277:$O$280,0),9)>0,INDEX($P$277:$X$280,MATCH(B207,$O$277:$O$280,0),9)/IF(INDEX($P$277:$X$280,MATCH(B207,$O$277:$O$280,0),9)=0,1,INDEX($P$277:$X$280,MATCH(B207,$O$277:$O$280,0),8)),M214)-N214)*ValTimeAuto)+O214-P214)*(H214-Q214)*0.5*(1+TTUprater)^($B214-YearCurrent)) -> 8404615.513 | S214: =SUM(R214:R214) -> 8404615.513 | T214: =S214/(1+DiscRate)^(B214-YearCurrent) -> 3835756.808
B216: =YearOpen -> 2028 | C216: =MAX(TREND(C213:C214,B213:B214,B216),0) -> 1286625 | D216: =MAX(TREND(D213:D214,B213:B214,B216),0) -> 722882.5 | E216: =MAX(TREND(E213:E214,B213:B214,B216),0) -> 1.67 | F216: =MAX(TREND(F213:F214,B213:B214,B216),0) -> 1.67 | G216: =MAX(TREND(G213:G214,$B213:$B214,$B216),0) -> 12257977.5 | H216: =MAX(TREND(H213:H214,$B213:$B214,$B216),0) -> 13020097.5 | I216: =MIN(MAX(TREND(I213:I214,B213:B214,B216),0),1) -> 0.15 | J216: =MIN(MAX(TREND(J213:J214,B213:B214,B216),0),1) -> 0.15 | K216: =MAX(TREND(K213:K214,B213:B214,B216),0) -> 0 | L216: =MAX(TREND(L213:L214,B213:B214,B216),0) -> 0 | M216: =IFERROR(IF(B207=Hwy,C216*E216/G216,K216/G216),0) -> 0.1752869713 | N216: =IFERROR(IF(B207=Hwy,D216*F216/H216,L216/H216),0) -> 0.09271925767 | O216: =MAX(TREND(O213:O214,$B213:$B214,$B216),0) -> 0 | P216: =MAX(TREND(P213:P214,$B213:$B214,$B216),0) -> 0 | Q216: =TREND(Q213:Q214,$B213:$B214,$B216) -> 12257977.5 | R216: =IF(Induced="N",0,(IF(B207=Hwy,M216*(I216*ValTimeTruck+(1-I216)*ValTimeAuto)-N216*(J216*ValTimeTruck+(1-J216)*ValTimeAuto),(IF(INDEX($P$277:$X$280,MATCH(B207,$O$277:$O$280,0),7)>0,INDEX($P$277:$X$280,MATCH(B207,$O$277:$O$280,0),7)/IF(INDEX($P$277:$X$280,MATCH(B207,$O$277:$O$280,0),6)=0,1,INDEX($P$277:$X$280,MATCH(B207,$O$277:$O$280,0),6)),M216)-N216)*ValTimeAuto)+O216-P216)*(H216-Q216)*0.5*(1+TTUprater)^($B216-YearCurrent)) -> 617151.7066 | S216: =SUM(R216:R216) -> 617151.7066 | T216: =S216/(1+DiscRate)^(B216-YearCurrent) -> 507253.7166
B217: =B216+1 -> 2029 | C217: =MAX(TREND(C213:C214,B213:B214,B217),0) -> 2368850 | D217: =MAX(TREND(D213:D214,B213:B214,B217),0) -> 1330936 | E217: =MAX(TREND(E213:E214,B213:B214,B217),0) -> 1.67 | F217: =MAX(TREND(F213:F214,B213:B214,B217),0) -> 1.67 | G217: =MAX(TREND(G213:G214,$B213:$B214,$B217),0) -> 13025682 | H217: =MAX(TREND(H213:H214,$B213:$B214,$B217),0) -> 13835544 | I217: =MIN(MAX(TREND(I213:I214,B213:B214,B217),0),1) -> 0.15 | J217: =MIN(MAX(TREND(J213:J214,B213:B214,B217),0),1) -> 0.15 | K217: =MAX(TREND(K213:K214,B213:B214,B217),0) -> 0 | L217: =MAX(TREND(L213:L214,B213:B214,B217),0) -> 0 | M217: =IFERROR(IF(B207=Hwy,C217*E217/G217,K217/G217),0) -> 0.3037061322 | N217: =IFERROR(IF(B207=Hwy,D217*F217/H217,L217/H217),0) -> 0.1606487696 | O217: =MAX(TREND(O213:O214,$B213:$B214,$B217),0) -> 0 | P217: =MAX(TREND(P213:P214,$B213:$B214,$B217),0) -> 0 | Q217: =TREND(Q213:Q214,$B213:$B214,$B217) -> 13025682 | R217: =IF(Induced="N",0,(IF(B207=Hwy,M217*(I217*ValTimeTruck+(1-I217)*ValTimeAuto)-N217*(J217*ValTimeTruck+(1-J217)*ValTimeAuto),(IF(INDEX($P$277:$X$280,MATCH(B207,$O$277:$O$280,0),7)>0,INDEX($P$277:$X$280,MATCH(B207,$O$277:$O$280,0),7)/IF(INDEX($P$277:$X$280,MATCH(B207,$O$277:$O$280,0),6)=0,1,INDEX($P$277:$X$280,MATCH(B207,$O$277:$O$280,0),6)),M217)-N217)*ValTimeAuto)+O217-P217)*(H217-Q217)*0.5*(1+TTUprater)^($B217-YearCurrent)) -> 1136264.799 | S217: 1136264.799 | T217: 898006.5761
B218: =B217+1 -> 2030 | C218: =MAX(TREND(C213:C214,B213:B214,B218),0) -> 3451075 | D218: =MAX(TREND(D213:D214,B213:B214,B218),0) -> 1938989.5 | E218: =MAX(TREND(E213:E214,B213:B214,B218),0) -> 1.67 | F218: =MAX(TREND(F213:F214,B213:B214,B218),0) -> 1.67 | G218: =MAX(TREND(G213:G214,$B213:$B214,$B218),0) -> 13793386.5 | H218: =MAX(TREND(H213:H214,$B213:$B214,$B218),0) -> 14650990.5 | I218: =MIN(MAX(TREND(I213:I214,B213:B214,B218),0),1) -> 0.15 | J218: =MIN(MAX(TREND(J213:J214,B213:B214,B218),0),1) -> 0.15 | K218: =MAX(TREND(K213:K214,B213:B214,B218),0) -> 0 | L218: =MAX(TREND(L213:L214,B213:B214,B218),0) -> 0 | M218: =IFERROR(IF(B207=Hwy,C218*E218/G218,K218/G218),0) -> 0.4178303312 | N218: =IFERROR(IF(B207=Hwy,D218*F218/H218,L218/H218),0) -> 0.2210166244 | O218: =MAX(TREND(O213:O214,$B213:$B214,$B218),0) -> 0 | P218: =MAX(TREND(P213:P214,$B213:$B214,$B218),0) -> 0 | Q218: =TREND(Q213:Q214,$B213:$B214,$B218) -> 13793386.5 | R218: =IF(Induced="N",0,(IF(B207=Hwy,M218*(I218*ValTimeTruck+(1-I218)*ValTimeAuto)-N218*(J218*ValTimeTruck+(1-J218)*ValTimeAuto),(IF(INDEX($P$277:$X$280,MATCH(B207,$O$277:$O$280,0),7)>0,INDEX($P$277:$X$280,MATCH(B207,$O$277:$O$280,0),7)/IF(INDEX($P$277:$X$280,MATCH(B207,$O$277:$O$280,0),6)=0,1,INDEX($P$277:$X$280,MATCH(B207,$O$277:$O$280,0),6)),M218)-N218)*ValTimeAuto)+O218-P218)*(H218-Q218)*0.5*(1+TTUprater)^($B218-YearCurrent)) -> 1655390.489 | S218: 1655390.489 | T218: 1257960.721
B219: 2031 | C219: =MAX(TREND(C213:C214,B213:B214,B219),0) -> 4533300 | D219: =MAX(TREND(D213:D214,B213:B214,B219),0) -> 2547043 | E219: =MAX(TREND(E213:E214,B213:B214,B219),0) -> 1.67 | F219: =MAX(TREND(F213:F214,B213:B214,B219),0) -> 1.67 | G219: =MAX(TREND(G213:G214,$B213:$B214,$B219),0) -> 14561091 | H219: =MAX(TREND(H213:H214,$B213:$B214,$B219),0) -> 15466437 | I219: =MIN(MAX(TREND(I213:I214,B213:B214,B219),0),1) -> 0.15 | J219: =MIN(MAX(TREND(J213:J214,B213:B214,B219),0),1) -> 0.15 | K219: =MAX(TREND(K213:K214,B213:B214,B219),0) -> 0 | L219: =MAX(TREND(L213:L214,B213:B214,B219),0) -> 0 | M219: =IFERROR(IF(B207=Hwy,C219*E219/G219,K219/G219),0) -> 0.5199205884 | N219: =IFERROR(IF(B207=Hwy,D219*F219/H219,L219/H219),0) -> 0.275018856 | O219: =MAX(TREND(O213:O214,$B213:$B214,$B219),0) -> 0 | P219: =MAX(TREND(P213:P214,$B213:$B214,$B219),0) -> 0 | Q219: =TREND(Q213:Q214,$B213:$B214,$B219) -> 14561091 | R219: =IF(Induced="N",0,(IF(B207=Hwy,M219*(I219*ValTimeTruck+(1-I219)*ValTimeAuto)-N219*(J219*ValTimeTruck+(1-J219)*ValTimeAuto),(IF(INDEX($P$277:$X$280,MATCH(B207,$O$277:$O$280,0),7)>0,INDEX($P$277:$X$280,MATCH(B207,$O$277:$O$280,0),7)/IF(INDEX($P$277:$X$280,MATCH(B207,$O$277:$O$280,0),6)=0,1,INDEX($P$277:$X$280,MATCH(B207,$O$277:$O$280,0),6)),M219)-N219)*ValTimeAuto)+O219-P219)*(H219-Q219)*0.5*(1+TTUprater)^($B219-YearCurrent)) -> 2174526.783 | S219: 2174526.783 | T219: 1588905.421
B220: 2032 | C220: =MAX(TREND(C213:C214,B213:B214,B220),0) -> 5615525 | D220: =MAX(TREND(D213:D214,B213:B214,B220),0) -> 3155096.5 | E220: =MAX(TREND(E213:E214,B213:B214,B220),0) -> 1.67 | F220: =MAX(TREND(F213:F214,B213:B214,B220),0) -> 1.67 | G220: =MAX(TREND(G213:G214,$B213:$B214,$B220),0) -> 15328795.5 | H220: =MAX(TREND(H213:H214,$B213:$B214,$B220),0) -> 16281883.5 | I220: =MIN(MAX(TREND(I213:I214,B213:B214,B220),0),1) -> 0.15 | J220: =MIN(MAX(TREND(J213:J214,B213:B214,B220),0),1) -> 0.15 | K220: =MAX(TREND(K213:K214,B213:B214,B220),0) -> 0 | L220: =MAX(TREND(L213:L214,B213:B214,B220),0) -> 0 | M220: =IFERROR(IF(B207=Hwy,C220*E220/G220,K220/G220),0) -> 0.6117849736 | N220: =IFERROR(IF(B207=Hwy,D220*F220/H220,L220/H220),0) -> 0.3236118939 | O220: =MAX(TREND(O213:O214,$B213:$B214,$B220),0) -> 0 | P220: =MAX(TREND(P213:P214,$B213:$B214,$B220),0) -> 0 | Q220: =TREND(Q213:Q214,$B213:$B214,$B220) -> 15328795.5 | R220: =IF(Induced="N",0,(IF(B207=Hwy,M220*(I220*ValTimeTruck+(1-I220)*ValTimeAuto)-N220*(J220*ValTimeTruck+(1-J220)*ValTimeAuto),(IF(INDEX($P$277:$X$280,MATCH(B207,$O$277:$O$280,0),7)>0,INDEX($P$277:$X$280,MATCH(B207,$O$277:$O$280,0),7)/IF(INDEX($P$277:$X$280,MATCH(B207,$O$277:$O$280,0),6)=0,1,INDEX($P$277:$X$280,MATCH(B207,$O$277:$O$280,0),6)),M220)-N220)*ValTimeAuto)+O220-P220)*(H220-Q220)*0.5*(1+TTUprater)^($B220-YearCurrent)) -> 2693672.089 | S220: 2693672.089 | T220: 1892538.279
B221: 2033 | C221: =MAX(TREND(C213:C214,B213:B214,B221),0) -> 6697750 | D221: =MAX(TREND(D213:D214,B213:B214,B221),0) -> 3763150 | E221: =MAX(TREND(E213:E214,B213:B214,B221),0) -> 1.67 | F221: =MAX(TREND(F213:F214,B213:B214,B221),0) -> 1.67 | G221: =MAX(TREND(G213:G214,$B213:$B214,$B221),0) -> 16096500 | H221: =MAX(TREND(H213:H214,$B213:$B214,$B221),0) -> 17097330 | I221: =MIN(MAX(TREND(I213:I214,B213:B214,B221),0),1) -> 0.15 | J221: =MIN(MAX(TREND(J213:J214,B213:B214,B221),0),1) -> 0.15 | K221: =MAX(TREND(K213:K214,B213:B214,B221),0) -> 0 | L221: =MAX(TREND(L213:L214,B213:B214,B221),0) -> 0 | M221: =IFERROR(IF(B207=Hwy,C221*E221/G221,K221/G221),0) -> 0.6948866213 | N221: =IFERROR(IF(B207=Hwy,D221*F221/H221,L221/H221),0) -> 0.3675697024 | O221: =MAX(TREND(O213:O214,$B213:$B214,$B221),0) -> 0 | P221: =MAX(TREND(P213:P214,$B213:$B214,$B221),0) -> 0 | Q221: =TREND(Q213:Q214,$B213:$B214,$B221) -> 16096500 | R221: =IF(Induced="N",0,(IF(B207=Hwy,M221*(I221*ValTimeTruck+(1-I221)*ValTimeAuto)-N221*(J221*ValTimeTruck+(1-J221)*ValTimeAuto),(IF(INDEX($P$277:$X$280,MATCH(B207,$O$277:$O$280,0),7)>0,INDEX($P$277:$X$280,MATCH(B207,$O$277:$O$280,0),7)/IF(INDEX($P$277:$X$280,MATCH(B207,$O$277:$O$280,0),6)=0,1,INDEX($P$277:$X$280,MATCH(B207,$O$277:$O$280,0),6)),M221)-N221)*ValTimeAuto)+O221-P221)*(H221-Q221)*0.5*(1+TTUprater)^($B221-YearCurrent)) -> 3212825.116 | S221: 3212825.116 | T221: 2170469.529
B222: 2034 | C222: =MAX(TREND(C213:C214,B213:B214,B222),0) -> 7779975 | D222: =MAX(TREND(D213:D214,B213:B214,B222),0) -> 4371203.5 | E222: =MAX(TREND(E213:E214,B213:B214,B222),0) -> 1.67 | F222: =MAX(TREND(F213:F214,B213:B214,B222),0) -> 1.67 | G222: =MAX(TREND(G213:G214,$B213:$B214,$B222),0) -> 16864204.5 | H222: =MAX(TREND(H213:H214,$B213:$B214,$B222),0) -> 17912776.5 | I222: =MIN(MAX(TREND(I213:I214,B213:B214,B222),0),1) -> 0.15 | J222: =MIN(MAX(TREND(J213:J214,B213:B214,B222),0),1) -> 0.15 | K222: =MAX(TREND(K213:K214,B213:B214,B222),0) -> 0 | L222: =MAX(TREND(L213:L214,B213:B214,B222),0) -> 0 | M222: =IFERROR(IF(B207=Hwy,C222*E222/G222,K222/G222),0) -> 0.7704222426 | N222: =IFERROR(IF(B207=Hwy,D222*F222/H222,L222/H222),0) -> 0.4075253127 | O222: =MAX(TREND(O213:O214,$B213:$B214,$B222),0) -> 0 | P222: =MAX(TREND(P213:P214,$B213:$B214,$B222),0) -> 0 | Q222: =TREND(Q213:Q214,$B213:$B214,$B222) -> 16864204.5 | R222: =IF(Induced="N",0,(IF(B207=Hwy,M222*(I222*ValTimeTruck+(1-I222)*ValTimeAuto)-N222*(J222*ValTimeTruck+(1-J222)*ValTimeAuto),(IF(INDEX($P$277:$X$280,MATCH(B207,$O$277:$O$280,0),7)>0,INDEX($P$277:$X$280,MATCH(B207,$O$277:$O$280,0),7)/IF(INDEX($P$277:$X$280,MATCH(B207,$O$277:$O$280,0),6)=0,1,INDEX($P$277:$X$280,MATCH(B207,$O$277:$O$280,0),6)),M222)-N222)*ValTimeAuto)+O222-P222)*(H222-Q222)*0.5*(1+TTUprater)^($B222-YearCurrent)) -> 3731984.81 | S222: 3731984.81 | T222: 2424226.169
... 61 more rows

Sheet Reliability
B1: Travel Time Reliability Benefits
B3: This sheet calculates total travel time reliability benefits on highway.
B5: Formulas: | Q5: Present Value = Future Value (in Constant Dollars)
H6: Std. Dev. Of TTI = (0.71 x (TTI Mean - 1) ^ 0.56) x Impacted Length / FF Speed | R6: ( 1 + Real Discount Rate) ^ Year
B7: Recurring Delay Rate = 1 / Est. Act. Speed - 1 / FF Speed | H7: hours/vehicle mi mph
B8: hours/mi mph mph | H8: Reliability Savings = Change in Std. Dev. Of TTI x Avg. Value of Reliability
B9: Recurring TTI Mean = 1 + Recurring Delay Rate x FF Speed | H9: $/yr hrs/yr $/hr
B10: hours/mi mph | H10: Avg. Value of Reliability = Avg. Value of Time x Reliability Ratio
B11: TTI Mean = 1.0274 x Recurring TTI Mean ^ 1.2204 | H11: $/hr $/hr
H12: Induced = Change in Trips x Change in Std. Dev. of TTI x 0.5
B17: A | C17: AUTOMOBILE BENEFITS | P17: B | Q17: TRUCK BENEFITS | AD17: C | AE17: SUMMARY OF TRAVEL TIME RELIABILITY BENEFITS
A20: =MAX($A$1:A19)+1 -> 1 | B20: =IF(ISBLANK(INDEX(ReliabilityGroup,A20,2)),"Not Used",INDEX(ReliabilityGroup,A20,2)) -> SJCOG SR99/12 1A & 1B | O20: =MAX($O$1:O19)+1 -> 1 | P20: =IF(ISBLANK(INDEX(ReliabilityGroup,O20,2)),"Not Used",INDEX(ReliabilityGroup,O20,2)) -> SJCOG SR99/12 1A & 1B
C22: AVERAGE VOLUME | E22: AVERAGE SPEED | G22: RECURRING DELAY RATE | I22: STANDARD DEVIATION | K22: RELIABILITY BENEFIT | Q22: AVERAGE VOLUME | S22: AVERAGE SPEED | U22: RECURRING DELAY RATE | W22: STANDARD DEVIATION | Y22: RELIABILITY BENEFIT | AD22: Automobile | AE22: 1 | AG22: Present
C23: (vehicles/hour) | E23: (mph) | G23: (hrs/mi) | I23: OF TRAVEL TIME INDEX | K23: (person-hours/yr) | Q23: (vehicles/hour) | S23: (mph) | U23: (hrs/mi) | W23: OF TRAVEL TIME INDEX | Y23: (person-hours/yr) | AE23: =IF(ISBLANK(INDEX(ModelGroup,AE22,1)),"Not Used",INDEX(ModelGroup,AE22,1)) -> SJCOG SR99/120 | AG23: Value of
B24: Year | I24: (hours/vehicle) | K24: Existing | L24: New | M24: Constant | N24: Present | P24: Year | W24: (hours/vehicle) | Y24: Existing | Z24: New | AA24: Constant | AB24: Present | AD24: Year | AG24: Reliability | AI24: Constant
C25: No Build | D25: Build | E25: No Build | F25: Build | G25: No Build | H25: Build | I25: No Build | J25: Build | K25: Users | L25: (Induced) | M25: Dollars | N25: Value | Q25: No Build | R25: Build | S25: No Build | T25: Build | U25: No Build | V25: Build | W25: No Build | X25: Build | Y25: Users | Z25: (Induced) | AA25: Dollars | AB25: Value | AG25: =IF(Induced="Y","Benefits","Benefits*") -> Benefits | AI25: Dollars
B26: =YearFirst -> 2033 | C26: =_xlfn.SINGLE(IF(_xlfn.SINGLE(INDEX(ReliabilityGroup,$A20,1))=Hwy,IFERROR(_xlfn.SINGLE(INDEX(ReliabilityData1NB,$A20,5))*(1-_xlfn.SINGLE(INDEX(ReliabilityData1NB,$A20,3))),0),0)) -> 843.795 | D26: =_xlfn.SINGLE(IF(_xlfn.SINGLE(INDEX(ReliabilityGroup,$A20,1))=Hwy,IFERROR(_xlfn.SINGLE(INDEX(ReliabilityData1B,A20,5))*(1-_xlfn.SINGLE(INDEX(ReliabilityData1B,A20,3))),0),0)) -> 447.92875 | E26: =_xlfn.SINGLE(IF(_xlfn.SINGLE(INDEX(ReliabilityGroup,A20,1))=Hwy,IFERROR(_xlfn.SINGLE(INDEX(ReliabilityData1NB,A20,4)),0),0)) -> 10.81961853 | F26: =_xlfn.SINGLE(IF(_xlfn.SINGLE(INDEX(ReliabilityGroup,A20,1))=Hwy,IFERROR(_xlfn.SINGLE(INDEX(ReliabilityData1B,A20,4)),0),0)) -> 20.44519884 | G26: =IFERROR(MAX(1/E26-1/INDEX(ReliabilityModelGroup,A20,17), 0),0) -> 0.001515609403 | H26: =IFERROR(MAX(1/F26-1/INDEX(ReliabilityModelGroup,A20,24), 0),0) -> 0 | I26: =IFERROR(AlphaSTD*MAX(AlphaTTI*(1+INDEX(ReliabilityModelGroup,A20,17)*G26)^BetaTTI-1,0)^BetaSTD*INDEX(ReliabilityModelGroup,A20,16)/INDEX(ReliabilityModelGroup,A20,17)*INDEX(RelAdjFactors,A20,5),0) -> 0.05916390097 | J26: =IFERROR(AlphaSTD*MAX(AlphaTTI*(1+INDEX(ReliabilityModelGroup,A20,24)*H26)^BetaTTI-1,0)^BetaSTD*INDEX(ReliabilityModelGroup,A20,23)/INDEX(ReliabilityModelGroup,A20,24)*INDEX(RelAdjFactors,A20,5),0) -> 0.04735530829 | K26: =MIN(C26*INDEX(ReliabilityModelGroup,A20,18),D26*INDEX(ReliabilityModelGroup,A20,25))*(I26-J26)*(INDEX(ReliabilityModelGroup,A20,12)*AnnualFactor) -> 12896.63498 | L26: =IF(AND(D26*INDEX(ReliabilityModelGroup,A20,25)>C26*INDEX(ReliabilityModelGroup,A20,18), Induced="Y"), (D26*INDEX(ReliabilityModelGroup,A20,25)-C26*INDEX(ReliabilityModelGroup,A20,18))*(I26-J26)*0.5*(INDEX(ReliabilityModelGroup,A20,12)*AnnualFactor), 0) -> 0 | M26: =(K26+L26)*ValTimeAuto*ValRelAuto*IF(IM,ValTimeIMFactor,1)*(1+TTUprater)^($B26-YearCurrent) -> 169719.7163 | N26: =M26/(1+DiscRate)^(B26-YearCurrent) -> 114656.5591 | P26: =YearFirst -> 2033 | Q26: =_xlfn.SINGLE(IF(_xlfn.SINGLE(INDEX(ReliabilityGroup,$O20,1))=Hwy,IFERROR(_xlfn.SINGLE(INDEX(ReliabilityData1NB,$O20,5))*_xlfn.SINGLE(INDEX(ReliabilityData1NB,$O20,3)),0),0)) -> 148.905 | R26: =_xlfn.SINGLE(IF(_xlfn.SINGLE(INDEX(ReliabilityGroup,$O20,1))=Hwy,IFERROR(_xlfn.SINGLE(INDEX(ReliabilityData1B,$O20,5))*_xlfn.SINGLE(INDEX(ReliabilityData1B,$O20,3)),0),0)) -> 79.04625 | S26: =_xlfn.SINGLE(IF(_xlfn.SINGLE(INDEX(ReliabilityGroup,O20,1))=Hwy,IFERROR(_xlfn.SINGLE(INDEX(ReliabilityData1NB,O20,4)),0),0)) -> 10.81961853 | T26: =_xlfn.SINGLE(IF(_xlfn.SINGLE(INDEX(ReliabilityGroup,O20,1))=Hwy,IFERROR(_xlfn.SINGLE(INDEX(ReliabilityData1B,O20,4)),0),0)) -> 20.44519884 | U26: =IFERROR(MAX(1/S26-1/INDEX(ReliabilityModelGroup,O20,17), 0),0) -> 0.001515609403 | V26: =IFERROR(MAX(1/T26-1/INDEX(ReliabilityModelGroup,O20,24), 0),0) -> 0 | W26: =IFERROR(AlphaSTD*MAX(AlphaTTI*(1+INDEX(ReliabilityModelGroup,O20,17)*U26)^BetaTTI-1,0)^BetaSTD*INDEX(ReliabilityModelGroup,O20,16)/INDEX(ReliabilityModelGroup,O20,17)*INDEX(RelAdjFactors,O20,15),0) -> 0.05916390097 | X26: =IFERROR(AlphaSTD*MAX(AlphaTTI*(1+INDEX(ReliabilityModelGroup,O20,24)*V26)^BetaTTI-1,0)^BetaSTD*INDEX(ReliabilityModelGroup,O20,23)/INDEX(ReliabilityModelGroup,O20,24)*INDEX(RelAdjFactors,O20,15),0) -> 0.04735530829 | Y26: =MIN(Q26,R26)*(W26-X26)*(INDEX(ReliabilityModelGroup,A20,12)*AnnualFactor) -> 1362.800455 | Z26: =IF(AND(R26>Q26, Induced="Y"), (R26-Q26)*(W26-X26)*0.5*(INDEX(ReliabilityModelGroup,A20,12)*AnnualFactor), 0) -> 0 | AA26: =(Y26+Z26)*ValTimeTruck*ValRelTruck*IF(IM,ValTimeIMFactor,1)*(1+TTUprater)^($B26-YearCurrent) -> 56290.47281 | AB26: =AA26/(1+DiscRate)^(P26-YearCurrent) -> 38027.82648 | AD26: =YearOpen -> 2028 | AE26: =OFFSET($N9,MATCH(AE$22,$A:$A),0) -> -38745.87356 | AG26: =IF(Reliability="N", 0, SUM(AE26:AF26,AE56:AF56)) -> -51596.61118 | AI26: =AG26/(1+DiscRate)^(AD26-YearCurrent) -> -42408.65334
B27: =YearLast -> 2043 | C27: =_xlfn.SINGLE(IF(_xlfn.SINGLE(INDEX(ReliabilityGroup,$A20,1))=Hwy,IFERROR(_xlfn.SINGLE(INDEX(ReliabilityData20NB,$A20,5))*(1-_xlfn.SINGLE(INDEX(ReliabilityData20NB,$A20,3))),0),0)) -> 1245.675 | D27: =_xlfn.SINGLE(IF(_xlfn.SINGLE(INDEX(ReliabilityGroup,$A20,1))=Hwy,IFERROR(_xlfn.SINGLE(INDEX(ReliabilityData20B,$A20,5))*(1-_xlfn.SINGLE(INDEX(ReliabilityData20B,$A20,3))),0),0)) -> 661.2575 | E27: =_xlfn.SINGLE(IF(_xlfn.SINGLE(INDEX(ReliabilityGroup,A20,1))=Hwy,IFERROR(_xlfn.SINGLE(INDEX(ReliabilityData20NB,A20,4)),0),0)) -> 6.10625 | F27: =_xlfn.SINGLE(IF(_xlfn.SINGLE(INDEX(ReliabilityGroup,A20,1))=Hwy,IFERROR(_xlfn.SINGLE(INDEX(ReliabilityData20B,A20,4)),0),0)) -> 11.53800519 | G27: =IFERROR(MAX(1/E27-1/INDEX(ReliabilityModelGroup,A20,17), 0),0) -> 0.07285754164 | H27: =IFERROR(MAX(1/F27-1/INDEX(ReliabilityModelGroup,A20,24), 0),0) -> 0.03667009448 | I27: =IFERROR(AlphaSTD*MAX(AlphaTTI*(1+INDEX(ReliabilityModelGroup,A20,17)*G27)^BetaTTI-1,0)^BetaSTD*INDEX(ReliabilityModelGroup,A20,16)/INDEX(ReliabilityModelGroup,A20,17)*INDEX(RelAdjFactors,A20,5),0) -> 0.3416581306 | J27: =IFERROR(AlphaSTD*MAX(AlphaTTI*(1+INDEX(ReliabilityModelGroup,A20,24)*H27)^BetaTTI-1,0)^BetaSTD*INDEX(ReliabilityModelGroup,A20,23)/INDEX(ReliabilityModelGroup,A20,24)*INDEX(RelAdjFactors,A20,5),0) -> 0.3570717445 | K27: =MIN(C27*INDEX(ReliabilityModelGroup,A20,18),D27*INDEX(ReliabilityModelGroup,A20,25))*(I27-J27)*(INDEX(ReliabilityModelGroup,A20,12)*AnnualFactor) -> -24851.03119 | L27: =IF(AND(D27*INDEX(ReliabilityModelGroup,A20,25)>C27*INDEX(ReliabilityModelGroup,A20,18), Induced="Y"), (D27*INDEX(ReliabilityModelGroup,A20,25)-C27*INDEX(ReliabilityModelGroup,A20,18))*(I27-J27)*0.5*(INDEX(ReliabilityModelGroup,A20,12)*AnnualFactor), 0) -> 0 | M27: =(K27+L27)*ValTimeAuto*ValRelAuto*IF(IM,ValTimeIMFactor,1)*(1+TTUprater)^($B27-YearCurrent) -> -327039.5705 | N27: =M27/(1+DiscRate)^(B27-YearCurrent) -> -149256.5909 | P27: =YearLast -> 2043 | Q27: =_xlfn.SINGLE(IF(_xlfn.SINGLE(INDEX(ReliabilityGroup,$O20,1))=Hwy,IFERROR(_xlfn.SINGLE(INDEX(ReliabilityData20NB,$O20,5))*_xlfn.SINGLE(INDEX(ReliabilityData20NB,$O20,3)),0),0)) -> 219.825 | R27: =_xlfn.SINGLE(IF(_xlfn.SINGLE(INDEX(ReliabilityGroup,$O20,1))=Hwy,IFERROR(_xlfn.SINGLE(INDEX(ReliabilityData20B,$O20,5))*_xlfn.SINGLE(INDEX(ReliabilityData20B,$O20,3)),0),0)) -> 116.6925 | S27: =_xlfn.SINGLE(IF(_xlfn.SINGLE(INDEX(ReliabilityGroup,O20,1))=Hwy,IFERROR(_xlfn.SINGLE(INDEX(ReliabilityData20NB,O20,4)),0),0)) -> 6.10625 | T27: =_xlfn.SINGLE(IF(_xlfn.SINGLE(INDEX(ReliabilityGroup,O20,1))=Hwy,IFERROR(_xlfn.SINGLE(INDEX(ReliabilityData20B,O20,4)),0),0)) -> 11.53800519 | U27: =IFERROR(MAX(1/S27-1/INDEX(ReliabilityModelGroup,O20,17), 0),0) -> 0.07285754164 | V27: =IFERROR(MAX(1/T27-1/INDEX(ReliabilityModelGroup,O20,24), 0),0) -> 0.03667009448 | W27: =IFERROR(AlphaSTD*MAX(AlphaTTI*(1+INDEX(ReliabilityModelGroup,O20,17)*U27)^BetaTTI-1,0)^BetaSTD*INDEX(ReliabilityModelGroup,O20,16)/INDEX(ReliabilityModelGroup,O20,17)*INDEX(RelAdjFactors,O20,15),0) -> 0.3416581306 | X27: =IFERROR(AlphaSTD*MAX(AlphaTTI*(1+INDEX(ReliabilityModelGroup,O20,24)*V27)^BetaTTI-1,0)^BetaSTD*INDEX(ReliabilityModelGroup,O20,23)/INDEX(ReliabilityModelGroup,O20,24)*INDEX(RelAdjFactors,O20,15),0) -> 0.3570717445 | Y27: =MIN(Q27,R27)*(W27-X27)*(INDEX(ReliabilityModelGroup,A20,12)*AnnualFactor) -> -2626.033589 | Z27: =IF(AND(R27>Q27, Induced="Y"), (R27-Q27)*(W27-X27)*0.5*(INDEX(ReliabilityModelGroup,A20,12)*AnnualFactor), 0) -> 0 | AA27: =(Y27+Z27)*ValTimeTruck*ValRelTruck*IF(IM,ValTimeIMFactor,1)*(1+TTUprater)^($B27-YearCurrent) -> -108468.3174 | AB27: =AA27/(1+DiscRate)^(P27-YearCurrent) -> -49503.52413 | AD27: =AD26+1 -> 2029 | AE27: -39584.54611 | AG27: -52713.44395 | AI27: -41660.20045
AD28: =AD27+1 -> 2030 | AE28: -40301.389 | AG28: -53668.04015 | AI28: -40783.29971
B29: =YearOpen -> 2028 | C29: =MAX(TREND(C26:C27,$B26:$B27,$B29),0) -> 642.855 | D29: =MAX(TREND(D26:D27,$B26:$B27,$B29),0) -> 341.264375 | E29: =MAX(TREND(E26:E27,$B26:$B27,$B29),0) -> 13.17630279 | F29: =MAX(TREND(F26:F27,$B26:$B27,$B29),0) -> 24.89879566 | G29: =IFERROR(MAX(1/E29-1/INDEX(ReliabilityModelGroup,A20,17), 0),0) -> 0 | H29: =IFERROR(MAX(1/F29-1/INDEX(ReliabilityModelGroup,A20,24), 0),0) -> 0 | I29: =IFERROR(AlphaSTD*MAX(AlphaTTI*(1+INDEX(ReliabilityModelGroup,A20,17)*G29)^BetaTTI-1,0)^BetaSTD*INDEX(ReliabilityModelGroup,A20,16)/INDEX(ReliabilityModelGroup,A20,17)*INDEX(RelAdjFactors,A20,5),0) -> 0.04305028026 | J29: =IFERROR(AlphaSTD*MAX(AlphaTTI*(1+INDEX(ReliabilityModelGroup,A20,24)*H29)^BetaTTI-1,0)^BetaSTD*INDEX(ReliabilityModelGroup,A20,23)/INDEX(ReliabilityModelGroup,A20,24)*INDEX(RelAdjFactors,A20,5),0) -> 0.04735530829 | K29: =MIN(C29*INDEX(ReliabilityModelGroup,A20,18),D29*INDEX(ReliabilityModelGroup,A20,25))*(I29-J29)*(INDEX(ReliabilityModelGroup,A20,12)*AnnualFactor) -> -3582.08811 | L29: =IF(AND(D29*INDEX(ReliabilityModelGroup,A20,25)>C29*INDEX(ReliabilityModelGroup,A20,18), Induced="Y"), (D29*INDEX(ReliabilityModelGroup,A20,25)-C29*INDEX(ReliabilityModelGroup,A20,18))*(I29-J29)*0.5*(INDEX(ReliabilityModelGroup,A20,12)*AnnualFactor), 0) -> 0 | M29: =(K29+L29)*ValTimeAuto*ValRelAuto*IF(IM,ValTimeIMFactor,1)*(1+TTUprater)^($B29-YearCurrent) -> -47140.27952 | N29: =M29/(1+DiscRate)^(B29-YearCurrent) -> -38745.87356 | P29: =YearOpen -> 2028 | Q29: =MAX(TREND(Q26:Q27,$P26:$P27,$P29),0) -> 113.445 | R29: =MAX(TREND(R26:R27,$P26:$P27,$P29),0) -> 60.223125 | S29: =MAX(TREND(S26:S27,$P26:$P27,$P29),0) -> 13.17630279 | T29: =MAX(TREND(T26:T27,$P26:$P27,$P29),0) -> 24.89879566 | U29: =IFERROR(MAX(1/S29-1/INDEX(ReliabilityModelGroup,O20,17), 0),0) -> 0 | V29: =IFERROR(MAX(1/T29-1/INDEX(ReliabilityModelGroup,O20,24), 0),0) -> 0 | W29: =IFERROR(AlphaSTD*MAX(AlphaTTI*(1+INDEX(ReliabilityModelGroup,O20,17)*U29)^BetaTTI-1,0)^BetaSTD*INDEX(ReliabilityModelGroup,O20,16)/INDEX(ReliabilityModelGroup,O20,17)*INDEX(RelAdjFactors,O20,15),0) -> 0.04305028026 | X29: =IFERROR(AlphaSTD*MAX(AlphaTTI*(1+INDEX(ReliabilityModelGroup,O20,24)*V29)^BetaTTI-1,0)^BetaSTD*INDEX(ReliabilityModelGroup,O20,23)/INDEX(ReliabilityModelGroup,O20,24)*INDEX(RelAdjFactors,O20,15),0) -> 0.04735530829 | Y29: =MIN(Q29,R29)*(W29-X29)*(INDEX(ReliabilityModelGroup,A20,12)*AnnualFactor) -> -378.5228718 | Z29: =IF(AND(R29>Q29, Induced="Y"), (R29-Q29)*(W29-X29)*0.5*(INDEX(ReliabilityModelGroup,A20,12)*AnnualFactor), 0) -> 0 | AA29: =(Y29+Z29)*ValTimeTruck*ValRelTruck*IF(IM,ValTimeIMFactor,1)*(1+TTUprater)^($B29-YearCurrent) -> -15634.88722 | AB29: =AA29/(1+DiscRate)^(P29-YearCurrent) -> -12850.73762 | AD29: 2031 | AE29: -40904.53311 | AG29: -54471.22742 | AI29: -39801.59233
B30: =B29+1 -> 2029 | C30: =MAX(TREND(C26:C27,$B26:$B27,$B30),0) -> 683.043 | D30: =MAX(TREND(D26:D27,$B26:$B27,$B30),0) -> 362.59725 | E30: =MAX(TREND(E26:E27,$B26:$B27,$B30),0) -> 12.70496594 | F30: =MAX(TREND(F26:F27,$B26:$B27,$B30),0) -> 24.00807629 | G30: =IFERROR(MAX(1/E30-1/INDEX(ReliabilityModelGroup,A20,17), 0),0) -> 0 | H30: =IFERROR(MAX(1/F30-1/INDEX(ReliabilityModelGroup,A20,24), 0),0) -> 0 | I30: =IFERROR(AlphaSTD*MAX(AlphaTTI*(1+INDEX(ReliabilityModelGroup,A20,17)*G30)^BetaTTI-1,0)^BetaSTD*INDEX(ReliabilityModelGroup,A20,16)/INDEX(ReliabilityModelGroup,A20,17)*INDEX(RelAdjFactors,A20,5),0) -> 0.04305028026 | J30: =IFERROR(AlphaSTD*MAX(AlphaTTI*(1+INDEX(ReliabilityModelGroup,A20,24)*H30)^BetaTTI-1,0)^BetaSTD*INDEX(ReliabilityModelGroup,A20,23)/INDEX(ReliabilityModelGroup,A20,24)*INDEX(RelAdjFactors,A20,5),0) -> 0.04735530829 | K30: =MIN(C30*INDEX(ReliabilityModelGroup,A20,18),D30*INDEX(ReliabilityModelGroup,A20,25))*(I30-J30)*(INDEX(ReliabilityModelGroup,A20,12)*AnnualFactor) -> -3806.009045 | L30: =IF(AND(D30*INDEX(ReliabilityModelGroup,A20,25)>C30*INDEX(ReliabilityModelGroup,A20,18), Induced="Y"), (D30*INDEX(ReliabilityModelGroup,A20,25)-C30*INDEX(ReliabilityModelGroup,A20,18))*(I30-J30)*0.5*(INDEX(ReliabilityModelGroup,A20,12)*AnnualFactor), 0) -> 0 | M30: -50087.07903 | N30: -39584.54611 | P30: =P29+1 -> 2029 | Q30: =MAX(TREND(Q26:Q27,$P26:$P27,$P30),0) -> 120.537 | R30: =MAX(TREND(R26:R27,$P26:$P27,$P30),0) -> 63.98775 | S30: =MAX(TREND(S26:S27,$P26:$P27,$P30),0) -> 12.70496594 | T30: =MAX(TREND(T26:T27,$P26:$P27,$P30),0) -> 24.00807629 | U30: =IFERROR(MAX(1/S30-1/INDEX(ReliabilityModelGroup,O20,17), 0),0) -> 0 | V30: =IFERROR(MAX(1/T30-1/INDEX(ReliabilityModelGroup,O20,24), 0),0) -> 0 | W30: =IFERROR(AlphaSTD*MAX(AlphaTTI*(1+INDEX(ReliabilityModelGroup,O20,17)*U30)^BetaTTI-1,0)^BetaSTD*INDEX(ReliabilityModelGroup,O20,16)/INDEX(ReliabilityModelGroup,O20,17)*INDEX(RelAdjFactors,O20,15),0) -> 0.04305028026 | X30: =IFERROR(AlphaSTD*MAX(AlphaTTI*(1+INDEX(ReliabilityModelGroup,O20,24)*V30)^BetaTTI-1,0)^BetaSTD*INDEX(ReliabilityModelGroup,O20,23)/INDEX(ReliabilityModelGroup,O20,24)*INDEX(RelAdjFactors,O20,15),0) -> 0.04735530829 | Y30: =MIN(Q30,R30)*(W30-X30)*(INDEX(ReliabilityModelGroup,A20,12)*AnnualFactor) -> -402.1848233 | Z30: =IF(AND(R30>Q30, Induced="Y"), (R30-Q30)*(W30-X30)*0.5*(INDEX(ReliabilityModelGroup,A20,12)*AnnualFactor), 0) -> 0 | AA30: -16612.24413 | AB30: -13128.89784 | AD30: 2032 | AE30: -41401.66408 | AG30: -55133.24045 | AI30: -38735.88343
B31: =B30+1 -> 2030 | C31: =MAX(TREND(C26:C27,$B26:$B27,$B31),0) -> 723.231 | D31: =MAX(TREND(D26:D27,$B26:$B27,$B31),0) -> 383.930125 | E31: =MAX(TREND(E26:E27,$B26:$B27,$B31),0) -> 12.23362909 | F31: =MAX(TREND(F26:F27,$B26:$B27,$B31),0) -> 23.11735693 | G31: =IFERROR(MAX(1/E31-1/INDEX(ReliabilityModelGroup,A20,17), 0),0) -> 0 | H31: =IFERROR(MAX(1/F31-1/INDEX(ReliabilityModelGroup,A20,24), 0),0) -> 0 | I31: =IFERROR(AlphaSTD*MAX(AlphaTTI*(1+INDEX(ReliabilityModelGroup,A20,17)*G31)^BetaTTI-1,0)^BetaSTD*INDEX(ReliabilityModelGroup,A20,16)/INDEX(ReliabilityModelGroup,A20,17)*INDEX(RelAdjFactors,A20,5),0) -> 0.04305028026 | J31: =IFERROR(AlphaSTD*MAX(AlphaTTI*(1+INDEX(ReliabilityModelGroup,A20,24)*H31)^BetaTTI-1,0)^BetaSTD*INDEX(ReliabilityModelGroup,A20,23)/INDEX(ReliabilityModelGroup,A20,24)*INDEX(RelAdjFactors,A20,5),0) -> 0.04735530829 | K31: =MIN(C31*INDEX(ReliabilityModelGroup,A20,18),D31*INDEX(ReliabilityModelGroup,A20,25))*(I31-J31)*(INDEX(ReliabilityModelGroup,A20,12)*AnnualFactor) -> -4029.92998 | L31: =IF(AND(D31*INDEX(ReliabilityModelGroup,A20,25)>C31*INDEX(ReliabilityModelGroup,A20,18), Induced="Y"), (D31*INDEX(ReliabilityModelGroup,A20,25)-C31*INDEX(ReliabilityModelGroup,A20,18))*(I31-J31)*0.5*(INDEX(ReliabilityModelGroup,A20,12)*AnnualFactor), 0) -> 0 | M31: -53033.87853 | N31: -40301.389 | P31: =P30+1 -> 2030 | Q31: =MAX(TREND(Q26:Q27,$P26:$P27,$P31),0) -> 127.629 | R31: =MAX(TREND(R26:R27,$P26:$P27,$P31),0) -> 67.752375 | S31: =MAX(TREND(S26:S27,$P26:$P27,$P31),0) -> 12.23362909 | T31: =MAX(TREND(T26:T27,$P26:$P27,$P31),0) -> 23.11735693 | U31: =IFERROR(MAX(1/S31-1/INDEX(ReliabilityModelGroup,O20,17), 0),0) -> 0 | V31: =IFERROR(MAX(1/T31-1/INDEX(ReliabilityModelGroup,O20,24), 0),0) -> 0 | W31: =IFERROR(AlphaSTD*MAX(AlphaTTI*(1+INDEX(ReliabilityModelGroup,O20,17)*U31)^BetaTTI-1,0)^BetaSTD*INDEX(ReliabilityModelGroup,O20,16)/INDEX(ReliabilityModelGroup,O20,17)*INDEX(RelAdjFactors,O20,15),0) -> 0.04305028026 | X31: =IFERROR(AlphaSTD*MAX(AlphaTTI*(1+INDEX(ReliabilityModelGroup,O20,24)*V31)^BetaTTI-1,0)^BetaSTD*INDEX(ReliabilityModelGroup,O20,23)/INDEX(ReliabilityModelGroup,O20,24)*INDEX(RelAdjFactors,O20,15),0) -> 0.04735530829 | Y31: =MIN(Q31,R31)*(W31-X31)*(INDEX(ReliabilityModelGroup,A20,12)*AnnualFactor) -> -425.8467749 | Z31: =IF(AND(R31>Q31, Induced="Y"), (R31-Q31)*(W31-X31)*0.5*(INDEX(ReliabilityModelGroup,A20,12)*AnnualFactor), 0) -> 0 | AA31: -17589.60104 | AB31: -13366.65115 | AD31: 2033 | AE31: 114656.5591 | AG31: 152684.3855 | AI31: 103148.1
B32: 2031 | C32: =MAX(TREND(C26:C27,$B26:$B27,$B32),0) -> 763.419 | D32: =MAX(TREND(D26:D27,$B26:$B27,$B32),0) -> 405.263 | E32: =MAX(TREND(E26:E27,$B26:$B27,$B32),0) -> 11.76229223 | F32: =MAX(TREND(F26:F27,$B26:$B27,$B32),0) -> 22.22663757 | G32: =IFERROR(MAX(1/E32-1/INDEX(ReliabilityModelGroup,A20,17), 0),0) -> 0 | H32: =IFERROR(MAX(1/F32-1/INDEX(ReliabilityModelGroup,A20,24), 0),0) -> 0 | I32: =IFERROR(AlphaSTD*MAX(AlphaTTI*(1+INDEX(ReliabilityModelGroup,A20,17)*G32)^BetaTTI-1,0)^BetaSTD*INDEX(ReliabilityModelGroup,A20,16)/INDEX(ReliabilityModelGroup,A20,17)*INDEX(RelAdjFactors,A20,5),0) -> 0.04305028026 | J32: =IFERROR(AlphaSTD*MAX(AlphaTTI*(1+INDEX(ReliabilityModelGroup,A20,24)*H32)^BetaTTI-1,0)^BetaSTD*INDEX(ReliabilityModelGroup,A20,23)/INDEX(ReliabilityModelGroup,A20,24)*INDEX(RelAdjFactors,A20,5),0) -> 0.04735530829 | K32: =MIN(C32*INDEX(ReliabilityModelGroup,A20,18),D32*INDEX(ReliabilityModelGroup,A20,25))*(I32-J32)*(INDEX(ReliabilityModelGroup,A20,12)*AnnualFactor) -> -4253.850914 | L32: =IF(AND(D32*INDEX(ReliabilityModelGroup,A20,25)>C32*INDEX(ReliabilityModelGroup,A20,18), Induced="Y"), (D32*INDEX(ReliabilityModelGroup,A20,25)-C32*INDEX(ReliabilityModelGroup,A20,18))*(I32-J32)*0.5*(INDEX(ReliabilityModelGroup,A20,12)*AnnualFactor), 0) -> 0 | M32: -55980.67803 | N32: -40904.53311 | P32: 2031 | Q32: =MAX(TREND(Q26:Q27,$P26:$P27,$P32),0) -> 134.721 | R32: =MAX(TREND(R26:R27,$P26:$P27,$P32),0) -> 71.517 | S32: =MAX(TREND(S26:S27,$P26:$P27,$P32),0) -> 11.76229223 | T32: =MAX(TREND(T26:T27,$P26:$P27,$P32),0) -> 22.22663757 | U32: =IFERROR(MAX(1/S32-1/INDEX(ReliabilityModelGroup,O20,17), 0),0) -> 0 | V32: =IFERROR(MAX(1/T32-1/INDEX(ReliabilityModelGroup,O20,24), 0),0) -> 0 | W32: =IFERROR(AlphaSTD*MAX(AlphaTTI*(1+INDEX(ReliabilityModelGroup,O20,17)*U32)^BetaTTI-1,0)^BetaSTD*INDEX(ReliabilityModelGroup,O20,16)/INDEX(ReliabilityModelGroup,O20,17)*INDEX(RelAdjFactors,O20,15),0) -> 0.04305028026 | X32: =IFERROR(AlphaSTD*MAX(AlphaTTI*(1+INDEX(ReliabilityModelGroup,O20,24)*V32)^BetaTTI-1,0)^BetaSTD*INDEX(ReliabilityModelGroup,O20,23)/INDEX(ReliabilityModelGroup,O20,24)*INDEX(RelAdjFactors,O20,15),0) -> 0.04735530829 | Y32: =MIN(Q32,R32)*(W32-X32)*(INDEX(ReliabilityModelGroup,A20,12)*AnnualFactor) -> -449.5087264 | Z32: =IF(AND(R32>Q32, Induced="Y"), (R32-Q32)*(W32-X32)*0.5*(INDEX(ReliabilityModelGroup,A20,12)*AnnualFactor), 0) -> 0 | AA32: -18566.95794 | AB32: -13566.69431 | AD32: 2034 | AE32: 211059.7991 | AG32: 281061.4237 | AI32: 182572.1415
B33: 2032 | C33: =MAX(TREND(C26:C27,$B26:$B27,$B33),0) -> 803.607 | D33: =MAX(TREND(D26:D27,$B26:$B27,$B33),0) -> 426.595875 | E33: =MAX(TREND(E26:E27,$B26:$B27,$B33),0) -> 11.29095538 | F33: =MAX(TREND(F26:F27,$B26:$B27,$B33),0) -> 21.3359182 | G33: =IFERROR(MAX(1/E33-1/INDEX(ReliabilityModelGroup,A20,17), 0),0) -> 0 | H33: =IFERROR(MAX(1/F33-1/INDEX(ReliabilityModelGroup,A20,24), 0),0) -> 0 | I33: =IFERROR(AlphaSTD*MAX(AlphaTTI*(1+INDEX(ReliabilityModelGroup,A20,17)*G33)^BetaTTI-1,0)^BetaSTD*INDEX(ReliabilityModelGroup,A20,16)/INDEX(ReliabilityModelGroup,A20,17)*INDEX(RelAdjFactors,A20,5),0) -> 0.04305028026 | J33: =IFERROR(AlphaSTD*MAX(AlphaTTI*(1+INDEX(ReliabilityModelGroup,A20,24)*H33)^BetaTTI-1,0)^BetaSTD*INDEX(ReliabilityModelGroup,A20,23)/INDEX(ReliabilityModelGroup,A20,24)*INDEX(RelAdjFactors,A20,5),0) -> 0.04735530829 | K33: =MIN(C33*INDEX(ReliabilityModelGroup,A20,18),D33*INDEX(ReliabilityModelGroup,A20,25))*(I33-J33)*(INDEX(ReliabilityModelGroup,A20,12)*AnnualFactor) -> -4477.771849 | L33: =IF(AND(D33*INDEX(ReliabilityModelGroup,A20,25)>C33*INDEX(ReliabilityModelGroup,A20,18), Induced="Y"), (D33*INDEX(ReliabilityModelGroup,A20,25)-C33*INDEX(ReliabilityModelGroup,A20,18))*(I33-J33)*0.5*(INDEX(ReliabilityModelGroup,A20,12)*AnnualFactor), 0) -> 0 | M33: -58927.47754 | N33: -41401.66408 | P33: 2032 | Q33: =MAX(TREND(Q26:Q27,$P26:$P27,$P33),0) -> 141.813 | R33: =MAX(TREND(R26:R27,$P26:$P27,$P33),0) -> 75.281625 | S33: =MAX(TREND(S26:S27,$P26:$P27,$P33),0) -> 11.29095538 | T33: =MAX(TREND(T26:T27,$P26:$P27,$P33),0) -> 21.3359182 | U33: =IFERROR(MAX(1/S33-1/INDEX(ReliabilityModelGroup,O20,17), 0),0) -> 0 | V33: =IFERROR(MAX(1/T33-1/INDEX(ReliabilityModelGroup,O20,24), 0),0) -> 0 | W33: =IFERROR(AlphaSTD*MAX(AlphaTTI*(1+INDEX(ReliabilityModelGroup,O20,17)*U33)^BetaTTI-1,0)^BetaSTD*INDEX(ReliabilityModelGroup,O20,16)/INDEX(ReliabilityModelGroup,O20,17)*INDEX(RelAdjFactors,O20,15),0) -> 0.04305028026 | X33: =IFERROR(AlphaSTD*MAX(AlphaTTI*(1+INDEX(ReliabilityModelGroup,O20,24)*V33)^BetaTTI-1,0)^BetaSTD*INDEX(ReliabilityModelGroup,O20,23)/INDEX(ReliabilityModelGroup,O20,24)*INDEX(RelAdjFactors,O20,15),0) -> 0.04735530829 | Y33: =MIN(Q33,R33)*(W33-X33)*(INDEX(ReliabilityModelGroup,A20,12)*AnnualFactor) -> -473.170678 | Z33: =IF(AND(R33>Q33, Induced="Y"), (R33-Q33)*(W33-X33)*0.5*(INDEX(ReliabilityModelGroup,A20,12)*AnnualFactor), 0) -> 0 | AA33: -19544.31485 | AB33: -13731.57637 | AD33: 2035 | AE33: 128907.188 | AG33: 171661.4814 | AI33: 107219.2548
B34: 2033 | C34: =MAX(TREND(C26:C27,$B26:$B27,$B34),0) -> 843.795 | D34: =MAX(TREND(D26:D27,$B26:$B27,$B34),0) -> 447.92875 | E34: =MAX(TREND(E26:E27,$B26:$B27,$B34),0) -> 10.81961853 | F34: =MAX(TREND(F26:F27,$B26:$B27,$B34),0) -> 20.44519884 | G34: =IFERROR(MAX(1/E34-1/INDEX(ReliabilityModelGroup,A20,17), 0),0) -> 0.001515609403 | H34: =IFERROR(MAX(1/F34-1/INDEX(ReliabilityModelGroup,A20,24), 0),0) -> 0 | I34: =IFERROR(AlphaSTD*MAX(AlphaTTI*(1+INDEX(ReliabilityModelGroup,A20,17)*G34)^BetaTTI-1,0)^BetaSTD*INDEX(ReliabilityModelGroup,A20,16)/INDEX(ReliabilityModelGroup,A20,17)*INDEX(RelAdjFactors,A20,5),0) -> 0.05916390097 | J34: =IFERROR(AlphaSTD*MAX(AlphaTTI*(1+INDEX(ReliabilityModelGroup,A20,24)*H34)^BetaTTI-1,0)^BetaSTD*INDEX(ReliabilityModelGroup,A20,23)/INDEX(ReliabilityModelGroup,A20,24)*INDEX(RelAdjFactors,A20,5),0) -> 0.04735530829 | K34: =MIN(C34*INDEX(ReliabilityModelGroup,A20,18),D34*INDEX(ReliabilityModelGroup,A20,25))*(I34-J34)*(INDEX(ReliabilityModelGroup,A20,12)*AnnualFactor) -> 12896.63498 | L34: =IF(AND(D34*INDEX(ReliabilityModelGroup,A20,25)>C34*INDEX(ReliabilityModelGroup,A20,18), Induced="Y"), (D34*INDEX(ReliabilityModelGroup,A20,25)-C34*INDEX(ReliabilityModelGroup,A20,18))*(I34-J34)*0.5*(INDEX(ReliabilityModelGroup,A20,12)*AnnualFactor), 0) -> 0 | M34: 169719.7163 | N34: 114656.5591 | P34: 2033 | Q34: =MAX(TREND(Q26:Q27,$P26:$P27,$P34),0) -> 148.905 | R34: =MAX(TREND(R26:R27,$P26:$P27,$P34),0) -> 79.04625 | S34: =MAX(TREND(S26:S27,$P26:$P27,$P34),0) -> 10.81961853 | T34: =MAX(TREND(T26:T27,$P26:$P27,$P34),0) -> 20.44519884 | U34: =IFERROR(MAX(1/S34-1/INDEX(ReliabilityModelGroup,O20,17), 0),0) -> 0.001515609403 | V34: =IFERROR(MAX(1/T34-1/INDEX(ReliabilityModelGroup,O20,24), 0),0) -> 0 | W34: =IFERROR(AlphaSTD*MAX(AlphaTTI*(1+INDEX(ReliabilityModelGroup,O20,17)*U34)^BetaTTI-1,0)^BetaSTD*INDEX(ReliabilityModelGroup,O20,16)/INDEX(ReliabilityModelGroup,O20,17)*INDEX(RelAdjFactors,O20,15),0) -> 0.05916390097 | X34: =IFERROR(AlphaSTD*MAX(AlphaTTI*(1+INDEX(ReliabilityModelGroup,O20,24)*V34)^BetaTTI-1,0)^BetaSTD*INDEX(ReliabilityModelGroup,O20,23)/INDEX(ReliabilityModelGroup,O20,24)*INDEX(RelAdjFactors,O20,15),0) -> 0.04735530829 | Y34: =MIN(Q34,R34)*(W34-X34)*(INDEX(ReliabilityModelGroup,A20,12)*AnnualFactor) -> 1362.800455 | Z34: =IF(AND(R34>Q34, Induced="Y"), (R34-Q34)*(W34-X34)*0.5*(INDEX(ReliabilityModelGroup,A20,12)*AnnualFactor), 0) -> 0 | AA34: 56290.47281 | AB34: 38027.82648 | AD34: 2036 | AE34: 76313.42604 | AG34: 101624.0908 | AI34: 61032.79543
B35: 2034 | C35: =MAX(TREND(C26:C27,$B26:$B27,$B35),0) -> 883.983 | D35: =MAX(TREND(D26:D27,$B26:$B27,$B35),0) -> 469.261625 | E35: =MAX(TREND(E26:E27,$B26:$B27,$B35),0) -> 10.34828168 | F35: =MAX(TREND(F26:F27,$B26:$B27,$B35),0) -> 19.55447947 | G35: =IFERROR(MAX(1/E35-1/INDEX(ReliabilityModelGroup,A20,17), 0),0) -> 0.005725309983 | H35: =IFERROR(MAX(1/F35-1/INDEX(ReliabilityModelGroup,A20,24), 0),0) -> 0.001139177673 | I35: =IFERROR(AlphaSTD*MAX(AlphaTTI*(1+INDEX(ReliabilityModelGroup,A20,17)*G35)^BetaTTI-1,0)^BetaSTD*INDEX(ReliabilityModelGroup,A20,16)/INDEX(ReliabilityModelGroup,A20,17)*INDEX(RelAdjFactors,A20,5),0) -> 0.09227254286 | J35: =IFERROR(AlphaSTD*MAX(AlphaTTI*(1+INDEX(ReliabilityModelGroup,A20,24)*H35)^BetaTTI-1,0)^BetaSTD*INDEX(ReliabilityModelGroup,A20,23)/INDEX(ReliabilityModelGroup,A20,24)*INDEX(RelAdjFactors,A20,5),0) -> 0.07069350901 | K35: =MIN(C35*INDEX(ReliabilityModelGroup,A20,18),D35*INDEX(ReliabilityModelGroup,A20,25))*(I35-J35)*(INDEX(ReliabilityModelGroup,A20,12)*AnnualFactor) -> 24689.73129 | L35: =IF(AND(D35*INDEX(ReliabilityModelGroup,A20,25)>C35*INDEX(ReliabilityModelGroup,A20,18), Induced="Y"), (D35*INDEX(ReliabilityModelGroup,A20,25)-C35*INDEX(ReliabilityModelGroup,A20,18))*(I35-J35)*0.5*(INDEX(ReliabilityModelGroup,A20,12)*AnnualFactor), 0) -> 0 | M35: 324916.8638 | N35: 211059.7991 | P35: 2034 | Q35: =MAX(TREND(Q26:Q27,$P26:$P27,$P35),0) -> 155.997 | R35: =MAX(TREND(R26:R27,$P26:$P27,$P35),0) -> 82.810875 | S35: =MAX(TREND(S26:S27,$P26:$P27,$P35),0) -> 10.34828168 | T35: =MAX(TREND(T26:T27,$P26:$P27,$P35),0) -> 19.55447947 | U35: =IFERROR(MAX(1/S35-1/INDEX(ReliabilityModelGroup,O20,17), 0),0) -> 0.005725309983 | V35: =IFERROR(MAX(1/T35-1/INDEX(ReliabilityModelGroup,O20,24), 0),0) -> 0.001139177673 | W35: =IFERROR(AlphaSTD*MAX(AlphaTTI*(1+INDEX(ReliabilityModelGroup,O20,17)*U35)^BetaTTI-1,0)^BetaSTD*INDEX(ReliabilityModelGroup,O20,16)/INDEX(ReliabilityModelGroup,O20,17)*INDEX(RelAdjFactors,O20,15),0) -> 0.09227254286 | X35: =IFERROR(AlphaSTD*MAX(AlphaTTI*(1+INDEX(ReliabilityModelGroup,O20,24)*V35)^BetaTTI-1,0)^BetaSTD*INDEX(ReliabilityModelGroup,O20,23)/INDEX(ReliabilityModelGroup,O20,24)*INDEX(RelAdjFactors,O20,15),0) -> 0.07069350901 | Y35: =MIN(Q35,R35)*(W35-X35)*(INDEX(ReliabilityModelGroup,A20,12)*AnnualFactor) -> 2608.988865 | Z35: =IF(AND(R35>Q35, Induced="Y"), (R35-Q35)*(W35-X35)*0.5*(INDEX(ReliabilityModelGroup,A20,12)*AnnualFactor), 0) -> 0 | AA35: 107764.2851 | AB35: 70001.62468 | AD35: 2037 | AE35: 35336.69592 | AG35: 47056.72093 | AI35: 27174.08382
B36: 2035 | C36: =MAX(TREND(C26:C27,$B26:$B27,$B36),0) -> 924.171 | D36: =MAX(TREND(D26:D27,$B26:$B27,$B36),0) -> 490.5945 | E36: =MAX(TREND(E26:E27,$B26:$B27,$B36),0) -> 9.876944823 | F36: =MAX(TREND(F26:F27,$B26:$B27,$B36),0) -> 18.66376011 | G36: =IFERROR(MAX(1/E36-1/INDEX(ReliabilityModelGroup,A20,17), 0),0) -> 0.0103367921 | H36: =IFERROR(MAX(1/F36-1/INDEX(ReliabilityModelGroup,A20,24), 0),0) -> 0.0035797714 | I36: =IFERROR(AlphaSTD*MAX(AlphaTTI*(1+INDEX(ReliabilityModelGroup,A20,17)*G36)^BetaTTI-1,0)^BetaSTD*INDEX(ReliabilityModelGroup,A20,16)/INDEX(ReliabilityModelGroup,A20,17)*INDEX(RelAdjFactors,A20,5),0) -> 0.1203128565 | J36: =IFERROR(AlphaSTD*MAX(AlphaTTI*(1+INDEX(ReliabilityModelGroup,A20,24)*H36)^BetaTTI-1,0)^BetaSTD*INDEX(ReliabilityModelGroup,A20,23)/INDEX(ReliabilityModelGroup,A20,24)*INDEX(RelAdjFactors,A20,5),0) -> 0.1072020528 | K36: =MIN(C36*INDEX(ReliabilityModelGroup,A20,18),D36*INDEX(ReliabilityModelGroup,A20,25))*(I36-J36)*(INDEX(ReliabilityModelGroup,A20,12)*AnnualFactor) -> 15682.71741 | L36: =IF(AND(D36*INDEX(ReliabilityModelGroup,A20,25)>C36*INDEX(ReliabilityModelGroup,A20,18), Induced="Y"), (D36*INDEX(ReliabilityModelGroup,A20,25)-C36*INDEX(ReliabilityModelGroup,A20,18))*(I36-J36)*0.5*(INDEX(ReliabilityModelGroup,A20,12)*AnnualFactor), 0) -> 0 | M36: 206384.5611 | N36: 128907.188 | P36: 2035 | Q36: =MAX(TREND(Q26:Q27,$P26:$P27,$P36),0) -> 163.089 | R36: =MAX(TREND(R26:R27,$P26:$P27,$P36),0) -> 86.5755 | S36: =MAX(TREND(S26:S27,$P26:$P27,$P36),0) -> 9.876944823 | T36: =MAX(TREND(T26:T27,$P26:$P27,$P36),0) -> 18.66376011 | U36: =IFERROR(MAX(1/S36-1/INDEX(ReliabilityModelGroup,O20,17), 0),0) -> 0.0103367921 | V36: =IFERROR(MAX(1/T36-1/INDEX(ReliabilityModelGroup,O20,24), 0),0) -> 0.0035797714 | W36: =IFERROR(AlphaSTD*MAX(AlphaTTI*(1+INDEX(ReliabilityModelGroup,O20,17)*U36)^BetaTTI-1,0)^BetaSTD*INDEX(ReliabilityModelGroup,O20,16)/INDEX(ReliabilityModelGroup,O20,17)*INDEX(RelAdjFactors,O20,15),0) -> 0.1203128565 | X36: =IFERROR(AlphaSTD*MAX(AlphaTTI*(1+INDEX(ReliabilityModelGroup,O20,24)*V36)^BetaTTI-1,0)^BetaSTD*INDEX(ReliabilityModelGroup,O20,23)/INDEX(ReliabilityModelGroup,O20,24)*INDEX(RelAdjFactors,O20,15),0) -> 0.1072020528 | Y36: =MIN(Q36,R36)*(W36-X36)*(INDEX(ReliabilityModelGroup,A20,12)*AnnualFactor) -> 1657.208603 | Z36: =IF(AND(R36>Q36, Induced="Y"), (R36-Q36)*(W36-X36)*0.5*(INDEX(ReliabilityModelGroup,A20,12)*AnnualFactor), 0) -> 0 | AA36: 68451.00134 | AB36: 42754.29348 | AD36: 2038 | AE36: 207.4946631 | AG36: 276.313849 | AI36: 153.4272719
B37: 2036 | C37: =MAX(TREND(C26:C27,$B26:$B27,$B37),0) -> 964.359 | D37: =MAX(TREND(D26:D27,$B26:$B27,$B37),0) -> 511.927375 | E37: =MAX(TREND(E26:E27,$B26:$B27,$B37),0) -> 9.40560797 | F37: =MAX(TREND(F26:F27,$B26:$B27,$B37),0) -> 17.77304074 | G37: =IFERROR(MAX(1/E37-1/INDEX(ReliabilityModelGroup,A20,17), 0),0) -> 0.01541045836 | H37: =IFERROR(MAX(1/F37-1/INDEX(ReliabilityModelGroup,A20,24), 0),0) -> 0.00626499227 | I37: =IFERROR(AlphaSTD*MAX(AlphaTTI*(1+INDEX(ReliabilityModelGroup,A20,17)*G37)^BetaTTI-1,0)^BetaSTD*INDEX(ReliabilityModelGroup,A20,16)/INDEX(ReliabilityModelGroup,A20,17)*INDEX(RelAdjFactors,A20,5),0) -> 0.1463951978 | J37: =IFERROR(AlphaSTD*MAX(AlphaTTI*(1+INDEX(ReliabilityModelGroup,A20,24)*H37)^BetaTTI-1,0)^BetaSTD*INDEX(ReliabilityModelGroup,A20,23)/INDEX(ReliabilityModelGroup,A20,24)*INDEX(RelAdjFactors,A20,5),0) -> 0.1386594769 | K37: =MIN(C37*INDEX(ReliabilityModelGroup,A20,18),D37*INDEX(ReliabilityModelGroup,A20,25))*(I37-J37)*(INDEX(ReliabilityModelGroup,A20,12)*AnnualFactor) -> 9655.582367 | L37: =IF(AND(D37*INDEX(ReliabilityModelGroup,A20,25)>C37*INDEX(ReliabilityModelGroup,A20,18), Induced="Y"), (D37*INDEX(ReliabilityModelGroup,A20,25)-C37*INDEX(ReliabilityModelGroup,A20,18))*(I37-J37)*0.5*(INDEX(ReliabilityModelGroup,A20,12)*AnnualFactor), 0) -> 0 | M37: 127067.464 | N37: 76313.42604 | P37: 2036 | Q37: =MAX(TREND(Q26:Q27,$P26:$P27,$P37),0) -> 170.181 | R37: =MAX(TREND(R26:R27,$P26:$P27,$P37),0) -> 90.340125 | S37: =MAX(TREND(S26:S27,$P26:$P27,$P37),0) -> 9.40560797 | T37: =MAX(TREND(T26:T27,$P26:$P27,$P37),0) -> 17.77304074 | U37: =IFERROR(MAX(1/S37-1/INDEX(ReliabilityModelGroup,O20,17), 0),0) -> 0.01541045836 | V37: =IFERROR(MAX(1/T37-1/INDEX(ReliabilityModelGroup,O20,24), 0),0) -> 0.00626499227 | W37: =IFERROR(AlphaSTD*MAX(AlphaTTI*(1+INDEX(ReliabilityModelGroup,O20,17)*U37)^BetaTTI-1,0)^BetaSTD*INDEX(ReliabilityModelGroup,O20,16)/INDEX(ReliabilityModelGroup,O20,17)*INDEX(RelAdjFactors,O20,15),0) -> 0.1463951978 | X37: =IFERROR(AlphaSTD*MAX(AlphaTTI*(1+INDEX(ReliabilityModelGroup,O20,24)*V37)^BetaTTI-1,0)^BetaSTD*INDEX(ReliabilityModelGroup,O20,23)/INDEX(ReliabilityModelGroup,O20,24)*INDEX(RelAdjFactors,O20,15),0) -> 0.1386594769 | Y37: =MIN(Q37,R37)*(W37-X37)*(INDEX(ReliabilityModelGroup,A20,12)*AnnualFactor) -> 1020.31515 | Z37: =IF(AND(R37>Q37, Induced="Y"), (R37-Q37)*(W37-X37)*0.5*(INDEX(ReliabilityModelGroup,A20,12)*AnnualFactor), 0) -> 0 | AA37: 42144.11726 | AB37: 25310.66471 | AD37: 2039 | AE37: -31673.47172 | AG37: -42178.52521 | AI37: -22519.45945
B38: 2037 | C38: =MAX(TREND(C26:C27,$B26:$B27,$B38),0) -> 1004.547 | D38: =MAX(TREND(D26:D27,$B26:$B27,$B38),0) -> 533.26025 | E38: =MAX(TREND(E26:E27,$B26:$B27,$B38),0) -> 8.934271117 | F38: =MAX(TREND(F26:F27,$B26:$B27,$B38),0) -> 16.88232138 | G38: =IFERROR(MAX(1/E38-1/INDEX(ReliabilityModelGroup,A20,17), 0),0) -> 0.02101945781 | H38: =IFERROR(MAX(1/F38-1/INDEX(ReliabilityModelGroup,A20,24), 0),0) -> 0.00923356022 | I38: =IFERROR(AlphaSTD*MAX(AlphaTTI*(1+INDEX(ReliabilityModelGroup,A20,17)*G38)^BetaTTI-1,0)^BetaSTD*INDEX(ReliabilityModelGroup,A20,16)/INDEX(ReliabilityModelGroup,A20,17)*INDEX(RelAdjFactors,A20,5),0) -> 0.1717739878 | J38: =IFERROR(AlphaSTD*MAX(AlphaTTI*(1+INDEX(ReliabilityModelGroup,A20,24)*H38)^BetaTTI-1,0)^BetaSTD*INDEX(ReliabilityModelGroup,A20,23)/INDEX(ReliabilityModelGroup,A20,24)*INDEX(RelAdjFactors,A20,5),0) -> 0.1681977345 | K38: =MIN(C38*INDEX(ReliabilityModelGroup,A20,18),D38*INDEX(ReliabilityModelGroup,A20,25))*(I38-J38)*(INDEX(ReliabilityModelGroup,A20,12)*AnnualFactor) -> 4649.827056 | L38: =IF(AND(D38*INDEX(ReliabilityModelGroup,A20,25)>C38*INDEX(ReliabilityModelGroup,A20,18), Induced="Y"), (D38*INDEX(ReliabilityModelGroup,A20,25)-C38*INDEX(ReliabilityModelGroup,A20,18))*(I38-J38)*0.5*(INDEX(ReliabilityModelGroup,A20,12)*AnnualFactor), 0) -> 0 | M38: 61191.72406 | N38: 35336.69592 | P38: 2037 | Q38: =MAX(TREND(Q26:Q27,$P26:$P27,$P38),0) -> 177.273 | R38: =MAX(TREND(R26:R27,$P26:$P27,$P38),0) -> 94.10475 | S38: =MAX(TREND(S26:S27,$P26:$P27,$P38),0) -> 8.934271117 | T38: =MAX(TREND(T26:T27,$P26:$P27,$P38),0) -> 16.88232138 | U38: =IFERROR(MAX(1/S38-1/INDEX(ReliabilityModelGroup,O20,17), 0),0) -> 0.02101945781 | V38: =IFERROR(MAX(1/T38-1/INDEX(ReliabilityModelGroup,O20,24), 0),0) -> 0.00923356022 | W38: =IFERROR(AlphaSTD*MAX(AlphaTTI*(1+INDEX(ReliabilityModelGroup,O20,17)*U38)^BetaTTI-1,0)^BetaSTD*INDEX(ReliabilityModelGroup,O20,16)/INDEX(ReliabilityModelGroup,O20,17)*INDEX(RelAdjFactors,O20,15),0) -> 0.1717739878 | X38: =IFERROR(AlphaSTD*MAX(AlphaTTI*(1+INDEX(ReliabilityModelGroup,O20,24)*V38)^BetaTTI-1,0)^BetaSTD*INDEX(ReliabilityModelGroup,O20,23)/INDEX(ReliabilityModelGroup,O20,24)*INDEX(RelAdjFactors,O20,15),0) -> 0.1681977345 | Y38: =MIN(Q38,R38)*(W38-X38)*(INDEX(ReliabilityModelGroup,A20,12)*AnnualFactor) -> 491.3519256 | Z38: =IF(AND(R38>Q38, Induced="Y"), (R38-Q38)*(W38-X38)*0.5*(INDEX(ReliabilityModelGroup,A20,12)*AnnualFactor), 0) -> 0 | AA38: 20295.29129 | AB38: 11720.02502 | AD38: 2040 | AE38: -61738.80482 | AG38: -82215.54489 | AI38: -42207.26114
B39: 2038 | C39: =MAX(TREND(C26:C27,$B26:$B27,$B39),0) -> 1044.735 | D39: =MAX(TREND(D26:D27,$B26:$B27,$B39),0) -> 554.593125 | E39: =MAX(TREND(E26:E27,$B26:$B27,$B39),0) -> 8.462934264 | F39: =MAX(TREND(F26:F27,$B26:$B27,$B39),0) -> 15.99160201 | G39: =IFERROR(MAX(1/E39-1/INDEX(ReliabilityModelGroup,A20,17), 0),0) -> 0.02725323539 | H39: =IFERROR(MAX(1/F39-1/INDEX(ReliabilityModelGroup,A20,24), 0),0) -> 0.01253282186 | I39: =IFERROR(AlphaSTD*MAX(AlphaTTI*(1+INDEX(ReliabilityModelGroup,A20,17)*G39)^BetaTTI-1,0)^BetaSTD*INDEX(ReliabilityModelGroup,A20,16)/INDEX(ReliabilityModelGroup,A20,17)*INDEX(RelAdjFactors,A20,5),0) -> 0.1971747302 | J39: =IFERROR(AlphaSTD*MAX(AlphaTTI*(1+INDEX(ReliabilityModelGroup,A20,24)*H39)^BetaTTI-1,0)^BetaSTD*INDEX(ReliabilityModelGroup,A20,23)/INDEX(ReliabilityModelGroup,A20,24)*INDEX(RelAdjFactors,A20,5),0) -> 0.1971537308 | K39: =MIN(C39*INDEX(ReliabilityModelGroup,A20,18),D39*INDEX(ReliabilityModelGroup,A20,25))*(I39-J39)*(INDEX(ReliabilityModelGroup,A20,12)*AnnualFactor) -> 28.39560532 | L39: =IF(AND(D39*INDEX(ReliabilityModelGroup,A20,25)>C39*INDEX(ReliabilityModelGroup,A20,18), Induced="Y"), (D39*INDEX(ReliabilityModelGroup,A20,25)-C39*INDEX(ReliabilityModelGroup,A20,18))*(I39-J39)*0.5*(INDEX(ReliabilityModelGroup,A20,12)*AnnualFactor), 0) -> 0 | M39: 373.686166 | N39: 207.4946631 | P39: 2038 | Q39: =MAX(TREND(Q26:Q27,$P26:$P27,$P39),0) -> 184.365 | R39: =MAX(TREND(R26:R27,$P26:$P27,$P39),0) -> 97.869375 | S39: =MAX(TREND(S26:S27,$P26:$P27,$P39),0) -> 8.462934264 | T39: =MAX(TREND(T26:T27,$P26:$P27,$P39),0) -> 15.99160201 | U39: =IFERROR(MAX(1/S39-1/INDEX(ReliabilityModelGroup,O20,17), 0),0) -> 0.02725323539 | V39: =IFERROR(MAX(1/T39-1/INDEX(ReliabilityModelGroup,O20,24), 0),0) -> 0.01253282186 | W39: =IFERROR(AlphaSTD*MAX(AlphaTTI*(1+INDEX(ReliabilityModelGroup,O20,17)*U39)^BetaTTI-1,0)^BetaSTD*INDEX(ReliabilityModelGroup,O20,16)/INDEX(ReliabilityModelGroup,O20,17)*INDEX(RelAdjFactors,O20,15),0) -> 0.1971747302 | X39: =IFERROR(AlphaSTD*MAX(AlphaTTI*(1+INDEX(ReliabilityModelGroup,O20,24)*V39)^BetaTTI-1,0)^BetaSTD*INDEX(ReliabilityModelGroup,O20,23)/INDEX(ReliabilityModelGroup,O20,24)*INDEX(RelAdjFactors,O20,15),0) -> 0.1971537308 | Y39: =MIN(Q39,R39)*(W39-X39)*(INDEX(ReliabilityModelGroup,A20,12)*AnnualFactor) -> 3.00059232 | Z39: =IF(AND(R39>Q39, Induced="Y"), (R39-Q39)*(W39-X39)*0.5*(INDEX(ReliabilityModelGroup,A20,12)*AnnualFactor), 0) -> 0 | AA39: 123.9394658 | AB39: 68.81918582 | AD39: 2041 | AE39: -90913.22904 | AG39: -121066.1704 | AI39: -59761.66619
B40: 2039 | C40: =MAX(TREND(C26:C27,$B26:$B27,$B40),0) -> 1084.923 | D40: =MAX(TREND(D26:D27,$B26:$B27,$B40),0) -> 575.926 | E40: =MAX(TREND(E26:E27,$B26:$B27,$B40),0) -> 7.991597411 | F40: =MAX(TREND(F26:F27,$B26:$B27,$B40),0) -> 15.10088265 | G40: =IFERROR(MAX(1/E40-1/INDEX(ReliabilityModelGroup,A20,17), 0),0) -> 0.03422233758 | H40: =IFERROR(MAX(1/F40-1/INDEX(ReliabilityModelGroup,A20,24), 0),0) -> 0.01622129469 | I40: =IFERROR(AlphaSTD*MAX(AlphaTTI*(1+INDEX(ReliabilityModelGroup,A20,17)*G40)^BetaTTI-1,0)^BetaSTD*INDEX(ReliabilityModelGroup,A20,16)/INDEX(ReliabilityModelGroup,A20,17)*INDEX(RelAdjFactors,A20,5),0) -> 0.2231245607 | J40: =IFERROR(AlphaSTD*MAX(AlphaTTI*(1+INDEX(ReliabilityModelGroup,A20,24)*H40)^BetaTTI-1,0)^BetaSTD*INDEX(ReliabilityModelGroup,A20,23)/INDEX(ReliabilityModelGroup,A20,24)*INDEX(RelAdjFactors,A20,5),0) -> 0.2263347985 | K40: =MIN(C40*INDEX(ReliabilityModelGroup,A20,18),D40*INDEX(ReliabilityModelGroup,A20,25))*(I40-J40)*(INDEX(ReliabilityModelGroup,A20,12)*AnnualFactor) -> -4507.888945 | L40: =IF(AND(D40*INDEX(ReliabilityModelGroup,A20,25)>C40*INDEX(ReliabilityModelGroup,A20,18), Induced="Y"), (D40*INDEX(ReliabilityModelGroup,A20,25)-C40*INDEX(ReliabilityModelGroup,A20,18))*(I40-J40)*0.5*(INDEX(ReliabilityModelGroup,A20,12)*AnnualFactor), 0) -> 0 | M40: -59323.81852 | N40: -31673.47172 | P40: 2039 | Q40: =MAX(TREND(Q26:Q27,$P26:$P27,$P40),0) -> 191.457 | R40: =MAX(TREND(R26:R27,$P26:$P27,$P40),0) -> 101.634 | S40: =MAX(TREND(S26:S27,$P26:$P27,$P40),0) -> 7.991597411 | T40: =MAX(TREND(T26:T27,$P26:$P27,$P40),0) -> 15.10088265 | U40: =IFERROR(MAX(1/S40-1/INDEX(ReliabilityModelGroup,O20,17), 0),0) -> 0.03422233758 | V40: =IFERROR(MAX(1/T40-1/INDEX(ReliabilityModelGroup,O20,24), 0),0) -> 0.01622129469 | W40: =IFERROR(AlphaSTD*MAX(AlphaTTI*(1+INDEX(ReliabilityModelGroup,O20,17)*U40)^BetaTTI-1,0)^BetaSTD*INDEX(ReliabilityModelGroup,O20,16)/INDEX(ReliabilityModelGroup,O20,17)*INDEX(RelAdjFactors,O20,15),0) -> 0.2231245607 | X40: =IFERROR(AlphaSTD*MAX(AlphaTTI*(1+INDEX(ReliabilityModelGroup,O20,24)*V40)^BetaTTI-1,0)^BetaSTD*INDEX(ReliabilityModelGroup,O20,23)/INDEX(ReliabilityModelGroup,O20,24)*INDEX(RelAdjFactors,O20,15),0) -> 0.2263347985 | Y40: =MIN(Q40,R40)*(W40-X40)*(INDEX(ReliabilityModelGroup,A20,12)*AnnualFactor) -> -476.3531819 | Z40: =IF(AND(R40>Q40, Induced="Y"), (R40-Q40)*(W40-X40)*0.5*(INDEX(ReliabilityModelGroup,A20,12)*AnnualFactor), 0) -> 0 | AA40: -19675.76818 | AB40: -10505.05349 | AD40: 2042 | AE40: -119887.4909 | AG40: -159650.2462 | AI40: -75776.77985
B41: 2040 | C41: =MAX(TREND(C26:C27,$B26:$B27,$B41),0) -> 1125.111 | D41: =MAX(TREND(D26:D27,$B26:$B27,$B41),0) -> 597.258875 | E41: =MAX(TREND(E26:E27,$B26:$B27,$B41),0) -> 7.520260559 | F41: =MAX(TREND(F26:F27,$B26:$B27,$B41),0) -> 14.21016328 | G41: =IFERROR(MAX(1/E41-1/INDEX(ReliabilityModelGroup,A20,17), 0),0) -> 0.04206502511 | H41: =IFERROR(MAX(1/F41-1/INDEX(ReliabilityModelGroup,A20,24), 0),0) -> 0.02037216814 | I41: =IFERROR(AlphaSTD*MAX(AlphaTTI*(1+INDEX(ReliabilityModelGroup,A20,17)*G41)^BetaTTI-1,0)^BetaSTD*INDEX(ReliabilityModelGroup,A20,16)/INDEX(ReliabilityModelGroup,A20,17)*INDEX(RelAdjFactors,A20,5),0) -> 0.2500781121 | J41: =IFERROR(AlphaSTD*MAX(AlphaTTI*(1+INDEX(ReliabilityModelGroup,A20,24)*H41)^BetaTTI-1,0)^BetaSTD*INDEX(ReliabilityModelGroup,A20,23)/INDEX(ReliabilityModelGroup,A20,24)*INDEX(RelAdjFactors,A20,5),0) -> 0.2563534506 | K41: =MIN(C41*INDEX(ReliabilityModelGroup,A20,18),D41*INDEX(ReliabilityModelGroup,A20,25))*(I41-J41)*(INDEX(ReliabilityModelGroup,A20,12)*AnnualFactor) -> -9138.377546 | L41: =IF(AND(D41*INDEX(ReliabilityModelGroup,A20,25)>C41*INDEX(ReliabilityModelGroup,A20,18), Induced="Y"), (D41*INDEX(ReliabilityModelGroup,A20,25)-C41*INDEX(ReliabilityModelGroup,A20,18))*(I41-J41)*0.5*(INDEX(ReliabilityModelGroup,A20,12)*AnnualFactor), 0) -> 0 | M41: -120261.0485 | N41: -61738.80482 | P41: 2040 | Q41: =MAX(TREND(Q26:Q27,$P26:$P27,$P41),0) -> 198.549 | R41: =MAX(TREND(R26:R27,$P26:$P27,$P41),0) -> 105.398625 | S41: =MAX(TREND(S26:S27,$P26:$P27,$P41),0) -> 7.520260559 | T41: =MAX(TREND(T26:T27,$P26:$P27,$P41),0) -> 14.21016328 | U41: =IFERROR(MAX(1/S41-1/INDEX(ReliabilityModelGroup,O20,17), 0),0) -> 0.04206502511 | V41: =IFERROR(MAX(1/T41-1/INDEX(ReliabilityModelGroup,O20,24), 0),0) -> 0.02037216814 | W41: =IFERROR(AlphaSTD*MAX(AlphaTTI*(1+INDEX(ReliabilityModelGroup,O20,17)*U41)^BetaTTI-1,0)^BetaSTD*INDEX(ReliabilityModelGroup,O20,16)/INDEX(ReliabilityModelGroup,O20,17)*INDEX(RelAdjFactors,O20,15),0) -> 0.2500781121 | X41: =IFERROR(AlphaSTD*MAX(AlphaTTI*(1+INDEX(ReliabilityModelGroup,O20,24)*V41)^BetaTTI-1,0)^BetaSTD*INDEX(ReliabilityModelGroup,O20,23)/INDEX(ReliabilityModelGroup,O20,24)*INDEX(RelAdjFactors,O20,15),0) -> 0.2563534506 | Y41: =MIN(Q41,R41)*(W41-X41)*(INDEX(ReliabilityModelGroup,A20,12)*AnnualFactor) -> -965.6615935 | Z41: =IF(AND(R41>Q41, Induced="Y"), (R41-Q41)*(W41-X41)*0.5*(INDEX(ReliabilityModelGroup,A20,12)*AnnualFactor), 0) -> 0 | AA41: -39886.65212 | AB41: -20476.74006 | AD41: 2043 | AE41: -149256.5909 | AG41: -198760.115 | AI41: -90711.52191
